Workbook

Sheet Cover Page
B4: Economically Efficient Hepatitis C Virus Treatment Prioritization Improves Health Outcomes
B6: Cipriano LE, Liu S, Shahzada KS, Holodniy M, Goldhaber-Fiebert JD
B9: Appendix S3. Excel spreadsheet model
B12: For assistance using the model, please refer to Appendix S2 (Excel model documentation and user guide).

Sheet Inputs
B2: INPUTS
B3: click the + signs on the left hand side to expand the input groups
B4: modifiable input cells are highlighted yellow
B5: intermediate calculations are in grey
B7: 1. Health economic inputs
B9: Cycle length | C9: 0.25 | D9: Years per cycle (structural assumption; not modifiable)
B10: Discount rate | C10: 0.03 | D10: Annual (assumed to be 3% per year in the lifetime discounted rewards)
B11: Willingness to pay | C11: 100000 | D11: $/QALY
B15: 2. Budget constraint
B17: Annual HCV treatment budget
B19: Years | C19: Budget Constraint
B20: 0 | C20: 8600000000 | E20: =ROUND(C20/(C235*(1-C40)+C40*C239), -2) -> 183000 | F20: Approx number of people year 0 treatment budget would treat
B21: 1 | C21: 8600000000
B22: 2 | C22: 8600000000
B23: 3 | C23: 8600000000
B24: 4 | C24: 8600000000
B25: 5 | C25: 8600000000
B26: 6 | C26: 8600000000
B27: 7 | C27: 8600000000
B28: 8 | C28: 8600000000
B29: 9 | C29: 8600000000
B30: 10 | C30: 8600000000 | E30: * assumed to stay constant at this rate in future years *
B33: Budget over-run tolerance | C33: 0.01
B36: 3. Demand for treatment
B38: Average uptake rate | C38: 0.1
B39: Relative risk of uptake in cirrhosis (F3/F4) vs. no cirrhosis | C39: 1.822
B40: Approx proportion F3/F4 | C40: =SUM(S82:T82)/U82 -> 0.3314443054
B41: Uptake in F0-F2 | C41: =C38/((1-C40)+C40*C39) -> 0.0785887214
B42: Uptake in F3-F4 | C42: =C41*C39 -> 0.1431886504
B43: Confirm overall rate | C43: =(1-C40)*C41+C40*C42 -> 0.1
B46: Annual probability of seeking treatment, if the subgroup has been prioritized | J46: Cycle-specific (3-month) probability of seeking treatment, if the subgroup has been prioritized
B47: Changing these values will enable fibrosis-stage and age-specific demand rates (and will then override the inputs above)
B48: Age | C48: F0 | D48: F1 | E48: F2 | F48: F3 | G48: F4 | K48: F0 | L48: F1 | M48: F2 | N48: F3 | O48: F4
B49: 40 | C49: =$C$41 -> 0.0785887214 | D49: =$C$41 -> 0.0785887214 | E49: 0.0785887214 | F49: =$C$42 -> 0.1431886504 | G49: =$C$42 -> 0.1431886504 | J49: 40 | K49: =1- EXP(-(-LN(1-C49))*CycleLength) -> 0.02025426637 | L49: =1- EXP(-(-LN(1-D49))*CycleLength) -> 0.02025426637 | M49: 0.02025426637 | N49: 0.03789758969 | O49: 0.03789758969
B50: 45 | C50: =$C$41 -> 0.0785887214 | D50: 0.0785887214 | E50: 0.0785887214 | F50: =$C$42 -> 0.1431886504 | G50: 0.1431886504 | J50: 45 | K50: 0.02025426637 | L50: 0.02025426637 | M50: 0.02025426637 | N50: 0.03789758969 | O50: 0.03789758969
B51: 50 | C51: 0.0785887214 | D51: 0.0785887214 | E51: 0.0785887214 | F51: 0.1431886504 | G51: 0.1431886504 | J51: 50 | K51: 0.02025426637 | L51: 0.02025426637 | M51: 0.02025426637 | N51: 0.03789758969 | O51: 0.03789758969
B52: 55 | C52: 0.0785887214 | D52: 0.0785887214 | E52: 0.0785887214 | F52: 0.1431886504 | G52: 0.1431886504 | J52: 55 | K52: 0.02025426637 | L52: =1- EXP(-(-LN(1-D52))*CycleLength) -> 0.02025426637 | M52: 0.02025426637 | N52: 0.03789758969 | O52: 0.03789758969
B53: 60 | C53: 0.0785887214 | D53: 0.0785887214 | E53: 0.0785887214 | F53: 0.1431886504 | G53: 0.1431886504 | J53: 60 | K53: 0.02025426637 | L53: 0.02025426637 | M53: 0.02025426637 | N53: 0.03789758969 | O53: 0.03789758969
B54: 65 | C54: 0.0785887214 | D54: 0.0785887214 | E54: 0.0785887214 | F54: 0.1431886504 | G54: 0.1431886504 | J54: 65 | K54: 0.02025426637 | L54: 0.02025426637 | M54: 0.02025426637 | N54: 0.03789758969 | O54: 0.03789758969
B55: 70 | C55: 0.0785887214 | D55: 0.0785887214 | E55: 0.0785887214 | F55: 0.1431886504 | G55: 0.1431886504 | J55: 70 | K55: 0.02025426637 | L55: 0.02025426637 | M55: 0.02025426637 | N55: 0.03789758969 | O55: 0.03789758969
B56: 75 | C56: 0.0785887214 | D56: 0.0785887214 | E56: 0.0785887214 | F56: 0.1431886504 | G56: 0.1431886504 | J56: 75 | K56: 0.02025426637 | L56: 0.02025426637 | M56: 0.02025426637 | N56: 0.03789758969 | O56: 0.03789758969
B59: Proportion of individuals alive at the end of the model horizon who immediately receive treatment (vs. no treatment ever)
C60: 0.5
B64: 4. Initial population
B66: Number of people with chronic HCV infection age 40-79 in 2015
B68: Number of people | C68: 3100000
B69: Fraction treatment eligible | C69: 0.977
B71: Proportion of individuals in each race-gender-age group | H71: Total number of treatment eligible individuals by race-gender-age group | O71: Total number of treatment eligible people by fibrosis stage and age group | X71: Number of people who would demand treatment immediately if their subgroup were prioritized
B73: Age | C73: WM | D73: WF | E73: BM | F73: BF | I73: WM | J73: WF | K73: BM | L73: BF | M73: TOTAL | P73: F0 | Q73: F1 | R73: F2 | S73: F3 | T73: F4 | U73: TOTAL | Y73: F0 | Z73: F1 | AA73: F2 | AB73: F3 | AC73: F4 | AD73: TOTAL
B74: 40 | C74: 0.02785740633 | D74: 0.02039284985 | E74: 0.002097643639 | F74: 0.003649873884 | H74: 40 | I74: =$C$68*$C$69*C74 -> 84371.72656 | J74: =$C$68*$C$69*D74 -> 61763.82434 | K74: 6353.13329 | L74: 11054.37303 | M74: =SUM(I74:L74) -> 163543.0572 | O74: 40 | P74: =($I74*C88+$J74*H88+$K74*M88+$L74*R88) -> 53925.00806 | Q74: =($I74*D88+$J74*I88+$K74*N88+$L74*S88) -> 56577.05763 | R74: =($I74*E88+$J74*J88+$K74*O88+$L74*T88) -> 29172.54534 | S74: =($I74*F88+$J74*K88+$K74*P88+$L74*U88) -> 20332.38009 | T74: =($I74*G88+$J74*L88+$K74*Q88+$L74*V88) -> 3536.066102 | U74: =SUM(P74:T74) -> 163543.0572 | X74: 40 | Y74: =($I74*C88+$J74*H88+$K74*M88+$L74*R88)*C49 -> 4237.897435 | Z74: 4446.31862 | AA74: 2292.633039 | AB74: 2911.366064 | AC74: 506.3245329 | AD74: =SUM(Y74:AC74) -> 14394.53969
B75: 45 | C75: 0.06235848845 | D75: 0.04599310892 | E75: 0.007406773401 | F75: 0.006980094869 | H75: 45 | I75: =$C$68*$C$69*C75 -> 188865.154 | J75: =$C$68*$C$69*D75 -> 139299.329 | K75: =$C$68*$C$69*E75 -> 22432.8946 | L75: =$C$68*$C$69*F75 -> 21140.61333 | M75: =SUM(I75:L75) -> 371737.9909 | O75: 45 | P75: =($I75*C89+$J75*H89+$K75*M89+$L75*R89) -> 104509.9944 | Q75: =($I75*D89+$J75*I89+$K75*N89+$L75*S89) -> 126514.2093 | R75: =($I75*E89+$J75*J89+$K75*O89+$L75*T89) -> 81883.48961 | S75: =($I75*F89+$J75*K89+$K75*P89+$L75*U89) -> 45803.89376 | T75: =($I75*G89+$J75*L89+$K75*Q89+$L75*V89) -> 13026.40387 | U75: =SUM(P75:T75) -> 371737.9909 | X75: 45 | Y75: 8213.306833 | Z75: 9942.589944 | AA75: 6435.118752 | AB75: 6558.59773 | AC75: 1865.233189 | AD75: =SUM(Y75:AC75) -> 33014.84645
B76: 50 | C76: 0.09916081974 | D76: 0.071567963 | E76: 0.01664895837 | F76: 0.01437169919 | H76: 50 | I76: 300328.3747 | J76: 216757.8895 | K76: =$C$68*$C$69*E76 -> 50424.70021 | L76: 43527.56535 | M76: 611038.5298 | O76: 50 | P76: 137274.7366 | Q76: 188015.3404 | R76: 159827.7392 | S76: 88124.44271 | T76: 37796.27104 | U76: 611038.5298 | X76: 50 | Y76: 10788.24603 | Z76: 14775.8852 | AA76: 12560.65767 | AB76: 12618.42002 | AC76: 5411.99704 | AD76: 56155.20596
B77: 55 | C77: 0.1428269552 | D77: 0.06332426738 | E77: 0.02594851247 | F77: 0.02391762607 | H77: 55 | I77: 432579.9993 | J77: 191790.2086 | K77: 78590.25972 | L77: 72439.31408 | M77: 775399.7817 | O77: 55 | P77: 132496.2458 | Q77: 189997.9796 | R77: 219483.325 | S77: 143079.0833 | T77: 90343.14807 | U77: 775399.7817 | X77: 55 | Y77: 10412.71055 | Z77: 14931.69828 | AA77: 17248.91388 | AB77: 20487.30084 | AC77: 12936.11344 | AD77: 76016.73699
B78: 60 | C78: 0.1277930467 | D78: 0.04610543121 | E78: 0.02902757615 | F78: 0.0191920191 | H78: 60 | I78: 387046.8005 | J78: 139639.5195 | K78: 87915.81989 | L78: 58126.86826 | M78: 672729.0082 | O78: 60 | P78: 90832.55565 | Q78: 113077.8988 | R78: 173505.874 | S78: 147180.1629 | T78: 148132.5168 | U78: 672729.0082 | X78: 60 | Y78: 7138.41441 | Z78: 8886.647485 | AA78: 13635.60479 | AB78: 21074.52889 | AC78: 21210.89516 | AD78: 71946.09074
B79: 65 | C79: 0.05017329835 | D79: 0.01706929942 | E79: 0.01898322638 | F79: 0.008403204263 | H79: 65 | I79: 151959.8687 | J79: 51697.78716 | K79: 57494.49775 | L79: 25450.78475 | M79: 286602.9384 | O79: 65 | P79: 34891.81035 | Q79: 28615.89688 | R79: 57208.05157 | S79: 62335.60089 | T79: 103551.5787 | U79: 286602.9384 | X79: 65 | Y79: 2742.102763 | Z79: 2248.886747 | AA79: 4495.907627 | AB79: 8925.750563 | AC79: 14827.4108 | AD79: 33240.0585
B80: 70 | C80: 0.01372407523 | D80: 0.005097666879 | E80: 0.007972482796 | F80: 0.004059916675 | H80: 70 | I80: 41566.10666 | J80: 15439.30368 | K80: 24146.25864 | L80: 12296.26963 | M80: 93447.93861 | O80: 70 | P80: 12066.73167 | Q80: 5574.562029 | R80: 13317.10698 | S80: 17140.01688 | T80: 45349.52105 | U80: 93447.93861 | X80: 70 | Y80: 948.3090136 | Z80: 438.0977023 | AA80: 1046.57441 | AB80: 2454.255885 | AC80: 6493.536715 | AD80: 11380.77373
B81: 75 | C81: 0.007037009223 | D81: 0.004081428524 | E81: 0.00323646051 | F81: 0.003540817789 | H81: 75 | I81: 21312.98983 | J81: 12361.42257 | K81: 9802.267946 | L81: =$C$68*$C$69*F81 -> 10724.07484 | M81: 54200.75519 | O81: 75 | P81: 7881.282901 | Q81: 2242.147267 | R81: 5963.043272 | S81: 8218.309776 | T81: 29895.97197 | U81: 54200.75519 | X81: 75 | Y81: 619.3799462 | Z81: 176.2074869 | AA81: 468.6279464 | AB81: 1176.768685 | AC81: 4280.763879 | AD81: 6721.747944
H82: TOTAL | I82: =SUM(I74:I81) -> 1608031.02 | J82: =SUM(J74:J81) -> 828749.2844 | K82: 337159.8321 | L82: 254759.8633 | M82: 3028700 | O82: TOTAL | P82: =SUM(P74:P81) -> 573878.3654 | Q82: =SUM(Q74:Q81) -> 710615.0918 | R82: 740361.1749 | S82: 532213.8903 | T82: =SUM(T74:T81) -> 471631.4776 | U82: =SUM(P82:T82) -> 3028700 | X82: TOTAL | Y82: =SUM(Y74:Y81) -> 45100.36698 | Z82: =SUM(Z74:Z81) -> 55846.33147 | AA82: 58184.03811 | AB82: 76206.98867 | AC82: 67532.27476 | AD82: 302870
B84: Initial fibrosis stage distribution
C86: WM | H86: WF | M86: BM | R86: BF
B87: Age | C87: F0 | D87: F1 | E87: F2 | F87: F3 | G87: F4 | H87: F0 | I87: F1 | J87: F2 | K87: F3 | L87: F4 | M87: F0 | N87: F1 | O87: F2 | P87: F3 | Q87: F4 | R87: F0 | S87: F1 | T87: F2 | U87: F3 | V87: F4
B88: 40 | C88: =1-SUM(D88:G88) -> 0.3297297297 | D88: 0.3459459459 | E88: 0.1783783784 | F88: 0.1243243243 | G88: 0.02162162162 | H88: =1-SUM(I88:L88) -> 0.3297297297 | I88: 0.3459459459 | J88: 0.1783783784 | K88: 0.1243243243 | L88: 0.02162162162 | M88: =1-SUM(N88:Q88) -> 0.3297297297 | N88: 0.3459459459 | O88: 0.1783783784 | P88: 0.1243243243 | Q88: 0.02162162162 | R88: =1-SUM(S88:V88) -> 0.3297297297 | S88: 0.3459459459 | T88: 0.1783783784 | U88: 0.1243243243 | V88: 0.02162162162
B89: 45 | C89: =1-SUM(D89:G89) -> 0.2701444548 | D89: 0.3335718024 | E89: 0.2275558475 | F89: 0.1277923354 | G89: 0.04093555997 | H89: =1-SUM(I89:L89) -> 0.2956183952 | I89: 0.3492343462 | J89: 0.2106793521 | K89: 0.1171879172 | L89: 0.02727998941 | M89: =1-SUM(N89:Q89) -> 0.2701444548 | N89: 0.3335718024 | O89: 0.2275558475 | P89: 0.1277923354 | Q89: 0.04093555997 | R89: =1-SUM(S89:V89) -> 0.2956183952 | S89: 0.3492343462 | T89: 0.2106793521 | U89: 0.1171879172 | V89: 0.02727998941
B90: 50 | C90: 0.2051858088 | D90: 0.287645182 | E90: 0.2708779653 | F90: 0.1581960358 | G90: 0.07809500809 | H90: 0.2508614395 | I90: 0.3346784928 | J90: 0.2490335269 | K90: 0.1254170536 | L90: 0.04000948719 | M90: 0.205319682 | N90: 0.2878125393 | O90: 0.2708442587 | P90: 0.1580834339 | Q90: 0.07794008607 | R90: 0.250926887 | S90: 0.3347365159 | T90: 0.2489957281 | U90: 0.125374317 | V90: 0.03996655201
B91: 55 | C91: 0.1534939919 | D91: 0.2162094664 | E91: 0.2827621688 | F91: 0.2026560844 | G91: 0.1448782885 | H91: 0.2044428491 | I91: 0.3006860041 | J91: 0.2836191993 | K91: 0.1495004768 | L91: 0.06175147068 | M91: 0.1536201068 | N91: 0.2164861392 | O91: 0.2828308899 | P91: 0.2025190809 | Q91: 0.1445437832 | R91: 0.2045109662 | S91: 0.3007725248 | T91: 0.2835881039 | U91: 0.149440394 | V91: 0.0616880111
B92: 60 | C92: 0.1236473766 | D92: 0.1359204444 | E92: 0.2422110653 | F92: 0.2311958955 | G92: 0.2670252183 | H92: 0.1621643406 | I92: 0.2450331066 | J92: 0.2953957883 | K92: 0.1890414042 | L92: 0.1083653603 | M92: 0.1239102378 | N92: 0.1364914773 | O92: 0.2427190779 | P92: 0.2311209361 | Q92: 0.265758271 | R92: 0.1623520016 | S92: 0.2452267032 | T92: 0.2954069946 | U92: 0.1888918871 | V92: 0.1081224137
B93: 65 | C93: 0.117760793 | D93: 0.06943477829 | E93: 0.1689971273 | F93: 0.2151768085 | G93: 0.4286304929 | H93: 0.1322991679 | I93: 0.1822404887 | J93: 0.2824728732 | K93: 0.2237055506 | L93: 0.1792819195 | M93: 0.1180232798 | N93: 0.06961896937 | O93: 0.169302885 | P93: 0.2153371247 | Q93: 0.4277177411 | R93: 0.1324765548 | S93: 0.1823307003 | T93: 0.2825085177 | U93: 0.2236308075 | V93: 0.1790534197
B94: 70 | C94: 0.1333878422 | D94: 0.03110110227 | E94: 0.09838856459 | F94: 0.1598819871 | G94: 0.5772405039 | H94: 0.1184865928 | I94: 0.1271797074 | J94: 0.2467762911 | K94: 0.2389928737 | L94: 0.2685645351 | M94: 0.1338934415 | N94: 0.0311676345 | O94: 0.09860869798 | P94: 0.1601186367 | Q94: 0.5762115894 | R94: 0.1187304999 | S94: 0.127328243 | T94: 0.2469360444 | U94: 0.2389501592 | V94: 0.2680550535
B95: 75 | C95: 0.1654665723 | D95: 0.0111311824 | E95: 0.04527550891 | F95: 0.09252068647 | G95: 0.68560605 | H95: 0.1179024303 | I95: 0.08210972514 | J95: 0.1972115163 | K95: 0.2312207011 | L95: 0.3715556272 | M95: 0.1662456345 | N95: 0.0111046993 | O95: 0.04530829813 | P95: 0.09265664234 | Q95: 0.6846847257 | R95: 0.1182078203 | S95: 0.08215759918 | T95: 0.1973268441 | U95: 0.2312512114 | V95: 0.371056525
B98: Proportion of F0 who are non-progressors
B100: Age | C100: WM | D100: WF | E100: BM | F100: BF
B101: 40 | C101: 0.242 | D101: 0.242 | E101: 0.242 | F101: 0.242
B102: 45 | C102: 0.3001894259 | D102: 0.2729869248 | E102: 0.3006709585 | F102: 0.2733577113
B103: 50 | C103: 0.3996777774 | D103: 0.3207406923 | E103: 0.4006205966 | F103: 0.3213351856
B104: 55 | C104: 0.5581377692 | D104: 0.3963992508 | E104: 0.5604200696 | F104: 0.3974033786
B105: 60 | C105: 0.7523689719 | D105: 0.5072705388 | E105: 0.756531865 | F105: 0.5092370261
B106: 65 | C106: 0.9196784187 | D106: 0.6516547811 | E106: 0.9276931614 | F106: 0.6553001483
B107: 70 | C107: 0.99 | D107: 0.7921862569 | E107: 0.99 | F107: 0.7975158202
B108: 75 | C108: 0.99 | D108: 0.9078122111 | E108: 0.99 | F108: 0.9155709772
B111: 5. New entrants
B113: Number of individuals by race-gender-age group in 2015
B115: Age | C115: WM | D115: WF | E115: BM | F115: BF
B116: 20-24 | C116: 8002.027681 | D116: 5003.600552 | E116: 4039.472472 | F116: 1489.33672
B117: 25-29 | C117: 3972.022455 | D117: 5157.4848 | E117: 4039.472472 | F117: 1074.473418
B118: 30-34 | C118: 35630.94956 | D118: 13456.37881 | E118: 3649.212125 | F118: 1074.473418
B119: 35-39 | C119: 39896.0685 | D119: 51932.68174 | E119: 3649.212125 | F119: 6353.6726
B122: Annual number of new model entrants (HCV+ individuals entering the model at age 40 in future years)
B124: Years into the future | C124: WM | D124: WF | E124: BM | F124: BF
B125: 0 | C125: =C$119/5 -> 7979.213699 | D125: =D$119/5 -> 10386.53635 | E125: 729.842425 | F125: 1270.73452
B126: 1 | C126: =C$119/5 -> 7979.213699 | D126: 10386.53635 | E126: 729.842425 | F126: 1270.73452
B127: 2 | C127: 7979.213699 | D127: 10386.53635 | E127: 729.842425 | F127: 1270.73452
B128: 3 | C128: 7979.213699 | D128: 10386.53635 | E128: 729.842425 | F128: 1270.73452
B129: 4 | C129: =C$119/5 -> 7979.213699 | D129: 10386.53635 | E129: 729.842425 | F129: 1270.73452
B130: 5 | C130: =C$118/5 -> 7126.189913 | D130: =D$118/5 -> 2691.275761 | E130: 729.842425 | F130: 214.8946836
B131: 6 | C131: =C$118/5 -> 7126.189913 | D131: 2691.275761 | E131: 729.842425 | F131: 214.8946836
B132: 7 | C132: 7126.189913 | D132: 2691.275761 | E132: 729.842425 | F132: 214.8946836
B133: 8 | C133: 7126.189913 | D133: 2691.275761 | E133: 729.842425 | F133: 214.8946836
B134: 9 | C134: 7126.189913 | D134: 2691.275761 | E134: 729.842425 | F134: 214.8946836
B135: 10 | C135: =C$117/5 -> 794.404491 | D135: =D$117/5 -> 1031.49696 | E135: 807.8944944 | F135: 214.8946836
B136: 11 | C136: =C$117/5 -> 794.404491 | D136: 1031.49696 | E136: 807.8944944 | F136: 214.8946836
B137: 12 | C137: 794.404491 | D137: 1031.49696 | E137: 807.8944944 | F137: 214.8946836
B138: 13 | C138: 794.404491 | D138: 1031.49696 | E138: 807.8944944 | F138: 214.8946836
B139: 14 | C139: 794.404491 | D139: 1031.49696 | E139: 807.8944944 | F139: 214.8946836
B140: 15 | C140: =C$116/5 -> 1600.405536 | D140: =D$116/5 -> 1000.72011 | E140: 807.8944944 | F140: =F$116/5 -> 297.867344 | H140: * hold constant at these values
B143: Fibrosis stage distribution of new entrants (at age 40)
B145: Fibrosis stage | C145: WM | D145: WF | E145: BM | F145: BF
B146: 0 | C146: =1-SUM(C147:C150) -> 0.3297297297 | D146: =1-SUM(D147:D150) -> 0.3297297297 | E146: 0.3297297297 | F146: 0.3297297297
B147: 1 | C147: 0.3459459459 | D147: 0.3459459459 | E147: 0.3459459459 | F147: 0.3459459459
B148: 2 | C148: 0.1783783784 | D148: 0.1783783784 | E148: 0.1783783784 | F148: 0.1783783784
B149: 3 | C149: 0.1243243243 | D149: 0.1243243243 | E149: 0.1243243243 | F149: 0.1243243243
B150: 4 | C150: 0.02162162162 | D150: 0.02162162162 | E150: 0.02162162162 | F150: 0.02162162162
B153: Proportion of new entrant F0 who are non-progressors
B155: Proportion of F0 who are non-progressors (at age 40) | C155: 0.242
B158: 6. Mortality
B160: Hazard ratios, increase in mortality rate to account for HCV+ infection status
C162: WM | D162: WF | E162: BM | F162: BF
B163: Hazard ratio on baseline mortality | C163: 2.56 | D163: 1.9 | E163: 2.75 | F163: 2.48
B166: Average age-specific mortality rates (per 100,000) | H166: HCV+ mortality rates (per 100,000)
C168: WM | D168: WF | E168: BM | F168: BF | I168: WM | J168: WF | K168: BM | L168: BF
B169: 40 | C169: 209.1349568 | D169: 126.4197088 | E169: 342.9741194 | F169: 211.4862007 | H169: 40 | I169: =C169*C$163 -> 535.3854893 | J169: =D169*D$163 -> 240.1974468 | K169: =E169*E$163 -> 943.1788284 | L169: =F169*F$163 -> 524.4857778
B170: 41 | C170: 226.5348366 | D170: 138.4201742 | E170: 370.4194538 | F170: 231.9155792 | H170: 41 | I170: =C170*C$163 -> 579.9291817 | J170: =D170*D$163 -> 262.9983309 | K170: =E170*E$163 -> 1018.653498 | L170: =F170*F$163 -> 575.1506365
B171: 42 | C171: 247.8429645 | D171: 152.8332251 | E171: 400.6560086 | F171: 256.0033723 | H171: 42 | I171: 634.4779891 | J171: 290.3831277 | K171: 1101.804024 | L171: 634.8883633
B172: 43 | C172: 273.0359238 | D172: 169.5520379 | E172: 432.8920243 | F172: 283.6556042 | H172: 43 | I172: 698.9719649 | J172: 322.1488719 | K172: 1190.453067 | L172: 703.4658985
B173: 44 | C173: 300.7894788 | D173: 187.5231017 | E173: 467.3703942 | F173: 313.5110811 | H173: 44 | I173: 770.0210657 | J173: 356.2938932 | K173: 1285.268584 | L173: 777.5074812
B174: 45 | C174: 328.6748253 | D174: 205.4230283 | E174: 501.5928174 | F174: 343.1286895 | H174: 45 | I174: 841.4075528 | J174: 390.3037537 | K174: 1379.380248 | L174: 850.95915
B175: 46 | C175: 357.2771877 | D175: 223.235736 | E175: 540.0661229 | F175: 373.0807342 | H175: 46 | I175: 914.6296004 | J175: 424.1478983 | K175: 1485.181838 | L175: 925.2402209
B176: 47 | C176: 389.4214555 | D176: 242.0817939 | E176: 590.6638439 | F176: 406.2436712 | H176: 47 | I176: 996.9189261 | J176: 459.9554084 | K176: 1624.325571 | L176: 1007.484305
B177: 48 | C177: 426.7883127 | D177: 262.7521513 | E177: 658.3810336 | F177: 444.4246854 | H177: 48 | I177: 1092.578081 | J177: 499.2290876 | K177: 1810.547842 | L177: 1102.17322
B178: 49 | C178: 469.0743388 | D178: 285.4031438 | E178: 741.2699317 | F178: 487.3662611 | H178: 49 | I178: 1200.830307 | J178: 542.2659733 | K178: 2038.492312 | L178: 1208.668328
B179: 50 | C179: 515.2233942 | D179: 310.500866 | E179: 831.9719832 | F179: 534.1697663 | H179: 50 | I179: 1318.971889 | J179: 589.9516453 | K179: 2287.922954 | L179: 1324.74102
B180: 51 | C180: 562.6100351 | D180: 336.5641797 | E180: 924.9010051 | F180: 581.8482886 | H180: 51 | I180: 1440.28169 | J180: 639.4719415 | K180: 2543.477764 | L180: 1442.983756
B181: 52 | C181: 610.1832142 | D181: 362.0006998 | E181: 1023.045646 | F181: 628.6277711 | H181: 52 | I181: 1562.069028 | J181: 687.8013296 | K181: 2813.375528 | L181: 1558.996872
B182: 53 | C182: 656.8480871 | D182: 385.9637192 | E182: 1125.346145 | F182: 672.7062943 | H182: 53 | I182: 1681.531103 | J182: 733.3310665 | K182: 3094.701898 | L182: 1668.31161
B183: 54 | C183: 703.9442801 | D183: 409.8132042 | E183: 1232.199857 | F183: 715.4146785 | H183: 54 | I183: 1802.097357 | J183: 778.645088 | K183: 3388.549607 | L183: 1774.228403
B184: 55 | C184: 754.2565557 | D184: 434.9262256 | E184: 1350.578972 | F184: 760.385356 | H184: 55 | I184: 1930.896783 | J184: 826.3598286 | K184: 3714.092172 | L184: 1885.755683
B185: 56 | C185: 809.86634 | D185: 464.3294159 | E185: 1477.079651 | F185: 810.0288629 | H185: 56 | I185: 2073.25783 | J185: 882.2258901 | K185: 4061.969041 | L185: 2008.87158
B186: 57 | C186: 870.1303317 | D186: 500.4226767 | E186: 1598.971678 | F186: 863.6165046 | H186: 57 | I186: 2227.533649 | J186: 950.8030857 | K186: 4397.172116 | L186: 2141.768931
B187: 58 | C187: 935.0230886 | D187: 544.9713961 | E187: 1709.033125 | F187: 922.3570854 | H187: 58 | I187: 2393.659107 | J187: 1035.445653 | K187: 4699.841092 | L187: 2287.445572
B188: 59 | C188: 1004.284274 | D188: 596.8012232 | E188: 1810.945007 | F188: 987.1194374 | H188: 59 | I188: 2570.967742 | J188: 1133.922324 | K188: 4980.098769 | L188: 2448.056205
B189: 60 | C189: 1078.071497 | D189: 654.241607 | E189: 1915.419029 | F189: 1059.427244 | H189: 60 | I189: 2759.863033 | J189: 1243.059053 | K189: 5267.40233 | L189: 2627.379565
B190: 61 | C190: 1157.340393 | D190: 715.3061509 | E190: 2032.965228 | F190: 1139.122773 | H190: 61 | I190: 2962.791407 | J190: 1359.081687 | K190: 5590.654378 | L190: 2825.024476
B191: 62 | C191: 1244.199438 | D191: 780.0875954 | E191: 2164.3177 | F191: 1224.836319 | H191: 62 | I191: 3185.15056 | J191: 1482.166431 | K191: 5951.873676 | L191: 3037.59407
B192: 63 | C192: 1342.274881 | D192: 849.2927068 | E192: 2315.015681 | F192: 1315.30777 | H192: 63 | I192: 3436.223696 | J192: 1613.656143 | K192: 6366.293122 | L192: 3261.963268
B193: 64 | C193: 1454.730885 | D193: 925.6376672 | E193: 2484.897874 | F193: 1411.575111 | H193: 64 | I193: 3724.111066 | J193: 1758.711568 | K193: 6833.469154 | L193: 3500.706274
B194: 65 | C194: 1586.63641 | D194: 1015.055284 | E194: 2676.204926 | F194: 1518.344844 | H194: 65 | I194: 4061.789209 | J194: 1928.60504 | K194: 7359.563546 | L194: 3765.495214
B195: 66 | C195: 1735.332329 | D195: 1117.395824 | E195: 2879.118093 | F195: 1636.955458 | H195: 66 | I195: 4442.450762 | J195: 2123.052065 | K195: 7917.574755 | L195: 4059.649536
B196: 67 | C196: 1893.924068 | D196: 1227.31695 | E196: 3074.41841 | F196: 1766.988398 | H196: 67 | I196: 4848.445614 | J196: 2331.902205 | K196: 8454.650627 | L196: 4382.131228
B197: 68 | C197: 2056.489727 | D197: 1342.558715 | E197: 3258.647518 | F197: 1900.272425 | H197: 68 | I197: 5264.613701 | J197: 2550.861558 | K197: 8961.280675 | L197: 4712.675614
B198: 69 | C198: 2223.18143 | D198: 1464.206547 | E198: 3433.452721 | F198: 2032.560338 | H198: 69 | I198: 5691.344461 | J198: 2781.992439 | K198: 9441.994983 | L198: 5040.749637
B199: 70 | C199: 2410.194062 | D199: 1602.582764 | E199: 3587.884607 | F199: 2185.937311 | H199: 70 | I199: 6170.096798 | J199: 3044.907252 | K199: 9866.682669 | L199: 5421.12453
B200: 71 | C200: 2623.526567 | D200: 1765.246506 | E200: 3760.38312 | F200: 2359.407661 | H200: 71 | I200: 6716.22801 | J200: 3353.968362 | K200: 10341.05358 | L200: 5851.330999
B201: 72 | C201: 2865.263748 | D201: 1944.092054 | E201: 3964.085083 | F201: 2525.342596 | H201: 72 | I201: 7335.075195 | J201: 3693.774903 | K201: 10901.23398 | L201: 6262.849638
B202: 73 | C202: 3151.989841 | D202: 2147.476139 | E202: 4236.087989 | F202: 2715.881344 | H202: 73 | I202: 8069.093994 | J202: 4080.204664 | K202: 11649.24197 | L202: 6735.385732
B203: 74 | C203: 3466.203301 | D203: 2377.085892 | E203: 4553.119884 | F203: 2952.429078 | H203: 74 | I203: 8873.480451 | J203: 4516.463195 | K203: 12521.07968 | L203: 7322.024113
B204: 75 | C204: 3790.776629 | D204: 2611.38261 | E204: 4908.65445 | F204: 3213.348763 | H204: 75 | I204: 9704.38817 | J204: 4961.626959 | K204: 13498.79974 | L204: 7969.104933
B205: 76 | C205: 4152.613116 | D205: 2874.91236 | E205: 5333.992544 | F205: 3452.767915 | H205: 76 | I205: 10630.68958 | J205: 5462.333484 | K205: 14668.4795 | L205: 8562.864429
B206: 77 | C206: 4586.757221 | D206: 3187.306441 | E206: 5734.190604 | F206: 3728.14586 | H206: 77 | I206: 11742.09849 | J206: 6055.882238 | K206: 15769.02416 | L206: 9245.801733
B207: 78 | C207: 5082.444203 | D207: 3549.375954 | E207: 6224.640301 | F207: 4104.830342 | H207: 78 | I207: 13011.05716 | J207: 6743.814312 | K207: 17117.76083 | L207: 10179.97925
B208: 79 | C208: 5616.445576 | D208: 3952.195212 | E208: 6828.764709 | F208: 4551.76934 | H208: 79 | I208: 14378.10067 | J208: 7509.170902 | K208: 18779.10295 | L208: 11288.38796
B209: 80 | C209: 6223.55204 | D209: 4381.750347 | E209: 7352.029979 | F209: 5001.126851 | H209: 80 | I209: 15932.29322 | J209: 8325.325659 | K209: 20218.08244 | L209: 12402.79459
B212: 7. Disease progression rates
B214: Progression rates (per 100,000) | E214: Cycle-specific (3-month) probability of transition
B215: F0 --> Remission | C215: 1200 | E215: F0 --> Remission | F215: =1-EXP(-r_F0_toRem*CycleLength/100000) -> 0.002995504497
B216: F4 --> HCC | C216: 2100 | E216: F4 --> HCC | F216: =1-EXP(-r_F4_toHCC*CycleLength/100000) -> 0.005236242836
B217: F4 --> DC | C217: 4000 | E217: F4 --> DC | F217: =1-EXP(-r_F4_toDC*CycleLength/100000) -> 0.009950166251
B220: Age-specific progression rates (per 100,000)
C222: WM | D222: WF | E222: BM | F222: BF
B223: 40 | C223: 5400 | D223: 2800 | E223: 5400 | F223: 2800
B224: 50 | C224: 12500 | D224: 6500 | E224: 12500 | F224: 6500
B225: 60 | C225: 22100 | D225: 11400 | E225: 22100 | F225: 11400
B226: 70 | C226: 30100 | D226: 15400 | E226: 30100 | F226: 15400
B227: 80 | C227: 30100 | D227: 21000 | E227: 30100 | F227: 21000
B230: 8. Costs
B232: Cost of HCV treatment
B234: Fibrosis stage | C234: Drug cost (full course of treatment)
B235: 0 | C235: 40320
B236: 1 | C236: 40320
B237: 2 | C237: 40320
B238: 3 | C238: 40320
B239: 4 | C239: 60480
B241: Annual cost; patients who did not get treated this cycle
C243: WM | H243: WF | M243: BM | R243: BF
C244: F0 | D244: F1 | E244: F2 | F244: F3 | G244: F4 | H244: F0 | I244: F1 | J244: F2 | K244: F3 | L244: F4 | M244: F0 | N244: F1 | O244: F2 | P244: F3 | Q244: F4 | R244: F0 | S244: F1 | T244: F2 | U244: F3 | V244: F4
B245: 40 | C245: 8633.728753 | D245: 8633.728753 | E245: 8633.728753 | F245: 8633.728753 | G245: 8633.728753 | H245: 11848.40139 | I245: 11848.40139 | J245: 11848.40139 | K245: 11848.40139 | L245: 11848.40139 | M245: 8633.728753 | N245: 8633.728753 | O245: 8633.728753 | P245: 8633.728753 | Q245: 8633.728753 | R245: 11848.40139 | S245: 11848.40139 | T245: 11848.40139 | U245: 11848.40139 | V245: 11848.40139
B246: 45 | C246: 10418.8742 | D246: 10418.8742 | E246: 10418.8742 | F246: 10418.8742 | G246: 10418.8742 | H246: 12618.05523 | I246: 12618.05523 | J246: 12618.05523 | K246: 12618.05523 | L246: 12618.05523 | M246: 10418.8742 | N246: 10418.8742 | O246: 10418.8742 | P246: 10418.8742 | Q246: 10418.8742 | R246: 12618.05523 | S246: 12618.05523 | T246: 12618.05523 | U246: 12618.05523 | V246: 12618.05523
B247: 50 | C247: 12611.83875 | D247: 12611.83875 | E247: 12611.83875 | F247: 12611.83875 | G247: 12611.83875 | H247: 14082.54464 | I247: 14082.54464 | J247: 14082.54464 | K247: 14082.54464 | L247: 14082.54464 | M247: 12611.83875 | N247: 12611.83875 | O247: 12611.83875 | P247: 12611.83875 | Q247: 12611.83875 | R247: 14082.54464 | S247: 14082.54464 | T247: 14082.54464 | U247: 14082.54464 | V247: 14082.54464
B248: 55 | C248: 14955.58614 | D248: 14955.58614 | E248: 14955.58614 | F248: 14955.58614 | G248: 14955.58614 | H248: 16055.33096 | I248: 16055.33096 | J248: 16055.33096 | K248: 16055.33096 | L248: 16055.33096 | M248: 14955.58614 | N248: 14955.58614 | O248: 14955.58614 | P248: 14955.58614 | Q248: 14955.58614 | R248: 16055.33096 | S248: 16055.33096 | T248: 16055.33096 | U248: 16055.33096 | V248: 16055.33096
B249: 60 | C249: 17380.58873 | D249: 17380.58873 | E249: 17380.58873 | F249: 17380.58873 | G249: 17380.58873 | H249: 18212.67196 | I249: 18212.67196 | J249: 18212.67196 | K249: 18212.67196 | L249: 18212.67196 | M249: 17380.58873 | N249: 17380.58873 | O249: 17380.58873 | P249: 17380.58873 | Q249: 17380.58873 | R249: 18212.67196 | S249: 18212.67196 | T249: 18212.67196 | U249: 18212.67196 | V249: 18212.67196
B250: 65 | C250: 20008.79546 | D250: 20008.79546 | E250: 20008.79546 | F250: 20008.79546 | G250: 20008.79546 | H250: 20349.73222 | I250: 20349.73222 | J250: 20349.73222 | K250: 20349.73222 | L250: 20349.73222 | M250: 20008.79546 | N250: 20008.79546 | O250: 20008.79546 | P250: 20008.79546 | Q250: 20008.79546 | R250: 20349.73222 | S250: 20349.73222 | T250: 20349.73222 | U250: 20349.73222 | V250: 20349.73222
B251: 67 | C251: 20986.32682 | D251: 20986.32682 | E251: 20986.32682 | F251: 20986.32682 | G251: 20986.32682 | H251: 21081.82262 | I251: 21081.82262 | J251: 21081.82262 | K251: 21081.82262 | L251: 21081.82262 | M251: 20986.32682 | N251: 20986.32682 | O251: 20986.32682 | P251: 20986.32682 | Q251: 20986.32682 | R251: 21081.82262 | S251: 21081.82262 | T251: 21081.82262 | U251: 21081.82262 | V251: 21081.82262
B252: 70 | C252: 22404.39098 | D252: 22404.39098 | E252: 22404.39098 | F252: 22404.39098 | G252: 22404.39098 | H252: 22226.8023 | I252: 22226.8023 | J252: 22226.8023 | K252: 22226.8023 | L252: 22226.8023 | M252: 22404.39098 | N252: 22404.39098 | O252: 22404.39098 | P252: 22404.39098 | Q252: 22404.39098 | R252: 22226.8023 | S252: 22226.8023 | T252: 22226.8023 | U252: 22226.8023 | V252: 22226.8023
B253: 73 | C253: 23799.74955 | D253: 23799.74955 | E253: 23799.74955 | F253: 23799.74955 | G253: 23799.74955 | H253: 23183.7884 | I253: 23183.7884 | J253: 23183.7884 | K253: 23183.7884 | L253: 23183.7884 | M253: 23799.74955 | N253: 23799.74955 | O253: 23799.74955 | P253: 23799.74955 | Q253: 23799.74955 | R253: 23183.7884 | S253: 23183.7884 | T253: 23183.7884 | U253: 23183.7884 | V253: 23183.7884
B254: 75 | C254: 24600.57399 | D254: 24600.57399 | E254: 24600.57399 | F254: 24600.57399 | G254: 24600.57399 | H254: 23713.42416 | I254: 23713.42416 | J254: 23713.42416 | K254: 23713.42416 | L254: 23713.42416 | M254: 24600.57399 | N254: 24600.57399 | O254: 24600.57399 | P254: 24600.57399 | Q254: 24600.57399 | R254: 23713.42416 | S254: 23713.42416 | T254: 23713.42416 | U254: 23713.42416 | V254: 23713.42416
B255: 77 | C255: 25379.97141 | D255: 25379.97141 | E255: 25379.97141 | F255: 25379.97141 | G255: 25379.97141 | H255: 24192.26992 | I255: 24192.26992 | J255: 24192.26992 | K255: 24192.26992 | L255: 24192.26992 | M255: 25379.97141 | N255: 25379.97141 | O255: 25379.97141 | P255: 25379.97141 | Q255: 25379.97141 | R255: 24192.26992 | S255: 24192.26992 | T255: 24192.26992 | U255: 24192.26992 | V255: 24192.26992
B258: Lifetime discounted cost; patients who are treated this cycle * excludes the cost of treatment *
C260: WM | H260: WF | M260: BM | R260: BF
C261: F0 | D261: F1 | E261: F2 | F261: F3 | G261: F4 | H261: F0 | I261: F1 | J261: F2 | K261: F3 | L261: F4 | M261: F0 | N261: F1 | O261: F2 | P261: F3 | Q261: F4 | R261: F0 | S261: F1 | T261: F2 | U261: F3 | V261: F4
B262: 40 | C262: 242547.6782 | D262: 243150.4636 | E262: 242533.658 | F262: 241287.2475 | G262: 236736.5968 | H262: 323350.3433 | I262: 324492.0096 | J262: 323730.2713 | K262: 321905.9922 | L262: 314059.3526 | M262: 198092.9883 | N262: 198701.7257 | O262: 198355.6068 | P262: 197567.4663 | Q262: 194361.9879 | R262: 274125.6554 | S262: 275164.48 | T262: 274700.9398 | U262: 273449.9204 | V262: 267389.5691
B263: 45 | C263: 247473.5258 | D263: 247960.4873 | E263: 247386.8715 | F263: 246306.2712 | G263: 242088.2076 | H263: 323666.2853 | I263: 324626.3711 | J263: 323877.7679 | K263: 322188.4099 | L263: 314960.1733 | M263: 198862.2352 | N263: 199362.24 | O263: 199052.6774 | P263: 198403.4463 | Q263: 195549.8555 | R263: 270340.5583 | S263: 271215.17 | T263: 270769.2822 | U263: 269644.7087 | V263: 264208.4377
B264: 50 | C264: 246975.9221 | D264: 247302.9337 | E264: 246739.0852 | F264: 245725.5335 | G264: 242194.244 | H264: 320797.5857 | I264: 321539.5553 | J264: 320789.0087 | K264: 319141.64 | L264: 312894.9468 | M264: 194220.9113 | N264: 194581.2843 | O264: 194282.0689 | P264: 193691.2992 | Q264: 191416.2791 | R264: 264778.289 | S264: 265466.5486 | T264: 265022.5328 | U264: 263938.6565 | V264: 259354.919
... 157 more rows

Sheet Decision and Outputs
B2: DECISIONS and OUTPUTS
B3: click the + signs on the left hand side to expand sections of the sheet
B5: 1. Decisions: Number of years until each subgroup will be prioritized
B6: Once a subgroup is prioritized, it cannot later be de-prioritized | M6: Decision limits: Minimum | T6: Decision limits: Maximum
C8: F0 | D8: F1 | E8: F2 | F8: F3 | G8: F4 | N8: F0 | O8: F1 | P8: F2 | Q8: F3 | R8: F4 | U8: F0 | V8: F1 | W8: F2 | X8: F3 | Y8: F4
B9: 40 | C9: 4 | D9: 3 | E9: 2 | F9: 1 | G9: 0 | M9: 40 | N9: 0 | O9: 0 | P9: 0 | Q9: 0 | R9: 0 | T9: 40 | U9: 25 | V9: 25 | W9: 25 | X9: 25 | Y9: 25
B10: 45 | C10: 4 | D10: 3 | E10: 2 | F10: 1 | G10: 0 | M10: 45 | N10: 0 | O10: 0 | P10: 0 | Q10: 0 | R10: 0 | T10: 45 | U10: 25 | V10: 25 | W10: 25 | X10: 25 | Y10: 25
B11: 50 | C11: 4 | D11: 3 | E11: 2 | F11: 1 | G11: 0 | M11: 50 | N11: 0 | O11: 0 | P11: 0 | Q11: 0 | R11: 0 | T11: 50 | U11: 25 | V11: 25 | W11: 25 | X11: 25 | Y11: 25
B12: 55 | C12: 4 | D12: 3 | E12: 2 | F12: 1 | G12: 0 | M12: 55 | N12: 0 | O12: 0 | P12: 0 | Q12: 0 | R12: 0 | T12: 55 | U12: 25 | V12: 25 | W12: 25 | X12: 25 | Y12: 25
B13: 60 | C13: 4 | D13: 3 | E13: 2 | F13: 1 | G13: 0 | M13: 60 | N13: 0 | O13: 0 | P13: 0 | Q13: 0 | R13: 0 | T13: 60 | U13: 25 | V13: 25 | W13: 25 | X13: 25 | Y13: 25
B14: 65 | C14: 4 | D14: 3 | E14: 2 | F14: 1 | G14: 0 | M14: 65 | N14: 0 | O14: 0 | P14: 0 | Q14: 0 | R14: 0 | T14: 65 | U14: 25 | V14: 25 | W14: 25 | X14: 25 | Y14: 25
B15: 70 | C15: 4 | D15: 3 | E15: 2 | F15: 1 | G15: 0 | M15: 70 | N15: 0 | O15: 0 | P15: 0 | Q15: 0 | R15: 0 | T15: 70 | U15: 25 | V15: 25 | W15: 25 | X15: 25 | Y15: 25
B16: 75 | C16: 4 | D16: 3 | E16: 2 | F16: 1 | G16: 0 | M16: 75 | N16: 0 | O16: 0 | P16: 0 | Q16: 0 | R16: 0 | T16: 75 | U16: 25 | V16: 25 | W16: 25 | X16: 25 | Y16: 25
B19: User options:
B28: 2. Budget impact and health economic outputs
B30: Lifetime discounted costs, QALYs, and NMB
C32: WM | D32: WF | E32: BM | F32: BF | G32: Total
B33: Costs | C33: ='Markov WM'!$C2993 -> 4.188045576e+11 | D33: ='Markov WF'!$C2993 -> 2.953607968e+11 | E33: ='Markov BM'!$C2993 -> 6.674917163e+10 | F33: ='Markov BF'!$C2993 -> 6.858997782e+10 | G33: =SUM(C33:F33) -> 8.495045038e+11
B34: QALYs | C34: ='Markov WM'!$C2994 -> 15714338.82 | D34: ='Markov WF'!$C2994 -> 11380501.14 | E34: ='Markov BM'!$C2994 -> 2375983.678 | F34: ='Markov BF'!$C2994 -> 2503682.462 | G34: =SUM(C34:F34) -> 31974506.1
B35: NMB | C35: =C34*WTP-C33 -> 1.152629324e+12 | D35: =D34*WTP-D33 -> 8.426893177e+11 | E35: =E34*WTP-E33 -> 1.708491962e+11 | F35: =F34*WTP-F33 -> 1.817782683e+11 | G35: =G34*WTP-G33 -> 2.347946107e+12
B38: Budget impact
B40: Year | C40: Treatment expenditures | D40: Budget Limit | E40: Surplus / (Deficit) | F40: % over budget | G40: % under budget
B41: 0 | C41: ='Markov WM'!C3011+'Markov WF'!C3011+'Markov BM'!C3011+'Markov BF'!C3011 -> 4154150879 | D41: =VLOOKUP($B41,tab_Budget, 2, TRUE)*(1+OverrunTolerance) -> 8686000000 | E41: =D41-C41 -> 4531849121 | F41: =IF(E41<0, -E41/D41,"") ->  | G41: =IF(E41>0, E41/D41,"") -> 0.5217417823
B42: 1 | C42: ='Markov WM'!C3012+'Markov WF'!C3012+'Markov BM'!C3012+'Markov BF'!C3012 -> 6849408459 | D42: 8686000000 | E42: 1836591541 | G42: 0.2114427286
B43: 2 | C43: ='Markov WM'!C3013+'Markov WF'!C3013+'Markov BM'!C3013+'Markov BF'!C3013 -> 8191869079 | D43: 8686000000 | E43: 494130921 | G43: 0.05688820182
B44: 3 | C44: ='Markov WM'!C3014+'Markov WF'!C3014+'Markov BM'!C3014+'Markov BF'!C3014 -> 9029337757 | D44: 8686000000 | E44: -343337757.2 | F44: 0.03952771785
B45: 4 | C45: ='Markov WM'!C3015+'Markov WF'!C3015+'Markov BM'!C3015+'Markov BF'!C3015 -> 9315295754 | D45: 8686000000 | E45: -629295753.8 | F45: 0.07244943056
B46: 5 | C46: ='Markov WM'!C3016+'Markov WF'!C3016+'Markov BM'!C3016+'Markov BF'!C3016 -> 8167635253 | D46: 8686000000 | E46: 518364747 | G46: 0.0596781887
B47: 6 | C47: ='Markov WM'!C3017+'Markov WF'!C3017+'Markov BM'!C3017+'Markov BF'!C3017 -> 7131848545 | D47: 8686000000 | E47: 1554151455 | G47: 0.1789260252
B48: 7 | C48: ='Markov WM'!C3018+'Markov WF'!C3018+'Markov BM'!C3018+'Markov BF'!C3018 -> 6223906333 | D48: 8686000000 | E48: 2462093667 | G48: 0.2834554072
B49: 8 | C49: ='Markov WM'!C3019+'Markov WF'!C3019+'Markov BM'!C3019+'Markov BF'!C3019 -> 5428207642 | D49: 8686000000 | E49: 3257792358 | G49: 0.3750624404
B50: 9 | C50: ='Markov WM'!C3020+'Markov WF'!C3020+'Markov BM'!C3020+'Markov BF'!C3020 -> 4731402738 | D50: 8686000000 | E50: 3954597262 | G50: 0.4552840505
B51: 10 | C51: ='Markov WM'!C3021+'Markov WF'!C3021+'Markov BM'!C3021+'Markov BF'!C3021 -> 4102226268 | D51: 8686000000 | E51: 4583773732 | G51: 0.5277197481
B52: 11 | C52: ='Markov WM'!C3022+'Markov WF'!C3022+'Markov BM'!C3022+'Markov BF'!C3022 -> 3524527534 | D52: 8686000000 | E52: 5161472466 | G52: 0.5942289277
B53: 12 | C53: ='Markov WM'!C3023+'Markov WF'!C3023+'Markov BM'!C3023+'Markov BF'!C3023 -> 3025373016 | D53: 8686000000 | E53: 5660626984 | G53: 0.6516954852
B54: 13 | C54: ='Markov WM'!C3024+'Markov WF'!C3024+'Markov BM'!C3024+'Markov BF'!C3024 -> 2594471090 | D54: 8686000000 | E54: 6091528910 | G54: 0.7013042724
B55: 14 | C55: ='Markov WM'!C3025+'Markov WF'!C3025+'Markov BM'!C3025+'Markov BF'!C3025 -> 2222923513 | D55: 8686000000 | E55: 6463076487 | G55: 0.7440797245
B56: 15 | C56: ='Markov WM'!C3026+'Markov WF'!C3026+'Markov BM'!C3026+'Markov BF'!C3026 -> 1895195349 | D56: 8686000000 | E56: 6790804651 | G56: 0.7818103443
B57: 16 | C57: ='Markov WM'!C3027+'Markov WF'!C3027+'Markov BM'!C3027+'Markov BF'!C3027 -> 1604263898 | D57: 8686000000 | E57: 7081736102 | G57: 0.8153046399
B58: 17 | C58: ='Markov WM'!C3028+'Markov WF'!C3028+'Markov BM'!C3028+'Markov BF'!C3028 -> 1359274571 | D58: 8686000000 | E58: 7326725429 | G58: 0.8435097201
B59: 18 | C59: ='Markov WM'!C3029+'Markov WF'!C3029+'Markov BM'!C3029+'Markov BF'!C3029 -> 1153231349 | D59: 8686000000 | E59: 7532768651 | G59: 0.8672310212
B60: 19 | C60: ='Markov WM'!C3030+'Markov WF'!C3030+'Markov BM'!C3030+'Markov BF'!C3030 -> 980172281.8 | D60: 8686000000 | E60: 7705827718 | G60: 0.8871549296
B61: 20 | C61: ='Markov WM'!C3031+'Markov WF'!C3031+'Markov BM'!C3031+'Markov BF'!C3031 -> 832350050.2 | D61: 8686000000 | E61: 7853649950 | G61: 0.9041733767
B62: 21 | C62: ='Markov WM'!C3032+'Markov WF'!C3032+'Markov BM'!C3032+'Markov BF'!C3032 -> 704641282.6 | D62: 8686000000 | E62: 7981358717 | G62: 0.9188762051
B63: 22 | C63: ='Markov WM'!C3033+'Markov WF'!C3033+'Markov BM'!C3033+'Markov BF'!C3033 -> 598402923.8 | D63: 8686000000 | E63: 8087597076 | G63: 0.9311071927
B64: 23 | C64: ='Markov WM'!C3034+'Markov WF'!C3034+'Markov BM'!C3034+'Markov BF'!C3034 -> 510326368.4 | D64: 8686000000 | E64: 8175673632 | G64: 0.9412472521
B65: 24 | C65: ='Markov WM'!C3035+'Markov WF'!C3035+'Markov BM'!C3035+'Markov BF'!C3035 -> 437558734.5 | D65: 8686000000 | E65: 8248441266 | G65: 0.9496248291
B68: 3. Population health outcomes
B70: Summary of health outcomes stratified by race and gender
C72: WM | D72: WF | E72: BM | F72: BF | G72: Total
B73: # of individuals in F0-F4
B74: at 2 years | C74: ='Markov WM'!$C3002 -> 1371071.715 | D74: ='Markov WF'!$C3002 -> 781274.0592 | E74: ='Markov BM'!$C3002 -> 259929.1695 | F74: ='Markov BF'!$C3002 -> 223344.3273 | G74: =SUM(C74:F74) -> 2635619.271
B75: at 5 years | C75: ='Markov WM'!$C3003 -> 925665.448 | D75: ='Markov WF'!$C3003 -> 610436.7249 | E75: ='Markov BM'!$C3003 -> 152386.7454 | F75: ='Markov BF'!$C3003 -> 156595.778 | G75: =SUM(C75:F75) -> 1845084.696
B76: at 10 years | C76: ='Markov WM'!$C3004 -> 431898.8634 | D76: ='Markov WF'!$C3004 -> 339960.1724 | E76: ='Markov BM'!$C3004 -> 56035.73254 | F76: ='Markov BF'!$C3004 -> 74278.17511 | G76: =SUM(C76:F76) -> 902172.9435
B78: # of individuals in F4
B79: at 2 years | C79: ='Markov WM'!$D3002 -> 252354.7627 | D79: ='Markov WF'!$D3002 -> 51820.56664 | E79: ='Markov BM'!$D3002 -> 62015.48151 | F79: ='Markov BF'!$D3002 -> 19993.57128 | G79: =SUM(C79:F79) -> 386184.3822
B80: at 5 years | C80: ='Markov WM'!$D3003 -> 188603.6347 | D80: ='Markov WF'!$D3003 -> 43385.94854 | E80: ='Markov BM'!$D3003 -> 38417.14579 | F80: ='Markov BF'!$D3003 -> 14608.25641 | G80: =SUM(C80:F80) -> 285014.9854
B81: at 10 years | C81: ='Markov WM'!$D3004 -> 105252.1051 | D81: ='Markov WF'!$D3004 -> 31355.40293 | E81: ='Markov BM'!$D3004 -> 15784.07702 | F81: ='Markov BF'!$D3004 -> 8645.451641 | G81: =SUM(C81:F81) -> 161037.0367
B83: # Treated
B84: within 2 years | C84: ='Markov WM'!$E3002 -> 127688.5162 | D84: ='Markov WF'!$E3002 -> 35628.58088 | E84: ='Markov BM'!$E3002 -> 31160.48553 | F84: ='Markov BF'!$E3002 -> 12969.42484 | G84: =SUM(C84:F84) -> 207447.0074
B85: within 5 years | C85: ='Markov WM'!$E3003 -> 444927.7838 | D85: ='Markov WF'!$E3003 -> 194136.6573 | E85: ='Markov BM'!$E3003 -> 91057.12356 | F85: ='Markov BF'!$E3003 -> 58660.51276 | G85: =SUM(C85:F85) -> 788782.0774
B86: within 10 years | C86: ='Markov WM'!$E3004 -> 806657.5982 | D86: ='Markov WF'!$E3004 -> 422265.4654 | E86: ='Markov BM'!$E3004 -> 146735.6525 | F86: ='Markov BF'!$E3004 -> 115025.0399 | G86: =SUM(C86:F86) -> 1490683.756
B88: # HCC
B89: within 2 years | C89: ='Markov WM'!$F3002 -> 11151.778 | D89: ='Markov WF'!$F3002 -> 2226.147097 | E89: ='Markov BM'!$F3002 -> 2929.900702 | F89: ='Markov BF'!$F3002 -> 905.0649419 | G89: =SUM(C89:F89) -> 17212.89074
B90: within 5 years | C90: ='Markov WM'!$F3003 -> 24445.38282 | D90: ='Markov WF'!$F3003 -> 5103.763991 | E90: ='Markov BM'!$F3003 -> 5912.359219 | F90: ='Markov BF'!$F3003 -> 1942.869872 | G90: =SUM(C90:F90) -> 37404.3759
B91: within 10 years | C91: ='Markov WM'!$F3004 -> 39004.23995 | D91: ='Markov WF'!$F3004 -> 8849.536806 | E91: ='Markov BM'!$F3004 -> 8487.072051 | F91: ='Markov BF'!$F3004 -> 3091.855681 | G91: =SUM(C91:F91) -> 59432.70449
B93: # DC
B94: within 2 years | C94: ='Markov WM'!$G3002 -> 21191.15721 | D94: ='Markov WF'!$G3002 -> 4230.234236 | E94: ='Markov BM'!$G3002 -> 5567.541461 | F94: ='Markov BF'!$G3002 -> 1719.84893 | G94: =SUM(C94:F94) -> 32708.78184
B95: within 5 years | C95: ='Markov WM'!$G3003 -> 46452.3191 | D95: ='Markov WF'!$G3003 -> 9698.423432 | E95: ='Markov BM'!$G3003 -> 11234.95587 | F95: ='Markov BF'!$G3003 -> 3691.936918 | G95: =SUM(C95:F95) -> 71077.63532
B96: within 10 years | C96: ='Markov WM'!$G3004 -> 74117.7757 | D96: ='Markov WF'!$G3004 -> 16816.32522 | E96: ='Markov BM'!$G3004 -> 16127.55186 | F96: ='Markov BF'!$G3004 -> 5875.296279 | G96: =SUM(C96:F96) -> 112936.9491
B99: Number of individuals with chronic HCV between the ages of 40-79 over time, stratified by fibrosis stage
B101: Year | C101: F0 | D101: F1 | E101: F2 | F101: F3 | G101: F4 | H101: Total | I101: F3 + F4
B102: 0 | C102: ='Markov WM'!C3089+'Markov WF'!C3089+'Markov BM'!C3089+'Markov BF'!C3089 -> 573878.3654 | D102: ='Markov WM'!D3089+'Markov WF'!D3089+'Markov BM'!D3089+'Markov BF'!D3089 -> 710615.0918 | E102: ='Markov WM'!E3089+'Markov WF'!E3089+'Markov BM'!E3089+'Markov BF'!E3089 -> 740361.1749 | F102: ='Markov WM'!F3089+'Markov WF'!F3089+'Markov BM'!F3089+'Markov BF'!F3089 -> 532213.8903 | G102: ='Markov WM'!G3089+'Markov WF'!G3089+'Markov BM'!G3089+'Markov BF'!G3089 -> 471631.4776 | H102: =SUM(C102:G102) -> 3028700 | I102: =SUM(F102:G102) -> 1003845.368
B103: 1 | C103: ='Markov WM'!C3090+'Markov WF'!C3090+'Markov BM'!C3090+'Markov BF'!C3090 -> 536104.6855 | D103: ='Markov WM'!D3090+'Markov WF'!D3090+'Markov BM'!D3090+'Markov BF'!D3090 -> 660831.8053 | E103: ='Markov WM'!E3090+'Markov WF'!E3090+'Markov BM'!E3090+'Markov BF'!E3090 -> 707079.8951 | F103: ='Markov WM'!F3090+'Markov WF'!F3090+'Markov BM'!F3090+'Markov BF'!F3090 -> 533190.0215 | G103: ='Markov WM'!G3090+'Markov WF'!G3090+'Markov BM'!G3090+'Markov BF'!G3090 -> 425434.2942 | H103: 2862640.702 | I103: 958624.3157
B104: 2 | C104: ='Markov WM'!C3091+'Markov WF'!C3091+'Markov BM'!C3091+'Markov BF'!C3091 -> 500946.3733 | D104: ='Markov WM'!D3091+'Markov WF'!D3091+'Markov BM'!D3091+'Markov BF'!D3091 -> 613564.6751 | E104: ='Markov WM'!E3091+'Markov WF'!E3091+'Markov BM'!E3091+'Markov BF'!E3091 -> 673337.9723 | F104: ='Markov WM'!F3091+'Markov WF'!F3091+'Markov BM'!F3091+'Markov BF'!F3091 -> 461585.8679 | G104: ='Markov WM'!G3091+'Markov WF'!G3091+'Markov BM'!G3091+'Markov BF'!G3091 -> 386184.3822 | H104: 2635619.271 | I104: 847770.25
B105: 3 | C105: ='Markov WM'!C3092+'Markov WF'!C3092+'Markov BM'!C3092+'Markov BF'!C3092 -> 468306.1946 | D105: ='Markov WM'!D3092+'Markov WF'!D3092+'Markov BM'!D3092+'Markov BF'!D3092 -> 568873.6991 | E105: ='Markov WM'!E3092+'Markov WF'!E3092+'Markov BM'!E3092+'Markov BF'!E3092 -> 592118.5081 | F105: ='Markov WM'!F3092+'Markov WF'!F3092+'Markov BM'!F3092+'Markov BF'!F3092 -> 402715.0497 | G105: ='Markov WM'!G3092+'Markov WF'!G3092+'Markov BM'!G3092+'Markov BF'!G3092 -> 349737.6732 | H105: 2381751.125 | I105: 752452.7229
B106: 4 | C106: ='Markov WM'!C3093+'Markov WF'!C3093+'Markov BM'!C3093+'Markov BF'!C3093 -> 438053.0517 | D106: ='Markov WM'!D3093+'Markov WF'!D3093+'Markov BM'!D3093+'Markov BF'!D3093 -> 486643.4683 | E106: ='Markov WM'!E3093+'Markov WF'!E3093+'Markov BM'!E3093+'Markov BF'!E3093 -> 520710.0214 | F106: ='Markov WM'!F3093+'Markov WF'!F3093+'Markov BM'!F3093+'Markov BF'!F3093 -> 352115.0571 | G106: ='Markov WM'!G3093+'Markov WF'!G3093+'Markov BM'!G3093+'Markov BF'!G3093 -> 316067.5057 | H106: 2113589.104 | I106: 668182.5628
B107: 5 | C107: ='Markov WM'!C3094+'Markov WF'!C3094+'Markov BM'!C3094+'Markov BF'!C3094 -> 378136.3877 | D107: ='Markov WM'!D3094+'Markov WF'!D3094+'Markov BM'!D3094+'Markov BF'!D3094 -> 416845.3485 | E107: ='Markov WM'!E3094+'Markov WF'!E3094+'Markov BM'!E3094+'Markov BF'!E3094 -> 456723.1887 | F107: ='Markov WM'!F3094+'Markov WF'!F3094+'Markov BM'!F3094+'Markov BF'!F3094 -> 308364.786 | G107: ='Markov WM'!G3094+'Markov WF'!G3094+'Markov BM'!G3094+'Markov BF'!G3094 -> 285014.9854 | H107: 1845084.696 | I107: 593379.7714
B108: 6 | C108: ='Markov WM'!C3095+'Markov WF'!C3095+'Markov BM'!C3095+'Markov BF'!C3095 -> 323889.9356 | D108: ='Markov WM'!D3095+'Markov WF'!D3095+'Markov BM'!D3095+'Markov BF'!D3095 -> 354044.1646 | E108: ='Markov WM'!E3095+'Markov WF'!E3095+'Markov BM'!E3095+'Markov BF'!E3095 -> 397834.7242 | F108: ='Markov WM'!F3095+'Markov WF'!F3095+'Markov BM'!F3095+'Markov BF'!F3095 -> 268858.7724 | G108: ='Markov WM'!G3095+'Markov WF'!G3095+'Markov BM'!G3095+'Markov BF'!G3095 -> 255416.6199 | H108: 1600044.217 | I108: 524275.3923
B109: 7 | C109: ='Markov WM'!C3096+'Markov WF'!C3096+'Markov BM'!C3096+'Markov BF'!C3096 -> 277803.293 | D109: ='Markov WM'!D3096+'Markov WF'!D3096+'Markov BM'!D3096+'Markov BF'!D3096 -> 300635.261 | E109: ='Markov WM'!E3096+'Markov WF'!E3096+'Markov BM'!E3096+'Markov BF'!E3096 -> 345719.856 | F109: ='Markov WM'!F3096+'Markov WF'!F3096+'Markov BM'!F3096+'Markov BF'!F3096 -> 234383.7075 | G109: ='Markov WM'!G3096+'Markov WF'!G3096+'Markov BM'!G3096+'Markov BF'!G3096 -> 228442.4638 | H109: 1386984.581 | I109: 462826.1713
B110: 8 | C110: ='Markov WM'!C3097+'Markov WF'!C3097+'Markov BM'!C3097+'Markov BF'!C3097 -> 238673.3946 | D110: ='Markov WM'!D3097+'Markov WF'!D3097+'Markov BM'!D3097+'Markov BF'!D3097 -> 255353.3219 | E110: ='Markov WM'!E3097+'Markov WF'!E3097+'Markov BM'!E3097+'Markov BF'!E3097 -> 299795.8553 | F110: ='Markov WM'!F3097+'Markov WF'!F3097+'Markov BM'!F3097+'Markov BF'!F3097 -> 204228.2827 | G110: ='Markov WM'!G3097+'Markov WF'!G3097+'Markov BM'!G3097+'Markov BF'!G3097 -> 203846.963 | H110: 1201897.817 | I110: 408075.2456
B111: 9 | C111: ='Markov WM'!C3098+'Markov WF'!C3098+'Markov BM'!C3098+'Markov BF'!C3098 -> 205460.8608 | D111: ='Markov WM'!D3098+'Markov WF'!D3098+'Markov BM'!D3098+'Markov BF'!D3098 -> 217075.3294 | E111: ='Markov WM'!E3098+'Markov WF'!E3098+'Markov BM'!E3098+'Markov BF'!E3098 -> 259501.7441 | F111: ='Markov WM'!F3098+'Markov WF'!F3098+'Markov BM'!F3098+'Markov BF'!F3098 -> 177836.271 | G111: ='Markov WM'!G3098+'Markov WF'!G3098+'Markov BM'!G3098+'Markov BF'!G3098 -> 181431.6912 | H111: 1041305.897 | I111: 359267.9622
B112: 10 | C112: ='Markov WM'!C3099+'Markov WF'!C3099+'Markov BM'!C3099+'Markov BF'!C3099 -> 177275.138 | D112: ='Markov WM'!D3099+'Markov WF'!D3099+'Markov BM'!D3099+'Markov BF'!D3099 -> 184810.3349 | E112: ='Markov WM'!E3099+'Markov WF'!E3099+'Markov BM'!E3099+'Markov BF'!E3099 -> 224296.6871 | F112: ='Markov WM'!F3099+'Markov WF'!F3099+'Markov BM'!F3099+'Markov BF'!F3099 -> 154753.7468 | G112: ='Markov WM'!G3099+'Markov WF'!G3099+'Markov BM'!G3099+'Markov BF'!G3099 -> 161037.0367 | H112: 902172.9435 | I112: 315790.7835
B113: 11 | C113: ='Markov WM'!C3100+'Markov WF'!C3100+'Markov BM'!C3100+'Markov BF'!C3100 -> 150202.8588 | D113: ='Markov WM'!D3100+'Markov WF'!D3100+'Markov BM'!D3100+'Markov BF'!D3100 -> 154904.9079 | E113: ='Markov WM'!E3100+'Markov WF'!E3100+'Markov BM'!E3100+'Markov BF'!E3100 -> 191823.9422 | F113: ='Markov WM'!F3100+'Markov WF'!F3100+'Markov BM'!F3100+'Markov BF'!F3100 -> 133093.3062 | G113: ='Markov WM'!G3100+'Markov WF'!G3100+'Markov BM'!G3100+'Markov BF'!G3100 -> 140852.7631 | H113: 770877.7781 | I113: 273946.0693
B114: 12 | C114: ='Markov WM'!C3101+'Markov WF'!C3101+'Markov BM'!C3101+'Markov BF'!C3101 -> 127345.8094 | D114: ='Markov WM'!D3101+'Markov WF'!D3101+'Markov BM'!D3101+'Markov BF'!D3101 -> 129803.5494 | E114: ='Markov WM'!E3101+'Markov WF'!E3101+'Markov BM'!E3101+'Markov BF'!E3101 -> 163759.7697 | F114: ='Markov WM'!F3101+'Markov WF'!F3101+'Markov BM'!F3101+'Markov BF'!F3101 -> 114318.9411 | G114: ='Markov WM'!G3101+'Markov WF'!G3101+'Markov BM'!G3101+'Markov BF'!G3101 -> 122985.7028 | H114: 658213.7723 | I114: 237304.6438
B115: 13 | C115: ='Markov WM'!C3102+'Markov WF'!C3102+'Markov BM'!C3102+'Markov BF'!C3102 -> 108033.7157 | D115: ='Markov WM'!D3102+'Markov WF'!D3102+'Markov BM'!D3102+'Markov BF'!D3102 -> 108760.0812 | E115: ='Markov WM'!E3102+'Markov WF'!E3102+'Markov BM'!E3102+'Markov BF'!E3102 -> 139569.4019 | F115: ='Markov WM'!F3102+'Markov WF'!F3102+'Markov BM'!F3102+'Markov BF'!F3102 -> 98073.56877 | G115: ='Markov WM'!G3102+'Markov WF'!G3102+'Markov BM'!G3102+'Markov BF'!G3102 -> 107183.3881 | H115: 561620.1557 | I115: 205256.9568
B116: 14 | C116: ='Markov WM'!C3103+'Markov WF'!C3103+'Markov BM'!C3103+'Markov BF'!C3103 -> 91707.40597 | D116: ='Markov WM'!D3103+'Markov WF'!D3103+'Markov BM'!D3103+'Markov BF'!D3103 -> 91138.99467 | E116: ='Markov WM'!E3103+'Markov WF'!E3103+'Markov BM'!E3103+'Markov BF'!E3103 -> 118769.0912 | F116: ='Markov WM'!F3103+'Markov WF'!F3103+'Markov BM'!F3103+'Markov BF'!F3103 -> 84045.31384 | G116: ='Markov WM'!G3103+'Markov WF'!G3103+'Markov BM'!G3103+'Markov BF'!G3103 -> 93228.24853 | H116: 478889.0542 | I116: 177273.5624
B117: 15 | C117: ='Markov WM'!C3104+'Markov WF'!C3104+'Markov BM'!C3104+'Markov BF'!C3104 -> 77899.42165 | D117: ='Markov WM'!D3104+'Markov WF'!D3104+'Markov BM'!D3104+'Markov BF'!D3104 -> 76397.56863 | E117: ='Markov WM'!E3104+'Markov WF'!E3104+'Markov BM'!E3104+'Markov BF'!E3104 -> 100927.363 | F117: ='Markov WM'!F3104+'Markov WF'!F3104+'Markov BM'!F3104+'Markov BF'!F3104 -> 71959.2081 | G117: ='Markov WM'!G3104+'Markov WF'!G3104+'Markov BM'!G3104+'Markov BF'!G3104 -> 80930.86063 | H117: 408114.422 | I117: 152890.0687
B118: 16 | C118: ='Markov WM'!C3105+'Markov WF'!C3105+'Markov BM'!C3105+'Markov BF'!C3105 -> 65833.74014 | D118: ='Markov WM'!D3105+'Markov WF'!D3105+'Markov BM'!D3105+'Markov BF'!D3105 -> 64165.64057 | E118: ='Markov WM'!E3105+'Markov WF'!E3105+'Markov BM'!E3105+'Markov BF'!E3105 -> 85244.69459 | F118: ='Markov WM'!F3105+'Markov WF'!F3105+'Markov BM'!F3105+'Markov BF'!F3105 -> 61018.47689 | G118: ='Markov WM'!G3105+'Markov WF'!G3105+'Markov BM'!G3105+'Markov BF'!G3105 -> 68671.74371 | H118: 344934.2959 | I118: 129690.2206
B119: 17 | C119: ='Markov WM'!C3106+'Markov WF'!C3106+'Markov BM'!C3106+'Markov BF'!C3106 -> 55791.16956 | D119: ='Markov WM'!D3106+'Markov WF'!D3106+'Markov BM'!D3106+'Markov BF'!D3106 -> 54126.39397 | E119: ='Markov WM'!E3106+'Markov WF'!E3106+'Markov BM'!E3106+'Markov BF'!E3106 -> 72082.45189 | F119: ='Markov WM'!F3106+'Markov WF'!F3106+'Markov BM'!F3106+'Markov BF'!F3106 -> 51764.16371 | G119: ='Markov WM'!G3106+'Markov WF'!G3106+'Markov BM'!G3106+'Markov BF'!G3106 -> 58212.82642 | H119: 291977.0055 | I119: 109976.9901
B120: 18 | C120: ='Markov WM'!C3107+'Markov WF'!C3107+'Markov BM'!C3107+'Markov BF'!C3107 -> 47430.52689 | D120: ='Markov WM'!D3107+'Markov WF'!D3107+'Markov BM'!D3107+'Markov BF'!D3107 -> 45885.94092 | E120: ='Markov WM'!E3107+'Markov WF'!E3107+'Markov BM'!E3107+'Markov BF'!E3107 -> 61045.14574 | F120: ='Markov WM'!F3107+'Markov WF'!F3107+'Markov BM'!F3107+'Markov BF'!F3107 -> 43952.46915 | G120: ='Markov WM'!G3107+'Markov WF'!G3107+'Markov BM'!G3107+'Markov BF'!G3107 -> 49310.19229 | H120: 247624.275 | I120: 93262.66144
B121: 19 | C121: ='Markov WM'!C3108+'Markov WF'!C3108+'Markov BM'!C3108+'Markov BF'!C3108 -> 40470.58148 | D121: ='Markov WM'!D3108+'Markov WF'!D3108+'Markov BM'!D3108+'Markov BF'!D3108 -> 39122.22816 | E121: ='Markov WM'!E3108+'Markov WF'!E3108+'Markov BM'!E3108+'Markov BF'!E3108 -> 51798.25131 | F121: ='Markov WM'!F3108+'Markov WF'!F3108+'Markov BM'!F3108+'Markov BF'!F3108 -> 37371.03814 | G121: ='Markov WM'!G3108+'Markov WF'!G3108+'Markov BM'!G3108+'Markov BF'!G3108 -> 41749.63968 | H121: 210511.7388 | I121: 79120.67782
B122: 20 | C122: ='Markov WM'!C3109+'Markov WF'!C3109+'Markov BM'!C3109+'Markov BF'!C3109 -> 34678.8328 | D122: ='Markov WM'!D3109+'Markov WF'!D3109+'Markov BM'!D3109+'Markov BF'!D3109 -> 33571.69699 | E122: ='Markov WM'!E3109+'Markov WF'!E3109+'Markov BM'!E3109+'Markov BF'!E3109 -> 44059.08317 | F122: ='Markov WM'!F3109+'Markov WF'!F3109+'Markov BM'!F3109+'Markov BF'!F3109 -> 31836.05657 | G122: ='Markov WM'!G3109+'Markov WF'!G3109+'Markov BM'!G3109+'Markov BF'!G3109 -> 35343.66006 | H122: 179489.3296 | I122: 67179.71663
B123: 21 | C123: ='Markov WM'!C3110+'Markov WF'!C3110+'Markov BM'!C3110+'Markov BF'!C3110 -> 29764.63939 | D123: ='Markov WM'!D3110+'Markov WF'!D3110+'Markov BM'!D3110+'Markov BF'!D3110 -> 28934.72978 | E123: ='Markov WM'!E3110+'Markov WF'!E3110+'Markov BM'!E3110+'Markov BF'!E3110 -> 37354.73971 | F123: ='Markov WM'!F3110+'Markov WF'!F3110+'Markov BM'!F3110+'Markov BF'!F3110 -> 26934.48031 | G123: ='Markov WM'!G3110+'Markov WF'!G3110+'Markov BM'!G3110+'Markov BF'!G3110 -> 29508.15953 | H123: 152496.7487 | I123: 56442.63984
B124: 22 | C124: ='Markov WM'!C3111+'Markov WF'!C3111+'Markov BM'!C3111+'Markov BF'!C3111 -> 25722.77447 | D124: ='Markov WM'!D3111+'Markov WF'!D3111+'Markov BM'!D3111+'Markov BF'!D3111 -> 25199.14721 | E124: ='Markov WM'!E3111+'Markov WF'!E3111+'Markov BM'!E3111+'Markov BF'!E3111 -> 31816.07999 | F124: ='Markov WM'!F3111+'Markov WF'!F3111+'Markov BM'!F3111+'Markov BF'!F3111 -> 22836.06043 | G124: ='Markov WM'!G3111+'Markov WF'!G3111+'Markov BM'!G3111+'Markov BF'!G3111 -> 24579.07825 | H124: 130153.1404 | I124: 47415.13868
B125: 23 | C125: ='Markov WM'!C3112+'Markov WF'!C3112+'Markov BM'!C3112+'Markov BF'!C3112 -> 22401.66752 | D125: ='Markov WM'!D3112+'Markov WF'!D3112+'Markov BM'!D3112+'Markov BF'!D3112 -> 22192.5887 | E125: ='Markov WM'!E3112+'Markov WF'!E3112+'Markov BM'!E3112+'Markov BF'!E3112 -> 27249.50121 | F125: ='Markov WM'!F3112+'Markov WF'!F3112+'Markov BM'!F3112+'Markov BF'!F3112 -> 19421.98317 | G125: ='Markov WM'!G3112+'Markov WF'!G3112+'Markov BM'!G3112+'Markov BF'!G3112 -> 20438.89148 | H125: 111704.6321 | I125: 39860.87465
B126: 24 | C126: ='Markov WM'!C3113+'Markov WF'!C3113+'Markov BM'!C3113+'Markov BF'!C3113 -> 19676.87414 | D126: ='Markov WM'!D3113+'Markov WF'!D3113+'Markov BM'!D3113+'Markov BF'!D3113 -> 19775.454 | E126: ='Markov WM'!E3113+'Markov WF'!E3113+'Markov BM'!E3113+'Markov BF'!E3113 -> 23491.75356 | F126: ='Markov WM'!F3113+'Markov WF'!F3113+'Markov BM'!F3113+'Markov BF'!F3113 -> 16587.94888 | G126: ='Markov WM'!G3113+'Markov WF'!G3113+'Markov BM'!G3113+'Markov BF'!G3113 -> 16980.65854 | H126: 96512.68911 | I126: 33568.60742
B131: 4. Additional budget required to provide treatment earlier
B133: Budget required to provide treatment access in year
B134: 0 indicates access provided by current policy
C136: Priority sub-group | F136: Year
B137: Current prioritization decision | C137: Fibrosis stage | D137: Age group | E137: Subgroup number | F137: 0 | G137: 1 | H137: 2 | I137: 3 | J137: 4 | K137: 5 | L137: 6 | M137: 7 | N137: 8 | O137: 9 | P137: 10 | Q137: 11 | R137: 12 | S137: 13 | T137: 14 | U137: 15 | V137: 16 | W137: 17 | X137: 18 | Y137: 19 | Z137: 20 | AA137: 21 | AB137: 22 | AC137: 23 | AD137: 24
B138: =VLOOKUP(D138,tab_TrtRule,C138+2, TRUE) -> 4 | C138: 0 | D138: 40 | E138: 1 | F138: =IF(F$137>=$B138, 0, SUM('Markov WM'!D3043,'Markov WF'!D3043,'Markov BM'!D3043,'Markov BF'!D3043)*INDEX(tabCost_Treatment, $C138+1)) -> 168265753.9 | G138: =IF(G$137>=$B138, 0, SUM('Markov WM'!E3043,'Markov WF'!E3043,'Markov BM'!E3043,'Markov BF'!E3043)*INDEX(tabCost_Treatment, $C138+1)) -> 148874343.7 | H138: =IF(H$137>=$B138, 0, SUM('Markov WM'!F3043,'Markov WF'!F3043,'Markov BM'!F3043,'Markov BF'!F3043)*INDEX(tabCost_Treatment, $C138+1)) -> 132101206.7 | I138: =IF(I$137>=$B138, 0, SUM('Markov WM'!G3043,'Markov WF'!G3043,'Markov BM'!G3043,'Markov BF'!G3043)*INDEX(tabCost_Treatment, $C138+1)) -> 117692024.1 | J138: =IF(J$137>=$B138, 0, SUM('Markov WM'!H3043,'Markov WF'!H3043,'Markov BM'!H3043,'Markov BF'!H3043)*INDEX(tabCost_Treatment, $C138+1)) -> 0 | K138: =IF(K$137>=$B138, 0, SUM('Markov WM'!I3043,'Markov WF'!I3043,'Markov BM'!I3043,'Markov BF'!I3043)*INDEX(tabCost_Treatment, $C138+1)) -> 0 | L138: =IF(L$137>=$B138, 0, SUM('Markov WM'!J3043,'Markov WF'!J3043,'Markov BM'!J3043,'Markov BF'!J3043)*INDEX(tabCost_Treatment, $C138+1)) -> 0 | M138: =IF(M$137>=$B138, 0, SUM('Markov WM'!K3043,'Markov WF'!K3043,'Markov BM'!K3043,'Markov BF'!K3043)*INDEX(tabCost_Treatment, $C138+1)) -> 0 | N138: =IF(N$137>=$B138, 0, SUM('Markov WM'!L3043,'Markov WF'!L3043,'Markov BM'!L3043,'Markov BF'!L3043)*INDEX(tabCost_Treatment, $C138+1)) -> 0 | O138: =IF(O$137>=$B138, 0, SUM('Markov WM'!M3043,'Markov WF'!M3043,'Markov BM'!M3043,'Markov BF'!M3043)*INDEX(tabCost_Treatment, $C138+1)) -> 0 | P138: =IF(P$137>=$B138, 0, SUM('Markov WM'!N3043,'Markov WF'!N3043,'Markov BM'!N3043,'Markov BF'!N3043)*INDEX(tabCost_Treatment, $C138+1)) -> 0 | Q138: =IF(Q$137>=$B138, 0, SUM('Markov WM'!O3043,'Markov WF'!O3043,'Markov BM'!O3043,'Markov BF'!O3043)*INDEX(tabCost_Treatment, $C138+1)) -> 0 | R138: =IF(R$137>=$B138, 0, SUM('Markov WM'!P3043,'Markov WF'!P3043,'Markov BM'!P3043,'Markov BF'!P3043)*INDEX(tabCost_Treatment, $C138+1)) -> 0 | S138: =IF(S$137>=$B138, 0, SUM('Markov WM'!Q3043,'Markov WF'!Q3043,'Markov BM'!Q3043,'Markov BF'!Q3043)*INDEX(tabCost_Treatment, $C138+1)) -> 0 | T138: =IF(T$137>=$B138, 0, SUM('Markov WM'!R3043,'Markov WF'!R3043,'Markov BM'!R3043,'Markov BF'!R3043)*INDEX(tabCost_Treatment, $C138+1)) -> 0 | U138: =IF(U$137>=$B138, 0, SUM('Markov WM'!S3043,'Markov WF'!S3043,'Markov BM'!S3043,'Markov BF'!S3043)*INDEX(tabCost_Treatment, $C138+1)) -> 0 | V138: =IF(V$137>=$B138, 0, SUM('Markov WM'!T3043,'Markov WF'!T3043,'Markov BM'!T3043,'Markov BF'!T3043)*INDEX(tabCost_Treatment, $C138+1)) -> 0 | W138: =IF(W$137>=$B138, 0, SUM('Markov WM'!U3043,'Markov WF'!U3043,'Markov BM'!U3043,'Markov BF'!U3043)*INDEX(tabCost_Treatment, $C138+1)) -> 0 | X138: =IF(X$137>=$B138, 0, SUM('Markov WM'!V3043,'Markov WF'!V3043,'Markov BM'!V3043,'Markov BF'!V3043)*INDEX(tabCost_Treatment, $C138+1)) -> 0 | Y138: =IF(Y$137>=$B138, 0, SUM('Markov WM'!W3043,'Markov WF'!W3043,'Markov BM'!W3043,'Markov BF'!W3043)*INDEX(tabCost_Treatment, $C138+1)) -> 0 | Z138: =IF(Z$137>=$B138, 0, SUM('Markov WM'!X3043,'Markov WF'!X3043,'Markov BM'!X3043,'Markov BF'!X3043)*INDEX(tabCost_Treatment, $C138+1)) -> 0 | AA138: =IF(AA$137>=$B138, 0, SUM('Markov WM'!Y3043,'Markov WF'!Y3043,'Markov BM'!Y3043,'Markov BF'!Y3043)*INDEX(tabCost_Treatment, $C138+1)) -> 0 | AB138: =IF(AB$137>=$B138, 0, SUM('Markov WM'!Z3043,'Markov WF'!Z3043,'Markov BM'!Z3043,'Markov BF'!Z3043)*INDEX(tabCost_Treatment, $C138+1)) -> 0 | AC138: =IF(AC$137>=$B138, 0, SUM('Markov WM'!AA3043,'Markov WF'!AA3043,'Markov BM'!AA3043,'Markov BF'!AA3043)*INDEX(tabCost_Treatment, $C138+1)) -> 0 | AD138: =IF(AD$137>=$B138, 0, SUM('Markov WM'!AB3043,'Markov WF'!AB3043,'Markov BM'!AB3043,'Markov BF'!AB3043)*INDEX(tabCost_Treatment, $C138+1)) -> 0
B139: 4 | C139: 0 | D139: 45 | E139: 2 | F139: =IF(F$137>=$B139, 0, SUM('Markov WM'!D3044,'Markov WF'!D3044,'Markov BM'!D3044,'Markov BF'!D3044)*INDEX(tabCost_Treatment, $C139+1)) -> 323037877.2 | G139: =IF(G$137>=$B139, 0, SUM('Markov WM'!E3044,'Markov WF'!E3044,'Markov BM'!E3044,'Markov BF'!E3044)*INDEX(tabCost_Treatment, $C139+1)) -> 276473426.2 | H139: =IF(H$137>=$B139, 0, SUM('Markov WM'!F3044,'Markov WF'!F3044,'Markov BM'!F3044,'Markov BF'!F3044)*INDEX(tabCost_Treatment, $C139+1)) -> 233747346 | I139: =IF(I$137>=$B139, 0, SUM('Markov WM'!G3044,'Markov WF'!G3044,'Markov BM'!G3044,'Markov BF'!G3044)*INDEX(tabCost_Treatment, $C139+1)) -> 194533956.5 | J139: =IF(J$137>=$B139, 0, SUM('Markov WM'!H3044,'Markov WF'!H3044,'Markov BM'!H3044,'Markov BF'!H3044)*INDEX(tabCost_Treatment, $C139+1)) -> 0 | K139: =IF(K$137>=$B139, 0, SUM('Markov WM'!I3044,'Markov WF'!I3044,'Markov BM'!I3044,'Markov BF'!I3044)*INDEX(tabCost_Treatment, $C139+1)) -> 0 | L139: =IF(L$137>=$B139, 0, SUM('Markov WM'!J3044,'Markov WF'!J3044,'Markov BM'!J3044,'Markov BF'!J3044)*INDEX(tabCost_Treatment, $C139+1)) -> 0 | M139: =IF(M$137>=$B139, 0, SUM('Markov WM'!K3044,'Markov WF'!K3044,'Markov BM'!K3044,'Markov BF'!K3044)*INDEX(tabCost_Treatment, $C139+1)) -> 0 | N139: =IF(N$137>=$B139, 0, SUM('Markov WM'!L3044,'Markov WF'!L3044,'Markov BM'!L3044,'Markov BF'!L3044)*INDEX(tabCost_Treatment, $C139+1)) -> 0 | O139: =IF(O$137>=$B139, 0, SUM('Markov WM'!M3044,'Markov WF'!M3044,'Markov BM'!M3044,'Markov BF'!M3044)*INDEX(tabCost_Treatment, $C139+1)) -> 0 | P139: =IF(P$137>=$B139, 0, SUM('Markov WM'!N3044,'Markov WF'!N3044,'Markov BM'!N3044,'Markov BF'!N3044)*INDEX(tabCost_Treatment, $C139+1)) -> 0 | Q139: =IF(Q$137>=$B139, 0, SUM('Markov WM'!O3044,'Markov WF'!O3044,'Markov BM'!O3044,'Markov BF'!O3044)*INDEX(tabCost_Treatment, $C139+1)) -> 0 | R139: =IF(R$137>=$B139, 0, SUM('Markov WM'!P3044,'Markov WF'!P3044,'Markov BM'!P3044,'Markov BF'!P3044)*INDEX(tabCost_Treatment, $C139+1)) -> 0 | S139: =IF(S$137>=$B139, 0, SUM('Markov WM'!Q3044,'Markov WF'!Q3044,'Markov BM'!Q3044,'Markov BF'!Q3044)*INDEX(tabCost_Treatment, $C139+1)) -> 0 | T139: =IF(T$137>=$B139, 0, SUM('Markov WM'!R3044,'Markov WF'!R3044,'Markov BM'!R3044,'Markov BF'!R3044)*INDEX(tabCost_Treatment, $C139+1)) -> 0 | U139: =IF(U$137>=$B139, 0, SUM('Markov WM'!S3044,'Markov WF'!S3044,'Markov BM'!S3044,'Markov BF'!S3044)*INDEX(tabCost_Treatment, $C139+1)) -> 0 | V139: =IF(V$137>=$B139, 0, SUM('Markov WM'!T3044,'Markov WF'!T3044,'Markov BM'!T3044,'Markov BF'!T3044)*INDEX(tabCost_Treatment, $C139+1)) -> 0 | W139: =IF(W$137>=$B139, 0, SUM('Markov WM'!U3044,'Markov WF'!U3044,'Markov BM'!U3044,'Markov BF'!U3044)*INDEX(tabCost_Treatment, $C139+1)) -> 0 | X139: =IF(X$137>=$B139, 0, SUM('Markov WM'!V3044,'Markov WF'!V3044,'Markov BM'!V3044,'Markov BF'!V3044)*INDEX(tabCost_Treatment, $C139+1)) -> 0 | Y139: =IF(Y$137>=$B139, 0, SUM('Markov WM'!W3044,'Markov WF'!W3044,'Markov BM'!W3044,'Markov BF'!W3044)*INDEX(tabCost_Treatment, $C139+1)) -> 0 | Z139: =IF(Z$137>=$B139, 0, SUM('Markov WM'!X3044,'Markov WF'!X3044,'Markov BM'!X3044,'Markov BF'!X3044)*INDEX(tabCost_Treatment, $C139+1)) -> 0 | AA139: =IF(AA$137>=$B139, 0, SUM('Markov WM'!Y3044,'Markov WF'!Y3044,'Markov BM'!Y3044,'Markov BF'!Y3044)*INDEX(tabCost_Treatment, $C139+1)) -> 0 | AB139: =IF(AB$137>=$B139, 0, SUM('Markov WM'!Z3044,'Markov WF'!Z3044,'Markov BM'!Z3044,'Markov BF'!Z3044)*INDEX(tabCost_Treatment, $C139+1)) -> 0 | AC139: =IF(AC$137>=$B139, 0, SUM('Markov WM'!AA3044,'Markov WF'!AA3044,'Markov BM'!AA3044,'Markov BF'!AA3044)*INDEX(tabCost_Treatment, $C139+1)) -> 0 | AD139: =IF(AD$137>=$B139, 0, SUM('Markov WM'!AB3044,'Markov WF'!AB3044,'Markov BM'!AB3044,'Markov BF'!AB3044)*INDEX(tabCost_Treatment, $C139+1)) -> 0
B140: 4 | C140: 0 | D140: 50 | E140: 3 | F140: =IF(F$137>=$B140, 0, SUM('Markov WM'!D3045,'Markov WF'!D3045,'Markov BM'!D3045,'Markov BF'!D3045)*INDEX(tabCost_Treatment, $C140+1)) -> 427195350.2 | G140: =IF(G$137>=$B140, 0, SUM('Markov WM'!E3045,'Markov WF'!E3045,'Markov BM'!E3045,'Markov BF'!E3045)*INDEX(tabCost_Treatment, $C140+1)) -> 375698618.3 | H140: =IF(H$137>=$B140, 0, SUM('Markov WM'!F3045,'Markov WF'!F3045,'Markov BM'!F3045,'Markov BF'!F3045)*INDEX(tabCost_Treatment, $C140+1)) -> 331884859.6 | I140: =IF(I$137>=$B140, 0, SUM('Markov WM'!G3045,'Markov WF'!G3045,'Markov BM'!G3045,'Markov BF'!G3045)*INDEX(tabCost_Treatment, $C140+1)) -> 294401749.4 | J140: =IF(J$137>=$B140, 0, SUM('Markov WM'!H3045,'Markov WF'!H3045,'Markov BM'!H3045,'Markov BF'!H3045)*INDEX(tabCost_Treatment, $C140+1)) -> 0 | K140: =IF(K$137>=$B140, 0, SUM('Markov WM'!I3045,'Markov WF'!I3045,'Markov BM'!I3045,'Markov BF'!I3045)*INDEX(tabCost_Treatment, $C140+1)) -> 0 | L140: =IF(L$137>=$B140, 0, SUM('Markov WM'!J3045,'Markov WF'!J3045,'Markov BM'!J3045,'Markov BF'!J3045)*INDEX(tabCost_Treatment, $C140+1)) -> 0 | M140: =IF(M$137>=$B140, 0, SUM('Markov WM'!K3045,'Markov WF'!K3045,'Markov BM'!K3045,'Markov BF'!K3045)*INDEX(tabCost_Treatment, $C140+1)) -> 0 | N140: =IF(N$137>=$B140, 0, SUM('Markov WM'!L3045,'Markov WF'!L3045,'Markov BM'!L3045,'Markov BF'!L3045)*INDEX(tabCost_Treatment, $C140+1)) -> 0 | O140: =IF(O$137>=$B140, 0, SUM('Markov WM'!M3045,'Markov WF'!M3045,'Markov BM'!M3045,'Markov BF'!M3045)*INDEX(tabCost_Treatment, $C140+1)) -> 0 | P140: =IF(P$137>=$B140, 0, SUM('Markov WM'!N3045,'Markov WF'!N3045,'Markov BM'!N3045,'Markov BF'!N3045)*INDEX(tabCost_Treatment, $C140+1)) -> 0 | Q140: =IF(Q$137>=$B140, 0, SUM('Markov WM'!O3045,'Markov WF'!O3045,'Markov BM'!O3045,'Markov BF'!O3045)*INDEX(tabCost_Treatment, $C140+1)) -> 0 | R140: =IF(R$137>=$B140, 0, SUM('Markov WM'!P3045,'Markov WF'!P3045,'Markov BM'!P3045,'Markov BF'!P3045)*INDEX(tabCost_Treatment, $C140+1)) -> 0 | S140: =IF(S$137>=$B140, 0, SUM('Markov WM'!Q3045,'Markov WF'!Q3045,'Markov BM'!Q3045,'Markov BF'!Q3045)*INDEX(tabCost_Treatment, $C140+1)) -> 0 | T140: =IF(T$137>=$B140, 0, SUM('Markov WM'!R3045,'Markov WF'!R3045,'Markov BM'!R3045,'Markov BF'!R3045)*INDEX(tabCost_Treatment, $C140+1)) -> 0 | U140: =IF(U$137>=$B140, 0, SUM('Markov WM'!S3045,'Markov WF'!S3045,'Markov BM'!S3045,'Markov BF'!S3045)*INDEX(tabCost_Treatment, $C140+1)) -> 0 | V140: =IF(V$137>=$B140, 0, SUM('Markov WM'!T3045,'Markov WF'!T3045,'Markov BM'!T3045,'Markov BF'!T3045)*INDEX(tabCost_Treatment, $C140+1)) -> 0 | W140: =IF(W$137>=$B140, 0, SUM('Markov WM'!U3045,'Markov WF'!U3045,'Markov BM'!U3045,'Markov BF'!U3045)*INDEX(tabCost_Treatment, $C140+1)) -> 0 | X140: =IF(X$137>=$B140, 0, SUM('Markov WM'!V3045,'Markov WF'!V3045,'Markov BM'!V3045,'Markov BF'!V3045)*INDEX(tabCost_Treatment, $C140+1)) -> 0 | Y140: =IF(Y$137>=$B140, 0, SUM('Markov WM'!W3045,'Markov WF'!W3045,'Markov BM'!W3045,'Markov BF'!W3045)*INDEX(tabCost_Treatment, $C140+1)) -> 0 | Z140: =IF(Z$137>=$B140, 0, SUM('Markov WM'!X3045,'Markov WF'!X3045,'Markov BM'!X3045,'Markov BF'!X3045)*INDEX(tabCost_Treatment, $C140+1)) -> 0 | AA140: =IF(AA$137>=$B140, 0, SUM('Markov WM'!Y3045,'Markov WF'!Y3045,'Markov BM'!Y3045,'Markov BF'!Y3045)*INDEX(tabCost_Treatment, $C140+1)) -> 0 | AB140: =IF(AB$137>=$B140, 0, SUM('Markov WM'!Z3045,'Markov WF'!Z3045,'Markov BM'!Z3045,'Markov BF'!Z3045)*INDEX(tabCost_Treatment, $C140+1)) -> 0 | AC140: =IF(AC$137>=$B140, 0, SUM('Markov WM'!AA3045,'Markov WF'!AA3045,'Markov BM'!AA3045,'Markov BF'!AA3045)*INDEX(tabCost_Treatment, $C140+1)) -> 0 | AD140: =IF(AD$137>=$B140, 0, SUM('Markov WM'!AB3045,'Markov WF'!AB3045,'Markov BM'!AB3045,'Markov BF'!AB3045)*INDEX(tabCost_Treatment, $C140+1)) -> 0
B141: 4 | C141: 0 | D141: 55 | E141: 4 | F141: =IF(F$137>=$B141, 0, SUM('Markov WM'!D3046,'Markov WF'!D3046,'Markov BM'!D3046,'Markov BF'!D3046)*INDEX(tabCost_Treatment, $C141+1)) -> 421075486.8 | G141: =IF(G$137>=$B141, 0, SUM('Markov WM'!E3046,'Markov WF'!E3046,'Markov BM'!E3046,'Markov BF'!E3046)*INDEX(tabCost_Treatment, $C141+1)) -> 391090281.4 | H141: =IF(H$137>=$B141, 0, SUM('Markov WM'!F3046,'Markov WF'!F3046,'Markov BM'!F3046,'Markov BF'!F3046)*INDEX(tabCost_Treatment, $C141+1)) -> 363217783 | I141: =IF(I$137>=$B141, 0, SUM('Markov WM'!G3046,'Markov WF'!G3046,'Markov BM'!G3046,'Markov BF'!G3046)*INDEX(tabCost_Treatment, $C141+1)) -> 337280143.5 | J141: =IF(J$137>=$B141, 0, SUM('Markov WM'!H3046,'Markov WF'!H3046,'Markov BM'!H3046,'Markov BF'!H3046)*INDEX(tabCost_Treatment, $C141+1)) -> 0 | K141: =IF(K$137>=$B141, 0, SUM('Markov WM'!I3046,'Markov WF'!I3046,'Markov BM'!I3046,'Markov BF'!I3046)*INDEX(tabCost_Treatment, $C141+1)) -> 0 | L141: =IF(L$137>=$B141, 0, SUM('Markov WM'!J3046,'Markov WF'!J3046,'Markov BM'!J3046,'Markov BF'!J3046)*INDEX(tabCost_Treatment, $C141+1)) -> 0 | M141: =IF(M$137>=$B141, 0, SUM('Markov WM'!K3046,'Markov WF'!K3046,'Markov BM'!K3046,'Markov BF'!K3046)*INDEX(tabCost_Treatment, $C141+1)) -> 0 | N141: =IF(N$137>=$B141, 0, SUM('Markov WM'!L3046,'Markov WF'!L3046,'Markov BM'!L3046,'Markov BF'!L3046)*INDEX(tabCost_Treatment, $C141+1)) -> 0 | O141: =IF(O$137>=$B141, 0, SUM('Markov WM'!M3046,'Markov WF'!M3046,'Markov BM'!M3046,'Markov BF'!M3046)*INDEX(tabCost_Treatment, $C141+1)) -> 0 | P141: =IF(P$137>=$B141, 0, SUM('Markov WM'!N3046,'Markov WF'!N3046,'Markov BM'!N3046,'Markov BF'!N3046)*INDEX(tabCost_Treatment, $C141+1)) -> 0 | Q141: =IF(Q$137>=$B141, 0, SUM('Markov WM'!O3046,'Markov WF'!O3046,'Markov BM'!O3046,'Markov BF'!O3046)*INDEX(tabCost_Treatment, $C141+1)) -> 0 | R141: =IF(R$137>=$B141, 0, SUM('Markov WM'!P3046,'Markov WF'!P3046,'Markov BM'!P3046,'Markov BF'!P3046)*INDEX(tabCost_Treatment, $C141+1)) -> 0 | S141: =IF(S$137>=$B141, 0, SUM('Markov WM'!Q3046,'Markov WF'!Q3046,'Markov BM'!Q3046,'Markov BF'!Q3046)*INDEX(tabCost_Treatment, $C141+1)) -> 0 | T141: =IF(T$137>=$B141, 0, SUM('Markov WM'!R3046,'Markov WF'!R3046,'Markov BM'!R3046,'Markov BF'!R3046)*INDEX(tabCost_Treatment, $C141+1)) -> 0 | U141: =IF(U$137>=$B141, 0, SUM('Markov WM'!S3046,'Markov WF'!S3046,'Markov BM'!S3046,'Markov BF'!S3046)*INDEX(tabCost_Treatment, $C141+1)) -> 0 | V141: =IF(V$137>=$B141, 0, SUM('Markov WM'!T3046,'Markov WF'!T3046,'Markov BM'!T3046,'Markov BF'!T3046)*INDEX(tabCost_Treatment, $C141+1)) -> 0 | W141: =IF(W$137>=$B141, 0, SUM('Markov WM'!U3046,'Markov WF'!U3046,'Markov BM'!U3046,'Markov BF'!U3046)*INDEX(tabCost_Treatment, $C141+1)) -> 0 | X141: =IF(X$137>=$B141, 0, SUM('Markov WM'!V3046,'Markov WF'!V3046,'Markov BM'!V3046,'Markov BF'!V3046)*INDEX(tabCost_Treatment, $C141+1)) -> 0 | Y141: =IF(Y$137>=$B141, 0, SUM('Markov WM'!W3046,'Markov WF'!W3046,'Markov BM'!W3046,'Markov BF'!W3046)*INDEX(tabCost_Treatment, $C141+1)) -> 0 | Z141: =IF(Z$137>=$B141, 0, SUM('Markov WM'!X3046,'Markov WF'!X3046,'Markov BM'!X3046,'Markov BF'!X3046)*INDEX(tabCost_Treatment, $C141+1)) -> 0 | AA141: =IF(AA$137>=$B141, 0, SUM('Markov WM'!Y3046,'Markov WF'!Y3046,'Markov BM'!Y3046,'Markov BF'!Y3046)*INDEX(tabCost_Treatment, $C141+1)) -> 0 | AB141: =IF(AB$137>=$B141, 0, SUM('Markov WM'!Z3046,'Markov WF'!Z3046,'Markov BM'!Z3046,'Markov BF'!Z3046)*INDEX(tabCost_Treatment, $C141+1)) -> 0 | AC141: =IF(AC$137>=$B141, 0, SUM('Markov WM'!AA3046,'Markov WF'!AA3046,'Markov BM'!AA3046,'Markov BF'!AA3046)*INDEX(tabCost_Treatment, $C141+1)) -> 0 | AD141: =IF(AD$137>=$B141, 0, SUM('Markov WM'!AB3046,'Markov WF'!AB3046,'Markov BM'!AB3046,'Markov BF'!AB3046)*INDEX(tabCost_Treatment, $C141+1)) -> 0
B142: 4 | C142: 0 | D142: 60 | E142: 5 | F142: =IF(F$137>=$B142, 0, SUM('Markov WM'!D3047,'Markov WF'!D3047,'Markov BM'!D3047,'Markov BF'!D3047)*INDEX(tabCost_Treatment, $C142+1)) -> 296017384.5 | G142: =IF(G$137>=$B142, 0, SUM('Markov WM'!E3047,'Markov WF'!E3047,'Markov BM'!E3047,'Markov BF'!E3047)*INDEX(tabCost_Treatment, $C142+1)) -> 293409046.9 | H142: =IF(H$137>=$B142, 0, SUM('Markov WM'!F3047,'Markov WF'!F3047,'Markov BM'!F3047,'Markov BF'!F3047)*INDEX(tabCost_Treatment, $C142+1)) -> 289660391.3 | I142: =IF(I$137>=$B142, 0, SUM('Markov WM'!G3047,'Markov WF'!G3047,'Markov BM'!G3047,'Markov BF'!G3047)*INDEX(tabCost_Treatment, $C142+1)) -> 284998121.3 | J142: =IF(J$137>=$B142, 0, SUM('Markov WM'!H3047,'Markov WF'!H3047,'Markov BM'!H3047,'Markov BF'!H3047)*INDEX(tabCost_Treatment, $C142+1)) -> 0 | K142: =IF(K$137>=$B142, 0, SUM('Markov WM'!I3047,'Markov WF'!I3047,'Markov BM'!I3047,'Markov BF'!I3047)*INDEX(tabCost_Treatment, $C142+1)) -> 0 | L142: =IF(L$137>=$B142, 0, SUM('Markov WM'!J3047,'Markov WF'!J3047,'Markov BM'!J3047,'Markov BF'!J3047)*INDEX(tabCost_Treatment, $C142+1)) -> 0 | M142: =IF(M$137>=$B142, 0, SUM('Markov WM'!K3047,'Markov WF'!K3047,'Markov BM'!K3047,'Markov BF'!K3047)*INDEX(tabCost_Treatment, $C142+1)) -> 0 | N142: =IF(N$137>=$B142, 0, SUM('Markov WM'!L3047,'Markov WF'!L3047,'Markov BM'!L3047,'Markov BF'!L3047)*INDEX(tabCost_Treatment, $C142+1)) -> 0 | O142: =IF(O$137>=$B142, 0, SUM('Markov WM'!M3047,'Markov WF'!M3047,'Markov BM'!M3047,'Markov BF'!M3047)*INDEX(tabCost_Treatment, $C142+1)) -> 0 | P142: =IF(P$137>=$B142, 0, SUM('Markov WM'!N3047,'Markov WF'!N3047,'Markov BM'!N3047,'Markov BF'!N3047)*INDEX(tabCost_Treatment, $C142+1)) -> 0 | Q142: =IF(Q$137>=$B142, 0, SUM('Markov WM'!O3047,'Markov WF'!O3047,'Markov BM'!O3047,'Markov BF'!O3047)*INDEX(tabCost_Treatment, $C142+1)) -> 0 | R142: =IF(R$137>=$B142, 0, SUM('Markov WM'!P3047,'Markov WF'!P3047,'Markov BM'!P3047,'Markov BF'!P3047)*INDEX(tabCost_Treatment, $C142+1)) -> 0 | S142: =IF(S$137>=$B142, 0, SUM('Markov WM'!Q3047,'Markov WF'!Q3047,'Markov BM'!Q3047,'Markov BF'!Q3047)*INDEX(tabCost_Treatment, $C142+1)) -> 0 | T142: =IF(T$137>=$B142, 0, SUM('Markov WM'!R3047,'Markov WF'!R3047,'Markov BM'!R3047,'Markov BF'!R3047)*INDEX(tabCost_Treatment, $C142+1)) -> 0 | U142: =IF(U$137>=$B142, 0, SUM('Markov WM'!S3047,'Markov WF'!S3047,'Markov BM'!S3047,'Markov BF'!S3047)*INDEX(tabCost_Treatment, $C142+1)) -> 0 | V142: =IF(V$137>=$B142, 0, SUM('Markov WM'!T3047,'Markov WF'!T3047,'Markov BM'!T3047,'Markov BF'!T3047)*INDEX(tabCost_Treatment, $C142+1)) -> 0 | W142: =IF(W$137>=$B142, 0, SUM('Markov WM'!U3047,'Markov WF'!U3047,'Markov BM'!U3047,'Markov BF'!U3047)*INDEX(tabCost_Treatment, $C142+1)) -> 0 | X142: =IF(X$137>=$B142, 0, SUM('Markov WM'!V3047,'Markov WF'!V3047,'Markov BM'!V3047,'Markov BF'!V3047)*INDEX(tabCost_Treatment, $C142+1)) -> 0 | Y142: =IF(Y$137>=$B142, 0, SUM('Markov WM'!W3047,'Markov WF'!W3047,'Markov BM'!W3047,'Markov BF'!W3047)*INDEX(tabCost_Treatment, $C142+1)) -> 0 | Z142: =IF(Z$137>=$B142, 0, SUM('Markov WM'!X3047,'Markov WF'!X3047,'Markov BM'!X3047,'Markov BF'!X3047)*INDEX(tabCost_Treatment, $C142+1)) -> 0 | AA142: =IF(AA$137>=$B142, 0, SUM('Markov WM'!Y3047,'Markov WF'!Y3047,'Markov BM'!Y3047,'Markov BF'!Y3047)*INDEX(tabCost_Treatment, $C142+1)) -> 0 | AB142: =IF(AB$137>=$B142, 0, SUM('Markov WM'!Z3047,'Markov WF'!Z3047,'Markov BM'!Z3047,'Markov BF'!Z3047)*INDEX(tabCost_Treatment, $C142+1)) -> 0 | AC142: =IF(AC$137>=$B142, 0, SUM('Markov WM'!AA3047,'Markov WF'!AA3047,'Markov BM'!AA3047,'Markov BF'!AA3047)*INDEX(tabCost_Treatment, $C142+1)) -> 0 | AD142: =IF(AD$137>=$B142, 0, SUM('Markov WM'!AB3047,'Markov WF'!AB3047,'Markov BM'!AB3047,'Markov BF'!AB3047)*INDEX(tabCost_Treatment, $C142+1)) -> 0
B143: 4 | C143: 0 | D143: 65 | E143: 6 | F143: =IF(F$137>=$B143, 0, SUM('Markov WM'!D3048,'Markov WF'!D3048,'Markov BM'!D3048,'Markov BF'!D3048)*INDEX(tabCost_Treatment, $C143+1)) -> 123287525.7 | G143: =IF(G$137>=$B143, 0, SUM('Markov WM'!E3048,'Markov WF'!E3048,'Markov BM'!E3048,'Markov BF'!E3048)*INDEX(tabCost_Treatment, $C143+1)) -> 144672819.3 | H143: =IF(H$137>=$B143, 0, SUM('Markov WM'!F3048,'Markov WF'!F3048,'Markov BM'!F3048,'Markov BF'!F3048)*INDEX(tabCost_Treatment, $C143+1)) -> 161219307.9 | I143: =IF(I$137>=$B143, 0, SUM('Markov WM'!G3048,'Markov WF'!G3048,'Markov BM'!G3048,'Markov BF'!G3048)*INDEX(tabCost_Treatment, $C143+1)) -> 174120761.4 | J143: =IF(J$137>=$B143, 0, SUM('Markov WM'!H3048,'Markov WF'!H3048,'Markov BM'!H3048,'Markov BF'!H3048)*INDEX(tabCost_Treatment, $C143+1)) -> 0 | K143: =IF(K$137>=$B143, 0, SUM('Markov WM'!I3048,'Markov WF'!I3048,'Markov BM'!I3048,'Markov BF'!I3048)*INDEX(tabCost_Treatment, $C143+1)) -> 0 | L143: =IF(L$137>=$B143, 0, SUM('Markov WM'!J3048,'Markov WF'!J3048,'Markov BM'!J3048,'Markov BF'!J3048)*INDEX(tabCost_Treatment, $C143+1)) -> 0 | M143: =IF(M$137>=$B143, 0, SUM('Markov WM'!K3048,'Markov WF'!K3048,'Markov BM'!K3048,'Markov BF'!K3048)*INDEX(tabCost_Treatment, $C143+1)) -> 0 | N143: =IF(N$137>=$B143, 0, SUM('Markov WM'!L3048,'Markov WF'!L3048,'Markov BM'!L3048,'Markov BF'!L3048)*INDEX(tabCost_Treatment, $C143+1)) -> 0 | O143: =IF(O$137>=$B143, 0, SUM('Markov WM'!M3048,'Markov WF'!M3048,'Markov BM'!M3048,'Markov BF'!M3048)*INDEX(tabCost_Treatment, $C143+1)) -> 0 | P143: =IF(P$137>=$B143, 0, SUM('Markov WM'!N3048,'Markov WF'!N3048,'Markov BM'!N3048,'Markov BF'!N3048)*INDEX(tabCost_Treatment, $C143+1)) -> 0 | Q143: =IF(Q$137>=$B143, 0, SUM('Markov WM'!O3048,'Markov WF'!O3048,'Markov BM'!O3048,'Markov BF'!O3048)*INDEX(tabCost_Treatment, $C143+1)) -> 0 | R143: =IF(R$137>=$B143, 0, SUM('Markov WM'!P3048,'Markov WF'!P3048,'Markov BM'!P3048,'Markov BF'!P3048)*INDEX(tabCost_Treatment, $C143+1)) -> 0 | S143: =IF(S$137>=$B143, 0, SUM('Markov WM'!Q3048,'Markov WF'!Q3048,'Markov BM'!Q3048,'Markov BF'!Q3048)*INDEX(tabCost_Treatment, $C143+1)) -> 0 | T143: =IF(T$137>=$B143, 0, SUM('Markov WM'!R3048,'Markov WF'!R3048,'Markov BM'!R3048,'Markov BF'!R3048)*INDEX(tabCost_Treatment, $C143+1)) -> 0 | U143: =IF(U$137>=$B143, 0, SUM('Markov WM'!S3048,'Markov WF'!S3048,'Markov BM'!S3048,'Markov BF'!S3048)*INDEX(tabCost_Treatment, $C143+1)) -> 0 | V143: =IF(V$137>=$B143, 0, SUM('Markov WM'!T3048,'Markov WF'!T3048,'Markov BM'!T3048,'Markov BF'!T3048)*INDEX(tabCost_Treatment, $C143+1)) -> 0 | W143: =IF(W$137>=$B143, 0, SUM('Markov WM'!U3048,'Markov WF'!U3048,'Markov BM'!U3048,'Markov BF'!U3048)*INDEX(tabCost_Treatment, $C143+1)) -> 0 | X143: =IF(X$137>=$B143, 0, SUM('Markov WM'!V3048,'Markov WF'!V3048,'Markov BM'!V3048,'Markov BF'!V3048)*INDEX(tabCost_Treatment, $C143+1)) -> 0 | Y143: =IF(Y$137>=$B143, 0, SUM('Markov WM'!W3048,'Markov WF'!W3048,'Markov BM'!W3048,'Markov BF'!W3048)*INDEX(tabCost_Treatment, $C143+1)) -> 0 | Z143: =IF(Z$137>=$B143, 0, SUM('Markov WM'!X3048,'Markov WF'!X3048,'Markov BM'!X3048,'Markov BF'!X3048)*INDEX(tabCost_Treatment, $C143+1)) -> 0 | AA143: =IF(AA$137>=$B143, 0, SUM('Markov WM'!Y3048,'Markov WF'!Y3048,'Markov BM'!Y3048,'Markov BF'!Y3048)*INDEX(tabCost_Treatment, $C143+1)) -> 0 | AB143: =IF(AB$137>=$B143, 0, SUM('Markov WM'!Z3048,'Markov WF'!Z3048,'Markov BM'!Z3048,'Markov BF'!Z3048)*INDEX(tabCost_Treatment, $C143+1)) -> 0 | AC143: =IF(AC$137>=$B143, 0, SUM('Markov WM'!AA3048,'Markov WF'!AA3048,'Markov BM'!AA3048,'Markov BF'!AA3048)*INDEX(tabCost_Treatment, $C143+1)) -> 0 | AD143: =IF(AD$137>=$B143, 0, SUM('Markov WM'!AB3048,'Markov WF'!AB3048,'Markov BM'!AB3048,'Markov BF'!AB3048)*INDEX(tabCost_Treatment, $C143+1)) -> 0
B144: 4 | C144: 0 | D144: 70 | E144: 7 | F144: =IF(F$137>=$B144, 0, SUM('Markov WM'!D3049,'Markov WF'!D3049,'Markov BM'!D3049,'Markov BF'!D3049)*INDEX(tabCost_Treatment, $C144+1)) -> 43293991.57 | G144: =IF(G$137>=$B144, 0, SUM('Markov WM'!E3049,'Markov WF'!E3049,'Markov BM'!E3049,'Markov BF'!E3049)*INDEX(tabCost_Treatment, $C144+1)) -> 52395455.67 | H144: =IF(H$137>=$B144, 0, SUM('Markov WM'!F3049,'Markov WF'!F3049,'Markov BM'!F3049,'Markov BF'!F3049)*INDEX(tabCost_Treatment, $C144+1)) -> 59678516.12 | I144: =IF(I$137>=$B144, 0, SUM('Markov WM'!G3049,'Markov WF'!G3049,'Markov BM'!G3049,'Markov BF'!G3049)*INDEX(tabCost_Treatment, $C144+1)) -> 65488749.29 | J144: =IF(J$137>=$B144, 0, SUM('Markov WM'!H3049,'Markov WF'!H3049,'Markov BM'!H3049,'Markov BF'!H3049)*INDEX(tabCost_Treatment, $C144+1)) -> 0 | K144: =IF(K$137>=$B144, 0, SUM('Markov WM'!I3049,'Markov WF'!I3049,'Markov BM'!I3049,'Markov BF'!I3049)*INDEX(tabCost_Treatment, $C144+1)) -> 0 | L144: =IF(L$137>=$B144, 0, SUM('Markov WM'!J3049,'Markov WF'!J3049,'Markov BM'!J3049,'Markov BF'!J3049)*INDEX(tabCost_Treatment, $C144+1)) -> 0 | M144: =IF(M$137>=$B144, 0, SUM('Markov WM'!K3049,'Markov WF'!K3049,'Markov BM'!K3049,'Markov BF'!K3049)*INDEX(tabCost_Treatment, $C144+1)) -> 0 | N144: =IF(N$137>=$B144, 0, SUM('Markov WM'!L3049,'Markov WF'!L3049,'Markov BM'!L3049,'Markov BF'!L3049)*INDEX(tabCost_Treatment, $C144+1)) -> 0 | O144: =IF(O$137>=$B144, 0, SUM('Markov WM'!M3049,'Markov WF'!M3049,'Markov BM'!M3049,'Markov BF'!M3049)*INDEX(tabCost_Treatment, $C144+1)) -> 0 | P144: =IF(P$137>=$B144, 0, SUM('Markov WM'!N3049,'Markov WF'!N3049,'Markov BM'!N3049,'Markov BF'!N3049)*INDEX(tabCost_Treatment, $C144+1)) -> 0 | Q144: =IF(Q$137>=$B144, 0, SUM('Markov WM'!O3049,'Markov WF'!O3049,'Markov BM'!O3049,'Markov BF'!O3049)*INDEX(tabCost_Treatment, $C144+1)) -> 0 | R144: =IF(R$137>=$B144, 0, SUM('Markov WM'!P3049,'Markov WF'!P3049,'Markov BM'!P3049,'Markov BF'!P3049)*INDEX(tabCost_Treatment, $C144+1)) -> 0 | S144: =IF(S$137>=$B144, 0, SUM('Markov WM'!Q3049,'Markov WF'!Q3049,'Markov BM'!Q3049,'Markov BF'!Q3049)*INDEX(tabCost_Treatment, $C144+1)) -> 0 | T144: =IF(T$137>=$B144, 0, SUM('Markov WM'!R3049,'Markov WF'!R3049,'Markov BM'!R3049,'Markov BF'!R3049)*INDEX(tabCost_Treatment, $C144+1)) -> 0 | U144: =IF(U$137>=$B144, 0, SUM('Markov WM'!S3049,'Markov WF'!S3049,'Markov BM'!S3049,'Markov BF'!S3049)*INDEX(tabCost_Treatment, $C144+1)) -> 0 | V144: =IF(V$137>=$B144, 0, SUM('Markov WM'!T3049,'Markov WF'!T3049,'Markov BM'!T3049,'Markov BF'!T3049)*INDEX(tabCost_Treatment, $C144+1)) -> 0 | W144: =IF(W$137>=$B144, 0, SUM('Markov WM'!U3049,'Markov WF'!U3049,'Markov BM'!U3049,'Markov BF'!U3049)*INDEX(tabCost_Treatment, $C144+1)) -> 0 | X144: =IF(X$137>=$B144, 0, SUM('Markov WM'!V3049,'Markov WF'!V3049,'Markov BM'!V3049,'Markov BF'!V3049)*INDEX(tabCost_Treatment, $C144+1)) -> 0 | Y144: =IF(Y$137>=$B144, 0, SUM('Markov WM'!W3049,'Markov WF'!W3049,'Markov BM'!W3049,'Markov BF'!W3049)*INDEX(tabCost_Treatment, $C144+1)) -> 0 | Z144: =IF(Z$137>=$B144, 0, SUM('Markov WM'!X3049,'Markov WF'!X3049,'Markov BM'!X3049,'Markov BF'!X3049)*INDEX(tabCost_Treatment, $C144+1)) -> 0 | AA144: =IF(AA$137>=$B144, 0, SUM('Markov WM'!Y3049,'Markov WF'!Y3049,'Markov BM'!Y3049,'Markov BF'!Y3049)*INDEX(tabCost_Treatment, $C144+1)) -> 0 | AB144: =IF(AB$137>=$B144, 0, SUM('Markov WM'!Z3049,'Markov WF'!Z3049,'Markov BM'!Z3049,'Markov BF'!Z3049)*INDEX(tabCost_Treatment, $C144+1)) -> 0 | AC144: =IF(AC$137>=$B144, 0, SUM('Markov WM'!AA3049,'Markov WF'!AA3049,'Markov BM'!AA3049,'Markov BF'!AA3049)*INDEX(tabCost_Treatment, $C144+1)) -> 0 | AD144: =IF(AD$137>=$B144, 0, SUM('Markov WM'!AB3049,'Markov WF'!AB3049,'Markov BM'!AB3049,'Markov BF'!AB3049)*INDEX(tabCost_Treatment, $C144+1)) -> 0
B145: 4 | C145: 0 | D145: 75 | E145: 8 | F145: =IF(F$137>=$B145, 0, SUM('Markov WM'!D3050,'Markov WF'!D3050,'Markov BM'!D3050,'Markov BF'!D3050)*INDEX(tabCost_Treatment, $C145+1)) -> 25515682.64 | G145: =IF(G$137>=$B145, 0, SUM('Markov WM'!E3050,'Markov WF'!E3050,'Markov BM'!E3050,'Markov BF'!E3050)*INDEX(tabCost_Treatment, $C145+1)) -> 24905888.65 | H145: =IF(H$137>=$B145, 0, SUM('Markov WM'!F3050,'Markov WF'!F3050,'Markov BM'!F3050,'Markov BF'!F3050)*INDEX(tabCost_Treatment, $C145+1)) -> 24276691.39 | I145: =IF(I$137>=$B145, 0, SUM('Markov WM'!G3050,'Markov WF'!G3050,'Markov BM'!G3050,'Markov BF'!G3050)*INDEX(tabCost_Treatment, $C145+1)) -> 23608402.3 | J145: =IF(J$137>=$B145, 0, SUM('Markov WM'!H3050,'Markov WF'!H3050,'Markov BM'!H3050,'Markov BF'!H3050)*INDEX(tabCost_Treatment, $C145+1)) -> 0 | K145: =IF(K$137>=$B145, 0, SUM('Markov WM'!I3050,'Markov WF'!I3050,'Markov BM'!I3050,'Markov BF'!I3050)*INDEX(tabCost_Treatment, $C145+1)) -> 0 | L145: =IF(L$137>=$B145, 0, SUM('Markov WM'!J3050,'Markov WF'!J3050,'Markov BM'!J3050,'Markov BF'!J3050)*INDEX(tabCost_Treatment, $C145+1)) -> 0 | M145: =IF(M$137>=$B145, 0, SUM('Markov WM'!K3050,'Markov WF'!K3050,'Markov BM'!K3050,'Markov BF'!K3050)*INDEX(tabCost_Treatment, $C145+1)) -> 0 | N145: =IF(N$137>=$B145, 0, SUM('Markov WM'!L3050,'Markov WF'!L3050,'Markov BM'!L3050,'Markov BF'!L3050)*INDEX(tabCost_Treatment, $C145+1)) -> 0 | O145: =IF(O$137>=$B145, 0, SUM('Markov WM'!M3050,'Markov WF'!M3050,'Markov BM'!M3050,'Markov BF'!M3050)*INDEX(tabCost_Treatment, $C145+1)) -> 0 | P145: =IF(P$137>=$B145, 0, SUM('Markov WM'!N3050,'Markov WF'!N3050,'Markov BM'!N3050,'Markov BF'!N3050)*INDEX(tabCost_Treatment, $C145+1)) -> 0 | Q145: =IF(Q$137>=$B145, 0, SUM('Markov WM'!O3050,'Markov WF'!O3050,'Markov BM'!O3050,'Markov BF'!O3050)*INDEX(tabCost_Treatment, $C145+1)) -> 0 | R145: =IF(R$137>=$B145, 0, SUM('Markov WM'!P3050,'Markov WF'!P3050,'Markov BM'!P3050,'Markov BF'!P3050)*INDEX(tabCost_Treatment, $C145+1)) -> 0 | S145: =IF(S$137>=$B145, 0, SUM('Markov WM'!Q3050,'Markov WF'!Q3050,'Markov BM'!Q3050,'Markov BF'!Q3050)*INDEX(tabCost_Treatment, $C145+1)) -> 0 | T145: =IF(T$137>=$B145, 0, SUM('Markov WM'!R3050,'Markov WF'!R3050,'Markov BM'!R3050,'Markov BF'!R3050)*INDEX(tabCost_Treatment, $C145+1)) -> 0 | U145: =IF(U$137>=$B145, 0, SUM('Markov WM'!S3050,'Markov WF'!S3050,'Markov BM'!S3050,'Markov BF'!S3050)*INDEX(tabCost_Treatment, $C145+1)) -> 0 | V145: =IF(V$137>=$B145, 0, SUM('Markov WM'!T3050,'Markov WF'!T3050,'Markov BM'!T3050,'Markov BF'!T3050)*INDEX(tabCost_Treatment, $C145+1)) -> 0 | W145: =IF(W$137>=$B145, 0, SUM('Markov WM'!U3050,'Markov WF'!U3050,'Markov BM'!U3050,'Markov BF'!U3050)*INDEX(tabCost_Treatment, $C145+1)) -> 0 | X145: =IF(X$137>=$B145, 0, SUM('Markov WM'!V3050,'Markov WF'!V3050,'Markov BM'!V3050,'Markov BF'!V3050)*INDEX(tabCost_Treatment, $C145+1)) -> 0 | Y145: =IF(Y$137>=$B145, 0, SUM('Markov WM'!W3050,'Markov WF'!W3050,'Markov BM'!W3050,'Markov BF'!W3050)*INDEX(tabCost_Treatment, $C145+1)) -> 0 | Z145: =IF(Z$137>=$B145, 0, SUM('Markov WM'!X3050,'Markov WF'!X3050,'Markov BM'!X3050,'Markov BF'!X3050)*INDEX(tabCost_Treatment, $C145+1)) -> 0 | AA145: =IF(AA$137>=$B145, 0, SUM('Markov WM'!Y3050,'Markov WF'!Y3050,'Markov BM'!Y3050,'Markov BF'!Y3050)*INDEX(tabCost_Treatment, $C145+1)) -> 0 | AB145: =IF(AB$137>=$B145, 0, SUM('Markov WM'!Z3050,'Markov WF'!Z3050,'Markov BM'!Z3050,'Markov BF'!Z3050)*INDEX(tabCost_Treatment, $C145+1)) -> 0 | AC145: =IF(AC$137>=$B145, 0, SUM('Markov WM'!AA3050,'Markov WF'!AA3050,'Markov BM'!AA3050,'Markov BF'!AA3050)*INDEX(tabCost_Treatment, $C145+1)) -> 0 | AD145: =IF(AD$137>=$B145, 0, SUM('Markov WM'!AB3050,'Markov WF'!AB3050,'Markov BM'!AB3050,'Markov BF'!AB3050)*INDEX(tabCost_Treatment, $C145+1)) -> 0
B146: 3 | C146: 1 | D146: 40 | E146: 9 | F146: =IF(F$137>=$B146, 0, SUM('Markov WM'!D3051,'Markov WF'!D3051,'Markov BM'!D3051,'Markov BF'!D3051)*INDEX(tabCost_Treatment, $C146+1)) -> 178517148.1 | G146: =IF(G$137>=$B146, 0, SUM('Markov WM'!E3051,'Markov WF'!E3051,'Markov BM'!E3051,'Markov BF'!E3051)*INDEX(tabCost_Treatment, $C146+1)) -> 162184081.8 | H146: =IF(H$137>=$B146, 0, SUM('Markov WM'!F3051,'Markov WF'!F3051,'Markov BM'!F3051,'Markov BF'!F3051)*INDEX(tabCost_Treatment, $C146+1)) -> 146703164.2 | I146: =IF(I$137>=$B146, 0, SUM('Markov WM'!G3051,'Markov WF'!G3051,'Markov BM'!G3051,'Markov BF'!G3051)*INDEX(tabCost_Treatment, $C146+1)) -> 0 | J146: =IF(J$137>=$B146, 0, SUM('Markov WM'!H3051,'Markov WF'!H3051,'Markov BM'!H3051,'Markov BF'!H3051)*INDEX(tabCost_Treatment, $C146+1)) -> 0 | K146: =IF(K$137>=$B146, 0, SUM('Markov WM'!I3051,'Markov WF'!I3051,'Markov BM'!I3051,'Markov BF'!I3051)*INDEX(tabCost_Treatment, $C146+1)) -> 0 | L146: =IF(L$137>=$B146, 0, SUM('Markov WM'!J3051,'Markov WF'!J3051,'Markov BM'!J3051,'Markov BF'!J3051)*INDEX(tabCost_Treatment, $C146+1)) -> 0 | M146: =IF(M$137>=$B146, 0, SUM('Markov WM'!K3051,'Markov WF'!K3051,'Markov BM'!K3051,'Markov BF'!K3051)*INDEX(tabCost_Treatment, $C146+1)) -> 0 | N146: =IF(N$137>=$B146, 0, SUM('Markov WM'!L3051,'Markov WF'!L3051,'Markov BM'!L3051,'Markov BF'!L3051)*INDEX(tabCost_Treatment, $C146+1)) -> 0 | O146: =IF(O$137>=$B146, 0, SUM('Markov WM'!M3051,'Markov WF'!M3051,'Markov BM'!M3051,'Markov BF'!M3051)*INDEX(tabCost_Treatment, $C146+1)) -> 0 | P146: =IF(P$137>=$B146, 0, SUM('Markov WM'!N3051,'Markov WF'!N3051,'Markov BM'!N3051,'Markov BF'!N3051)*INDEX(tabCost_Treatment, $C146+1)) -> 0 | Q146: =IF(Q$137>=$B146, 0, SUM('Markov WM'!O3051,'Markov WF'!O3051,'Markov BM'!O3051,'Markov BF'!O3051)*INDEX(tabCost_Treatment, $C146+1)) -> 0 | R146: =IF(R$137>=$B146, 0, SUM('Markov WM'!P3051,'Markov WF'!P3051,'Markov BM'!P3051,'Markov BF'!P3051)*INDEX(tabCost_Treatment, $C146+1)) -> 0 | S146: =IF(S$137>=$B146, 0, SUM('Markov WM'!Q3051,'Markov WF'!Q3051,'Markov BM'!Q3051,'Markov BF'!Q3051)*INDEX(tabCost_Treatment, $C146+1)) -> 0 | T146: =IF(T$137>=$B146, 0, SUM('Markov WM'!R3051,'Markov WF'!R3051,'Markov BM'!R3051,'Markov BF'!R3051)*INDEX(tabCost_Treatment, $C146+1)) -> 0 | U146: =IF(U$137>=$B146, 0, SUM('Markov WM'!S3051,'Markov WF'!S3051,'Markov BM'!S3051,'Markov BF'!S3051)*INDEX(tabCost_Treatment, $C146+1)) -> 0 | V146: =IF(V$137>=$B146, 0, SUM('Markov WM'!T3051,'Markov WF'!T3051,'Markov BM'!T3051,'Markov BF'!T3051)*INDEX(tabCost_Treatment, $C146+1)) -> 0 | W146: =IF(W$137>=$B146, 0, SUM('Markov WM'!U3051,'Markov WF'!U3051,'Markov BM'!U3051,'Markov BF'!U3051)*INDEX(tabCost_Treatment, $C146+1)) -> 0 | X146: =IF(X$137>=$B146, 0, SUM('Markov WM'!V3051,'Markov WF'!V3051,'Markov BM'!V3051,'Markov BF'!V3051)*INDEX(tabCost_Treatment, $C146+1)) -> 0 | Y146: =IF(Y$137>=$B146, 0, SUM('Markov WM'!W3051,'Markov WF'!W3051,'Markov BM'!W3051,'Markov BF'!W3051)*INDEX(tabCost_Treatment, $C146+1)) -> 0 | Z146: =IF(Z$137>=$B146, 0, SUM('Markov WM'!X3051,'Markov WF'!X3051,'Markov BM'!X3051,'Markov BF'!X3051)*INDEX(tabCost_Treatment, $C146+1)) -> 0 | AA146: =IF(AA$137>=$B146, 0, SUM('Markov WM'!Y3051,'Markov WF'!Y3051,'Markov BM'!Y3051,'Markov BF'!Y3051)*INDEX(tabCost_Treatment, $C146+1)) -> 0 | AB146: =IF(AB$137>=$B146, 0, SUM('Markov WM'!Z3051,'Markov WF'!Z3051,'Markov BM'!Z3051,'Markov BF'!Z3051)*INDEX(tabCost_Treatment, $C146+1)) -> 0 | AC146: =IF(AC$137>=$B146, 0, SUM('Markov WM'!AA3051,'Markov WF'!AA3051,'Markov BM'!AA3051,'Markov BF'!AA3051)*INDEX(tabCost_Treatment, $C146+1)) -> 0 | AD146: =IF(AD$137>=$B146, 0, SUM('Markov WM'!AB3051,'Markov WF'!AB3051,'Markov BM'!AB3051,'Markov BF'!AB3051)*INDEX(tabCost_Treatment, $C146+1)) -> 0
B147: 3 | C147: 1 | D147: 45 | E147: 10 | F147: =IF(F$137>=$B147, 0, SUM('Markov WM'!D3052,'Markov WF'!D3052,'Markov BM'!D3052,'Markov BF'!D3052)*INDEX(tabCost_Treatment, $C147+1)) -> 392434404.1 | G147: =IF(G$137>=$B147, 0, SUM('Markov WM'!E3052,'Markov WF'!E3052,'Markov BM'!E3052,'Markov BF'!E3052)*INDEX(tabCost_Treatment, $C147+1)) -> 338534724.3 | H147: =IF(H$137>=$B147, 0, SUM('Markov WM'!F3052,'Markov WF'!F3052,'Markov BM'!F3052,'Markov BF'!F3052)*INDEX(tabCost_Treatment, $C147+1)) -> 287453392.2 | I147: =IF(I$137>=$B147, 0, SUM('Markov WM'!G3052,'Markov WF'!G3052,'Markov BM'!G3052,'Markov BF'!G3052)*INDEX(tabCost_Treatment, $C147+1)) -> 0 | J147: =IF(J$137>=$B147, 0, SUM('Markov WM'!H3052,'Markov WF'!H3052,'Markov BM'!H3052,'Markov BF'!H3052)*INDEX(tabCost_Treatment, $C147+1)) -> 0 | K147: =IF(K$137>=$B147, 0, SUM('Markov WM'!I3052,'Markov WF'!I3052,'Markov BM'!I3052,'Markov BF'!I3052)*INDEX(tabCost_Treatment, $C147+1)) -> 0 | L147: =IF(L$137>=$B147, 0, SUM('Markov WM'!J3052,'Markov WF'!J3052,'Markov BM'!J3052,'Markov BF'!J3052)*INDEX(tabCost_Treatment, $C147+1)) -> 0 | M147: =IF(M$137>=$B147, 0, SUM('Markov WM'!K3052,'Markov WF'!K3052,'Markov BM'!K3052,'Markov BF'!K3052)*INDEX(tabCost_Treatment, $C147+1)) -> 0 | N147: =IF(N$137>=$B147, 0, SUM('Markov WM'!L3052,'Markov WF'!L3052,'Markov BM'!L3052,'Markov BF'!L3052)*INDEX(tabCost_Treatment, $C147+1)) -> 0 | O147: =IF(O$137>=$B147, 0, SUM('Markov WM'!M3052,'Markov WF'!M3052,'Markov BM'!M3052,'Markov BF'!M3052)*INDEX(tabCost_Treatment, $C147+1)) -> 0 | P147: =IF(P$137>=$B147, 0, SUM('Markov WM'!N3052,'Markov WF'!N3052,'Markov BM'!N3052,'Markov BF'!N3052)*INDEX(tabCost_Treatment, $C147+1)) -> 0 | Q147: =IF(Q$137>=$B147, 0, SUM('Markov WM'!O3052,'Markov WF'!O3052,'Markov BM'!O3052,'Markov BF'!O3052)*INDEX(tabCost_Treatment, $C147+1)) -> 0 | R147: =IF(R$137>=$B147, 0, SUM('Markov WM'!P3052,'Markov WF'!P3052,'Markov BM'!P3052,'Markov BF'!P3052)*INDEX(tabCost_Treatment, $C147+1)) -> 0 | S147: =IF(S$137>=$B147, 0, SUM('Markov WM'!Q3052,'Markov WF'!Q3052,'Markov BM'!Q3052,'Markov BF'!Q3052)*INDEX(tabCost_Treatment, $C147+1)) -> 0 | T147: =IF(T$137>=$B147, 0, SUM('Markov WM'!R3052,'Markov WF'!R3052,'Markov BM'!R3052,'Markov BF'!R3052)*INDEX(tabCost_Treatment, $C147+1)) -> 0 | U147: =IF(U$137>=$B147, 0, SUM('Markov WM'!S3052,'Markov WF'!S3052,'Markov BM'!S3052,'Markov BF'!S3052)*INDEX(tabCost_Treatment, $C147+1)) -> 0 | V147: =IF(V$137>=$B147, 0, SUM('Markov WM'!T3052,'Markov WF'!T3052,'Markov BM'!T3052,'Markov BF'!T3052)*INDEX(tabCost_Treatment, $C147+1)) -> 0 | W147: =IF(W$137>=$B147, 0, SUM('Markov WM'!U3052,'Markov WF'!U3052,'Markov BM'!U3052,'Markov BF'!U3052)*INDEX(tabCost_Treatment, $C147+1)) -> 0 | X147: =IF(X$137>=$B147, 0, SUM('Markov WM'!V3052,'Markov WF'!V3052,'Markov BM'!V3052,'Markov BF'!V3052)*INDEX(tabCost_Treatment, $C147+1)) -> 0 | Y147: =IF(Y$137>=$B147, 0, SUM('Markov WM'!W3052,'Markov WF'!W3052,'Markov BM'!W3052,'Markov BF'!W3052)*INDEX(tabCost_Treatment, $C147+1)) -> 0 | Z147: =IF(Z$137>=$B147, 0, SUM('Markov WM'!X3052,'Markov WF'!X3052,'Markov BM'!X3052,'Markov BF'!X3052)*INDEX(tabCost_Treatment, $C147+1)) -> 0 | AA147: =IF(AA$137>=$B147, 0, SUM('Markov WM'!Y3052,'Markov WF'!Y3052,'Markov BM'!Y3052,'Markov BF'!Y3052)*INDEX(tabCost_Treatment, $C147+1)) -> 0 | AB147: =IF(AB$137>=$B147, 0, SUM('Markov WM'!Z3052,'Markov WF'!Z3052,'Markov BM'!Z3052,'Markov BF'!Z3052)*INDEX(tabCost_Treatment, $C147+1)) -> 0 | AC147: =IF(AC$137>=$B147, 0, SUM('Markov WM'!AA3052,'Markov WF'!AA3052,'Markov BM'!AA3052,'Markov BF'!AA3052)*INDEX(tabCost_Treatment, $C147+1)) -> 0 | AD147: =IF(AD$137>=$B147, 0, SUM('Markov WM'!AB3052,'Markov WF'!AB3052,'Markov BM'!AB3052,'Markov BF'!AB3052)*INDEX(tabCost_Treatment, $C147+1)) -> 0
B148: 3 | C148: 1 | D148: 50 | E148: 11 | F148: =IF(F$137>=$B148, 0, SUM('Markov WM'!D3053,'Markov WF'!D3053,'Markov BM'!D3053,'Markov BF'!D3053)*INDEX(tabCost_Treatment, $C148+1)) -> 585274148.9 | G148: =IF(G$137>=$B148, 0, SUM('Markov WM'!E3053,'Markov WF'!E3053,'Markov BM'!E3053,'Markov BF'!E3053)*INDEX(tabCost_Treatment, $C148+1)) -> 514314651.1 | H148: =IF(H$137>=$B148, 0, SUM('Markov WM'!F3053,'Markov WF'!F3053,'Markov BM'!F3053,'Markov BF'!F3053)*INDEX(tabCost_Treatment, $C148+1)) -> 453231765.4 | I148: =IF(I$137>=$B148, 0, SUM('Markov WM'!G3053,'Markov WF'!G3053,'Markov BM'!G3053,'Markov BF'!G3053)*INDEX(tabCost_Treatment, $C148+1)) -> 0 | J148: =IF(J$137>=$B148, 0, SUM('Markov WM'!H3053,'Markov WF'!H3053,'Markov BM'!H3053,'Markov BF'!H3053)*INDEX(tabCost_Treatment, $C148+1)) -> 0 | K148: =IF(K$137>=$B148, 0, SUM('Markov WM'!I3053,'Markov WF'!I3053,'Markov BM'!I3053,'Markov BF'!I3053)*INDEX(tabCost_Treatment, $C148+1)) -> 0 | L148: =IF(L$137>=$B148, 0, SUM('Markov WM'!J3053,'Markov WF'!J3053,'Markov BM'!J3053,'Markov BF'!J3053)*INDEX(tabCost_Treatment, $C148+1)) -> 0 | M148: =IF(M$137>=$B148, 0, SUM('Markov WM'!K3053,'Markov WF'!K3053,'Markov BM'!K3053,'Markov BF'!K3053)*INDEX(tabCost_Treatment, $C148+1)) -> 0 | N148: =IF(N$137>=$B148, 0, SUM('Markov WM'!L3053,'Markov WF'!L3053,'Markov BM'!L3053,'Markov BF'!L3053)*INDEX(tabCost_Treatment, $C148+1)) -> 0 | O148: =IF(O$137>=$B148, 0, SUM('Markov WM'!M3053,'Markov WF'!M3053,'Markov BM'!M3053,'Markov BF'!M3053)*INDEX(tabCost_Treatment, $C148+1)) -> 0 | P148: =IF(P$137>=$B148, 0, SUM('Markov WM'!N3053,'Markov WF'!N3053,'Markov BM'!N3053,'Markov BF'!N3053)*INDEX(tabCost_Treatment, $C148+1)) -> 0 | Q148: =IF(Q$137>=$B148, 0, SUM('Markov WM'!O3053,'Markov WF'!O3053,'Markov BM'!O3053,'Markov BF'!O3053)*INDEX(tabCost_Treatment, $C148+1)) -> 0 | R148: =IF(R$137>=$B148, 0, SUM('Markov WM'!P3053,'Markov WF'!P3053,'Markov BM'!P3053,'Markov BF'!P3053)*INDEX(tabCost_Treatment, $C148+1)) -> 0 | S148: =IF(S$137>=$B148, 0, SUM('Markov WM'!Q3053,'Markov WF'!Q3053,'Markov BM'!Q3053,'Markov BF'!Q3053)*INDEX(tabCost_Treatment, $C148+1)) -> 0 | T148: =IF(T$137>=$B148, 0, SUM('Markov WM'!R3053,'Markov WF'!R3053,'Markov BM'!R3053,'Markov BF'!R3053)*INDEX(tabCost_Treatment, $C148+1)) -> 0 | U148: =IF(U$137>=$B148, 0, SUM('Markov WM'!S3053,'Markov WF'!S3053,'Markov BM'!S3053,'Markov BF'!S3053)*INDEX(tabCost_Treatment, $C148+1)) -> 0 | V148: =IF(V$137>=$B148, 0, SUM('Markov WM'!T3053,'Markov WF'!T3053,'Markov BM'!T3053,'Markov BF'!T3053)*INDEX(tabCost_Treatment, $C148+1)) -> 0 | W148: =IF(W$137>=$B148, 0, SUM('Markov WM'!U3053,'Markov WF'!U3053,'Markov BM'!U3053,'Markov BF'!U3053)*INDEX(tabCost_Treatment, $C148+1)) -> 0 | X148: =IF(X$137>=$B148, 0, SUM('Markov WM'!V3053,'Markov WF'!V3053,'Markov BM'!V3053,'Markov BF'!V3053)*INDEX(tabCost_Treatment, $C148+1)) -> 0 | Y148: =IF(Y$137>=$B148, 0, SUM('Markov WM'!W3053,'Markov WF'!W3053,'Markov BM'!W3053,'Markov BF'!W3053)*INDEX(tabCost_Treatment, $C148+1)) -> 0 | Z148: =IF(Z$137>=$B148, 0, SUM('Markov WM'!X3053,'Markov WF'!X3053,'Markov BM'!X3053,'Markov BF'!X3053)*INDEX(tabCost_Treatment, $C148+1)) -> 0 | AA148: =IF(AA$137>=$B148, 0, SUM('Markov WM'!Y3053,'Markov WF'!Y3053,'Markov BM'!Y3053,'Markov BF'!Y3053)*INDEX(tabCost_Treatment, $C148+1)) -> 0 | AB148: =IF(AB$137>=$B148, 0, SUM('Markov WM'!Z3053,'Markov WF'!Z3053,'Markov BM'!Z3053,'Markov BF'!Z3053)*INDEX(tabCost_Treatment, $C148+1)) -> 0 | AC148: =IF(AC$137>=$B148, 0, SUM('Markov WM'!AA3053,'Markov WF'!AA3053,'Markov BM'!AA3053,'Markov BF'!AA3053)*INDEX(tabCost_Treatment, $C148+1)) -> 0 | AD148: =IF(AD$137>=$B148, 0, SUM('Markov WM'!AB3053,'Markov WF'!AB3053,'Markov BM'!AB3053,'Markov BF'!AB3053)*INDEX(tabCost_Treatment, $C148+1)) -> 0
B149: 3 | C149: 1 | D149: 55 | E149: 12 | F149: =IF(F$137>=$B149, 0, SUM('Markov WM'!D3054,'Markov WF'!D3054,'Markov BM'!D3054,'Markov BF'!D3054)*INDEX(tabCost_Treatment, $C149+1)) -> 601141531.5 | G149: =IF(G$137>=$B149, 0, SUM('Markov WM'!E3054,'Markov WF'!E3054,'Markov BM'!E3054,'Markov BF'!E3054)*INDEX(tabCost_Treatment, $C149+1)) -> 553538254.8 | H149: =IF(H$137>=$B149, 0, SUM('Markov WM'!F3054,'Markov WF'!F3054,'Markov BM'!F3054,'Markov BF'!F3054)*INDEX(tabCost_Treatment, $C149+1)) -> 512557812.9 | I149: =IF(I$137>=$B149, 0, SUM('Markov WM'!G3054,'Markov WF'!G3054,'Markov BM'!G3054,'Markov BF'!G3054)*INDEX(tabCost_Treatment, $C149+1)) -> 0 | J149: =IF(J$137>=$B149, 0, SUM('Markov WM'!H3054,'Markov WF'!H3054,'Markov BM'!H3054,'Markov BF'!H3054)*INDEX(tabCost_Treatment, $C149+1)) -> 0 | K149: =IF(K$137>=$B149, 0, SUM('Markov WM'!I3054,'Markov WF'!I3054,'Markov BM'!I3054,'Markov BF'!I3054)*INDEX(tabCost_Treatment, $C149+1)) -> 0 | L149: =IF(L$137>=$B149, 0, SUM('Markov WM'!J3054,'Markov WF'!J3054,'Markov BM'!J3054,'Markov BF'!J3054)*INDEX(tabCost_Treatment, $C149+1)) -> 0 | M149: =IF(M$137>=$B149, 0, SUM('Markov WM'!K3054,'Markov WF'!K3054,'Markov BM'!K3054,'Markov BF'!K3054)*INDEX(tabCost_Treatment, $C149+1)) -> 0 | N149: =IF(N$137>=$B149, 0, SUM('Markov WM'!L3054,'Markov WF'!L3054,'Markov BM'!L3054,'Markov BF'!L3054)*INDEX(tabCost_Treatment, $C149+1)) -> 0 | O149: =IF(O$137>=$B149, 0, SUM('Markov WM'!M3054,'Markov WF'!M3054,'Markov BM'!M3054,'Markov BF'!M3054)*INDEX(tabCost_Treatment, $C149+1)) -> 0 | P149: =IF(P$137>=$B149, 0, SUM('Markov WM'!N3054,'Markov WF'!N3054,'Markov BM'!N3054,'Markov BF'!N3054)*INDEX(tabCost_Treatment, $C149+1)) -> 0 | Q149: =IF(Q$137>=$B149, 0, SUM('Markov WM'!O3054,'Markov WF'!O3054,'Markov BM'!O3054,'Markov BF'!O3054)*INDEX(tabCost_Treatment, $C149+1)) -> 0 | R149: =IF(R$137>=$B149, 0, SUM('Markov WM'!P3054,'Markov WF'!P3054,'Markov BM'!P3054,'Markov BF'!P3054)*INDEX(tabCost_Treatment, $C149+1)) -> 0 | S149: =IF(S$137>=$B149, 0, SUM('Markov WM'!Q3054,'Markov WF'!Q3054,'Markov BM'!Q3054,'Markov BF'!Q3054)*INDEX(tabCost_Treatment, $C149+1)) -> 0 | T149: =IF(T$137>=$B149, 0, SUM('Markov WM'!R3054,'Markov WF'!R3054,'Markov BM'!R3054,'Markov BF'!R3054)*INDEX(tabCost_Treatment, $C149+1)) -> 0 | U149: =IF(U$137>=$B149, 0, SUM('Markov WM'!S3054,'Markov WF'!S3054,'Markov BM'!S3054,'Markov BF'!S3054)*INDEX(tabCost_Treatment, $C149+1)) -> 0 | V149: =IF(V$137>=$B149, 0, SUM('Markov WM'!T3054,'Markov WF'!T3054,'Markov BM'!T3054,'Markov BF'!T3054)*INDEX(tabCost_Treatment, $C149+1)) -> 0 | W149: =IF(W$137>=$B149, 0, SUM('Markov WM'!U3054,'Markov WF'!U3054,'Markov BM'!U3054,'Markov BF'!U3054)*INDEX(tabCost_Treatment, $C149+1)) -> 0 | X149: =IF(X$137>=$B149, 0, SUM('Markov WM'!V3054,'Markov WF'!V3054,'Markov BM'!V3054,'Markov BF'!V3054)*INDEX(tabCost_Treatment, $C149+1)) -> 0 | Y149: =IF(Y$137>=$B149, 0, SUM('Markov WM'!W3054,'Markov WF'!W3054,'Markov BM'!W3054,'Markov BF'!W3054)*INDEX(tabCost_Treatment, $C149+1)) -> 0 | Z149: =IF(Z$137>=$B149, 0, SUM('Markov WM'!X3054,'Markov WF'!X3054,'Markov BM'!X3054,'Markov BF'!X3054)*INDEX(tabCost_Treatment, $C149+1)) -> 0 | AA149: =IF(AA$137>=$B149, 0, SUM('Markov WM'!Y3054,'Markov WF'!Y3054,'Markov BM'!Y3054,'Markov BF'!Y3054)*INDEX(tabCost_Treatment, $C149+1)) -> 0 | AB149: =IF(AB$137>=$B149, 0, SUM('Markov WM'!Z3054,'Markov WF'!Z3054,'Markov BM'!Z3054,'Markov BF'!Z3054)*INDEX(tabCost_Treatment, $C149+1)) -> 0 | AC149: =IF(AC$137>=$B149, 0, SUM('Markov WM'!AA3054,'Markov WF'!AA3054,'Markov BM'!AA3054,'Markov BF'!AA3054)*INDEX(tabCost_Treatment, $C149+1)) -> 0 | AD149: =IF(AD$137>=$B149, 0, SUM('Markov WM'!AB3054,'Markov WF'!AB3054,'Markov BM'!AB3054,'Markov BF'!AB3054)*INDEX(tabCost_Treatment, $C149+1)) -> 0
B150: 3 | C150: 1 | D150: 60 | E150: 13 | F150: =IF(F$137>=$B150, 0, SUM('Markov WM'!D3055,'Markov WF'!D3055,'Markov BM'!D3055,'Markov BF'!D3055)*INDEX(tabCost_Treatment, $C150+1)) -> 366907739.8 | G150: =IF(G$137>=$B150, 0, SUM('Markov WM'!E3055,'Markov WF'!E3055,'Markov BM'!E3055,'Markov BF'!E3055)*INDEX(tabCost_Treatment, $C150+1)) -> 362035528.2 | H150: =IF(H$137>=$B150, 0, SUM('Markov WM'!F3055,'Markov WF'!F3055,'Markov BM'!F3055,'Markov BF'!F3055)*INDEX(tabCost_Treatment, $C150+1)) -> 358863661 | I150: =IF(I$137>=$B150, 0, SUM('Markov WM'!G3055,'Markov WF'!G3055,'Markov BM'!G3055,'Markov BF'!G3055)*INDEX(tabCost_Treatment, $C150+1)) -> 0 | J150: =IF(J$137>=$B150, 0, SUM('Markov WM'!H3055,'Markov WF'!H3055,'Markov BM'!H3055,'Markov BF'!H3055)*INDEX(tabCost_Treatment, $C150+1)) -> 0 | K150: =IF(K$137>=$B150, 0, SUM('Markov WM'!I3055,'Markov WF'!I3055,'Markov BM'!I3055,'Markov BF'!I3055)*INDEX(tabCost_Treatment, $C150+1)) -> 0 | L150: =IF(L$137>=$B150, 0, SUM('Markov WM'!J3055,'Markov WF'!J3055,'Markov BM'!J3055,'Markov BF'!J3055)*INDEX(tabCost_Treatment, $C150+1)) -> 0 | M150: =IF(M$137>=$B150, 0, SUM('Markov WM'!K3055,'Markov WF'!K3055,'Markov BM'!K3055,'Markov BF'!K3055)*INDEX(tabCost_Treatment, $C150+1)) -> 0 | N150: =IF(N$137>=$B150, 0, SUM('Markov WM'!L3055,'Markov WF'!L3055,'Markov BM'!L3055,'Markov BF'!L3055)*INDEX(tabCost_Treatment, $C150+1)) -> 0 | O150: =IF(O$137>=$B150, 0, SUM('Markov WM'!M3055,'Markov WF'!M3055,'Markov BM'!M3055,'Markov BF'!M3055)*INDEX(tabCost_Treatment, $C150+1)) -> 0 | P150: =IF(P$137>=$B150, 0, SUM('Markov WM'!N3055,'Markov WF'!N3055,'Markov BM'!N3055,'Markov BF'!N3055)*INDEX(tabCost_Treatment, $C150+1)) -> 0 | Q150: =IF(Q$137>=$B150, 0, SUM('Markov WM'!O3055,'Markov WF'!O3055,'Markov BM'!O3055,'Markov BF'!O3055)*INDEX(tabCost_Treatment, $C150+1)) -> 0 | R150: =IF(R$137>=$B150, 0, SUM('Markov WM'!P3055,'Markov WF'!P3055,'Markov BM'!P3055,'Markov BF'!P3055)*INDEX(tabCost_Treatment, $C150+1)) -> 0 | S150: =IF(S$137>=$B150, 0, SUM('Markov WM'!Q3055,'Markov WF'!Q3055,'Markov BM'!Q3055,'Markov BF'!Q3055)*INDEX(tabCost_Treatment, $C150+1)) -> 0 | T150: =IF(T$137>=$B150, 0, SUM('Markov WM'!R3055,'Markov WF'!R3055,'Markov BM'!R3055,'Markov BF'!R3055)*INDEX(tabCost_Treatment, $C150+1)) -> 0 | U150: =IF(U$137>=$B150, 0, SUM('Markov WM'!S3055,'Markov WF'!S3055,'Markov BM'!S3055,'Markov BF'!S3055)*INDEX(tabCost_Treatment, $C150+1)) -> 0 | V150: =IF(V$137>=$B150, 0, SUM('Markov WM'!T3055,'Markov WF'!T3055,'Markov BM'!T3055,'Markov BF'!T3055)*INDEX(tabCost_Treatment, $C150+1)) -> 0 | W150: =IF(W$137>=$B150, 0, SUM('Markov WM'!U3055,'Markov WF'!U3055,'Markov BM'!U3055,'Markov BF'!U3055)*INDEX(tabCost_Treatment, $C150+1)) -> 0 | X150: =IF(X$137>=$B150, 0, SUM('Markov WM'!V3055,'Markov WF'!V3055,'Markov BM'!V3055,'Markov BF'!V3055)*INDEX(tabCost_Treatment, $C150+1)) -> 0 | Y150: =IF(Y$137>=$B150, 0, SUM('Markov WM'!W3055,'Markov WF'!W3055,'Markov BM'!W3055,'Markov BF'!W3055)*INDEX(tabCost_Treatment, $C150+1)) -> 0 | Z150: =IF(Z$137>=$B150, 0, SUM('Markov WM'!X3055,'Markov WF'!X3055,'Markov BM'!X3055,'Markov BF'!X3055)*INDEX(tabCost_Treatment, $C150+1)) -> 0 | AA150: =IF(AA$137>=$B150, 0, SUM('Markov WM'!Y3055,'Markov WF'!Y3055,'Markov BM'!Y3055,'Markov BF'!Y3055)*INDEX(tabCost_Treatment, $C150+1)) -> 0 | AB150: =IF(AB$137>=$B150, 0, SUM('Markov WM'!Z3055,'Markov WF'!Z3055,'Markov BM'!Z3055,'Markov BF'!Z3055)*INDEX(tabCost_Treatment, $C150+1)) -> 0 | AC150: =IF(AC$137>=$B150, 0, SUM('Markov WM'!AA3055,'Markov WF'!AA3055,'Markov BM'!AA3055,'Markov BF'!AA3055)*INDEX(tabCost_Treatment, $C150+1)) -> 0 | AD150: =IF(AD$137>=$B150, 0, SUM('Markov WM'!AB3055,'Markov WF'!AB3055,'Markov BM'!AB3055,'Markov BF'!AB3055)*INDEX(tabCost_Treatment, $C150+1)) -> 0
B151: 3 | C151: 1 | D151: 65 | E151: 14 | F151: =IF(F$137>=$B151, 0, SUM('Markov WM'!D3056,'Markov WF'!D3056,'Markov BM'!D3056,'Markov BF'!D3056)*INDEX(tabCost_Treatment, $C151+1)) -> 106295325.7 | G151: =IF(G$137>=$B151, 0, SUM('Markov WM'!E3056,'Markov WF'!E3056,'Markov BM'!E3056,'Markov BF'!E3056)*INDEX(tabCost_Treatment, $C151+1)) -> 133491786.3 | H151: =IF(H$137>=$B151, 0, SUM('Markov WM'!F3056,'Markov WF'!F3056,'Markov BM'!F3056,'Markov BF'!F3056)*INDEX(tabCost_Treatment, $C151+1)) -> 150610981.1 | I151: =IF(I$137>=$B151, 0, SUM('Markov WM'!G3056,'Markov WF'!G3056,'Markov BM'!G3056,'Markov BF'!G3056)*INDEX(tabCost_Treatment, $C151+1)) -> 0 | J151: =IF(J$137>=$B151, 0, SUM('Markov WM'!H3056,'Markov WF'!H3056,'Markov BM'!H3056,'Markov BF'!H3056)*INDEX(tabCost_Treatment, $C151+1)) -> 0 | K151: =IF(K$137>=$B151, 0, SUM('Markov WM'!I3056,'Markov WF'!I3056,'Markov BM'!I3056,'Markov BF'!I3056)*INDEX(tabCost_Treatment, $C151+1)) -> 0 | L151: =IF(L$137>=$B151, 0, SUM('Markov WM'!J3056,'Markov WF'!J3056,'Markov BM'!J3056,'Markov BF'!J3056)*INDEX(tabCost_Treatment, $C151+1)) -> 0 | M151: =IF(M$137>=$B151, 0, SUM('Markov WM'!K3056,'Markov WF'!K3056,'Markov BM'!K3056,'Markov BF'!K3056)*INDEX(tabCost_Treatment, $C151+1)) -> 0 | N151: =IF(N$137>=$B151, 0, SUM('Markov WM'!L3056,'Markov WF'!L3056,'Markov BM'!L3056,'Markov BF'!L3056)*INDEX(tabCost_Treatment, $C151+1)) -> 0 | O151: =IF(O$137>=$B151, 0, SUM('Markov WM'!M3056,'Markov WF'!M3056,'Markov BM'!M3056,'Markov BF'!M3056)*INDEX(tabCost_Treatment, $C151+1)) -> 0 | P151: =IF(P$137>=$B151, 0, SUM('Markov WM'!N3056,'Markov WF'!N3056,'Markov BM'!N3056,'Markov BF'!N3056)*INDEX(tabCost_Treatment, $C151+1)) -> 0 | Q151: =IF(Q$137>=$B151, 0, SUM('Markov WM'!O3056,'Markov WF'!O3056,'Markov BM'!O3056,'Markov BF'!O3056)*INDEX(tabCost_Treatment, $C151+1)) -> 0 | R151: =IF(R$137>=$B151, 0, SUM('Markov WM'!P3056,'Markov WF'!P3056,'Markov BM'!P3056,'Markov BF'!P3056)*INDEX(tabCost_Treatment, $C151+1)) -> 0 | S151: =IF(S$137>=$B151, 0, SUM('Markov WM'!Q3056,'Markov WF'!Q3056,'Markov BM'!Q3056,'Markov BF'!Q3056)*INDEX(tabCost_Treatment, $C151+1)) -> 0 | T151: =IF(T$137>=$B151, 0, SUM('Markov WM'!R3056,'Markov WF'!R3056,'Markov BM'!R3056,'Markov BF'!R3056)*INDEX(tabCost_Treatment, $C151+1)) -> 0 | U151: =IF(U$137>=$B151, 0, SUM('Markov WM'!S3056,'Markov WF'!S3056,'Markov BM'!S3056,'Markov BF'!S3056)*INDEX(tabCost_Treatment, $C151+1)) -> 0 | V151: =IF(V$137>=$B151, 0, SUM('Markov WM'!T3056,'Markov WF'!T3056,'Markov BM'!T3056,'Markov BF'!T3056)*INDEX(tabCost_Treatment, $C151+1)) -> 0 | W151: =IF(W$137>=$B151, 0, SUM('Markov WM'!U3056,'Markov WF'!U3056,'Markov BM'!U3056,'Markov BF'!U3056)*INDEX(tabCost_Treatment, $C151+1)) -> 0 | X151: =IF(X$137>=$B151, 0, SUM('Markov WM'!V3056,'Markov WF'!V3056,'Markov BM'!V3056,'Markov BF'!V3056)*INDEX(tabCost_Treatment, $C151+1)) -> 0 | Y151: =IF(Y$137>=$B151, 0, SUM('Markov WM'!W3056,'Markov WF'!W3056,'Markov BM'!W3056,'Markov BF'!W3056)*INDEX(tabCost_Treatment, $C151+1)) -> 0 | Z151: =IF(Z$137>=$B151, 0, SUM('Markov WM'!X3056,'Markov WF'!X3056,'Markov BM'!X3056,'Markov BF'!X3056)*INDEX(tabCost_Treatment, $C151+1)) -> 0 | AA151: =IF(AA$137>=$B151, 0, SUM('Markov WM'!Y3056,'Markov WF'!Y3056,'Markov BM'!Y3056,'Markov BF'!Y3056)*INDEX(tabCost_Treatment, $C151+1)) -> 0 | AB151: =IF(AB$137>=$B151, 0, SUM('Markov WM'!Z3056,'Markov WF'!Z3056,'Markov BM'!Z3056,'Markov BF'!Z3056)*INDEX(tabCost_Treatment, $C151+1)) -> 0 | AC151: =IF(AC$137>=$B151, 0, SUM('Markov WM'!AA3056,'Markov WF'!AA3056,'Markov BM'!AA3056,'Markov BF'!AA3056)*INDEX(tabCost_Treatment, $C151+1)) -> 0 | AD151: =IF(AD$137>=$B151, 0, SUM('Markov WM'!AB3056,'Markov WF'!AB3056,'Markov BM'!AB3056,'Markov BF'!AB3056)*INDEX(tabCost_Treatment, $C151+1)) -> 0
B152: 3 | C152: 1 | D152: 70 | E152: 15 | F152: =IF(F$137>=$B152, 0, SUM('Markov WM'!D3057,'Markov WF'!D3057,'Markov BM'!D3057,'Markov BF'!D3057)*INDEX(tabCost_Treatment, $C152+1)) -> 21700281.63 | G152: =IF(G$137>=$B152, 0, SUM('Markov WM'!E3057,'Markov WF'!E3057,'Markov BM'!E3057,'Markov BF'!E3057)*INDEX(tabCost_Treatment, $C152+1)) -> 28662078.76 | H152: =IF(H$137>=$B152, 0, SUM('Markov WM'!F3057,'Markov WF'!F3057,'Markov BM'!F3057,'Markov BF'!F3057)*INDEX(tabCost_Treatment, $C152+1)) -> 32462737.49 | I152: =IF(I$137>=$B152, 0, SUM('Markov WM'!G3057,'Markov WF'!G3057,'Markov BM'!G3057,'Markov BF'!G3057)*INDEX(tabCost_Treatment, $C152+1)) -> 0 | J152: =IF(J$137>=$B152, 0, SUM('Markov WM'!H3057,'Markov WF'!H3057,'Markov BM'!H3057,'Markov BF'!H3057)*INDEX(tabCost_Treatment, $C152+1)) -> 0 | K152: =IF(K$137>=$B152, 0, SUM('Markov WM'!I3057,'Markov WF'!I3057,'Markov BM'!I3057,'Markov BF'!I3057)*INDEX(tabCost_Treatment, $C152+1)) -> 0 | L152: =IF(L$137>=$B152, 0, SUM('Markov WM'!J3057,'Markov WF'!J3057,'Markov BM'!J3057,'Markov BF'!J3057)*INDEX(tabCost_Treatment, $C152+1)) -> 0 | M152: =IF(M$137>=$B152, 0, SUM('Markov WM'!K3057,'Markov WF'!K3057,'Markov BM'!K3057,'Markov BF'!K3057)*INDEX(tabCost_Treatment, $C152+1)) -> 0 | N152: =IF(N$137>=$B152, 0, SUM('Markov WM'!L3057,'Markov WF'!L3057,'Markov BM'!L3057,'Markov BF'!L3057)*INDEX(tabCost_Treatment, $C152+1)) -> 0 | O152: =IF(O$137>=$B152, 0, SUM('Markov WM'!M3057,'Markov WF'!M3057,'Markov BM'!M3057,'Markov BF'!M3057)*INDEX(tabCost_Treatment, $C152+1)) -> 0 | P152: =IF(P$137>=$B152, 0, SUM('Markov WM'!N3057,'Markov WF'!N3057,'Markov BM'!N3057,'Markov BF'!N3057)*INDEX(tabCost_Treatment, $C152+1)) -> 0 | Q152: =IF(Q$137>=$B152, 0, SUM('Markov WM'!O3057,'Markov WF'!O3057,'Markov BM'!O3057,'Markov BF'!O3057)*INDEX(tabCost_Treatment, $C152+1)) -> 0 | R152: =IF(R$137>=$B152, 0, SUM('Markov WM'!P3057,'Markov WF'!P3057,'Markov BM'!P3057,'Markov BF'!P3057)*INDEX(tabCost_Treatment, $C152+1)) -> 0 | S152: =IF(S$137>=$B152, 0, SUM('Markov WM'!Q3057,'Markov WF'!Q3057,'Markov BM'!Q3057,'Markov BF'!Q3057)*INDEX(tabCost_Treatment, $C152+1)) -> 0 | T152: =IF(T$137>=$B152, 0, SUM('Markov WM'!R3057,'Markov WF'!R3057,'Markov BM'!R3057,'Markov BF'!R3057)*INDEX(tabCost_Treatment, $C152+1)) -> 0 | U152: =IF(U$137>=$B152, 0, SUM('Markov WM'!S3057,'Markov WF'!S3057,'Markov BM'!S3057,'Markov BF'!S3057)*INDEX(tabCost_Treatment, $C152+1)) -> 0 | V152: =IF(V$137>=$B152, 0, SUM('Markov WM'!T3057,'Markov WF'!T3057,'Markov BM'!T3057,'Markov BF'!T3057)*INDEX(tabCost_Treatment, $C152+1)) -> 0 | W152: =IF(W$137>=$B152, 0, SUM('Markov WM'!U3057,'Markov WF'!U3057,'Markov BM'!U3057,'Markov BF'!U3057)*INDEX(tabCost_Treatment, $C152+1)) -> 0 | X152: =IF(X$137>=$B152, 0, SUM('Markov WM'!V3057,'Markov WF'!V3057,'Markov BM'!V3057,'Markov BF'!V3057)*INDEX(tabCost_Treatment, $C152+1)) -> 0 | Y152: =IF(Y$137>=$B152, 0, SUM('Markov WM'!W3057,'Markov WF'!W3057,'Markov BM'!W3057,'Markov BF'!W3057)*INDEX(tabCost_Treatment, $C152+1)) -> 0 | Z152: =IF(Z$137>=$B152, 0, SUM('Markov WM'!X3057,'Markov WF'!X3057,'Markov BM'!X3057,'Markov BF'!X3057)*INDEX(tabCost_Treatment, $C152+1)) -> 0 | AA152: =IF(AA$137>=$B152, 0, SUM('Markov WM'!Y3057,'Markov WF'!Y3057,'Markov BM'!Y3057,'Markov BF'!Y3057)*INDEX(tabCost_Treatment, $C152+1)) -> 0 | AB152: =IF(AB$137>=$B152, 0, SUM('Markov WM'!Z3057,'Markov WF'!Z3057,'Markov BM'!Z3057,'Markov BF'!Z3057)*INDEX(tabCost_Treatment, $C152+1)) -> 0 | AC152: =IF(AC$137>=$B152, 0, SUM('Markov WM'!AA3057,'Markov WF'!AA3057,'Markov BM'!AA3057,'Markov BF'!AA3057)*INDEX(tabCost_Treatment, $C152+1)) -> 0 | AD152: =IF(AD$137>=$B152, 0, SUM('Markov WM'!AB3057,'Markov WF'!AB3057,'Markov BM'!AB3057,'Markov BF'!AB3057)*INDEX(tabCost_Treatment, $C152+1)) -> 0
B153: 3 | C153: 1 | D153: 75 | E153: 16 | F153: =IF(F$137>=$B153, 0, SUM('Markov WM'!D3058,'Markov WF'!D3058,'Markov BM'!D3058,'Markov BF'!D3058)*INDEX(tabCost_Treatment, $C153+1)) -> 7416820.306 | G153: =IF(G$137>=$B153, 0, SUM('Markov WM'!E3058,'Markov WF'!E3058,'Markov BM'!E3058,'Markov BF'!E3058)*INDEX(tabCost_Treatment, $C153+1)) -> 7367022.959 | H153: =IF(H$137>=$B153, 0, SUM('Markov WM'!F3058,'Markov WF'!F3058,'Markov BM'!F3058,'Markov BF'!F3058)*INDEX(tabCost_Treatment, $C153+1)) -> 6985306.629 | I153: =IF(I$137>=$B153, 0, SUM('Markov WM'!G3058,'Markov WF'!G3058,'Markov BM'!G3058,'Markov BF'!G3058)*INDEX(tabCost_Treatment, $C153+1)) -> 0 | J153: =IF(J$137>=$B153, 0, SUM('Markov WM'!H3058,'Markov WF'!H3058,'Markov BM'!H3058,'Markov BF'!H3058)*INDEX(tabCost_Treatment, $C153+1)) -> 0 | K153: =IF(K$137>=$B153, 0, SUM('Markov WM'!I3058,'Markov WF'!I3058,'Markov BM'!I3058,'Markov BF'!I3058)*INDEX(tabCost_Treatment, $C153+1)) -> 0 | L153: =IF(L$137>=$B153, 0, SUM('Markov WM'!J3058,'Markov WF'!J3058,'Markov BM'!J3058,'Markov BF'!J3058)*INDEX(tabCost_Treatment, $C153+1)) -> 0 | M153: =IF(M$137>=$B153, 0, SUM('Markov WM'!K3058,'Markov WF'!K3058,'Markov BM'!K3058,'Markov BF'!K3058)*INDEX(tabCost_Treatment, $C153+1)) -> 0 | N153: =IF(N$137>=$B153, 0, SUM('Markov WM'!L3058,'Markov WF'!L3058,'Markov BM'!L3058,'Markov BF'!L3058)*INDEX(tabCost_Treatment, $C153+1)) -> 0 | O153: =IF(O$137>=$B153, 0, SUM('Markov WM'!M3058,'Markov WF'!M3058,'Markov BM'!M3058,'Markov BF'!M3058)*INDEX(tabCost_Treatment, $C153+1)) -> 0 | P153: =IF(P$137>=$B153, 0, SUM('Markov WM'!N3058,'Markov WF'!N3058,'Markov BM'!N3058,'Markov BF'!N3058)*INDEX(tabCost_Treatment, $C153+1)) -> 0 | Q153: =IF(Q$137>=$B153, 0, SUM('Markov WM'!O3058,'Markov WF'!O3058,'Markov BM'!O3058,'Markov BF'!O3058)*INDEX(tabCost_Treatment, $C153+1)) -> 0 | R153: =IF(R$137>=$B153, 0, SUM('Markov WM'!P3058,'Markov WF'!P3058,'Markov BM'!P3058,'Markov BF'!P3058)*INDEX(tabCost_Treatment, $C153+1)) -> 0 | S153: =IF(S$137>=$B153, 0, SUM('Markov WM'!Q3058,'Markov WF'!Q3058,'Markov BM'!Q3058,'Markov BF'!Q3058)*INDEX(tabCost_Treatment, $C153+1)) -> 0 | T153: =IF(T$137>=$B153, 0, SUM('Markov WM'!R3058,'Markov WF'!R3058,'Markov BM'!R3058,'Markov BF'!R3058)*INDEX(tabCost_Treatment, $C153+1)) -> 0 | U153: =IF(U$137>=$B153, 0, SUM('Markov WM'!S3058,'Markov WF'!S3058,'Markov BM'!S3058,'Markov BF'!S3058)*INDEX(tabCost_Treatment, $C153+1)) -> 0 | V153: =IF(V$137>=$B153, 0, SUM('Markov WM'!T3058,'Markov WF'!T3058,'Markov BM'!T3058,'Markov BF'!T3058)*INDEX(tabCost_Treatment, $C153+1)) -> 0 | W153: =IF(W$137>=$B153, 0, SUM('Markov WM'!U3058,'Markov WF'!U3058,'Markov BM'!U3058,'Markov BF'!U3058)*INDEX(tabCost_Treatment, $C153+1)) -> 0 | X153: =IF(X$137>=$B153, 0, SUM('Markov WM'!V3058,'Markov WF'!V3058,'Markov BM'!V3058,'Markov BF'!V3058)*INDEX(tabCost_Treatment, $C153+1)) -> 0 | Y153: =IF(Y$137>=$B153, 0, SUM('Markov WM'!W3058,'Markov WF'!W3058,'Markov BM'!W3058,'Markov BF'!W3058)*INDEX(tabCost_Treatment, $C153+1)) -> 0 | Z153: =IF(Z$137>=$B153, 0, SUM('Markov WM'!X3058,'Markov WF'!X3058,'Markov BM'!X3058,'Markov BF'!X3058)*INDEX(tabCost_Treatment, $C153+1)) -> 0 | AA153: =IF(AA$137>=$B153, 0, SUM('Markov WM'!Y3058,'Markov WF'!Y3058,'Markov BM'!Y3058,'Markov BF'!Y3058)*INDEX(tabCost_Treatment, $C153+1)) -> 0 | AB153: =IF(AB$137>=$B153, 0, SUM('Markov WM'!Z3058,'Markov WF'!Z3058,'Markov BM'!Z3058,'Markov BF'!Z3058)*INDEX(tabCost_Treatment, $C153+1)) -> 0 | AC153: =IF(AC$137>=$B153, 0, SUM('Markov WM'!AA3058,'Markov WF'!AA3058,'Markov BM'!AA3058,'Markov BF'!AA3058)*INDEX(tabCost_Treatment, $C153+1)) -> 0 | AD153: =IF(AD$137>=$B153, 0, SUM('Markov WM'!AB3058,'Markov WF'!AB3058,'Markov BM'!AB3058,'Markov BF'!AB3058)*INDEX(tabCost_Treatment, $C153+1)) -> 0
B154: 2 | C154: 2 | D154: 40 | E154: 17 | F154: =IF(F$137>=$B154, 0, SUM('Markov WM'!D3059,'Markov WF'!D3059,'Markov BM'!D3059,'Markov BF'!D3059)*INDEX(tabCost_Treatment, $C154+1)) -> 93689389.19 | G154: =IF(G$137>=$B154, 0, SUM('Markov WM'!E3059,'Markov WF'!E3059,'Markov BM'!E3059,'Markov BF'!E3059)*INDEX(tabCost_Treatment, $C154+1)) -> 88746876.83 | H154: =IF(H$137>=$B154, 0, SUM('Markov WM'!F3059,'Markov WF'!F3059,'Markov BM'!F3059,'Markov BF'!F3059)*INDEX(tabCost_Treatment, $C154+1)) -> 0 | I154: =IF(I$137>=$B154, 0, SUM('Markov WM'!G3059,'Markov WF'!G3059,'Markov BM'!G3059,'Markov BF'!G3059)*INDEX(tabCost_Treatment, $C154+1)) -> 0 | J154: =IF(J$137>=$B154, 0, SUM('Markov WM'!H3059,'Markov WF'!H3059,'Markov BM'!H3059,'Markov BF'!H3059)*INDEX(tabCost_Treatment, $C154+1)) -> 0 | K154: =IF(K$137>=$B154, 0, SUM('Markov WM'!I3059,'Markov WF'!I3059,'Markov BM'!I3059,'Markov BF'!I3059)*INDEX(tabCost_Treatment, $C154+1)) -> 0 | L154: =IF(L$137>=$B154, 0, SUM('Markov WM'!J3059,'Markov WF'!J3059,'Markov BM'!J3059,'Markov BF'!J3059)*INDEX(tabCost_Treatment, $C154+1)) -> 0 | M154: =IF(M$137>=$B154, 0, SUM('Markov WM'!K3059,'Markov WF'!K3059,'Markov BM'!K3059,'Markov BF'!K3059)*INDEX(tabCost_Treatment, $C154+1)) -> 0 | N154: =IF(N$137>=$B154, 0, SUM('Markov WM'!L3059,'Markov WF'!L3059,'Markov BM'!L3059,'Markov BF'!L3059)*INDEX(tabCost_Treatment, $C154+1)) -> 0 | O154: =IF(O$137>=$B154, 0, SUM('Markov WM'!M3059,'Markov WF'!M3059,'Markov BM'!M3059,'Markov BF'!M3059)*INDEX(tabCost_Treatment, $C154+1)) -> 0 | P154: =IF(P$137>=$B154, 0, SUM('Markov WM'!N3059,'Markov WF'!N3059,'Markov BM'!N3059,'Markov BF'!N3059)*INDEX(tabCost_Treatment, $C154+1)) -> 0 | Q154: =IF(Q$137>=$B154, 0, SUM('Markov WM'!O3059,'Markov WF'!O3059,'Markov BM'!O3059,'Markov BF'!O3059)*INDEX(tabCost_Treatment, $C154+1)) -> 0 | R154: =IF(R$137>=$B154, 0, SUM('Markov WM'!P3059,'Markov WF'!P3059,'Markov BM'!P3059,'Markov BF'!P3059)*INDEX(tabCost_Treatment, $C154+1)) -> 0 | S154: =IF(S$137>=$B154, 0, SUM('Markov WM'!Q3059,'Markov WF'!Q3059,'Markov BM'!Q3059,'Markov BF'!Q3059)*INDEX(tabCost_Treatment, $C154+1)) -> 0 | T154: =IF(T$137>=$B154, 0, SUM('Markov WM'!R3059,'Markov WF'!R3059,'Markov BM'!R3059,'Markov BF'!R3059)*INDEX(tabCost_Treatment, $C154+1)) -> 0 | U154: =IF(U$137>=$B154, 0, SUM('Markov WM'!S3059,'Markov WF'!S3059,'Markov BM'!S3059,'Markov BF'!S3059)*INDEX(tabCost_Treatment, $C154+1)) -> 0 | V154: =IF(V$137>=$B154, 0, SUM('Markov WM'!T3059,'Markov WF'!T3059,'Markov BM'!T3059,'Markov BF'!T3059)*INDEX(tabCost_Treatment, $C154+1)) -> 0 | W154: =IF(W$137>=$B154, 0, SUM('Markov WM'!U3059,'Markov WF'!U3059,'Markov BM'!U3059,'Markov BF'!U3059)*INDEX(tabCost_Treatment, $C154+1)) -> 0 | X154: =IF(X$137>=$B154, 0, SUM('Markov WM'!V3059,'Markov WF'!V3059,'Markov BM'!V3059,'Markov BF'!V3059)*INDEX(tabCost_Treatment, $C154+1)) -> 0 | Y154: =IF(Y$137>=$B154, 0, SUM('Markov WM'!W3059,'Markov WF'!W3059,'Markov BM'!W3059,'Markov BF'!W3059)*INDEX(tabCost_Treatment, $C154+1)) -> 0 | Z154: =IF(Z$137>=$B154, 0, SUM('Markov WM'!X3059,'Markov WF'!X3059,'Markov BM'!X3059,'Markov BF'!X3059)*INDEX(tabCost_Treatment, $C154+1)) -> 0 | AA154: =IF(AA$137>=$B154, 0, SUM('Markov WM'!Y3059,'Markov WF'!Y3059,'Markov BM'!Y3059,'Markov BF'!Y3059)*INDEX(tabCost_Treatment, $C154+1)) -> 0 | AB154: =IF(AB$137>=$B154, 0, SUM('Markov WM'!Z3059,'Markov WF'!Z3059,'Markov BM'!Z3059,'Markov BF'!Z3059)*INDEX(tabCost_Treatment, $C154+1)) -> 0 | AC154: =IF(AC$137>=$B154, 0, SUM('Markov WM'!AA3059,'Markov WF'!AA3059,'Markov BM'!AA3059,'Markov BF'!AA3059)*INDEX(tabCost_Treatment, $C154+1)) -> 0 | AD154: =IF(AD$137>=$B154, 0, SUM('Markov WM'!AB3059,'Markov WF'!AB3059,'Markov BM'!AB3059,'Markov BF'!AB3059)*INDEX(tabCost_Treatment, $C154+1)) -> 0
B155: 2 | C155: 2 | D155: 45 | E155: 18 | F155: =IF(F$137>=$B155, 0, SUM('Markov WM'!D3060,'Markov WF'!D3060,'Markov BM'!D3060,'Markov BF'!D3060)*INDEX(tabCost_Treatment, $C155+1)) -> 255884396.4 | G155: =IF(G$137>=$B155, 0, SUM('Markov WM'!E3060,'Markov WF'!E3060,'Markov BM'!E3060,'Markov BF'!E3060)*INDEX(tabCost_Treatment, $C155+1)) -> 224524113.1 | H155: =IF(H$137>=$B155, 0, SUM('Markov WM'!F3060,'Markov WF'!F3060,'Markov BM'!F3060,'Markov BF'!F3060)*INDEX(tabCost_Treatment, $C155+1)) -> 0 | I155: =IF(I$137>=$B155, 0, SUM('Markov WM'!G3060,'Markov WF'!G3060,'Markov BM'!G3060,'Markov BF'!G3060)*INDEX(tabCost_Treatment, $C155+1)) -> 0 | J155: =IF(J$137>=$B155, 0, SUM('Markov WM'!H3060,'Markov WF'!H3060,'Markov BM'!H3060,'Markov BF'!H3060)*INDEX(tabCost_Treatment, $C155+1)) -> 0 | K155: =IF(K$137>=$B155, 0, SUM('Markov WM'!I3060,'Markov WF'!I3060,'Markov BM'!I3060,'Markov BF'!I3060)*INDEX(tabCost_Treatment, $C155+1)) -> 0 | L155: =IF(L$137>=$B155, 0, SUM('Markov WM'!J3060,'Markov WF'!J3060,'Markov BM'!J3060,'Markov BF'!J3060)*INDEX(tabCost_Treatment, $C155+1)) -> 0 | M155: =IF(M$137>=$B155, 0, SUM('Markov WM'!K3060,'Markov WF'!K3060,'Markov BM'!K3060,'Markov BF'!K3060)*INDEX(tabCost_Treatment, $C155+1)) -> 0 | N155: =IF(N$137>=$B155, 0, SUM('Markov WM'!L3060,'Markov WF'!L3060,'Markov BM'!L3060,'Markov BF'!L3060)*INDEX(tabCost_Treatment, $C155+1)) -> 0 | O155: =IF(O$137>=$B155, 0, SUM('Markov WM'!M3060,'Markov WF'!M3060,'Markov BM'!M3060,'Markov BF'!M3060)*INDEX(tabCost_Treatment, $C155+1)) -> 0 | P155: =IF(P$137>=$B155, 0, SUM('Markov WM'!N3060,'Markov WF'!N3060,'Markov BM'!N3060,'Markov BF'!N3060)*INDEX(tabCost_Treatment, $C155+1)) -> 0 | Q155: =IF(Q$137>=$B155, 0, SUM('Markov WM'!O3060,'Markov WF'!O3060,'Markov BM'!O3060,'Markov BF'!O3060)*INDEX(tabCost_Treatment, $C155+1)) -> 0 | R155: =IF(R$137>=$B155, 0, SUM('Markov WM'!P3060,'Markov WF'!P3060,'Markov BM'!P3060,'Markov BF'!P3060)*INDEX(tabCost_Treatment, $C155+1)) -> 0 | S155: =IF(S$137>=$B155, 0, SUM('Markov WM'!Q3060,'Markov WF'!Q3060,'Markov BM'!Q3060,'Markov BF'!Q3060)*INDEX(tabCost_Treatment, $C155+1)) -> 0 | T155: =IF(T$137>=$B155, 0, SUM('Markov WM'!R3060,'Markov WF'!R3060,'Markov BM'!R3060,'Markov BF'!R3060)*INDEX(tabCost_Treatment, $C155+1)) -> 0 | U155: =IF(U$137>=$B155, 0, SUM('Markov WM'!S3060,'Markov WF'!S3060,'Markov BM'!S3060,'Markov BF'!S3060)*INDEX(tabCost_Treatment, $C155+1)) -> 0 | V155: =IF(V$137>=$B155, 0, SUM('Markov WM'!T3060,'Markov WF'!T3060,'Markov BM'!T3060,'Markov BF'!T3060)*INDEX(tabCost_Treatment, $C155+1)) -> 0 | W155: =IF(W$137>=$B155, 0, SUM('Markov WM'!U3060,'Markov WF'!U3060,'Markov BM'!U3060,'Markov BF'!U3060)*INDEX(tabCost_Treatment, $C155+1)) -> 0 | X155: =IF(X$137>=$B155, 0, SUM('Markov WM'!V3060,'Markov WF'!V3060,'Markov BM'!V3060,'Markov BF'!V3060)*INDEX(tabCost_Treatment, $C155+1)) -> 0 | Y155: =IF(Y$137>=$B155, 0, SUM('Markov WM'!W3060,'Markov WF'!W3060,'Markov BM'!W3060,'Markov BF'!W3060)*INDEX(tabCost_Treatment, $C155+1)) -> 0 | Z155: =IF(Z$137>=$B155, 0, SUM('Markov WM'!X3060,'Markov WF'!X3060,'Markov BM'!X3060,'Markov BF'!X3060)*INDEX(tabCost_Treatment, $C155+1)) -> 0 | AA155: =IF(AA$137>=$B155, 0, SUM('Markov WM'!Y3060,'Markov WF'!Y3060,'Markov BM'!Y3060,'Markov BF'!Y3060)*INDEX(tabCost_Treatment, $C155+1)) -> 0 | AB155: =IF(AB$137>=$B155, 0, SUM('Markov WM'!Z3060,'Markov WF'!Z3060,'Markov BM'!Z3060,'Markov BF'!Z3060)*INDEX(tabCost_Treatment, $C155+1)) -> 0 | AC155: =IF(AC$137>=$B155, 0, SUM('Markov WM'!AA3060,'Markov WF'!AA3060,'Markov BM'!AA3060,'Markov BF'!AA3060)*INDEX(tabCost_Treatment, $C155+1)) -> 0 | AD155: =IF(AD$137>=$B155, 0, SUM('Markov WM'!AB3060,'Markov WF'!AB3060,'Markov BM'!AB3060,'Markov BF'!AB3060)*INDEX(tabCost_Treatment, $C155+1)) -> 0
B156: 2 | C156: 2 | D156: 50 | E156: 19 | F156: =IF(F$137>=$B156, 0, SUM('Markov WM'!D3061,'Markov WF'!D3061,'Markov BM'!D3061,'Markov BF'!D3061)*INDEX(tabCost_Treatment, $C156+1)) -> 502990259.8 | G156: =IF(G$137>=$B156, 0, SUM('Markov WM'!E3061,'Markov WF'!E3061,'Markov BM'!E3061,'Markov BF'!E3061)*INDEX(tabCost_Treatment, $C156+1)) -> 451947162.1 | H156: =IF(H$137>=$B156, 0, SUM('Markov WM'!F3061,'Markov WF'!F3061,'Markov BM'!F3061,'Markov BF'!F3061)*INDEX(tabCost_Treatment, $C156+1)) -> 0 | I156: =IF(I$137>=$B156, 0, SUM('Markov WM'!G3061,'Markov WF'!G3061,'Markov BM'!G3061,'Markov BF'!G3061)*INDEX(tabCost_Treatment, $C156+1)) -> 0 | J156: =IF(J$137>=$B156, 0, SUM('Markov WM'!H3061,'Markov WF'!H3061,'Markov BM'!H3061,'Markov BF'!H3061)*INDEX(tabCost_Treatment, $C156+1)) -> 0 | K156: =IF(K$137>=$B156, 0, SUM('Markov WM'!I3061,'Markov WF'!I3061,'Markov BM'!I3061,'Markov BF'!I3061)*INDEX(tabCost_Treatment, $C156+1)) -> 0 | L156: =IF(L$137>=$B156, 0, SUM('Markov WM'!J3061,'Markov WF'!J3061,'Markov BM'!J3061,'Markov BF'!J3061)*INDEX(tabCost_Treatment, $C156+1)) -> 0 | M156: =IF(M$137>=$B156, 0, SUM('Markov WM'!K3061,'Markov WF'!K3061,'Markov BM'!K3061,'Markov BF'!K3061)*INDEX(tabCost_Treatment, $C156+1)) -> 0 | N156: =IF(N$137>=$B156, 0, SUM('Markov WM'!L3061,'Markov WF'!L3061,'Markov BM'!L3061,'Markov BF'!L3061)*INDEX(tabCost_Treatment, $C156+1)) -> 0 | O156: =IF(O$137>=$B156, 0, SUM('Markov WM'!M3061,'Markov WF'!M3061,'Markov BM'!M3061,'Markov BF'!M3061)*INDEX(tabCost_Treatment, $C156+1)) -> 0 | P156: =IF(P$137>=$B156, 0, SUM('Markov WM'!N3061,'Markov WF'!N3061,'Markov BM'!N3061,'Markov BF'!N3061)*INDEX(tabCost_Treatment, $C156+1)) -> 0 | Q156: =IF(Q$137>=$B156, 0, SUM('Markov WM'!O3061,'Markov WF'!O3061,'Markov BM'!O3061,'Markov BF'!O3061)*INDEX(tabCost_Treatment, $C156+1)) -> 0 | R156: =IF(R$137>=$B156, 0, SUM('Markov WM'!P3061,'Markov WF'!P3061,'Markov BM'!P3061,'Markov BF'!P3061)*INDEX(tabCost_Treatment, $C156+1)) -> 0 | S156: =IF(S$137>=$B156, 0, SUM('Markov WM'!Q3061,'Markov WF'!Q3061,'Markov BM'!Q3061,'Markov BF'!Q3061)*INDEX(tabCost_Treatment, $C156+1)) -> 0 | T156: =IF(T$137>=$B156, 0, SUM('Markov WM'!R3061,'Markov WF'!R3061,'Markov BM'!R3061,'Markov BF'!R3061)*INDEX(tabCost_Treatment, $C156+1)) -> 0 | U156: =IF(U$137>=$B156, 0, SUM('Markov WM'!S3061,'Markov WF'!S3061,'Markov BM'!S3061,'Markov BF'!S3061)*INDEX(tabCost_Treatment, $C156+1)) -> 0 | V156: =IF(V$137>=$B156, 0, SUM('Markov WM'!T3061,'Markov WF'!T3061,'Markov BM'!T3061,'Markov BF'!T3061)*INDEX(tabCost_Treatment, $C156+1)) -> 0 | W156: =IF(W$137>=$B156, 0, SUM('Markov WM'!U3061,'Markov WF'!U3061,'Markov BM'!U3061,'Markov BF'!U3061)*INDEX(tabCost_Treatment, $C156+1)) -> 0 | X156: =IF(X$137>=$B156, 0, SUM('Markov WM'!V3061,'Markov WF'!V3061,'Markov BM'!V3061,'Markov BF'!V3061)*INDEX(tabCost_Treatment, $C156+1)) -> 0 | Y156: =IF(Y$137>=$B156, 0, SUM('Markov WM'!W3061,'Markov WF'!W3061,'Markov BM'!W3061,'Markov BF'!W3061)*INDEX(tabCost_Treatment, $C156+1)) -> 0 | Z156: =IF(Z$137>=$B156, 0, SUM('Markov WM'!X3061,'Markov WF'!X3061,'Markov BM'!X3061,'Markov BF'!X3061)*INDEX(tabCost_Treatment, $C156+1)) -> 0 | AA156: =IF(AA$137>=$B156, 0, SUM('Markov WM'!Y3061,'Markov WF'!Y3061,'Markov BM'!Y3061,'Markov BF'!Y3061)*INDEX(tabCost_Treatment, $C156+1)) -> 0 | AB156: =IF(AB$137>=$B156, 0, SUM('Markov WM'!Z3061,'Markov WF'!Z3061,'Markov BM'!Z3061,'Markov BF'!Z3061)*INDEX(tabCost_Treatment, $C156+1)) -> 0 | AC156: =IF(AC$137>=$B156, 0, SUM('Markov WM'!AA3061,'Markov WF'!AA3061,'Markov BM'!AA3061,'Markov BF'!AA3061)*INDEX(tabCost_Treatment, $C156+1)) -> 0 | AD156: =IF(AD$137>=$B156, 0, SUM('Markov WM'!AB3061,'Markov WF'!AB3061,'Markov BM'!AB3061,'Markov BF'!AB3061)*INDEX(tabCost_Treatment, $C156+1)) -> 0
B157: 2 | C157: 2 | D157: 55 | E157: 20 | F157: =IF(F$137>=$B157, 0, SUM('Markov WM'!D3062,'Markov WF'!D3062,'Markov BM'!D3062,'Markov BF'!D3062)*INDEX(tabCost_Treatment, $C157+1)) -> 692977849.2 | G157: =IF(G$137>=$B157, 0, SUM('Markov WM'!E3062,'Markov WF'!E3062,'Markov BM'!E3062,'Markov BF'!E3062)*INDEX(tabCost_Treatment, $C157+1)) -> 633839554.6 | H157: =IF(H$137>=$B157, 0, SUM('Markov WM'!F3062,'Markov WF'!F3062,'Markov BM'!F3062,'Markov BF'!F3062)*INDEX(tabCost_Treatment, $C157+1)) -> 0 | I157: =IF(I$137>=$B157, 0, SUM('Markov WM'!G3062,'Markov WF'!G3062,'Markov BM'!G3062,'Markov BF'!G3062)*INDEX(tabCost_Treatment, $C157+1)) -> 0 | J157: =IF(J$137>=$B157, 0, SUM('Markov WM'!H3062,'Markov WF'!H3062,'Markov BM'!H3062,'Markov BF'!H3062)*INDEX(tabCost_Treatment, $C157+1)) -> 0 | K157: =IF(K$137>=$B157, 0, SUM('Markov WM'!I3062,'Markov WF'!I3062,'Markov BM'!I3062,'Markov BF'!I3062)*INDEX(tabCost_Treatment, $C157+1)) -> 0 | L157: =IF(L$137>=$B157, 0, SUM('Markov WM'!J3062,'Markov WF'!J3062,'Markov BM'!J3062,'Markov BF'!J3062)*INDEX(tabCost_Treatment, $C157+1)) -> 0 | M157: =IF(M$137>=$B157, 0, SUM('Markov WM'!K3062,'Markov WF'!K3062,'Markov BM'!K3062,'Markov BF'!K3062)*INDEX(tabCost_Treatment, $C157+1)) -> 0 | N157: =IF(N$137>=$B157, 0, SUM('Markov WM'!L3062,'Markov WF'!L3062,'Markov BM'!L3062,'Markov BF'!L3062)*INDEX(tabCost_Treatment, $C157+1)) -> 0 | O157: =IF(O$137>=$B157, 0, SUM('Markov WM'!M3062,'Markov WF'!M3062,'Markov BM'!M3062,'Markov BF'!M3062)*INDEX(tabCost_Treatment, $C157+1)) -> 0 | P157: =IF(P$137>=$B157, 0, SUM('Markov WM'!N3062,'Markov WF'!N3062,'Markov BM'!N3062,'Markov BF'!N3062)*INDEX(tabCost_Treatment, $C157+1)) -> 0 | Q157: =IF(Q$137>=$B157, 0, SUM('Markov WM'!O3062,'Markov WF'!O3062,'Markov BM'!O3062,'Markov BF'!O3062)*INDEX(tabCost_Treatment, $C157+1)) -> 0 | R157: =IF(R$137>=$B157, 0, SUM('Markov WM'!P3062,'Markov WF'!P3062,'Markov BM'!P3062,'Markov BF'!P3062)*INDEX(tabCost_Treatment, $C157+1)) -> 0 | S157: =IF(S$137>=$B157, 0, SUM('Markov WM'!Q3062,'Markov WF'!Q3062,'Markov BM'!Q3062,'Markov BF'!Q3062)*INDEX(tabCost_Treatment, $C157+1)) -> 0 | T157: =IF(T$137>=$B157, 0, SUM('Markov WM'!R3062,'Markov WF'!R3062,'Markov BM'!R3062,'Markov BF'!R3062)*INDEX(tabCost_Treatment, $C157+1)) -> 0 | U157: =IF(U$137>=$B157, 0, SUM('Markov WM'!S3062,'Markov WF'!S3062,'Markov BM'!S3062,'Markov BF'!S3062)*INDEX(tabCost_Treatment, $C157+1)) -> 0 | V157: =IF(V$137>=$B157, 0, SUM('Markov WM'!T3062,'Markov WF'!T3062,'Markov BM'!T3062,'Markov BF'!T3062)*INDEX(tabCost_Treatment, $C157+1)) -> 0 | W157: =IF(W$137>=$B157, 0, SUM('Markov WM'!U3062,'Markov WF'!U3062,'Markov BM'!U3062,'Markov BF'!U3062)*INDEX(tabCost_Treatment, $C157+1)) -> 0 | X157: =IF(X$137>=$B157, 0, SUM('Markov WM'!V3062,'Markov WF'!V3062,'Markov BM'!V3062,'Markov BF'!V3062)*INDEX(tabCost_Treatment, $C157+1)) -> 0 | Y157: =IF(Y$137>=$B157, 0, SUM('Markov WM'!W3062,'Markov WF'!W3062,'Markov BM'!W3062,'Markov BF'!W3062)*INDEX(tabCost_Treatment, $C157+1)) -> 0 | Z157: =IF(Z$137>=$B157, 0, SUM('Markov WM'!X3062,'Markov WF'!X3062,'Markov BM'!X3062,'Markov BF'!X3062)*INDEX(tabCost_Treatment, $C157+1)) -> 0 | AA157: =IF(AA$137>=$B157, 0, SUM('Markov WM'!Y3062,'Markov WF'!Y3062,'Markov BM'!Y3062,'Markov BF'!Y3062)*INDEX(tabCost_Treatment, $C157+1)) -> 0 | AB157: =IF(AB$137>=$B157, 0, SUM('Markov WM'!Z3062,'Markov WF'!Z3062,'Markov BM'!Z3062,'Markov BF'!Z3062)*INDEX(tabCost_Treatment, $C157+1)) -> 0 | AC157: =IF(AC$137>=$B157, 0, SUM('Markov WM'!AA3062,'Markov WF'!AA3062,'Markov BM'!AA3062,'Markov BF'!AA3062)*INDEX(tabCost_Treatment, $C157+1)) -> 0 | AD157: =IF(AD$137>=$B157, 0, SUM('Markov WM'!AB3062,'Markov WF'!AB3062,'Markov BM'!AB3062,'Markov BF'!AB3062)*INDEX(tabCost_Treatment, $C157+1)) -> 0
B158: 2 | C158: 2 | D158: 60 | E158: 21 | F158: =IF(F$137>=$B158, 0, SUM('Markov WM'!D3063,'Markov WF'!D3063,'Markov BM'!D3063,'Markov BF'!D3063)*INDEX(tabCost_Treatment, $C158+1)) -> 558067963.3 | G158: =IF(G$137>=$B158, 0, SUM('Markov WM'!E3063,'Markov WF'!E3063,'Markov BM'!E3063,'Markov BF'!E3063)*INDEX(tabCost_Treatment, $C158+1)) -> 540280974.9 | H158: =IF(H$137>=$B158, 0, SUM('Markov WM'!F3063,'Markov WF'!F3063,'Markov BM'!F3063,'Markov BF'!F3063)*INDEX(tabCost_Treatment, $C158+1)) -> 0 | I158: =IF(I$137>=$B158, 0, SUM('Markov WM'!G3063,'Markov WF'!G3063,'Markov BM'!G3063,'Markov BF'!G3063)*INDEX(tabCost_Treatment, $C158+1)) -> 0 | J158: =IF(J$137>=$B158, 0, SUM('Markov WM'!H3063,'Markov WF'!H3063,'Markov BM'!H3063,'Markov BF'!H3063)*INDEX(tabCost_Treatment, $C158+1)) -> 0 | K158: =IF(K$137>=$B158, 0, SUM('Markov WM'!I3063,'Markov WF'!I3063,'Markov BM'!I3063,'Markov BF'!I3063)*INDEX(tabCost_Treatment, $C158+1)) -> 0 | L158: =IF(L$137>=$B158, 0, SUM('Markov WM'!J3063,'Markov WF'!J3063,'Markov BM'!J3063,'Markov BF'!J3063)*INDEX(tabCost_Treatment, $C158+1)) -> 0 | M158: =IF(M$137>=$B158, 0, SUM('Markov WM'!K3063,'Markov WF'!K3063,'Markov BM'!K3063,'Markov BF'!K3063)*INDEX(tabCost_Treatment, $C158+1)) -> 0 | N158: =IF(N$137>=$B158, 0, SUM('Markov WM'!L3063,'Markov WF'!L3063,'Markov BM'!L3063,'Markov BF'!L3063)*INDEX(tabCost_Treatment, $C158+1)) -> 0 | O158: =IF(O$137>=$B158, 0, SUM('Markov WM'!M3063,'Markov WF'!M3063,'Markov BM'!M3063,'Markov BF'!M3063)*INDEX(tabCost_Treatment, $C158+1)) -> 0 | P158: =IF(P$137>=$B158, 0, SUM('Markov WM'!N3063,'Markov WF'!N3063,'Markov BM'!N3063,'Markov BF'!N3063)*INDEX(tabCost_Treatment, $C158+1)) -> 0 | Q158: =IF(Q$137>=$B158, 0, SUM('Markov WM'!O3063,'Markov WF'!O3063,'Markov BM'!O3063,'Markov BF'!O3063)*INDEX(tabCost_Treatment, $C158+1)) -> 0 | R158: =IF(R$137>=$B158, 0, SUM('Markov WM'!P3063,'Markov WF'!P3063,'Markov BM'!P3063,'Markov BF'!P3063)*INDEX(tabCost_Treatment, $C158+1)) -> 0 | S158: =IF(S$137>=$B158, 0, SUM('Markov WM'!Q3063,'Markov WF'!Q3063,'Markov BM'!Q3063,'Markov BF'!Q3063)*INDEX(tabCost_Treatment, $C158+1)) -> 0 | T158: =IF(T$137>=$B158, 0, SUM('Markov WM'!R3063,'Markov WF'!R3063,'Markov BM'!R3063,'Markov BF'!R3063)*INDEX(tabCost_Treatment, $C158+1)) -> 0 | U158: =IF(U$137>=$B158, 0, SUM('Markov WM'!S3063,'Markov WF'!S3063,'Markov BM'!S3063,'Markov BF'!S3063)*INDEX(tabCost_Treatment, $C158+1)) -> 0 | V158: =IF(V$137>=$B158, 0, SUM('Markov WM'!T3063,'Markov WF'!T3063,'Markov BM'!T3063,'Markov BF'!T3063)*INDEX(tabCost_Treatment, $C158+1)) -> 0 | W158: =IF(W$137>=$B158, 0, SUM('Markov WM'!U3063,'Markov WF'!U3063,'Markov BM'!U3063,'Markov BF'!U3063)*INDEX(tabCost_Treatment, $C158+1)) -> 0 | X158: =IF(X$137>=$B158, 0, SUM('Markov WM'!V3063,'Markov WF'!V3063,'Markov BM'!V3063,'Markov BF'!V3063)*INDEX(tabCost_Treatment, $C158+1)) -> 0 | Y158: =IF(Y$137>=$B158, 0, SUM('Markov WM'!W3063,'Markov WF'!W3063,'Markov BM'!W3063,'Markov BF'!W3063)*INDEX(tabCost_Treatment, $C158+1)) -> 0 | Z158: =IF(Z$137>=$B158, 0, SUM('Markov WM'!X3063,'Markov WF'!X3063,'Markov BM'!X3063,'Markov BF'!X3063)*INDEX(tabCost_Treatment, $C158+1)) -> 0 | AA158: =IF(AA$137>=$B158, 0, SUM('Markov WM'!Y3063,'Markov WF'!Y3063,'Markov BM'!Y3063,'Markov BF'!Y3063)*INDEX(tabCost_Treatment, $C158+1)) -> 0 | AB158: =IF(AB$137>=$B158, 0, SUM('Markov WM'!Z3063,'Markov WF'!Z3063,'Markov BM'!Z3063,'Markov BF'!Z3063)*INDEX(tabCost_Treatment, $C158+1)) -> 0 | AC158: =IF(AC$137>=$B158, 0, SUM('Markov WM'!AA3063,'Markov WF'!AA3063,'Markov BM'!AA3063,'Markov BF'!AA3063)*INDEX(tabCost_Treatment, $C158+1)) -> 0 | AD158: =IF(AD$137>=$B158, 0, SUM('Markov WM'!AB3063,'Markov WF'!AB3063,'Markov BM'!AB3063,'Markov BF'!AB3063)*INDEX(tabCost_Treatment, $C158+1)) -> 0
B159: 2 | C159: 2 | D159: 65 | E159: 22 | F159: =IF(F$137>=$B159, 0, SUM('Markov WM'!D3064,'Markov WF'!D3064,'Markov BM'!D3064,'Markov BF'!D3064)*INDEX(tabCost_Treatment, $C159+1)) -> 204351889.4 | G159: =IF(G$137>=$B159, 0, SUM('Markov WM'!E3064,'Markov WF'!E3064,'Markov BM'!E3064,'Markov BF'!E3064)*INDEX(tabCost_Treatment, $C159+1)) -> 245053461.5 | H159: =IF(H$137>=$B159, 0, SUM('Markov WM'!F3064,'Markov WF'!F3064,'Markov BM'!F3064,'Markov BF'!F3064)*INDEX(tabCost_Treatment, $C159+1)) -> 0 | I159: =IF(I$137>=$B159, 0, SUM('Markov WM'!G3064,'Markov WF'!G3064,'Markov BM'!G3064,'Markov BF'!G3064)*INDEX(tabCost_Treatment, $C159+1)) -> 0 | J159: =IF(J$137>=$B159, 0, SUM('Markov WM'!H3064,'Markov WF'!H3064,'Markov BM'!H3064,'Markov BF'!H3064)*INDEX(tabCost_Treatment, $C159+1)) -> 0 | K159: =IF(K$137>=$B159, 0, SUM('Markov WM'!I3064,'Markov WF'!I3064,'Markov BM'!I3064,'Markov BF'!I3064)*INDEX(tabCost_Treatment, $C159+1)) -> 0 | L159: =IF(L$137>=$B159, 0, SUM('Markov WM'!J3064,'Markov WF'!J3064,'Markov BM'!J3064,'Markov BF'!J3064)*INDEX(tabCost_Treatment, $C159+1)) -> 0 | M159: =IF(M$137>=$B159, 0, SUM('Markov WM'!K3064,'Markov WF'!K3064,'Markov BM'!K3064,'Markov BF'!K3064)*INDEX(tabCost_Treatment, $C159+1)) -> 0 | N159: =IF(N$137>=$B159, 0, SUM('Markov WM'!L3064,'Markov WF'!L3064,'Markov BM'!L3064,'Markov BF'!L3064)*INDEX(tabCost_Treatment, $C159+1)) -> 0 | O159: =IF(O$137>=$B159, 0, SUM('Markov WM'!M3064,'Markov WF'!M3064,'Markov BM'!M3064,'Markov BF'!M3064)*INDEX(tabCost_Treatment, $C159+1)) -> 0 | P159: =IF(P$137>=$B159, 0, SUM('Markov WM'!N3064,'Markov WF'!N3064,'Markov BM'!N3064,'Markov BF'!N3064)*INDEX(tabCost_Treatment, $C159+1)) -> 0 | Q159: =IF(Q$137>=$B159, 0, SUM('Markov WM'!O3064,'Markov WF'!O3064,'Markov BM'!O3064,'Markov BF'!O3064)*INDEX(tabCost_Treatment, $C159+1)) -> 0 | R159: =IF(R$137>=$B159, 0, SUM('Markov WM'!P3064,'Markov WF'!P3064,'Markov BM'!P3064,'Markov BF'!P3064)*INDEX(tabCost_Treatment, $C159+1)) -> 0 | S159: =IF(S$137>=$B159, 0, SUM('Markov WM'!Q3064,'Markov WF'!Q3064,'Markov BM'!Q3064,'Markov BF'!Q3064)*INDEX(tabCost_Treatment, $C159+1)) -> 0 | T159: =IF(T$137>=$B159, 0, SUM('Markov WM'!R3064,'Markov WF'!R3064,'Markov BM'!R3064,'Markov BF'!R3064)*INDEX(tabCost_Treatment, $C159+1)) -> 0 | U159: =IF(U$137>=$B159, 0, SUM('Markov WM'!S3064,'Markov WF'!S3064,'Markov BM'!S3064,'Markov BF'!S3064)*INDEX(tabCost_Treatment, $C159+1)) -> 0 | V159: =IF(V$137>=$B159, 0, SUM('Markov WM'!T3064,'Markov WF'!T3064,'Markov BM'!T3064,'Markov BF'!T3064)*INDEX(tabCost_Treatment, $C159+1)) -> 0 | W159: =IF(W$137>=$B159, 0, SUM('Markov WM'!U3064,'Markov WF'!U3064,'Markov BM'!U3064,'Markov BF'!U3064)*INDEX(tabCost_Treatment, $C159+1)) -> 0 | X159: =IF(X$137>=$B159, 0, SUM('Markov WM'!V3064,'Markov WF'!V3064,'Markov BM'!V3064,'Markov BF'!V3064)*INDEX(tabCost_Treatment, $C159+1)) -> 0 | Y159: =IF(Y$137>=$B159, 0, SUM('Markov WM'!W3064,'Markov WF'!W3064,'Markov BM'!W3064,'Markov BF'!W3064)*INDEX(tabCost_Treatment, $C159+1)) -> 0 | Z159: =IF(Z$137>=$B159, 0, SUM('Markov WM'!X3064,'Markov WF'!X3064,'Markov BM'!X3064,'Markov BF'!X3064)*INDEX(tabCost_Treatment, $C159+1)) -> 0 | AA159: =IF(AA$137>=$B159, 0, SUM('Markov WM'!Y3064,'Markov WF'!Y3064,'Markov BM'!Y3064,'Markov BF'!Y3064)*INDEX(tabCost_Treatment, $C159+1)) -> 0 | AB159: =IF(AB$137>=$B159, 0, SUM('Markov WM'!Z3064,'Markov WF'!Z3064,'Markov BM'!Z3064,'Markov BF'!Z3064)*INDEX(tabCost_Treatment, $C159+1)) -> 0 | AC159: =IF(AC$137>=$B159, 0, SUM('Markov WM'!AA3064,'Markov WF'!AA3064,'Markov BM'!AA3064,'Markov BF'!AA3064)*INDEX(tabCost_Treatment, $C159+1)) -> 0 | AD159: =IF(AD$137>=$B159, 0, SUM('Markov WM'!AB3064,'Markov WF'!AB3064,'Markov BM'!AB3064,'Markov BF'!AB3064)*INDEX(tabCost_Treatment, $C159+1)) -> 0
B160: 2 | C160: 2 | D160: 70 | E160: 23 | F160: =IF(F$137>=$B160, 0, SUM('Markov WM'!D3065,'Markov WF'!D3065,'Markov BM'!D3065,'Markov BF'!D3065)*INDEX(tabCost_Treatment, $C160+1)) -> 50252018.83 | G160: =IF(G$137>=$B160, 0, SUM('Markov WM'!E3065,'Markov WF'!E3065,'Markov BM'!E3065,'Markov BF'!E3065)*INDEX(tabCost_Treatment, $C160+1)) -> 64634246.4 | H160: =IF(H$137>=$B160, 0, SUM('Markov WM'!F3065,'Markov WF'!F3065,'Markov BM'!F3065,'Markov BF'!F3065)*INDEX(tabCost_Treatment, $C160+1)) -> 0 | I160: =IF(I$137>=$B160, 0, SUM('Markov WM'!G3065,'Markov WF'!G3065,'Markov BM'!G3065,'Markov BF'!G3065)*INDEX(tabCost_Treatment, $C160+1)) -> 0 | J160: =IF(J$137>=$B160, 0, SUM('Markov WM'!H3065,'Markov WF'!H3065,'Markov BM'!H3065,'Markov BF'!H3065)*INDEX(tabCost_Treatment, $C160+1)) -> 0 | K160: =IF(K$137>=$B160, 0, SUM('Markov WM'!I3065,'Markov WF'!I3065,'Markov BM'!I3065,'Markov BF'!I3065)*INDEX(tabCost_Treatment, $C160+1)) -> 0 | L160: =IF(L$137>=$B160, 0, SUM('Markov WM'!J3065,'Markov WF'!J3065,'Markov BM'!J3065,'Markov BF'!J3065)*INDEX(tabCost_Treatment, $C160+1)) -> 0 | M160: =IF(M$137>=$B160, 0, SUM('Markov WM'!K3065,'Markov WF'!K3065,'Markov BM'!K3065,'Markov BF'!K3065)*INDEX(tabCost_Treatment, $C160+1)) -> 0 | N160: =IF(N$137>=$B160, 0, SUM('Markov WM'!L3065,'Markov WF'!L3065,'Markov BM'!L3065,'Markov BF'!L3065)*INDEX(tabCost_Treatment, $C160+1)) -> 0 | O160: =IF(O$137>=$B160, 0, SUM('Markov WM'!M3065,'Markov WF'!M3065,'Markov BM'!M3065,'Markov BF'!M3065)*INDEX(tabCost_Treatment, $C160+1)) -> 0 | P160: =IF(P$137>=$B160, 0, SUM('Markov WM'!N3065,'Markov WF'!N3065,'Markov BM'!N3065,'Markov BF'!N3065)*INDEX(tabCost_Treatment, $C160+1)) -> 0 | Q160: =IF(Q$137>=$B160, 0, SUM('Markov WM'!O3065,'Markov WF'!O3065,'Markov BM'!O3065,'Markov BF'!O3065)*INDEX(tabCost_Treatment, $C160+1)) -> 0 | R160: =IF(R$137>=$B160, 0, SUM('Markov WM'!P3065,'Markov WF'!P3065,'Markov BM'!P3065,'Markov BF'!P3065)*INDEX(tabCost_Treatment, $C160+1)) -> 0 | S160: =IF(S$137>=$B160, 0, SUM('Markov WM'!Q3065,'Markov WF'!Q3065,'Markov BM'!Q3065,'Markov BF'!Q3065)*INDEX(tabCost_Treatment, $C160+1)) -> 0 | T160: =IF(T$137>=$B160, 0, SUM('Markov WM'!R3065,'Markov WF'!R3065,'Markov BM'!R3065,'Markov BF'!R3065)*INDEX(tabCost_Treatment, $C160+1)) -> 0 | U160: =IF(U$137>=$B160, 0, SUM('Markov WM'!S3065,'Markov WF'!S3065,'Markov BM'!S3065,'Markov BF'!S3065)*INDEX(tabCost_Treatment, $C160+1)) -> 0 | V160: =IF(V$137>=$B160, 0, SUM('Markov WM'!T3065,'Markov WF'!T3065,'Markov BM'!T3065,'Markov BF'!T3065)*INDEX(tabCost_Treatment, $C160+1)) -> 0 | W160: =IF(W$137>=$B160, 0, SUM('Markov WM'!U3065,'Markov WF'!U3065,'Markov BM'!U3065,'Markov BF'!U3065)*INDEX(tabCost_Treatment, $C160+1)) -> 0 | X160: =IF(X$137>=$B160, 0, SUM('Markov WM'!V3065,'Markov WF'!V3065,'Markov BM'!V3065,'Markov BF'!V3065)*INDEX(tabCost_Treatment, $C160+1)) -> 0 | Y160: =IF(Y$137>=$B160, 0, SUM('Markov WM'!W3065,'Markov WF'!W3065,'Markov BM'!W3065,'Markov BF'!W3065)*INDEX(tabCost_Treatment, $C160+1)) -> 0 | Z160: =IF(Z$137>=$B160, 0, SUM('Markov WM'!X3065,'Markov WF'!X3065,'Markov BM'!X3065,'Markov BF'!X3065)*INDEX(tabCost_Treatment, $C160+1)) -> 0 | AA160: =IF(AA$137>=$B160, 0, SUM('Markov WM'!Y3065,'Markov WF'!Y3065,'Markov BM'!Y3065,'Markov BF'!Y3065)*INDEX(tabCost_Treatment, $C160+1)) -> 0 | AB160: =IF(AB$137>=$B160, 0, SUM('Markov WM'!Z3065,'Markov WF'!Z3065,'Markov BM'!Z3065,'Markov BF'!Z3065)*INDEX(tabCost_Treatment, $C160+1)) -> 0 | AC160: =IF(AC$137>=$B160, 0, SUM('Markov WM'!AA3065,'Markov WF'!AA3065,'Markov BM'!AA3065,'Markov BF'!AA3065)*INDEX(tabCost_Treatment, $C160+1)) -> 0 | AD160: =IF(AD$137>=$B160, 0, SUM('Markov WM'!AB3065,'Markov WF'!AB3065,'Markov BM'!AB3065,'Markov BF'!AB3065)*INDEX(tabCost_Treatment, $C160+1)) -> 0
B161: 2 | C161: 2 | D161: 75 | E161: 24 | F161: =IF(F$137>=$B161, 0, SUM('Markov WM'!D3066,'Markov WF'!D3066,'Markov BM'!D3066,'Markov BF'!D3066)*INDEX(tabCost_Treatment, $C161+1)) -> 19628059.52 | G161: =IF(G$137>=$B161, 0, SUM('Markov WM'!E3066,'Markov WF'!E3066,'Markov BM'!E3066,'Markov BF'!E3066)*INDEX(tabCost_Treatment, $C161+1)) -> 19489877.57 | H161: =IF(H$137>=$B161, 0, SUM('Markov WM'!F3066,'Markov WF'!F3066,'Markov BM'!F3066,'Markov BF'!F3066)*INDEX(tabCost_Treatment, $C161+1)) -> 0 | I161: =IF(I$137>=$B161, 0, SUM('Markov WM'!G3066,'Markov WF'!G3066,'Markov BM'!G3066,'Markov BF'!G3066)*INDEX(tabCost_Treatment, $C161+1)) -> 0 | J161: =IF(J$137>=$B161, 0, SUM('Markov WM'!H3066,'Markov WF'!H3066,'Markov BM'!H3066,'Markov BF'!H3066)*INDEX(tabCost_Treatment, $C161+1)) -> 0 | K161: =IF(K$137>=$B161, 0, SUM('Markov WM'!I3066,'Markov WF'!I3066,'Markov BM'!I3066,'Markov BF'!I3066)*INDEX(tabCost_Treatment, $C161+1)) -> 0 | L161: =IF(L$137>=$B161, 0, SUM('Markov WM'!J3066,'Markov WF'!J3066,'Markov BM'!J3066,'Markov BF'!J3066)*INDEX(tabCost_Treatment, $C161+1)) -> 0 | M161: =IF(M$137>=$B161, 0, SUM('Markov WM'!K3066,'Markov WF'!K3066,'Markov BM'!K3066,'Markov BF'!K3066)*INDEX(tabCost_Treatment, $C161+1)) -> 0 | N161: =IF(N$137>=$B161, 0, SUM('Markov WM'!L3066,'Markov WF'!L3066,'Markov BM'!L3066,'Markov BF'!L3066)*INDEX(tabCost_Treatment, $C161+1)) -> 0 | O161: =IF(O$137>=$B161, 0, SUM('Markov WM'!M3066,'Markov WF'!M3066,'Markov BM'!M3066,'Markov BF'!M3066)*INDEX(tabCost_Treatment, $C161+1)) -> 0 | P161: =IF(P$137>=$B161, 0, SUM('Markov WM'!N3066,'Markov WF'!N3066,'Markov BM'!N3066,'Markov BF'!N3066)*INDEX(tabCost_Treatment, $C161+1)) -> 0 | Q161: =IF(Q$137>=$B161, 0, SUM('Markov WM'!O3066,'Markov WF'!O3066,'Markov BM'!O3066,'Markov BF'!O3066)*INDEX(tabCost_Treatment, $C161+1)) -> 0 | R161: =IF(R$137>=$B161, 0, SUM('Markov WM'!P3066,'Markov WF'!P3066,'Markov BM'!P3066,'Markov BF'!P3066)*INDEX(tabCost_Treatment, $C161+1)) -> 0 | S161: =IF(S$137>=$B161, 0, SUM('Markov WM'!Q3066,'Markov WF'!Q3066,'Markov BM'!Q3066,'Markov BF'!Q3066)*INDEX(tabCost_Treatment, $C161+1)) -> 0 | T161: =IF(T$137>=$B161, 0, SUM('Markov WM'!R3066,'Markov WF'!R3066,'Markov BM'!R3066,'Markov BF'!R3066)*INDEX(tabCost_Treatment, $C161+1)) -> 0 | U161: =IF(U$137>=$B161, 0, SUM('Markov WM'!S3066,'Markov WF'!S3066,'Markov BM'!S3066,'Markov BF'!S3066)*INDEX(tabCost_Treatment, $C161+1)) -> 0 | V161: =IF(V$137>=$B161, 0, SUM('Markov WM'!T3066,'Markov WF'!T3066,'Markov BM'!T3066,'Markov BF'!T3066)*INDEX(tabCost_Treatment, $C161+1)) -> 0 | W161: =IF(W$137>=$B161, 0, SUM('Markov WM'!U3066,'Markov WF'!U3066,'Markov BM'!U3066,'Markov BF'!U3066)*INDEX(tabCost_Treatment, $C161+1)) -> 0 | X161: =IF(X$137>=$B161, 0, SUM('Markov WM'!V3066,'Markov WF'!V3066,'Markov BM'!V3066,'Markov BF'!V3066)*INDEX(tabCost_Treatment, $C161+1)) -> 0 | Y161: =IF(Y$137>=$B161, 0, SUM('Markov WM'!W3066,'Markov WF'!W3066,'Markov BM'!W3066,'Markov BF'!W3066)*INDEX(tabCost_Treatment, $C161+1)) -> 0 | Z161: =IF(Z$137>=$B161, 0, SUM('Markov WM'!X3066,'Markov WF'!X3066,'Markov BM'!X3066,'Markov BF'!X3066)*INDEX(tabCost_Treatment, $C161+1)) -> 0 | AA161: =IF(AA$137>=$B161, 0, SUM('Markov WM'!Y3066,'Markov WF'!Y3066,'Markov BM'!Y3066,'Markov BF'!Y3066)*INDEX(tabCost_Treatment, $C161+1)) -> 0 | AB161: =IF(AB$137>=$B161, 0, SUM('Markov WM'!Z3066,'Markov WF'!Z3066,'Markov BM'!Z3066,'Markov BF'!Z3066)*INDEX(tabCost_Treatment, $C161+1)) -> 0 | AC161: =IF(AC$137>=$B161, 0, SUM('Markov WM'!AA3066,'Markov WF'!AA3066,'Markov BM'!AA3066,'Markov BF'!AA3066)*INDEX(tabCost_Treatment, $C161+1)) -> 0 | AD161: =IF(AD$137>=$B161, 0, SUM('Markov WM'!AB3066,'Markov WF'!AB3066,'Markov BM'!AB3066,'Markov BF'!AB3066)*INDEX(tabCost_Treatment, $C161+1)) -> 0
B162: 1 | C162: 3 | D162: 40 | E162: 25 | F162: =IF(F$137>=$B162, 0, SUM('Markov WM'!D3067,'Markov WF'!D3067,'Markov BM'!D3067,'Markov BF'!D3067)*INDEX(tabCost_Treatment, $C162+1)) -> 121318643 | G162: =IF(G$137>=$B162, 0, SUM('Markov WM'!E3067,'Markov WF'!E3067,'Markov BM'!E3067,'Markov BF'!E3067)*INDEX(tabCost_Treatment, $C162+1)) -> 0 | H162: =IF(H$137>=$B162, 0, SUM('Markov WM'!F3067,'Markov WF'!F3067,'Markov BM'!F3067,'Markov BF'!F3067)*INDEX(tabCost_Treatment, $C162+1)) -> 0 | I162: =IF(I$137>=$B162, 0, SUM('Markov WM'!G3067,'Markov WF'!G3067,'Markov BM'!G3067,'Markov BF'!G3067)*INDEX(tabCost_Treatment, $C162+1)) -> 0 | J162: =IF(J$137>=$B162, 0, SUM('Markov WM'!H3067,'Markov WF'!H3067,'Markov BM'!H3067,'Markov BF'!H3067)*INDEX(tabCost_Treatment, $C162+1)) -> 0 | K162: =IF(K$137>=$B162, 0, SUM('Markov WM'!I3067,'Markov WF'!I3067,'Markov BM'!I3067,'Markov BF'!I3067)*INDEX(tabCost_Treatment, $C162+1)) -> 0 | L162: =IF(L$137>=$B162, 0, SUM('Markov WM'!J3067,'Markov WF'!J3067,'Markov BM'!J3067,'Markov BF'!J3067)*INDEX(tabCost_Treatment, $C162+1)) -> 0 | M162: =IF(M$137>=$B162, 0, SUM('Markov WM'!K3067,'Markov WF'!K3067,'Markov BM'!K3067,'Markov BF'!K3067)*INDEX(tabCost_Treatment, $C162+1)) -> 0 | N162: =IF(N$137>=$B162, 0, SUM('Markov WM'!L3067,'Markov WF'!L3067,'Markov BM'!L3067,'Markov BF'!L3067)*INDEX(tabCost_Treatment, $C162+1)) -> 0 | O162: =IF(O$137>=$B162, 0, SUM('Markov WM'!M3067,'Markov WF'!M3067,'Markov BM'!M3067,'Markov BF'!M3067)*INDEX(tabCost_Treatment, $C162+1)) -> 0 | P162: =IF(P$137>=$B162, 0, SUM('Markov WM'!N3067,'Markov WF'!N3067,'Markov BM'!N3067,'Markov BF'!N3067)*INDEX(tabCost_Treatment, $C162+1)) -> 0 | Q162: =IF(Q$137>=$B162, 0, SUM('Markov WM'!O3067,'Markov WF'!O3067,'Markov BM'!O3067,'Markov BF'!O3067)*INDEX(tabCost_Treatment, $C162+1)) -> 0 | R162: =IF(R$137>=$B162, 0, SUM('Markov WM'!P3067,'Markov WF'!P3067,'Markov BM'!P3067,'Markov BF'!P3067)*INDEX(tabCost_Treatment, $C162+1)) -> 0 | S162: =IF(S$137>=$B162, 0, SUM('Markov WM'!Q3067,'Markov WF'!Q3067,'Markov BM'!Q3067,'Markov BF'!Q3067)*INDEX(tabCost_Treatment, $C162+1)) -> 0 | T162: =IF(T$137>=$B162, 0, SUM('Markov WM'!R3067,'Markov WF'!R3067,'Markov BM'!R3067,'Markov BF'!R3067)*INDEX(tabCost_Treatment, $C162+1)) -> 0 | U162: =IF(U$137>=$B162, 0, SUM('Markov WM'!S3067,'Markov WF'!S3067,'Markov BM'!S3067,'Markov BF'!S3067)*INDEX(tabCost_Treatment, $C162+1)) -> 0 | V162: =IF(V$137>=$B162, 0, SUM('Markov WM'!T3067,'Markov WF'!T3067,'Markov BM'!T3067,'Markov BF'!T3067)*INDEX(tabCost_Treatment, $C162+1)) -> 0 | W162: =IF(W$137>=$B162, 0, SUM('Markov WM'!U3067,'Markov WF'!U3067,'Markov BM'!U3067,'Markov BF'!U3067)*INDEX(tabCost_Treatment, $C162+1)) -> 0 | X162: =IF(X$137>=$B162, 0, SUM('Markov WM'!V3067,'Markov WF'!V3067,'Markov BM'!V3067,'Markov BF'!V3067)*INDEX(tabCost_Treatment, $C162+1)) -> 0 | Y162: =IF(Y$137>=$B162, 0, SUM('Markov WM'!W3067,'Markov WF'!W3067,'Markov BM'!W3067,'Markov BF'!W3067)*INDEX(tabCost_Treatment, $C162+1)) -> 0 | Z162: =IF(Z$137>=$B162, 0, SUM('Markov WM'!X3067,'Markov WF'!X3067,'Markov BM'!X3067,'Markov BF'!X3067)*INDEX(tabCost_Treatment, $C162+1)) -> 0 | AA162: =IF(AA$137>=$B162, 0, SUM('Markov WM'!Y3067,'Markov WF'!Y3067,'Markov BM'!Y3067,'Markov BF'!Y3067)*INDEX(tabCost_Treatment, $C162+1)) -> 0 | AB162: =IF(AB$137>=$B162, 0, SUM('Markov WM'!Z3067,'Markov WF'!Z3067,'Markov BM'!Z3067,'Markov BF'!Z3067)*INDEX(tabCost_Treatment, $C162+1)) -> 0 | AC162: =IF(AC$137>=$B162, 0, SUM('Markov WM'!AA3067,'Markov WF'!AA3067,'Markov BM'!AA3067,'Markov BF'!AA3067)*INDEX(tabCost_Treatment, $C162+1)) -> 0 | AD162: =IF(AD$137>=$B162, 0, SUM('Markov WM'!AB3067,'Markov WF'!AB3067,'Markov BM'!AB3067,'Markov BF'!AB3067)*INDEX(tabCost_Treatment, $C162+1)) -> 0
B163: 1 | C163: 3 | D163: 45 | E163: 26 | F163: =IF(F$137>=$B163, 0, SUM('Markov WM'!D3068,'Markov WF'!D3068,'Markov BM'!D3068,'Markov BF'!D3068)*INDEX(tabCost_Treatment, $C163+1)) -> 270688674.3 | G163: =IF(G$137>=$B163, 0, SUM('Markov WM'!E3068,'Markov WF'!E3068,'Markov BM'!E3068,'Markov BF'!E3068)*INDEX(tabCost_Treatment, $C163+1)) -> 0 | H163: =IF(H$137>=$B163, 0, SUM('Markov WM'!F3068,'Markov WF'!F3068,'Markov BM'!F3068,'Markov BF'!F3068)*INDEX(tabCost_Treatment, $C163+1)) -> 0 | I163: =IF(I$137>=$B163, 0, SUM('Markov WM'!G3068,'Markov WF'!G3068,'Markov BM'!G3068,'Markov BF'!G3068)*INDEX(tabCost_Treatment, $C163+1)) -> 0 | J163: =IF(J$137>=$B163, 0, SUM('Markov WM'!H3068,'Markov WF'!H3068,'Markov BM'!H3068,'Markov BF'!H3068)*INDEX(tabCost_Treatment, $C163+1)) -> 0 | K163: =IF(K$137>=$B163, 0, SUM('Markov WM'!I3068,'Markov WF'!I3068,'Markov BM'!I3068,'Markov BF'!I3068)*INDEX(tabCost_Treatment, $C163+1)) -> 0 | L163: =IF(L$137>=$B163, 0, SUM('Markov WM'!J3068,'Markov WF'!J3068,'Markov BM'!J3068,'Markov BF'!J3068)*INDEX(tabCost_Treatment, $C163+1)) -> 0 | M163: =IF(M$137>=$B163, 0, SUM('Markov WM'!K3068,'Markov WF'!K3068,'Markov BM'!K3068,'Markov BF'!K3068)*INDEX(tabCost_Treatment, $C163+1)) -> 0 | N163: =IF(N$137>=$B163, 0, SUM('Markov WM'!L3068,'Markov WF'!L3068,'Markov BM'!L3068,'Markov BF'!L3068)*INDEX(tabCost_Treatment, $C163+1)) -> 0 | O163: =IF(O$137>=$B163, 0, SUM('Markov WM'!M3068,'Markov WF'!M3068,'Markov BM'!M3068,'Markov BF'!M3068)*INDEX(tabCost_Treatment, $C163+1)) -> 0 | P163: =IF(P$137>=$B163, 0, SUM('Markov WM'!N3068,'Markov WF'!N3068,'Markov BM'!N3068,'Markov BF'!N3068)*INDEX(tabCost_Treatment, $C163+1)) -> 0 | Q163: =IF(Q$137>=$B163, 0, SUM('Markov WM'!O3068,'Markov WF'!O3068,'Markov BM'!O3068,'Markov BF'!O3068)*INDEX(tabCost_Treatment, $C163+1)) -> 0 | R163: =IF(R$137>=$B163, 0, SUM('Markov WM'!P3068,'Markov WF'!P3068,'Markov BM'!P3068,'Markov BF'!P3068)*INDEX(tabCost_Treatment, $C163+1)) -> 0 | S163: =IF(S$137>=$B163, 0, SUM('Markov WM'!Q3068,'Markov WF'!Q3068,'Markov BM'!Q3068,'Markov BF'!Q3068)*INDEX(tabCost_Treatment, $C163+1)) -> 0 | T163: =IF(T$137>=$B163, 0, SUM('Markov WM'!R3068,'Markov WF'!R3068,'Markov BM'!R3068,'Markov BF'!R3068)*INDEX(tabCost_Treatment, $C163+1)) -> 0 | U163: =IF(U$137>=$B163, 0, SUM('Markov WM'!S3068,'Markov WF'!S3068,'Markov BM'!S3068,'Markov BF'!S3068)*INDEX(tabCost_Treatment, $C163+1)) -> 0 | V163: =IF(V$137>=$B163, 0, SUM('Markov WM'!T3068,'Markov WF'!T3068,'Markov BM'!T3068,'Markov BF'!T3068)*INDEX(tabCost_Treatment, $C163+1)) -> 0 | W163: =IF(W$137>=$B163, 0, SUM('Markov WM'!U3068,'Markov WF'!U3068,'Markov BM'!U3068,'Markov BF'!U3068)*INDEX(tabCost_Treatment, $C163+1)) -> 0 | X163: =IF(X$137>=$B163, 0, SUM('Markov WM'!V3068,'Markov WF'!V3068,'Markov BM'!V3068,'Markov BF'!V3068)*INDEX(tabCost_Treatment, $C163+1)) -> 0 | Y163: =IF(Y$137>=$B163, 0, SUM('Markov WM'!W3068,'Markov WF'!W3068,'Markov BM'!W3068,'Markov BF'!W3068)*INDEX(tabCost_Treatment, $C163+1)) -> 0 | Z163: =IF(Z$137>=$B163, 0, SUM('Markov WM'!X3068,'Markov WF'!X3068,'Markov BM'!X3068,'Markov BF'!X3068)*INDEX(tabCost_Treatment, $C163+1)) -> 0 | AA163: =IF(AA$137>=$B163, 0, SUM('Markov WM'!Y3068,'Markov WF'!Y3068,'Markov BM'!Y3068,'Markov BF'!Y3068)*INDEX(tabCost_Treatment, $C163+1)) -> 0 | AB163: =IF(AB$137>=$B163, 0, SUM('Markov WM'!Z3068,'Markov WF'!Z3068,'Markov BM'!Z3068,'Markov BF'!Z3068)*INDEX(tabCost_Treatment, $C163+1)) -> 0 | AC163: =IF(AC$137>=$B163, 0, SUM('Markov WM'!AA3068,'Markov WF'!AA3068,'Markov BM'!AA3068,'Markov BF'!AA3068)*INDEX(tabCost_Treatment, $C163+1)) -> 0 | AD163: =IF(AD$137>=$B163, 0, SUM('Markov WM'!AB3068,'Markov WF'!AB3068,'Markov BM'!AB3068,'Markov BF'!AB3068)*INDEX(tabCost_Treatment, $C163+1)) -> 0
B164: 1 | C164: 3 | D164: 50 | E164: 27 | F164: =IF(F$137>=$B164, 0, SUM('Markov WM'!D3069,'Markov WF'!D3069,'Markov BM'!D3069,'Markov BF'!D3069)*INDEX(tabCost_Treatment, $C164+1)) -> 530942934.1 | G164: =IF(G$137>=$B164, 0, SUM('Markov WM'!E3069,'Markov WF'!E3069,'Markov BM'!E3069,'Markov BF'!E3069)*INDEX(tabCost_Treatment, $C164+1)) -> 0 | H164: =IF(H$137>=$B164, 0, SUM('Markov WM'!F3069,'Markov WF'!F3069,'Markov BM'!F3069,'Markov BF'!F3069)*INDEX(tabCost_Treatment, $C164+1)) -> 0 | I164: =IF(I$137>=$B164, 0, SUM('Markov WM'!G3069,'Markov WF'!G3069,'Markov BM'!G3069,'Markov BF'!G3069)*INDEX(tabCost_Treatment, $C164+1)) -> 0 | J164: =IF(J$137>=$B164, 0, SUM('Markov WM'!H3069,'Markov WF'!H3069,'Markov BM'!H3069,'Markov BF'!H3069)*INDEX(tabCost_Treatment, $C164+1)) -> 0 | K164: =IF(K$137>=$B164, 0, SUM('Markov WM'!I3069,'Markov WF'!I3069,'Markov BM'!I3069,'Markov BF'!I3069)*INDEX(tabCost_Treatment, $C164+1)) -> 0 | L164: =IF(L$137>=$B164, 0, SUM('Markov WM'!J3069,'Markov WF'!J3069,'Markov BM'!J3069,'Markov BF'!J3069)*INDEX(tabCost_Treatment, $C164+1)) -> 0 | M164: =IF(M$137>=$B164, 0, SUM('Markov WM'!K3069,'Markov WF'!K3069,'Markov BM'!K3069,'Markov BF'!K3069)*INDEX(tabCost_Treatment, $C164+1)) -> 0 | N164: =IF(N$137>=$B164, 0, SUM('Markov WM'!L3069,'Markov WF'!L3069,'Markov BM'!L3069,'Markov BF'!L3069)*INDEX(tabCost_Treatment, $C164+1)) -> 0 | O164: =IF(O$137>=$B164, 0, SUM('Markov WM'!M3069,'Markov WF'!M3069,'Markov BM'!M3069,'Markov BF'!M3069)*INDEX(tabCost_Treatment, $C164+1)) -> 0 | P164: =IF(P$137>=$B164, 0, SUM('Markov WM'!N3069,'Markov WF'!N3069,'Markov BM'!N3069,'Markov BF'!N3069)*INDEX(tabCost_Treatment, $C164+1)) -> 0 | Q164: =IF(Q$137>=$B164, 0, SUM('Markov WM'!O3069,'Markov WF'!O3069,'Markov BM'!O3069,'Markov BF'!O3069)*INDEX(tabCost_Treatment, $C164+1)) -> 0 | R164: =IF(R$137>=$B164, 0, SUM('Markov WM'!P3069,'Markov WF'!P3069,'Markov BM'!P3069,'Markov BF'!P3069)*INDEX(tabCost_Treatment, $C164+1)) -> 0 | S164: =IF(S$137>=$B164, 0, SUM('Markov WM'!Q3069,'Markov WF'!Q3069,'Markov BM'!Q3069,'Markov BF'!Q3069)*INDEX(tabCost_Treatment, $C164+1)) -> 0 | T164: =IF(T$137>=$B164, 0, SUM('Markov WM'!R3069,'Markov WF'!R3069,'Markov BM'!R3069,'Markov BF'!R3069)*INDEX(tabCost_Treatment, $C164+1)) -> 0 | U164: =IF(U$137>=$B164, 0, SUM('Markov WM'!S3069,'Markov WF'!S3069,'Markov BM'!S3069,'Markov BF'!S3069)*INDEX(tabCost_Treatment, $C164+1)) -> 0 | V164: =IF(V$137>=$B164, 0, SUM('Markov WM'!T3069,'Markov WF'!T3069,'Markov BM'!T3069,'Markov BF'!T3069)*INDEX(tabCost_Treatment, $C164+1)) -> 0 | W164: =IF(W$137>=$B164, 0, SUM('Markov WM'!U3069,'Markov WF'!U3069,'Markov BM'!U3069,'Markov BF'!U3069)*INDEX(tabCost_Treatment, $C164+1)) -> 0 | X164: =IF(X$137>=$B164, 0, SUM('Markov WM'!V3069,'Markov WF'!V3069,'Markov BM'!V3069,'Markov BF'!V3069)*INDEX(tabCost_Treatment, $C164+1)) -> 0 | Y164: =IF(Y$137>=$B164, 0, SUM('Markov WM'!W3069,'Markov WF'!W3069,'Markov BM'!W3069,'Markov BF'!W3069)*INDEX(tabCost_Treatment, $C164+1)) -> 0 | Z164: =IF(Z$137>=$B164, 0, SUM('Markov WM'!X3069,'Markov WF'!X3069,'Markov BM'!X3069,'Markov BF'!X3069)*INDEX(tabCost_Treatment, $C164+1)) -> 0 | AA164: =IF(AA$137>=$B164, 0, SUM('Markov WM'!Y3069,'Markov WF'!Y3069,'Markov BM'!Y3069,'Markov BF'!Y3069)*INDEX(tabCost_Treatment, $C164+1)) -> 0 | AB164: =IF(AB$137>=$B164, 0, SUM('Markov WM'!Z3069,'Markov WF'!Z3069,'Markov BM'!Z3069,'Markov BF'!Z3069)*INDEX(tabCost_Treatment, $C164+1)) -> 0 | AC164: =IF(AC$137>=$B164, 0, SUM('Markov WM'!AA3069,'Markov WF'!AA3069,'Markov BM'!AA3069,'Markov BF'!AA3069)*INDEX(tabCost_Treatment, $C164+1)) -> 0 | AD164: =IF(AD$137>=$B164, 0, SUM('Markov WM'!AB3069,'Markov WF'!AB3069,'Markov BM'!AB3069,'Markov BF'!AB3069)*INDEX(tabCost_Treatment, $C164+1)) -> 0
B165: 1 | C165: 3 | D165: 55 | E165: 28 | F165: =IF(F$137>=$B165, 0, SUM('Markov WM'!D3070,'Markov WF'!D3070,'Markov BM'!D3070,'Markov BF'!D3070)*INDEX(tabCost_Treatment, $C165+1)) -> 858671518.5 | G165: =IF(G$137>=$B165, 0, SUM('Markov WM'!E3070,'Markov WF'!E3070,'Markov BM'!E3070,'Markov BF'!E3070)*INDEX(tabCost_Treatment, $C165+1)) -> 0 | H165: =IF(H$137>=$B165, 0, SUM('Markov WM'!F3070,'Markov WF'!F3070,'Markov BM'!F3070,'Markov BF'!F3070)*INDEX(tabCost_Treatment, $C165+1)) -> 0 | I165: =IF(I$137>=$B165, 0, SUM('Markov WM'!G3070,'Markov WF'!G3070,'Markov BM'!G3070,'Markov BF'!G3070)*INDEX(tabCost_Treatment, $C165+1)) -> 0 | J165: =IF(J$137>=$B165, 0, SUM('Markov WM'!H3070,'Markov WF'!H3070,'Markov BM'!H3070,'Markov BF'!H3070)*INDEX(tabCost_Treatment, $C165+1)) -> 0 | K165: =IF(K$137>=$B165, 0, SUM('Markov WM'!I3070,'Markov WF'!I3070,'Markov BM'!I3070,'Markov BF'!I3070)*INDEX(tabCost_Treatment, $C165+1)) -> 0 | L165: =IF(L$137>=$B165, 0, SUM('Markov WM'!J3070,'Markov WF'!J3070,'Markov BM'!J3070,'Markov BF'!J3070)*INDEX(tabCost_Treatment, $C165+1)) -> 0 | M165: =IF(M$137>=$B165, 0, SUM('Markov WM'!K3070,'Markov WF'!K3070,'Markov BM'!K3070,'Markov BF'!K3070)*INDEX(tabCost_Treatment, $C165+1)) -> 0 | N165: =IF(N$137>=$B165, 0, SUM('Markov WM'!L3070,'Markov WF'!L3070,'Markov BM'!L3070,'Markov BF'!L3070)*INDEX(tabCost_Treatment, $C165+1)) -> 0 | O165: =IF(O$137>=$B165, 0, SUM('Markov WM'!M3070,'Markov WF'!M3070,'Markov BM'!M3070,'Markov BF'!M3070)*INDEX(tabCost_Treatment, $C165+1)) -> 0 | P165: =IF(P$137>=$B165, 0, SUM('Markov WM'!N3070,'Markov WF'!N3070,'Markov BM'!N3070,'Markov BF'!N3070)*INDEX(tabCost_Treatment, $C165+1)) -> 0 | Q165: =IF(Q$137>=$B165, 0, SUM('Markov WM'!O3070,'Markov WF'!O3070,'Markov BM'!O3070,'Markov BF'!O3070)*INDEX(tabCost_Treatment, $C165+1)) -> 0 | R165: =IF(R$137>=$B165, 0, SUM('Markov WM'!P3070,'Markov WF'!P3070,'Markov BM'!P3070,'Markov BF'!P3070)*INDEX(tabCost_Treatment, $C165+1)) -> 0 | S165: =IF(S$137>=$B165, 0, SUM('Markov WM'!Q3070,'Markov WF'!Q3070,'Markov BM'!Q3070,'Markov BF'!Q3070)*INDEX(tabCost_Treatment, $C165+1)) -> 0 | T165: =IF(T$137>=$B165, 0, SUM('Markov WM'!R3070,'Markov WF'!R3070,'Markov BM'!R3070,'Markov BF'!R3070)*INDEX(tabCost_Treatment, $C165+1)) -> 0 | U165: =IF(U$137>=$B165, 0, SUM('Markov WM'!S3070,'Markov WF'!S3070,'Markov BM'!S3070,'Markov BF'!S3070)*INDEX(tabCost_Treatment, $C165+1)) -> 0 | V165: =IF(V$137>=$B165, 0, SUM('Markov WM'!T3070,'Markov WF'!T3070,'Markov BM'!T3070,'Markov BF'!T3070)*INDEX(tabCost_Treatment, $C165+1)) -> 0 | W165: =IF(W$137>=$B165, 0, SUM('Markov WM'!U3070,'Markov WF'!U3070,'Markov BM'!U3070,'Markov BF'!U3070)*INDEX(tabCost_Treatment, $C165+1)) -> 0 | X165: =IF(X$137>=$B165, 0, SUM('Markov WM'!V3070,'Markov WF'!V3070,'Markov BM'!V3070,'Markov BF'!V3070)*INDEX(tabCost_Treatment, $C165+1)) -> 0 | Y165: =IF(Y$137>=$B165, 0, SUM('Markov WM'!W3070,'Markov WF'!W3070,'Markov BM'!W3070,'Markov BF'!W3070)*INDEX(tabCost_Treatment, $C165+1)) -> 0 | Z165: =IF(Z$137>=$B165, 0, SUM('Markov WM'!X3070,'Markov WF'!X3070,'Markov BM'!X3070,'Markov BF'!X3070)*INDEX(tabCost_Treatment, $C165+1)) -> 0 | AA165: =IF(AA$137>=$B165, 0, SUM('Markov WM'!Y3070,'Markov WF'!Y3070,'Markov BM'!Y3070,'Markov BF'!Y3070)*INDEX(tabCost_Treatment, $C165+1)) -> 0 | AB165: =IF(AB$137>=$B165, 0, SUM('Markov WM'!Z3070,'Markov WF'!Z3070,'Markov BM'!Z3070,'Markov BF'!Z3070)*INDEX(tabCost_Treatment, $C165+1)) -> 0 | AC165: =IF(AC$137>=$B165, 0, SUM('Markov WM'!AA3070,'Markov WF'!AA3070,'Markov BM'!AA3070,'Markov BF'!AA3070)*INDEX(tabCost_Treatment, $C165+1)) -> 0 | AD165: =IF(AD$137>=$B165, 0, SUM('Markov WM'!AB3070,'Markov WF'!AB3070,'Markov BM'!AB3070,'Markov BF'!AB3070)*INDEX(tabCost_Treatment, $C165+1)) -> 0
B166: 1 | C166: 3 | D166: 60 | E166: 29 | F166: =IF(F$137>=$B166, 0, SUM('Markov WM'!D3071,'Markov WF'!D3071,'Markov BM'!D3071,'Markov BF'!D3071)*INDEX(tabCost_Treatment, $C166+1)) -> 895430232.6 | G166: =IF(G$137>=$B166, 0, SUM('Markov WM'!E3071,'Markov WF'!E3071,'Markov BM'!E3071,'Markov BF'!E3071)*INDEX(tabCost_Treatment, $C166+1)) -> 0 | H166: =IF(H$137>=$B166, 0, SUM('Markov WM'!F3071,'Markov WF'!F3071,'Markov BM'!F3071,'Markov BF'!F3071)*INDEX(tabCost_Treatment, $C166+1)) -> 0 | I166: =IF(I$137>=$B166, 0, SUM('Markov WM'!G3071,'Markov WF'!G3071,'Markov BM'!G3071,'Markov BF'!G3071)*INDEX(tabCost_Treatment, $C166+1)) -> 0 | J166: =IF(J$137>=$B166, 0, SUM('Markov WM'!H3071,'Markov WF'!H3071,'Markov BM'!H3071,'Markov BF'!H3071)*INDEX(tabCost_Treatment, $C166+1)) -> 0 | K166: =IF(K$137>=$B166, 0, SUM('Markov WM'!I3071,'Markov WF'!I3071,'Markov BM'!I3071,'Markov BF'!I3071)*INDEX(tabCost_Treatment, $C166+1)) -> 0 | L166: =IF(L$137>=$B166, 0, SUM('Markov WM'!J3071,'Markov WF'!J3071,'Markov BM'!J3071,'Markov BF'!J3071)*INDEX(tabCost_Treatment, $C166+1)) -> 0 | M166: =IF(M$137>=$B166, 0, SUM('Markov WM'!K3071,'Markov WF'!K3071,'Markov BM'!K3071,'Markov BF'!K3071)*INDEX(tabCost_Treatment, $C166+1)) -> 0 | N166: =IF(N$137>=$B166, 0, SUM('Markov WM'!L3071,'Markov WF'!L3071,'Markov BM'!L3071,'Markov BF'!L3071)*INDEX(tabCost_Treatment, $C166+1)) -> 0 | O166: =IF(O$137>=$B166, 0, SUM('Markov WM'!M3071,'Markov WF'!M3071,'Markov BM'!M3071,'Markov BF'!M3071)*INDEX(tabCost_Treatment, $C166+1)) -> 0 | P166: =IF(P$137>=$B166, 0, SUM('Markov WM'!N3071,'Markov WF'!N3071,'Markov BM'!N3071,'Markov BF'!N3071)*INDEX(tabCost_Treatment, $C166+1)) -> 0 | Q166: =IF(Q$137>=$B166, 0, SUM('Markov WM'!O3071,'Markov WF'!O3071,'Markov BM'!O3071,'Markov BF'!O3071)*INDEX(tabCost_Treatment, $C166+1)) -> 0 | R166: =IF(R$137>=$B166, 0, SUM('Markov WM'!P3071,'Markov WF'!P3071,'Markov BM'!P3071,'Markov BF'!P3071)*INDEX(tabCost_Treatment, $C166+1)) -> 0 | S166: =IF(S$137>=$B166, 0, SUM('Markov WM'!Q3071,'Markov WF'!Q3071,'Markov BM'!Q3071,'Markov BF'!Q3071)*INDEX(tabCost_Treatment, $C166+1)) -> 0 | T166: =IF(T$137>=$B166, 0, SUM('Markov WM'!R3071,'Markov WF'!R3071,'Markov BM'!R3071,'Markov BF'!R3071)*INDEX(tabCost_Treatment, $C166+1)) -> 0 | U166: =IF(U$137>=$B166, 0, SUM('Markov WM'!S3071,'Markov WF'!S3071,'Markov BM'!S3071,'Markov BF'!S3071)*INDEX(tabCost_Treatment, $C166+1)) -> 0 | V166: =IF(V$137>=$B166, 0, SUM('Markov WM'!T3071,'Markov WF'!T3071,'Markov BM'!T3071,'Markov BF'!T3071)*INDEX(tabCost_Treatment, $C166+1)) -> 0 | W166: =IF(W$137>=$B166, 0, SUM('Markov WM'!U3071,'Markov WF'!U3071,'Markov BM'!U3071,'Markov BF'!U3071)*INDEX(tabCost_Treatment, $C166+1)) -> 0 | X166: =IF(X$137>=$B166, 0, SUM('Markov WM'!V3071,'Markov WF'!V3071,'Markov BM'!V3071,'Markov BF'!V3071)*INDEX(tabCost_Treatment, $C166+1)) -> 0 | Y166: =IF(Y$137>=$B166, 0, SUM('Markov WM'!W3071,'Markov WF'!W3071,'Markov BM'!W3071,'Markov BF'!W3071)*INDEX(tabCost_Treatment, $C166+1)) -> 0 | Z166: =IF(Z$137>=$B166, 0, SUM('Markov WM'!X3071,'Markov WF'!X3071,'Markov BM'!X3071,'Markov BF'!X3071)*INDEX(tabCost_Treatment, $C166+1)) -> 0 | AA166: =IF(AA$137>=$B166, 0, SUM('Markov WM'!Y3071,'Markov WF'!Y3071,'Markov BM'!Y3071,'Markov BF'!Y3071)*INDEX(tabCost_Treatment, $C166+1)) -> 0 | AB166: =IF(AB$137>=$B166, 0, SUM('Markov WM'!Z3071,'Markov WF'!Z3071,'Markov BM'!Z3071,'Markov BF'!Z3071)*INDEX(tabCost_Treatment, $C166+1)) -> 0 | AC166: =IF(AC$137>=$B166, 0, SUM('Markov WM'!AA3071,'Markov WF'!AA3071,'Markov BM'!AA3071,'Markov BF'!AA3071)*INDEX(tabCost_Treatment, $C166+1)) -> 0 | AD166: =IF(AD$137>=$B166, 0, SUM('Markov WM'!AB3071,'Markov WF'!AB3071,'Markov BM'!AB3071,'Markov BF'!AB3071)*INDEX(tabCost_Treatment, $C166+1)) -> 0
B167: 1 | C167: 3 | D167: 65 | E167: 30 | F167: =IF(F$137>=$B167, 0, SUM('Markov WM'!D3072,'Markov WF'!D3072,'Markov BM'!D3072,'Markov BF'!D3072)*INDEX(tabCost_Treatment, $C167+1)) -> 409670094.3 | G167: =IF(G$137>=$B167, 0, SUM('Markov WM'!E3072,'Markov WF'!E3072,'Markov BM'!E3072,'Markov BF'!E3072)*INDEX(tabCost_Treatment, $C167+1)) -> 0 | H167: =IF(H$137>=$B167, 0, SUM('Markov WM'!F3072,'Markov WF'!F3072,'Markov BM'!F3072,'Markov BF'!F3072)*INDEX(tabCost_Treatment, $C167+1)) -> 0 | I167: =IF(I$137>=$B167, 0, SUM('Markov WM'!G3072,'Markov WF'!G3072,'Markov BM'!G3072,'Markov BF'!G3072)*INDEX(tabCost_Treatment, $C167+1)) -> 0 | J167: =IF(J$137>=$B167, 0, SUM('Markov WM'!H3072,'Markov WF'!H3072,'Markov BM'!H3072,'Markov BF'!H3072)*INDEX(tabCost_Treatment, $C167+1)) -> 0 | K167: =IF(K$137>=$B167, 0, SUM('Markov WM'!I3072,'Markov WF'!I3072,'Markov BM'!I3072,'Markov BF'!I3072)*INDEX(tabCost_Treatment, $C167+1)) -> 0 | L167: =IF(L$137>=$B167, 0, SUM('Markov WM'!J3072,'Markov WF'!J3072,'Markov BM'!J3072,'Markov BF'!J3072)*INDEX(tabCost_Treatment, $C167+1)) -> 0 | M167: =IF(M$137>=$B167, 0, SUM('Markov WM'!K3072,'Markov WF'!K3072,'Markov BM'!K3072,'Markov BF'!K3072)*INDEX(tabCost_Treatment, $C167+1)) -> 0 | N167: =IF(N$137>=$B167, 0, SUM('Markov WM'!L3072,'Markov WF'!L3072,'Markov BM'!L3072,'Markov BF'!L3072)*INDEX(tabCost_Treatment, $C167+1)) -> 0 | O167: =IF(O$137>=$B167, 0, SUM('Markov WM'!M3072,'Markov WF'!M3072,'Markov BM'!M3072,'Markov BF'!M3072)*INDEX(tabCost_Treatment, $C167+1)) -> 0 | P167: =IF(P$137>=$B167, 0, SUM('Markov WM'!N3072,'Markov WF'!N3072,'Markov BM'!N3072,'Markov BF'!N3072)*INDEX(tabCost_Treatment, $C167+1)) -> 0 | Q167: =IF(Q$137>=$B167, 0, SUM('Markov WM'!O3072,'Markov WF'!O3072,'Markov BM'!O3072,'Markov BF'!O3072)*INDEX(tabCost_Treatment, $C167+1)) -> 0 | R167: =IF(R$137>=$B167, 0, SUM('Markov WM'!P3072,'Markov WF'!P3072,'Markov BM'!P3072,'Markov BF'!P3072)*INDEX(tabCost_Treatment, $C167+1)) -> 0 | S167: =IF(S$137>=$B167, 0, SUM('Markov WM'!Q3072,'Markov WF'!Q3072,'Markov BM'!Q3072,'Markov BF'!Q3072)*INDEX(tabCost_Treatment, $C167+1)) -> 0 | T167: =IF(T$137>=$B167, 0, SUM('Markov WM'!R3072,'Markov WF'!R3072,'Markov BM'!R3072,'Markov BF'!R3072)*INDEX(tabCost_Treatment, $C167+1)) -> 0 | U167: =IF(U$137>=$B167, 0, SUM('Markov WM'!S3072,'Markov WF'!S3072,'Markov BM'!S3072,'Markov BF'!S3072)*INDEX(tabCost_Treatment, $C167+1)) -> 0 | V167: =IF(V$137>=$B167, 0, SUM('Markov WM'!T3072,'Markov WF'!T3072,'Markov BM'!T3072,'Markov BF'!T3072)*INDEX(tabCost_Treatment, $C167+1)) -> 0 | W167: =IF(W$137>=$B167, 0, SUM('Markov WM'!U3072,'Markov WF'!U3072,'Markov BM'!U3072,'Markov BF'!U3072)*INDEX(tabCost_Treatment, $C167+1)) -> 0 | X167: =IF(X$137>=$B167, 0, SUM('Markov WM'!V3072,'Markov WF'!V3072,'Markov BM'!V3072,'Markov BF'!V3072)*INDEX(tabCost_Treatment, $C167+1)) -> 0 | Y167: =IF(Y$137>=$B167, 0, SUM('Markov WM'!W3072,'Markov WF'!W3072,'Markov BM'!W3072,'Markov BF'!W3072)*INDEX(tabCost_Treatment, $C167+1)) -> 0 | Z167: =IF(Z$137>=$B167, 0, SUM('Markov WM'!X3072,'Markov WF'!X3072,'Markov BM'!X3072,'Markov BF'!X3072)*INDEX(tabCost_Treatment, $C167+1)) -> 0 | AA167: =IF(AA$137>=$B167, 0, SUM('Markov WM'!Y3072,'Markov WF'!Y3072,'Markov BM'!Y3072,'Markov BF'!Y3072)*INDEX(tabCost_Treatment, $C167+1)) -> 0 | AB167: =IF(AB$137>=$B167, 0, SUM('Markov WM'!Z3072,'Markov WF'!Z3072,'Markov BM'!Z3072,'Markov BF'!Z3072)*INDEX(tabCost_Treatment, $C167+1)) -> 0 | AC167: =IF(AC$137>=$B167, 0, SUM('Markov WM'!AA3072,'Markov WF'!AA3072,'Markov BM'!AA3072,'Markov BF'!AA3072)*INDEX(tabCost_Treatment, $C167+1)) -> 0 | AD167: =IF(AD$137>=$B167, 0, SUM('Markov WM'!AB3072,'Markov WF'!AB3072,'Markov BM'!AB3072,'Markov BF'!AB3072)*INDEX(tabCost_Treatment, $C167+1)) -> 0
B168: 1 | C168: 3 | D168: 70 | E168: 31 | F168: =IF(F$137>=$B168, 0, SUM('Markov WM'!D3073,'Markov WF'!D3073,'Markov BM'!D3073,'Markov BF'!D3073)*INDEX(tabCost_Treatment, $C168+1)) -> 119365331.8 | G168: =IF(G$137>=$B168, 0, SUM('Markov WM'!E3073,'Markov WF'!E3073,'Markov BM'!E3073,'Markov BF'!E3073)*INDEX(tabCost_Treatment, $C168+1)) -> 0 | H168: =IF(H$137>=$B168, 0, SUM('Markov WM'!F3073,'Markov WF'!F3073,'Markov BM'!F3073,'Markov BF'!F3073)*INDEX(tabCost_Treatment, $C168+1)) -> 0 | I168: =IF(I$137>=$B168, 0, SUM('Markov WM'!G3073,'Markov WF'!G3073,'Markov BM'!G3073,'Markov BF'!G3073)*INDEX(tabCost_Treatment, $C168+1)) -> 0 | J168: =IF(J$137>=$B168, 0, SUM('Markov WM'!H3073,'Markov WF'!H3073,'Markov BM'!H3073,'Markov BF'!H3073)*INDEX(tabCost_Treatment, $C168+1)) -> 0 | K168: =IF(K$137>=$B168, 0, SUM('Markov WM'!I3073,'Markov WF'!I3073,'Markov BM'!I3073,'Markov BF'!I3073)*INDEX(tabCost_Treatment, $C168+1)) -> 0 | L168: =IF(L$137>=$B168, 0, SUM('Markov WM'!J3073,'Markov WF'!J3073,'Markov BM'!J3073,'Markov BF'!J3073)*INDEX(tabCost_Treatment, $C168+1)) -> 0 | M168: =IF(M$137>=$B168, 0, SUM('Markov WM'!K3073,'Markov WF'!K3073,'Markov BM'!K3073,'Markov BF'!K3073)*INDEX(tabCost_Treatment, $C168+1)) -> 0 | N168: =IF(N$137>=$B168, 0, SUM('Markov WM'!L3073,'Markov WF'!L3073,'Markov BM'!L3073,'Markov BF'!L3073)*INDEX(tabCost_Treatment, $C168+1)) -> 0 | O168: =IF(O$137>=$B168, 0, SUM('Markov WM'!M3073,'Markov WF'!M3073,'Markov BM'!M3073,'Markov BF'!M3073)*INDEX(tabCost_Treatment, $C168+1)) -> 0 | P168: =IF(P$137>=$B168, 0, SUM('Markov WM'!N3073,'Markov WF'!N3073,'Markov BM'!N3073,'Markov BF'!N3073)*INDEX(tabCost_Treatment, $C168+1)) -> 0 | Q168: =IF(Q$137>=$B168, 0, SUM('Markov WM'!O3073,'Markov WF'!O3073,'Markov BM'!O3073,'Markov BF'!O3073)*INDEX(tabCost_Treatment, $C168+1)) -> 0 | R168: =IF(R$137>=$B168, 0, SUM('Markov WM'!P3073,'Markov WF'!P3073,'Markov BM'!P3073,'Markov BF'!P3073)*INDEX(tabCost_Treatment, $C168+1)) -> 0 | S168: =IF(S$137>=$B168, 0, SUM('Markov WM'!Q3073,'Markov WF'!Q3073,'Markov BM'!Q3073,'Markov BF'!Q3073)*INDEX(tabCost_Treatment, $C168+1)) -> 0 | T168: =IF(T$137>=$B168, 0, SUM('Markov WM'!R3073,'Markov WF'!R3073,'Markov BM'!R3073,'Markov BF'!R3073)*INDEX(tabCost_Treatment, $C168+1)) -> 0 | U168: =IF(U$137>=$B168, 0, SUM('Markov WM'!S3073,'Markov WF'!S3073,'Markov BM'!S3073,'Markov BF'!S3073)*INDEX(tabCost_Treatment, $C168+1)) -> 0 | V168: =IF(V$137>=$B168, 0, SUM('Markov WM'!T3073,'Markov WF'!T3073,'Markov BM'!T3073,'Markov BF'!T3073)*INDEX(tabCost_Treatment, $C168+1)) -> 0 | W168: =IF(W$137>=$B168, 0, SUM('Markov WM'!U3073,'Markov WF'!U3073,'Markov BM'!U3073,'Markov BF'!U3073)*INDEX(tabCost_Treatment, $C168+1)) -> 0 | X168: =IF(X$137>=$B168, 0, SUM('Markov WM'!V3073,'Markov WF'!V3073,'Markov BM'!V3073,'Markov BF'!V3073)*INDEX(tabCost_Treatment, $C168+1)) -> 0 | Y168: =IF(Y$137>=$B168, 0, SUM('Markov WM'!W3073,'Markov WF'!W3073,'Markov BM'!W3073,'Markov BF'!W3073)*INDEX(tabCost_Treatment, $C168+1)) -> 0 | Z168: =IF(Z$137>=$B168, 0, SUM('Markov WM'!X3073,'Markov WF'!X3073,'Markov BM'!X3073,'Markov BF'!X3073)*INDEX(tabCost_Treatment, $C168+1)) -> 0 | AA168: =IF(AA$137>=$B168, 0, SUM('Markov WM'!Y3073,'Markov WF'!Y3073,'Markov BM'!Y3073,'Markov BF'!Y3073)*INDEX(tabCost_Treatment, $C168+1)) -> 0 | AB168: =IF(AB$137>=$B168, 0, SUM('Markov WM'!Z3073,'Markov WF'!Z3073,'Markov BM'!Z3073,'Markov BF'!Z3073)*INDEX(tabCost_Treatment, $C168+1)) -> 0 | AC168: =IF(AC$137>=$B168, 0, SUM('Markov WM'!AA3073,'Markov WF'!AA3073,'Markov BM'!AA3073,'Markov BF'!AA3073)*INDEX(tabCost_Treatment, $C168+1)) -> 0 | AD168: =IF(AD$137>=$B168, 0, SUM('Markov WM'!AB3073,'Markov WF'!AB3073,'Markov BM'!AB3073,'Markov BF'!AB3073)*INDEX(tabCost_Treatment, $C168+1)) -> 0
B169: 1 | C169: 3 | D169: 75 | E169: 32 | F169: =IF(F$137>=$B169, 0, SUM('Markov WM'!D3074,'Markov WF'!D3074,'Markov BM'!D3074,'Markov BF'!D3074)*INDEX(tabCost_Treatment, $C169+1)) -> 51078916.9 | G169: =IF(G$137>=$B169, 0, SUM('Markov WM'!E3074,'Markov WF'!E3074,'Markov BM'!E3074,'Markov BF'!E3074)*INDEX(tabCost_Treatment, $C169+1)) -> 0 | H169: =IF(H$137>=$B169, 0, SUM('Markov WM'!F3074,'Markov WF'!F3074,'Markov BM'!F3074,'Markov BF'!F3074)*INDEX(tabCost_Treatment, $C169+1)) -> 0 | I169: =IF(I$137>=$B169, 0, SUM('Markov WM'!G3074,'Markov WF'!G3074,'Markov BM'!G3074,'Markov BF'!G3074)*INDEX(tabCost_Treatment, $C169+1)) -> 0 | J169: =IF(J$137>=$B169, 0, SUM('Markov WM'!H3074,'Markov WF'!H3074,'Markov BM'!H3074,'Markov BF'!H3074)*INDEX(tabCost_Treatment, $C169+1)) -> 0 | K169: =IF(K$137>=$B169, 0, SUM('Markov WM'!I3074,'Markov WF'!I3074,'Markov BM'!I3074,'Markov BF'!I3074)*INDEX(tabCost_Treatment, $C169+1)) -> 0 | L169: =IF(L$137>=$B169, 0, SUM('Markov WM'!J3074,'Markov WF'!J3074,'Markov BM'!J3074,'Markov BF'!J3074)*INDEX(tabCost_Treatment, $C169+1)) -> 0 | M169: =IF(M$137>=$B169, 0, SUM('Markov WM'!K3074,'Markov WF'!K3074,'Markov BM'!K3074,'Markov BF'!K3074)*INDEX(tabCost_Treatment, $C169+1)) -> 0 | N169: =IF(N$137>=$B169, 0, SUM('Markov WM'!L3074,'Markov WF'!L3074,'Markov BM'!L3074,'Markov BF'!L3074)*INDEX(tabCost_Treatment, $C169+1)) -> 0 | O169: =IF(O$137>=$B169, 0, SUM('Markov WM'!M3074,'Markov WF'!M3074,'Markov BM'!M3074,'Markov BF'!M3074)*INDEX(tabCost_Treatment, $C169+1)) -> 0 | P169: =IF(P$137>=$B169, 0, SUM('Markov WM'!N3074,'Markov WF'!N3074,'Markov BM'!N3074,'Markov BF'!N3074)*INDEX(tabCost_Treatment, $C169+1)) -> 0 | Q169: =IF(Q$137>=$B169, 0, SUM('Markov WM'!O3074,'Markov WF'!O3074,'Markov BM'!O3074,'Markov BF'!O3074)*INDEX(tabCost_Treatment, $C169+1)) -> 0 | R169: =IF(R$137>=$B169, 0, SUM('Markov WM'!P3074,'Markov WF'!P3074,'Markov BM'!P3074,'Markov BF'!P3074)*INDEX(tabCost_Treatment, $C169+1)) -> 0 | S169: =IF(S$137>=$B169, 0, SUM('Markov WM'!Q3074,'Markov WF'!Q3074,'Markov BM'!Q3074,'Markov BF'!Q3074)*INDEX(tabCost_Treatment, $C169+1)) -> 0 | T169: =IF(T$137>=$B169, 0, SUM('Markov WM'!R3074,'Markov WF'!R3074,'Markov BM'!R3074,'Markov BF'!R3074)*INDEX(tabCost_Treatment, $C169+1)) -> 0 | U169: =IF(U$137>=$B169, 0, SUM('Markov WM'!S3074,'Markov WF'!S3074,'Markov BM'!S3074,'Markov BF'!S3074)*INDEX(tabCost_Treatment, $C169+1)) -> 0 | V169: =IF(V$137>=$B169, 0, SUM('Markov WM'!T3074,'Markov WF'!T3074,'Markov BM'!T3074,'Markov BF'!T3074)*INDEX(tabCost_Treatment, $C169+1)) -> 0 | W169: =IF(W$137>=$B169, 0, SUM('Markov WM'!U3074,'Markov WF'!U3074,'Markov BM'!U3074,'Markov BF'!U3074)*INDEX(tabCost_Treatment, $C169+1)) -> 0 | X169: =IF(X$137>=$B169, 0, SUM('Markov WM'!V3074,'Markov WF'!V3074,'Markov BM'!V3074,'Markov BF'!V3074)*INDEX(tabCost_Treatment, $C169+1)) -> 0 | Y169: =IF(Y$137>=$B169, 0, SUM('Markov WM'!W3074,'Markov WF'!W3074,'Markov BM'!W3074,'Markov BF'!W3074)*INDEX(tabCost_Treatment, $C169+1)) -> 0 | Z169: =IF(Z$137>=$B169, 0, SUM('Markov WM'!X3074,'Markov WF'!X3074,'Markov BM'!X3074,'Markov BF'!X3074)*INDEX(tabCost_Treatment, $C169+1)) -> 0 | AA169: =IF(AA$137>=$B169, 0, SUM('Markov WM'!Y3074,'Markov WF'!Y3074,'Markov BM'!Y3074,'Markov BF'!Y3074)*INDEX(tabCost_Treatment, $C169+1)) -> 0 | AB169: =IF(AB$137>=$B169, 0, SUM('Markov WM'!Z3074,'Markov WF'!Z3074,'Markov BM'!Z3074,'Markov BF'!Z3074)*INDEX(tabCost_Treatment, $C169+1)) -> 0 | AC169: =IF(AC$137>=$B169, 0, SUM('Markov WM'!AA3074,'Markov WF'!AA3074,'Markov BM'!AA3074,'Markov BF'!AA3074)*INDEX(tabCost_Treatment, $C169+1)) -> 0 | AD169: =IF(AD$137>=$B169, 0, SUM('Markov WM'!AB3074,'Markov WF'!AB3074,'Markov BM'!AB3074,'Markov BF'!AB3074)*INDEX(tabCost_Treatment, $C169+1)) -> 0
B170: 0 | C170: 4 | D170: 40 | E170: 33 | F170: =IF(F$137>=$B170, 0, SUM('Markov WM'!D3075,'Markov WF'!D3075,'Markov BM'!D3075,'Markov BF'!D3075)*INDEX(tabCost_Treatment, $C170+1)) -> 0 | G170: =IF(G$137>=$B170, 0, SUM('Markov WM'!E3075,'Markov WF'!E3075,'Markov BM'!E3075,'Markov BF'!E3075)*INDEX(tabCost_Treatment, $C170+1)) -> 0 | H170: =IF(H$137>=$B170, 0, SUM('Markov WM'!F3075,'Markov WF'!F3075,'Markov BM'!F3075,'Markov BF'!F3075)*INDEX(tabCost_Treatment, $C170+1)) -> 0 | I170: =IF(I$137>=$B170, 0, SUM('Markov WM'!G3075,'Markov WF'!G3075,'Markov BM'!G3075,'Markov BF'!G3075)*INDEX(tabCost_Treatment, $C170+1)) -> 0 | J170: =IF(J$137>=$B170, 0, SUM('Markov WM'!H3075,'Markov WF'!H3075,'Markov BM'!H3075,'Markov BF'!H3075)*INDEX(tabCost_Treatment, $C170+1)) -> 0 | K170: =IF(K$137>=$B170, 0, SUM('Markov WM'!I3075,'Markov WF'!I3075,'Markov BM'!I3075,'Markov BF'!I3075)*INDEX(tabCost_Treatment, $C170+1)) -> 0 | L170: =IF(L$137>=$B170, 0, SUM('Markov WM'!J3075,'Markov WF'!J3075,'Markov BM'!J3075,'Markov BF'!J3075)*INDEX(tabCost_Treatment, $C170+1)) -> 0 | M170: =IF(M$137>=$B170, 0, SUM('Markov WM'!K3075,'Markov WF'!K3075,'Markov BM'!K3075,'Markov BF'!K3075)*INDEX(tabCost_Treatment, $C170+1)) -> 0 | N170: =IF(N$137>=$B170, 0, SUM('Markov WM'!L3075,'Markov WF'!L3075,'Markov BM'!L3075,'Markov BF'!L3075)*INDEX(tabCost_Treatment, $C170+1)) -> 0 | O170: =IF(O$137>=$B170, 0, SUM('Markov WM'!M3075,'Markov WF'!M3075,'Markov BM'!M3075,'Markov BF'!M3075)*INDEX(tabCost_Treatment, $C170+1)) -> 0 | P170: =IF(P$137>=$B170, 0, SUM('Markov WM'!N3075,'Markov WF'!N3075,'Markov BM'!N3075,'Markov BF'!N3075)*INDEX(tabCost_Treatment, $C170+1)) -> 0 | Q170: =IF(Q$137>=$B170, 0, SUM('Markov WM'!O3075,'Markov WF'!O3075,'Markov BM'!O3075,'Markov BF'!O3075)*INDEX(tabCost_Treatment, $C170+1)) -> 0 | R170: =IF(R$137>=$B170, 0, SUM('Markov WM'!P3075,'Markov WF'!P3075,'Markov BM'!P3075,'Markov BF'!P3075)*INDEX(tabCost_Treatment, $C170+1)) -> 0 | S170: =IF(S$137>=$B170, 0, SUM('Markov WM'!Q3075,'Markov WF'!Q3075,'Markov BM'!Q3075,'Markov BF'!Q3075)*INDEX(tabCost_Treatment, $C170+1)) -> 0 | T170: =IF(T$137>=$B170, 0, SUM('Markov WM'!R3075,'Markov WF'!R3075,'Markov BM'!R3075,'Markov BF'!R3075)*INDEX(tabCost_Treatment, $C170+1)) -> 0 | U170: =IF(U$137>=$B170, 0, SUM('Markov WM'!S3075,'Markov WF'!S3075,'Markov BM'!S3075,'Markov BF'!S3075)*INDEX(tabCost_Treatment, $C170+1)) -> 0 | V170: =IF(V$137>=$B170, 0, SUM('Markov WM'!T3075,'Markov WF'!T3075,'Markov BM'!T3075,'Markov BF'!T3075)*INDEX(tabCost_Treatment, $C170+1)) -> 0 | W170: =IF(W$137>=$B170, 0, SUM('Markov WM'!U3075,'Markov WF'!U3075,'Markov BM'!U3075,'Markov BF'!U3075)*INDEX(tabCost_Treatment, $C170+1)) -> 0 | X170: =IF(X$137>=$B170, 0, SUM('Markov WM'!V3075,'Markov WF'!V3075,'Markov BM'!V3075,'Markov BF'!V3075)*INDEX(tabCost_Treatment, $C170+1)) -> 0 | Y170: =IF(Y$137>=$B170, 0, SUM('Markov WM'!W3075,'Markov WF'!W3075,'Markov BM'!W3075,'Markov BF'!W3075)*INDEX(tabCost_Treatment, $C170+1)) -> 0 | Z170: =IF(Z$137>=$B170, 0, SUM('Markov WM'!X3075,'Markov WF'!X3075,'Markov BM'!X3075,'Markov BF'!X3075)*INDEX(tabCost_Treatment, $C170+1)) -> 0 | AA170: =IF(AA$137>=$B170, 0, SUM('Markov WM'!Y3075,'Markov WF'!Y3075,'Markov BM'!Y3075,'Markov BF'!Y3075)*INDEX(tabCost_Treatment, $C170+1)) -> 0 | AB170: =IF(AB$137>=$B170, 0, SUM('Markov WM'!Z3075,'Markov WF'!Z3075,'Markov BM'!Z3075,'Markov BF'!Z3075)*INDEX(tabCost_Treatment, $C170+1)) -> 0 | AC170: =IF(AC$137>=$B170, 0, SUM('Markov WM'!AA3075,'Markov WF'!AA3075,'Markov BM'!AA3075,'Markov BF'!AA3075)*INDEX(tabCost_Treatment, $C170+1)) -> 0 | AD170: =IF(AD$137>=$B170, 0, SUM('Markov WM'!AB3075,'Markov WF'!AB3075,'Markov BM'!AB3075,'Markov BF'!AB3075)*INDEX(tabCost_Treatment, $C170+1)) -> 0
B171: 0 | C171: 4 | D171: 45 | E171: 34 | F171: =IF(F$137>=$B171, 0, SUM('Markov WM'!D3076,'Markov WF'!D3076,'Markov BM'!D3076,'Markov BF'!D3076)*INDEX(tabCost_Treatment, $C171+1)) -> 0 | G171: =IF(G$137>=$B171, 0, SUM('Markov WM'!E3076,'Markov WF'!E3076,'Markov BM'!E3076,'Markov BF'!E3076)*INDEX(tabCost_Treatment, $C171+1)) -> 0 | H171: =IF(H$137>=$B171, 0, SUM('Markov WM'!F3076,'Markov WF'!F3076,'Markov BM'!F3076,'Markov BF'!F3076)*INDEX(tabCost_Treatment, $C171+1)) -> 0 | I171: =IF(I$137>=$B171, 0, SUM('Markov WM'!G3076,'Markov WF'!G3076,'Markov BM'!G3076,'Markov BF'!G3076)*INDEX(tabCost_Treatment, $C171+1)) -> 0 | J171: =IF(J$137>=$B171, 0, SUM('Markov WM'!H3076,'Markov WF'!H3076,'Markov BM'!H3076,'Markov BF'!H3076)*INDEX(tabCost_Treatment, $C171+1)) -> 0 | K171: =IF(K$137>=$B171, 0, SUM('Markov WM'!I3076,'Markov WF'!I3076,'Markov BM'!I3076,'Markov BF'!I3076)*INDEX(tabCost_Treatment, $C171+1)) -> 0 | L171: =IF(L$137>=$B171, 0, SUM('Markov WM'!J3076,'Markov WF'!J3076,'Markov BM'!J3076,'Markov BF'!J3076)*INDEX(tabCost_Treatment, $C171+1)) -> 0 | M171: =IF(M$137>=$B171, 0, SUM('Markov WM'!K3076,'Markov WF'!K3076,'Markov BM'!K3076,'Markov BF'!K3076)*INDEX(tabCost_Treatment, $C171+1)) -> 0 | N171: =IF(N$137>=$B171, 0, SUM('Markov WM'!L3076,'Markov WF'!L3076,'Markov BM'!L3076,'Markov BF'!L3076)*INDEX(tabCost_Treatment, $C171+1)) -> 0 | O171: =IF(O$137>=$B171, 0, SUM('Markov WM'!M3076,'Markov WF'!M3076,'Markov BM'!M3076,'Markov BF'!M3076)*INDEX(tabCost_Treatment, $C171+1)) -> 0 | P171: =IF(P$137>=$B171, 0, SUM('Markov WM'!N3076,'Markov WF'!N3076,'Markov BM'!N3076,'Markov BF'!N3076)*INDEX(tabCost_Treatment, $C171+1)) -> 0 | Q171: =IF(Q$137>=$B171, 0, SUM('Markov WM'!O3076,'Markov WF'!O3076,'Markov BM'!O3076,'Markov BF'!O3076)*INDEX(tabCost_Treatment, $C171+1)) -> 0 | R171: =IF(R$137>=$B171, 0, SUM('Markov WM'!P3076,'Markov WF'!P3076,'Markov BM'!P3076,'Markov BF'!P3076)*INDEX(tabCost_Treatment, $C171+1)) -> 0 | S171: =IF(S$137>=$B171, 0, SUM('Markov WM'!Q3076,'Markov WF'!Q3076,'Markov BM'!Q3076,'Markov BF'!Q3076)*INDEX(tabCost_Treatment, $C171+1)) -> 0 | T171: =IF(T$137>=$B171, 0, SUM('Markov WM'!R3076,'Markov WF'!R3076,'Markov BM'!R3076,'Markov BF'!R3076)*INDEX(tabCost_Treatment, $C171+1)) -> 0 | U171: =IF(U$137>=$B171, 0, SUM('Markov WM'!S3076,'Markov WF'!S3076,'Markov BM'!S3076,'Markov BF'!S3076)*INDEX(tabCost_Treatment, $C171+1)) -> 0 | V171: =IF(V$137>=$B171, 0, SUM('Markov WM'!T3076,'Markov WF'!T3076,'Markov BM'!T3076,'Markov BF'!T3076)*INDEX(tabCost_Treatment, $C171+1)) -> 0 | W171: =IF(W$137>=$B171, 0, SUM('Markov WM'!U3076,'Markov WF'!U3076,'Markov BM'!U3076,'Markov BF'!U3076)*INDEX(tabCost_Treatment, $C171+1)) -> 0 | X171: =IF(X$137>=$B171, 0, SUM('Markov WM'!V3076,'Markov WF'!V3076,'Markov BM'!V3076,'Markov BF'!V3076)*INDEX(tabCost_Treatment, $C171+1)) -> 0 | Y171: =IF(Y$137>=$B171, 0, SUM('Markov WM'!W3076,'Markov WF'!W3076,'Markov BM'!W3076,'Markov BF'!W3076)*INDEX(tabCost_Treatment, $C171+1)) -> 0 | Z171: =IF(Z$137>=$B171, 0, SUM('Markov WM'!X3076,'Markov WF'!X3076,'Markov BM'!X3076,'Markov BF'!X3076)*INDEX(tabCost_Treatment, $C171+1)) -> 0 | AA171: =IF(AA$137>=$B171, 0, SUM('Markov WM'!Y3076,'Markov WF'!Y3076,'Markov BM'!Y3076,'Markov BF'!Y3076)*INDEX(tabCost_Treatment, $C171+1)) -> 0 | AB171: =IF(AB$137>=$B171, 0, SUM('Markov WM'!Z3076,'Markov WF'!Z3076,'Markov BM'!Z3076,'Markov BF'!Z3076)*INDEX(tabCost_Treatment, $C171+1)) -> 0 | AC171: =IF(AC$137>=$B171, 0, SUM('Markov WM'!AA3076,'Markov WF'!AA3076,'Markov BM'!AA3076,'Markov BF'!AA3076)*INDEX(tabCost_Treatment, $C171+1)) -> 0 | AD171: =IF(AD$137>=$B171, 0, SUM('Markov WM'!AB3076,'Markov WF'!AB3076,'Markov BM'!AB3076,'Markov BF'!AB3076)*INDEX(tabCost_Treatment, $C171+1)) -> 0
B172: 0 | C172: 4 | D172: 50 | E172: 35 | F172: =IF(F$137>=$B172, 0, SUM('Markov WM'!D3077,'Markov WF'!D3077,'Markov BM'!D3077,'Markov BF'!D3077)*INDEX(tabCost_Treatment, $C172+1)) -> 0 | G172: =IF(G$137>=$B172, 0, SUM('Markov WM'!E3077,'Markov WF'!E3077,'Markov BM'!E3077,'Markov BF'!E3077)*INDEX(tabCost_Treatment, $C172+1)) -> 0 | H172: =IF(H$137>=$B172, 0, SUM('Markov WM'!F3077,'Markov WF'!F3077,'Markov BM'!F3077,'Markov BF'!F3077)*INDEX(tabCost_Treatment, $C172+1)) -> 0 | I172: =IF(I$137>=$B172, 0, SUM('Markov WM'!G3077,'Markov WF'!G3077,'Markov BM'!G3077,'Markov BF'!G3077)*INDEX(tabCost_Treatment, $C172+1)) -> 0 | J172: =IF(J$137>=$B172, 0, SUM('Markov WM'!H3077,'Markov WF'!H3077,'Markov BM'!H3077,'Markov BF'!H3077)*INDEX(tabCost_Treatment, $C172+1)) -> 0 | K172: =IF(K$137>=$B172, 0, SUM('Markov WM'!I3077,'Markov WF'!I3077,'Markov BM'!I3077,'Markov BF'!I3077)*INDEX(tabCost_Treatment, $C172+1)) -> 0 | L172: =IF(L$137>=$B172, 0, SUM('Markov WM'!J3077,'Markov WF'!J3077,'Markov BM'!J3077,'Markov BF'!J3077)*INDEX(tabCost_Treatment, $C172+1)) -> 0 | M172: =IF(M$137>=$B172, 0, SUM('Markov WM'!K3077,'Markov WF'!K3077,'Markov BM'!K3077,'Markov BF'!K3077)*INDEX(tabCost_Treatment, $C172+1)) -> 0 | N172: =IF(N$137>=$B172, 0, SUM('Markov WM'!L3077,'Markov WF'!L3077,'Markov BM'!L3077,'Markov BF'!L3077)*INDEX(tabCost_Treatment, $C172+1)) -> 0 | O172: =IF(O$137>=$B172, 0, SUM('Markov WM'!M3077,'Markov WF'!M3077,'Markov BM'!M3077,'Markov BF'!M3077)*INDEX(tabCost_Treatment, $C172+1)) -> 0 | P172: =IF(P$137>=$B172, 0, SUM('Markov WM'!N3077,'Markov WF'!N3077,'Markov BM'!N3077,'Markov BF'!N3077)*INDEX(tabCost_Treatment, $C172+1)) -> 0 | Q172: =IF(Q$137>=$B172, 0, SUM('Markov WM'!O3077,'Markov WF'!O3077,'Markov BM'!O3077,'Markov BF'!O3077)*INDEX(tabCost_Treatment, $C172+1)) -> 0 | R172: =IF(R$137>=$B172, 0, SUM('Markov WM'!P3077,'Markov WF'!P3077,'Markov BM'!P3077,'Markov BF'!P3077)*INDEX(tabCost_Treatment, $C172+1)) -> 0 | S172: =IF(S$137>=$B172, 0, SUM('Markov WM'!Q3077,'Markov WF'!Q3077,'Markov BM'!Q3077,'Markov BF'!Q3077)*INDEX(tabCost_Treatment, $C172+1)) -> 0 | T172: =IF(T$137>=$B172, 0, SUM('Markov WM'!R3077,'Markov WF'!R3077,'Markov BM'!R3077,'Markov BF'!R3077)*INDEX(tabCost_Treatment, $C172+1)) -> 0 | U172: =IF(U$137>=$B172, 0, SUM('Markov WM'!S3077,'Markov WF'!S3077,'Markov BM'!S3077,'Markov BF'!S3077)*INDEX(tabCost_Treatment, $C172+1)) -> 0 | V172: =IF(V$137>=$B172, 0, SUM('Markov WM'!T3077,'Markov WF'!T3077,'Markov BM'!T3077,'Markov BF'!T3077)*INDEX(tabCost_Treatment, $C172+1)) -> 0 | W172: =IF(W$137>=$B172, 0, SUM('Markov WM'!U3077,'Markov WF'!U3077,'Markov BM'!U3077,'Markov BF'!U3077)*INDEX(tabCost_Treatment, $C172+1)) -> 0 | X172: =IF(X$137>=$B172, 0, SUM('Markov WM'!V3077,'Markov WF'!V3077,'Markov BM'!V3077,'Markov BF'!V3077)*INDEX(tabCost_Treatment, $C172+1)) -> 0 | Y172: =IF(Y$137>=$B172, 0, SUM('Markov WM'!W3077,'Markov WF'!W3077,'Markov BM'!W3077,'Markov BF'!W3077)*INDEX(tabCost_Treatment, $C172+1)) -> 0 | Z172: =IF(Z$137>=$B172, 0, SUM('Markov WM'!X3077,'Markov WF'!X3077,'Markov BM'!X3077,'Markov BF'!X3077)*INDEX(tabCost_Treatment, $C172+1)) -> 0 | AA172: =IF(AA$137>=$B172, 0, SUM('Markov WM'!Y3077,'Markov WF'!Y3077,'Markov BM'!Y3077,'Markov BF'!Y3077)*INDEX(tabCost_Treatment, $C172+1)) -> 0 | AB172: =IF(AB$137>=$B172, 0, SUM('Markov WM'!Z3077,'Markov WF'!Z3077,'Markov BM'!Z3077,'Markov BF'!Z3077)*INDEX(tabCost_Treatment, $C172+1)) -> 0 | AC172: =IF(AC$137>=$B172, 0, SUM('Markov WM'!AA3077,'Markov WF'!AA3077,'Markov BM'!AA3077,'Markov BF'!AA3077)*INDEX(tabCost_Treatment, $C172+1)) -> 0 | AD172: =IF(AD$137>=$B172, 0, SUM('Markov WM'!AB3077,'Markov WF'!AB3077,'Markov BM'!AB3077,'Markov BF'!AB3077)*INDEX(tabCost_Treatment, $C172+1)) -> 0
B173: 0 | C173: 4 | D173: 55 | E173: 36 | F173: =IF(F$137>=$B173, 0, SUM('Markov WM'!D3078,'Markov WF'!D3078,'Markov BM'!D3078,'Markov BF'!D3078)*INDEX(tabCost_Treatment, $C173+1)) -> 0 | G173: =IF(G$137>=$B173, 0, SUM('Markov WM'!E3078,'Markov WF'!E3078,'Markov BM'!E3078,'Markov BF'!E3078)*INDEX(tabCost_Treatment, $C173+1)) -> 0 | H173: =IF(H$137>=$B173, 0, SUM('Markov WM'!F3078,'Markov WF'!F3078,'Markov BM'!F3078,'Markov BF'!F3078)*INDEX(tabCost_Treatment, $C173+1)) -> 0 | I173: =IF(I$137>=$B173, 0, SUM('Markov WM'!G3078,'Markov WF'!G3078,'Markov BM'!G3078,'Markov BF'!G3078)*INDEX(tabCost_Treatment, $C173+1)) -> 0 | J173: =IF(J$137>=$B173, 0, SUM('Markov WM'!H3078,'Markov WF'!H3078,'Markov BM'!H3078,'Markov BF'!H3078)*INDEX(tabCost_Treatment, $C173+1)) -> 0 | K173: =IF(K$137>=$B173, 0, SUM('Markov WM'!I3078,'Markov WF'!I3078,'Markov BM'!I3078,'Markov BF'!I3078)*INDEX(tabCost_Treatment, $C173+1)) -> 0 | L173: =IF(L$137>=$B173, 0, SUM('Markov WM'!J3078,'Markov WF'!J3078,'Markov BM'!J3078,'Markov BF'!J3078)*INDEX(tabCost_Treatment, $C173+1)) -> 0 | M173: =IF(M$137>=$B173, 0, SUM('Markov WM'!K3078,'Markov WF'!K3078,'Markov BM'!K3078,'Markov BF'!K3078)*INDEX(tabCost_Treatment, $C173+1)) -> 0 | N173: =IF(N$137>=$B173, 0, SUM('Markov WM'!L3078,'Markov WF'!L3078,'Markov BM'!L3078,'Markov BF'!L3078)*INDEX(tabCost_Treatment, $C173+1)) -> 0 | O173: =IF(O$137>=$B173, 0, SUM('Markov WM'!M3078,'Markov WF'!M3078,'Markov BM'!M3078,'Markov BF'!M3078)*INDEX(tabCost_Treatment, $C173+1)) -> 0 | P173: =IF(P$137>=$B173, 0, SUM('Markov WM'!N3078,'Markov WF'!N3078,'Markov BM'!N3078,'Markov BF'!N3078)*INDEX(tabCost_Treatment, $C173+1)) -> 0 | Q173: =IF(Q$137>=$B173, 0, SUM('Markov WM'!O3078,'Markov WF'!O3078,'Markov BM'!O3078,'Markov BF'!O3078)*INDEX(tabCost_Treatment, $C173+1)) -> 0 | R173: =IF(R$137>=$B173, 0, SUM('Markov WM'!P3078,'Markov WF'!P3078,'Markov BM'!P3078,'Markov BF'!P3078)*INDEX(tabCost_Treatment, $C173+1)) -> 0 | S173: =IF(S$137>=$B173, 0, SUM('Markov WM'!Q3078,'Markov WF'!Q3078,'Markov BM'!Q3078,'Markov BF'!Q3078)*INDEX(tabCost_Treatment, $C173+1)) -> 0 | T173: =IF(T$137>=$B173, 0, SUM('Markov WM'!R3078,'Markov WF'!R3078,'Markov BM'!R3078,'Markov BF'!R3078)*INDEX(tabCost_Treatment, $C173+1)) -> 0 | U173: =IF(U$137>=$B173, 0, SUM('Markov WM'!S3078,'Markov WF'!S3078,'Markov BM'!S3078,'Markov BF'!S3078)*INDEX(tabCost_Treatment, $C173+1)) -> 0 | V173: =IF(V$137>=$B173, 0, SUM('Markov WM'!T3078,'Markov WF'!T3078,'Markov BM'!T3078,'Markov BF'!T3078)*INDEX(tabCost_Treatment, $C173+1)) -> 0 | W173: =IF(W$137>=$B173, 0, SUM('Markov WM'!U3078,'Markov WF'!U3078,'Markov BM'!U3078,'Markov BF'!U3078)*INDEX(tabCost_Treatment, $C173+1)) -> 0 | X173: =IF(X$137>=$B173, 0, SUM('Markov WM'!V3078,'Markov WF'!V3078,'Markov BM'!V3078,'Markov BF'!V3078)*INDEX(tabCost_Treatment, $C173+1)) -> 0 | Y173: =IF(Y$137>=$B173, 0, SUM('Markov WM'!W3078,'Markov WF'!W3078,'Markov BM'!W3078,'Markov BF'!W3078)*INDEX(tabCost_Treatment, $C173+1)) -> 0 | Z173: =IF(Z$137>=$B173, 0, SUM('Markov WM'!X3078,'Markov WF'!X3078,'Markov BM'!X3078,'Markov BF'!X3078)*INDEX(tabCost_Treatment, $C173+1)) -> 0 | AA173: =IF(AA$137>=$B173, 0, SUM('Markov WM'!Y3078,'Markov WF'!Y3078,'Markov BM'!Y3078,'Markov BF'!Y3078)*INDEX(tabCost_Treatment, $C173+1)) -> 0 | AB173: =IF(AB$137>=$B173, 0, SUM('Markov WM'!Z3078,'Markov WF'!Z3078,'Markov BM'!Z3078,'Markov BF'!Z3078)*INDEX(tabCost_Treatment, $C173+1)) -> 0 | AC173: =IF(AC$137>=$B173, 0, SUM('Markov WM'!AA3078,'Markov WF'!AA3078,'Markov BM'!AA3078,'Markov BF'!AA3078)*INDEX(tabCost_Treatment, $C173+1)) -> 0 | AD173: =IF(AD$137>=$B173, 0, SUM('Markov WM'!AB3078,'Markov WF'!AB3078,'Markov BM'!AB3078,'Markov BF'!AB3078)*INDEX(tabCost_Treatment, $C173+1)) -> 0
B174: 0 | C174: 4 | D174: 60 | E174: 37 | F174: =IF(F$137>=$B174, 0, SUM('Markov WM'!D3079,'Markov WF'!D3079,'Markov BM'!D3079,'Markov BF'!D3079)*INDEX(tabCost_Treatment, $C174+1)) -> 0 | G174: =IF(G$137>=$B174, 0, SUM('Markov WM'!E3079,'Markov WF'!E3079,'Markov BM'!E3079,'Markov BF'!E3079)*INDEX(tabCost_Treatment, $C174+1)) -> 0 | H174: =IF(H$137>=$B174, 0, SUM('Markov WM'!F3079,'Markov WF'!F3079,'Markov BM'!F3079,'Markov BF'!F3079)*INDEX(tabCost_Treatment, $C174+1)) -> 0 | I174: =IF(I$137>=$B174, 0, SUM('Markov WM'!G3079,'Markov WF'!G3079,'Markov BM'!G3079,'Markov BF'!G3079)*INDEX(tabCost_Treatment, $C174+1)) -> 0 | J174: =IF(J$137>=$B174, 0, SUM('Markov WM'!H3079,'Markov WF'!H3079,'Markov BM'!H3079,'Markov BF'!H3079)*INDEX(tabCost_Treatment, $C174+1)) -> 0 | K174: =IF(K$137>=$B174, 0, SUM('Markov WM'!I3079,'Markov WF'!I3079,'Markov BM'!I3079,'Markov BF'!I3079)*INDEX(tabCost_Treatment, $C174+1)) -> 0 | L174: =IF(L$137>=$B174, 0, SUM('Markov WM'!J3079,'Markov WF'!J3079,'Markov BM'!J3079,'Markov BF'!J3079)*INDEX(tabCost_Treatment, $C174+1)) -> 0 | M174: =IF(M$137>=$B174, 0, SUM('Markov WM'!K3079,'Markov WF'!K3079,'Markov BM'!K3079,'Markov BF'!K3079)*INDEX(tabCost_Treatment, $C174+1)) -> 0 | N174: =IF(N$137>=$B174, 0, SUM('Markov WM'!L3079,'Markov WF'!L3079,'Markov BM'!L3079,'Markov BF'!L3079)*INDEX(tabCost_Treatment, $C174+1)) -> 0 | O174: =IF(O$137>=$B174, 0, SUM('Markov WM'!M3079,'Markov WF'!M3079,'Markov BM'!M3079,'Markov BF'!M3079)*INDEX(tabCost_Treatment, $C174+1)) -> 0 | P174: =IF(P$137>=$B174, 0, SUM('Markov WM'!N3079,'Markov WF'!N3079,'Markov BM'!N3079,'Markov BF'!N3079)*INDEX(tabCost_Treatment, $C174+1)) -> 0 | Q174: =IF(Q$137>=$B174, 0, SUM('Markov WM'!O3079,'Markov WF'!O3079,'Markov BM'!O3079,'Markov BF'!O3079)*INDEX(tabCost_Treatment, $C174+1)) -> 0 | R174: =IF(R$137>=$B174, 0, SUM('Markov WM'!P3079,'Markov WF'!P3079,'Markov BM'!P3079,'Markov BF'!P3079)*INDEX(tabCost_Treatment, $C174+1)) -> 0 | S174: =IF(S$137>=$B174, 0, SUM('Markov WM'!Q3079,'Markov WF'!Q3079,'Markov BM'!Q3079,'Markov BF'!Q3079)*INDEX(tabCost_Treatment, $C174+1)) -> 0 | T174: =IF(T$137>=$B174, 0, SUM('Markov WM'!R3079,'Markov WF'!R3079,'Markov BM'!R3079,'Markov BF'!R3079)*INDEX(tabCost_Treatment, $C174+1)) -> 0 | U174: =IF(U$137>=$B174, 0, SUM('Markov WM'!S3079,'Markov WF'!S3079,'Markov BM'!S3079,'Markov BF'!S3079)*INDEX(tabCost_Treatment, $C174+1)) -> 0 | V174: =IF(V$137>=$B174, 0, SUM('Markov WM'!T3079,'Markov WF'!T3079,'Markov BM'!T3079,'Markov BF'!T3079)*INDEX(tabCost_Treatment, $C174+1)) -> 0 | W174: =IF(W$137>=$B174, 0, SUM('Markov WM'!U3079,'Markov WF'!U3079,'Markov BM'!U3079,'Markov BF'!U3079)*INDEX(tabCost_Treatment, $C174+1)) -> 0 | X174: =IF(X$137>=$B174, 0, SUM('Markov WM'!V3079,'Markov WF'!V3079,'Markov BM'!V3079,'Markov BF'!V3079)*INDEX(tabCost_Treatment, $C174+1)) -> 0 | Y174: =IF(Y$137>=$B174, 0, SUM('Markov WM'!W3079,'Markov WF'!W3079,'Markov BM'!W3079,'Markov BF'!W3079)*INDEX(tabCost_Treatment, $C174+1)) -> 0 | Z174: =IF(Z$137>=$B174, 0, SUM('Markov WM'!X3079,'Markov WF'!X3079,'Markov BM'!X3079,'Markov BF'!X3079)*INDEX(tabCost_Treatment, $C174+1)) -> 0 | AA174: =IF(AA$137>=$B174, 0, SUM('Markov WM'!Y3079,'Markov WF'!Y3079,'Markov BM'!Y3079,'Markov BF'!Y3079)*INDEX(tabCost_Treatment, $C174+1)) -> 0 | AB174: =IF(AB$137>=$B174, 0, SUM('Markov WM'!Z3079,'Markov WF'!Z3079,'Markov BM'!Z3079,'Markov BF'!Z3079)*INDEX(tabCost_Treatment, $C174+1)) -> 0 | AC174: =IF(AC$137>=$B174, 0, SUM('Markov WM'!AA3079,'Markov WF'!AA3079,'Markov BM'!AA3079,'Markov BF'!AA3079)*INDEX(tabCost_Treatment, $C174+1)) -> 0 | AD174: =IF(AD$137>=$B174, 0, SUM('Markov WM'!AB3079,'Markov WF'!AB3079,'Markov BM'!AB3079,'Markov BF'!AB3079)*INDEX(tabCost_Treatment, $C174+1)) -> 0
B175: 0 | C175: 4 | D175: 65 | E175: 38 | F175: =IF(F$137>=$B175, 0, SUM('Markov WM'!D3080,'Markov WF'!D3080,'Markov BM'!D3080,'Markov BF'!D3080)*INDEX(tabCost_Treatment, $C175+1)) -> 0 | G175: =IF(G$137>=$B175, 0, SUM('Markov WM'!E3080,'Markov WF'!E3080,'Markov BM'!E3080,'Markov BF'!E3080)*INDEX(tabCost_Treatment, $C175+1)) -> 0 | H175: =IF(H$137>=$B175, 0, SUM('Markov WM'!F3080,'Markov WF'!F3080,'Markov BM'!F3080,'Markov BF'!F3080)*INDEX(tabCost_Treatment, $C175+1)) -> 0 | I175: =IF(I$137>=$B175, 0, SUM('Markov WM'!G3080,'Markov WF'!G3080,'Markov BM'!G3080,'Markov BF'!G3080)*INDEX(tabCost_Treatment, $C175+1)) -> 0 | J175: =IF(J$137>=$B175, 0, SUM('Markov WM'!H3080,'Markov WF'!H3080,'Markov BM'!H3080,'Markov BF'!H3080)*INDEX(tabCost_Treatment, $C175+1)) -> 0 | K175: =IF(K$137>=$B175, 0, SUM('Markov WM'!I3080,'Markov WF'!I3080,'Markov BM'!I3080,'Markov BF'!I3080)*INDEX(tabCost_Treatment, $C175+1)) -> 0 | L175: =IF(L$137>=$B175, 0, SUM('Markov WM'!J3080,'Markov WF'!J3080,'Markov BM'!J3080,'Markov BF'!J3080)*INDEX(tabCost_Treatment, $C175+1)) -> 0 | M175: =IF(M$137>=$B175, 0, SUM('Markov WM'!K3080,'Markov WF'!K3080,'Markov BM'!K3080,'Markov BF'!K3080)*INDEX(tabCost_Treatment, $C175+1)) -> 0 | N175: =IF(N$137>=$B175, 0, SUM('Markov WM'!L3080,'Markov WF'!L3080,'Markov BM'!L3080,'Markov BF'!L3080)*INDEX(tabCost_Treatment, $C175+1)) -> 0 | O175: =IF(O$137>=$B175, 0, SUM('Markov WM'!M3080,'Markov WF'!M3080,'Markov BM'!M3080,'Markov BF'!M3080)*INDEX(tabCost_Treatment, $C175+1)) -> 0 | P175: =IF(P$137>=$B175, 0, SUM('Markov WM'!N3080,'Markov WF'!N3080,'Markov BM'!N3080,'Markov BF'!N3080)*INDEX(tabCost_Treatment, $C175+1)) -> 0 | Q175: =IF(Q$137>=$B175, 0, SUM('Markov WM'!O3080,'Markov WF'!O3080,'Markov BM'!O3080,'Markov BF'!O3080)*INDEX(tabCost_Treatment, $C175+1)) -> 0 | R175: =IF(R$137>=$B175, 0, SUM('Markov WM'!P3080,'Markov WF'!P3080,'Markov BM'!P3080,'Markov BF'!P3080)*INDEX(tabCost_Treatment, $C175+1)) -> 0 | S175: =IF(S$137>=$B175, 0, SUM('Markov WM'!Q3080,'Markov WF'!Q3080,'Markov BM'!Q3080,'Markov BF'!Q3080)*INDEX(tabCost_Treatment, $C175+1)) -> 0 | T175: =IF(T$137>=$B175, 0, SUM('Markov WM'!R3080,'Markov WF'!R3080,'Markov BM'!R3080,'Markov BF'!R3080)*INDEX(tabCost_Treatment, $C175+1)) -> 0 | U175: =IF(U$137>=$B175, 0, SUM('Markov WM'!S3080,'Markov WF'!S3080,'Markov BM'!S3080,'Markov BF'!S3080)*INDEX(tabCost_Treatment, $C175+1)) -> 0 | V175: =IF(V$137>=$B175, 0, SUM('Markov WM'!T3080,'Markov WF'!T3080,'Markov BM'!T3080,'Markov BF'!T3080)*INDEX(tabCost_Treatment, $C175+1)) -> 0 | W175: =IF(W$137>=$B175, 0, SUM('Markov WM'!U3080,'Markov WF'!U3080,'Markov BM'!U3080,'Markov BF'!U3080)*INDEX(tabCost_Treatment, $C175+1)) -> 0 | X175: =IF(X$137>=$B175, 0, SUM('Markov WM'!V3080,'Markov WF'!V3080,'Markov BM'!V3080,'Markov BF'!V3080)*INDEX(tabCost_Treatment, $C175+1)) -> 0 | Y175: =IF(Y$137>=$B175, 0, SUM('Markov WM'!W3080,'Markov WF'!W3080,'Markov BM'!W3080,'Markov BF'!W3080)*INDEX(tabCost_Treatment, $C175+1)) -> 0 | Z175: =IF(Z$137>=$B175, 0, SUM('Markov WM'!X3080,'Markov WF'!X3080,'Markov BM'!X3080,'Markov BF'!X3080)*INDEX(tabCost_Treatment, $C175+1)) -> 0 | AA175: =IF(AA$137>=$B175, 0, SUM('Markov WM'!Y3080,'Markov WF'!Y3080,'Markov BM'!Y3080,'Markov BF'!Y3080)*INDEX(tabCost_Treatment, $C175+1)) -> 0 | AB175: =IF(AB$137>=$B175, 0, SUM('Markov WM'!Z3080,'Markov WF'!Z3080,'Markov BM'!Z3080,'Markov BF'!Z3080)*INDEX(tabCost_Treatment, $C175+1)) -> 0 | AC175: =IF(AC$137>=$B175, 0, SUM('Markov WM'!AA3080,'Markov WF'!AA3080,'Markov BM'!AA3080,'Markov BF'!AA3080)*INDEX(tabCost_Treatment, $C175+1)) -> 0 | AD175: =IF(AD$137>=$B175, 0, SUM('Markov WM'!AB3080,'Markov WF'!AB3080,'Markov BM'!AB3080,'Markov BF'!AB3080)*INDEX(tabCost_Treatment, $C175+1)) -> 0
B176: 0 | C176: 4 | D176: 70 | E176: 39 | F176: =IF(F$137>=$B176, 0, SUM('Markov WM'!D3081,'Markov WF'!D3081,'Markov BM'!D3081,'Markov BF'!D3081)*INDEX(tabCost_Treatment, $C176+1)) -> 0 | G176: =IF(G$137>=$B176, 0, SUM('Markov WM'!E3081,'Markov WF'!E3081,'Markov BM'!E3081,'Markov BF'!E3081)*INDEX(tabCost_Treatment, $C176+1)) -> 0 | H176: =IF(H$137>=$B176, 0, SUM('Markov WM'!F3081,'Markov WF'!F3081,'Markov BM'!F3081,'Markov BF'!F3081)*INDEX(tabCost_Treatment, $C176+1)) -> 0 | I176: =IF(I$137>=$B176, 0, SUM('Markov WM'!G3081,'Markov WF'!G3081,'Markov BM'!G3081,'Markov BF'!G3081)*INDEX(tabCost_Treatment, $C176+1)) -> 0 | J176: =IF(J$137>=$B176, 0, SUM('Markov WM'!H3081,'Markov WF'!H3081,'Markov BM'!H3081,'Markov BF'!H3081)*INDEX(tabCost_Treatment, $C176+1)) -> 0 | K176: =IF(K$137>=$B176, 0, SUM('Markov WM'!I3081,'Markov WF'!I3081,'Markov BM'!I3081,'Markov BF'!I3081)*INDEX(tabCost_Treatment, $C176+1)) -> 0 | L176: =IF(L$137>=$B176, 0, SUM('Markov WM'!J3081,'Markov WF'!J3081,'Markov BM'!J3081,'Markov BF'!J3081)*INDEX(tabCost_Treatment, $C176+1)) -> 0 | M176: =IF(M$137>=$B176, 0, SUM('Markov WM'!K3081,'Markov WF'!K3081,'Markov BM'!K3081,'Markov BF'!K3081)*INDEX(tabCost_Treatment, $C176+1)) -> 0 | N176: =IF(N$137>=$B176, 0, SUM('Markov WM'!L3081,'Markov WF'!L3081,'Markov BM'!L3081,'Markov BF'!L3081)*INDEX(tabCost_Treatment, $C176+1)) -> 0 | O176: =IF(O$137>=$B176, 0, SUM('Markov WM'!M3081,'Markov WF'!M3081,'Markov BM'!M3081,'Markov BF'!M3081)*INDEX(tabCost_Treatment, $C176+1)) -> 0 | P176: =IF(P$137>=$B176, 0, SUM('Markov WM'!N3081,'Markov WF'!N3081,'Markov BM'!N3081,'Markov BF'!N3081)*INDEX(tabCost_Treatment, $C176+1)) -> 0 | Q176: =IF(Q$137>=$B176, 0, SUM('Markov WM'!O3081,'Markov WF'!O3081,'Markov BM'!O3081,'Markov BF'!O3081)*INDEX(tabCost_Treatment, $C176+1)) -> 0 | R176: =IF(R$137>=$B176, 0, SUM('Markov WM'!P3081,'Markov WF'!P3081,'Markov BM'!P3081,'Markov BF'!P3081)*INDEX(tabCost_Treatment, $C176+1)) -> 0 | S176: =IF(S$137>=$B176, 0, SUM('Markov WM'!Q3081,'Markov WF'!Q3081,'Markov BM'!Q3081,'Markov BF'!Q3081)*INDEX(tabCost_Treatment, $C176+1)) -> 0 | T176: =IF(T$137>=$B176, 0, SUM('Markov WM'!R3081,'Markov WF'!R3081,'Markov BM'!R3081,'Markov BF'!R3081)*INDEX(tabCost_Treatment, $C176+1)) -> 0 | U176: =IF(U$137>=$B176, 0, SUM('Markov WM'!S3081,'Markov WF'!S3081,'Markov BM'!S3081,'Markov BF'!S3081)*INDEX(tabCost_Treatment, $C176+1)) -> 0 | V176: =IF(V$137>=$B176, 0, SUM('Markov WM'!T3081,'Markov WF'!T3081,'Markov BM'!T3081,'Markov BF'!T3081)*INDEX(tabCost_Treatment, $C176+1)) -> 0 | W176: =IF(W$137>=$B176, 0, SUM('Markov WM'!U3081,'Markov WF'!U3081,'Markov BM'!U3081,'Markov BF'!U3081)*INDEX(tabCost_Treatment, $C176+1)) -> 0 | X176: =IF(X$137>=$B176, 0, SUM('Markov WM'!V3081,'Markov WF'!V3081,'Markov BM'!V3081,'Markov BF'!V3081)*INDEX(tabCost_Treatment, $C176+1)) -> 0 | Y176: =IF(Y$137>=$B176, 0, SUM('Markov WM'!W3081,'Markov WF'!W3081,'Markov BM'!W3081,'Markov BF'!W3081)*INDEX(tabCost_Treatment, $C176+1)) -> 0 | Z176: =IF(Z$137>=$B176, 0, SUM('Markov WM'!X3081,'Markov WF'!X3081,'Markov BM'!X3081,'Markov BF'!X3081)*INDEX(tabCost_Treatment, $C176+1)) -> 0 | AA176: =IF(AA$137>=$B176, 0, SUM('Markov WM'!Y3081,'Markov WF'!Y3081,'Markov BM'!Y3081,'Markov BF'!Y3081)*INDEX(tabCost_Treatment, $C176+1)) -> 0 | AB176: =IF(AB$137>=$B176, 0, SUM('Markov WM'!Z3081,'Markov WF'!Z3081,'Markov BM'!Z3081,'Markov BF'!Z3081)*INDEX(tabCost_Treatment, $C176+1)) -> 0 | AC176: =IF(AC$137>=$B176, 0, SUM('Markov WM'!AA3081,'Markov WF'!AA3081,'Markov BM'!AA3081,'Markov BF'!AA3081)*INDEX(tabCost_Treatment, $C176+1)) -> 0 | AD176: =IF(AD$137>=$B176, 0, SUM('Markov WM'!AB3081,'Markov WF'!AB3081,'Markov BM'!AB3081,'Markov BF'!AB3081)*INDEX(tabCost_Treatment, $C176+1)) -> 0
B177: 0 | C177: 4 | D177: 75 | E177: 40 | F177: =IF(F$137>=$B177, 0, SUM('Markov WM'!D3082,'Markov WF'!D3082,'Markov BM'!D3082,'Markov BF'!D3082)*INDEX(tabCost_Treatment, $C177+1)) -> 0 | G177: =IF(G$137>=$B177, 0, SUM('Markov WM'!E3082,'Markov WF'!E3082,'Markov BM'!E3082,'Markov BF'!E3082)*INDEX(tabCost_Treatment, $C177+1)) -> 0 | H177: =IF(H$137>=$B177, 0, SUM('Markov WM'!F3082,'Markov WF'!F3082,'Markov BM'!F3082,'Markov BF'!F3082)*INDEX(tabCost_Treatment, $C177+1)) -> 0 | I177: =IF(I$137>=$B177, 0, SUM('Markov WM'!G3082,'Markov WF'!G3082,'Markov BM'!G3082,'Markov BF'!G3082)*INDEX(tabCost_Treatment, $C177+1)) -> 0 | J177: =IF(J$137>=$B177, 0, SUM('Markov WM'!H3082,'Markov WF'!H3082,'Markov BM'!H3082,'Markov BF'!H3082)*INDEX(tabCost_Treatment, $C177+1)) -> 0 | K177: =IF(K$137>=$B177, 0, SUM('Markov WM'!I3082,'Markov WF'!I3082,'Markov BM'!I3082,'Markov BF'!I3082)*INDEX(tabCost_Treatment, $C177+1)) -> 0 | L177: =IF(L$137>=$B177, 0, SUM('Markov WM'!J3082,'Markov WF'!J3082,'Markov BM'!J3082,'Markov BF'!J3082)*INDEX(tabCost_Treatment, $C177+1)) -> 0 | M177: =IF(M$137>=$B177, 0, SUM('Markov WM'!K3082,'Markov WF'!K3082,'Markov BM'!K3082,'Markov BF'!K3082)*INDEX(tabCost_Treatment, $C177+1)) -> 0 | N177: =IF(N$137>=$B177, 0, SUM('Markov WM'!L3082,'Markov WF'!L3082,'Markov BM'!L3082,'Markov BF'!L3082)*INDEX(tabCost_Treatment, $C177+1)) -> 0 | O177: =IF(O$137>=$B177, 0, SUM('Markov WM'!M3082,'Markov WF'!M3082,'Markov BM'!M3082,'Markov BF'!M3082)*INDEX(tabCost_Treatment, $C177+1)) -> 0 | P177: =IF(P$137>=$B177, 0, SUM('Markov WM'!N3082,'Markov WF'!N3082,'Markov BM'!N3082,'Markov BF'!N3082)*INDEX(tabCost_Treatment, $C177+1)) -> 0 | Q177: =IF(Q$137>=$B177, 0, SUM('Markov WM'!O3082,'Markov WF'!O3082,'Markov BM'!O3082,'Markov BF'!O3082)*INDEX(tabCost_Treatment, $C177+1)) -> 0 | R177: =IF(R$137>=$B177, 0, SUM('Markov WM'!P3082,'Markov WF'!P3082,'Markov BM'!P3082,'Markov BF'!P3082)*INDEX(tabCost_Treatment, $C177+1)) -> 0 | S177: =IF(S$137>=$B177, 0, SUM('Markov WM'!Q3082,'Markov WF'!Q3082,'Markov BM'!Q3082,'Markov BF'!Q3082)*INDEX(tabCost_Treatment, $C177+1)) -> 0 | T177: =IF(T$137>=$B177, 0, SUM('Markov WM'!R3082,'Markov WF'!R3082,'Markov BM'!R3082,'Markov BF'!R3082)*INDEX(tabCost_Treatment, $C177+1)) -> 0 | U177: =IF(U$137>=$B177, 0, SUM('Markov WM'!S3082,'Markov WF'!S3082,'Markov BM'!S3082,'Markov BF'!S3082)*INDEX(tabCost_Treatment, $C177+1)) -> 0 | V177: =IF(V$137>=$B177, 0, SUM('Markov WM'!T3082,'Markov WF'!T3082,'Markov BM'!T3082,'Markov BF'!T3082)*INDEX(tabCost_Treatment, $C177+1)) -> 0 | W177: =IF(W$137>=$B177, 0, SUM('Markov WM'!U3082,'Markov WF'!U3082,'Markov BM'!U3082,'Markov BF'!U3082)*INDEX(tabCost_Treatment, $C177+1)) -> 0 | X177: =IF(X$137>=$B177, 0, SUM('Markov WM'!V3082,'Markov WF'!V3082,'Markov BM'!V3082,'Markov BF'!V3082)*INDEX(tabCost_Treatment, $C177+1)) -> 0 | Y177: =IF(Y$137>=$B177, 0, SUM('Markov WM'!W3082,'Markov WF'!W3082,'Markov BM'!W3082,'Markov BF'!W3082)*INDEX(tabCost_Treatment, $C177+1)) -> 0 | Z177: =IF(Z$137>=$B177, 0, SUM('Markov WM'!X3082,'Markov WF'!X3082,'Markov BM'!X3082,'Markov BF'!X3082)*INDEX(tabCost_Treatment, $C177+1)) -> 0 | AA177: =IF(AA$137>=$B177, 0, SUM('Markov WM'!Y3082,'Markov WF'!Y3082,'Markov BM'!Y3082,'Markov BF'!Y3082)*INDEX(tabCost_Treatment, $C177+1)) -> 0 | AB177: =IF(AB$137>=$B177, 0, SUM('Markov WM'!Z3082,'Markov WF'!Z3082,'Markov BM'!Z3082,'Markov BF'!Z3082)*INDEX(tabCost_Treatment, $C177+1)) -> 0 | AC177: =IF(AC$137>=$B177, 0, SUM('Markov WM'!AA3082,'Markov WF'!AA3082,'Markov BM'!AA3082,'Markov BF'!AA3082)*INDEX(tabCost_Treatment, $C177+1)) -> 0 | AD177: =IF(AD$137>=$B177, 0, SUM('Markov WM'!AB3082,'Markov WF'!AB3082,'Markov BM'!AB3082,'Markov BF'!AB3082)*INDEX(tabCost_Treatment, $C177+1)) -> 0

Sheet Intermed. Calc. Markov
B2: Intermediate calculations
B3: click the + signs on the left hand side to expand sections of the sheet
B5: 5 | C5: Fibrosis stages: F0 (non-progressors), F0 (progressors), F1, F2, F3, and F4
B6: =(80-40)*(1/CycleLength) -> 160 | C6: Age groups: 40.00, 40.25, 40.50, 40.75, 41.00, …, 79.50, 79.75
B9: 1. Race-, gender-, fibrosis-stage-, and age-specific model inputs
E12: Initial population | I12: Costs | Y12: QALYs
E13: Number of individuals in each health state | I13: Cycle-specific (3-month) | M13: Lifetime discounted costs (Terminal rewards) | Y13: Cycle-specific (3-month) | AC13: Lifetime discounted QALYs (Terminal rewards)
I14: Baseline health care costs | M14: Individuals who receive treatment this cycle | Q14: Individuals who will never receive treatment | U14: Individuals who age-out (turn 80) this cycle | Y14: Baseline utilities | AC14: Individuals who receive treatment this cycle | AG14: Individuals who will never receive treatment | AK14: Individuals who age-out (turn 80) this cycle
Q15: *Only used in the last cycle* | U15: *Only non-zero for individuals currently age 79.75 years* | AG15: *Only used in the last cycle* | AK15: *Only non-zero for individuals currently age 79.75 years*
E16: 1 | F16: 2 | G16: 3 | H16: 4 | I16: 1 | J16: 2 | K16: 3 | L16: 4 | M16: 1 | N16: 2 | O16: 3 | P16: 4 | Q16: 1 | R16: 2 | S16: 3 | T16: 4 | U16: 1 | V16: 2 | W16: 3 | X16: 4 | Y16: 1 | Z16: 2 | AA16: 3 | AB16: 4 | AC16: 1 | AD16: 2 | AE16: 3 | AF16: 4 | AG16: 1 | AH16: 2 | AI16: 3 | AJ16: 4 | AK16: 1 | AL16: 2 | AM16: 3 | AN16: 4
B17: State | C17: Fibrosis | D17: Age | E17: WM | F17: WF | G17: BM | H17: BF | I17: WM | J17: WF | K17: BM | L17: BF | M17: WM | N17: WF | O17: BM | P17: BF | Q17: WM | R17: WF | S17: BM | T17: BF | U17: WM | V17: WF | W17: BM | X17: BF | Y17: WM | Z17: WF | AA17: BM | AB17: BF | AC17: WM | AD17: WF | AE17: BM | AF17: BF | AG17: WM | AH17: WF | AI17: BM | AJ17: BF | AK17: WM | AL17: WF | AM17: BM | AN17: BF
B18: 1 | C18: 0 | D18: 40 | E18: =(VLOOKUP($D18,tab_InitPopHCV, E$16+1, TRUE)/5)*CycleLength*VLOOKUP($D18,tab_InitFibrDist, (E$16-1)*FibNum+$C18+2, TRUE)*IF($C18=0, IF($B18<=AgeNum, VLOOKUP($D18,tab_InitF0propNonProg, E$16+1, TRUE), 1- VLOOKUP($D18,tab_InitF0propNonProg, E$16+1, TRUE)), 1) -> 336.6203858 | F18: 246.4209662 | G18: 25.34728476 | H18: 44.10396074 | I18: =VLOOKUP($D18,tabCost_AnnualHC,(I$16-1)*FibNum+$C18+2, TRUE)*CycleLength -> 2158.432188 | J18: 2962.100347 | K18: 2158.432188 | L18: 2962.100347 | M18: =VLOOKUP($D18,tabCost_TermTrt,(M$16-1)*FibNum+$C18+2, TRUE) -> 242547.6782 | N18: 323350.3433 | O18: 198092.9883 | P18: 274125.6554 | Q18: =VLOOKUP($D18,tabCost_TermNoTrt,(Q$16-1)*(FibNum+1)+$C18+3+IF($B18<=AgeNum, -1, 0), TRUE) -> 250187.1999 | R18: 331854.3941 | S18: 206486.6685 | T18: 282134.9716 | U18: =VLOOKUP($C18,tabCost_Term80,U$16+1, TRUE)*IF($D18=79.75, 1, 0) -> 0 | V18: 0 | W18: 0 | X18: 0 | Y18: =VLOOKUP($D18,tabQALY_Annual,(Y$16-1)*FibNum+$C18+2, TRUE)*CycleLength -> 0.2173166667 | Z18: 0.2173166667 | AA18: 0.2173166667 | AB18: 0.2173166667 | AC18: =VLOOKUP($D18,tabQALY_TermTrt,(AC$16-1)*FibNum+$C18+2, TRUE) -> 16.0412 | AD18: 18.312 | AE18: 14.0634 | AF18: 16.2844 | AG18: =VLOOKUP($D18,tabQALY_TermNoTrt,(AG$16-1)*(FibNum+1)+$C18+3+IF($B18<=AgeNum, -1, 0), TRUE) -> 14.7804 | AH18: 17.2862 | AI18: 13.0299 | AJ18: 15.3709 | AK18: =VLOOKUP($C18,tabQALY_Term80,AK$16+1, TRUE)*IF($D18=79.75, 1, 0) -> 0 | AL18: 0 | AM18: 0 | AN18: 0
B19: 2 | C19: 0 | D19: 40.25 | E19: 336.6203858 | F19: 246.4209662 | G19: 25.34728476 | H19: 44.10396074 | I19: 2158.432188 | J19: 2962.100347 | K19: 2158.432188 | L19: 2962.100347 | M19: 242547.6782 | N19: 323350.3433 | O19: 198092.9883 | P19: 274125.6554 | Q19: 250187.1999 | R19: 331854.3941 | S19: 206486.6685 | T19: 282134.9716 | U19: 0 | V19: 0 | W19: 0 | X19: 0 | Y19: 0.2173166667 | Z19: 0.2173166667 | AA19: 0.2173166667 | AB19: 0.2173166667 | AC19: 16.0412 | AD19: 18.312 | AE19: 14.0634 | AF19: 16.2844 | AG19: 14.7804 | AH19: 17.2862 | AI19: 13.0299 | AJ19: 15.3709 | AK19: 0 | AL19: 0 | AM19: 0 | AN19: 0
B20: 3 | C20: 0 | D20: 40.5 | E20: 336.6203858 | F20: 246.4209662 | G20: 25.34728476 | H20: 44.10396074 | I20: =VLOOKUP($D20,tabCost_AnnualHC,(I$16-1)*FibNum+$C20+2, TRUE)*CycleLength -> 2158.432188 | J20: 2962.100347 | K20: 2158.432188 | L20: 2962.100347 | M20: 242547.6782 | N20: 323350.3433 | O20: 198092.9883 | P20: 274125.6554 | Q20: 250187.1999 | R20: 331854.3941 | S20: 206486.6685 | T20: 282134.9716 | U20: 0 | V20: 0 | W20: 0 | X20: 0 | Y20: 0.2173166667 | Z20: 0.2173166667 | AA20: 0.2173166667 | AB20: 0.2173166667 | AC20: 16.0412 | AD20: 18.312 | AE20: 14.0634 | AF20: 16.2844 | AG20: 14.7804 | AH20: 17.2862 | AI20: 13.0299 | AJ20: 15.3709 | AK20: 0 | AL20: 0 | AM20: 0 | AN20: 0
B21: 4 | C21: 0 | D21: 40.75 | E21: 336.6203858 | F21: 246.4209662 | G21: 25.34728476 | H21: 44.10396074 | I21: 2158.432188 | J21: 2962.100347 | K21: 2158.432188 | L21: 2962.100347 | M21: 242547.6782 | N21: 323350.3433 | O21: 198092.9883 | P21: 274125.6554 | Q21: 250187.1999 | R21: 331854.3941 | S21: 206486.6685 | T21: 282134.9716 | U21: 0 | V21: 0 | W21: 0 | X21: 0 | Y21: 0.2173166667 | Z21: 0.2173166667 | AA21: 0.2173166667 | AB21: 0.2173166667 | AC21: 16.0412 | AD21: 18.312 | AE21: 14.0634 | AF21: 16.2844 | AG21: 14.7804 | AH21: 17.2862 | AI21: 13.0299 | AJ21: 15.3709 | AK21: 0 | AL21: 0 | AM21: 0 | AN21: 0
B22: 5 | C22: 0 | D22: 41 | E22: 336.6203858 | F22: 246.4209662 | G22: 25.34728476 | H22: 44.10396074 | I22: 2158.432188 | J22: 2962.100347 | K22: 2158.432188 | L22: 2962.100347 | M22: 242547.6782 | N22: 323350.3433 | O22: 198092.9883 | P22: 274125.6554 | Q22: 250187.1999 | R22: 331854.3941 | S22: 206486.6685 | T22: 282134.9716 | U22: 0 | V22: 0 | W22: 0 | X22: 0 | Y22: 0.2173166667 | Z22: 0.2173166667 | AA22: 0.2173166667 | AB22: 0.2173166667 | AC22: 16.0412 | AD22: 18.312 | AE22: 14.0634 | AF22: 16.2844 | AG22: 14.7804 | AH22: 17.2862 | AI22: 13.0299 | AJ22: 15.3709 | AK22: 0 | AL22: 0 | AM22: 0 | AN22: 0
B23: 6 | C23: 0 | D23: 41.25 | E23: 336.6203858 | F23: 246.4209662 | G23: 25.34728476 | H23: 44.10396074 | I23: 2158.432188 | J23: 2962.100347 | K23: 2158.432188 | L23: 2962.100347 | M23: 242547.6782 | N23: 323350.3433 | O23: 198092.9883 | P23: 274125.6554 | Q23: 250187.1999 | R23: 331854.3941 | S23: 206486.6685 | T23: 282134.9716 | U23: 0 | V23: 0 | W23: 0 | X23: 0 | Y23: 0.2173166667 | Z23: 0.2173166667 | AA23: 0.2173166667 | AB23: 0.2173166667 | AC23: 16.0412 | AD23: 18.312 | AE23: 14.0634 | AF23: 16.2844 | AG23: 14.7804 | AH23: 17.2862 | AI23: 13.0299 | AJ23: 15.3709 | AK23: 0 | AL23: 0 | AM23: 0 | AN23: 0
B24: 7 | C24: 0 | D24: 41.5 | E24: 336.6203858 | F24: 246.4209662 | G24: 25.34728476 | H24: 44.10396074 | I24: 2158.432188 | J24: 2962.100347 | K24: 2158.432188 | L24: 2962.100347 | M24: 242547.6782 | N24: 323350.3433 | O24: 198092.9883 | P24: 274125.6554 | Q24: 250187.1999 | R24: 331854.3941 | S24: 206486.6685 | T24: 282134.9716 | U24: 0 | V24: 0 | W24: 0 | X24: 0 | Y24: 0.2173166667 | Z24: 0.2173166667 | AA24: 0.2173166667 | AB24: 0.2173166667 | AC24: 16.0412 | AD24: 18.312 | AE24: 14.0634 | AF24: 16.2844 | AG24: 14.7804 | AH24: 17.2862 | AI24: 13.0299 | AJ24: 15.3709 | AK24: 0 | AL24: 0 | AM24: 0 | AN24: 0
B25: 8 | C25: 0 | D25: 41.75 | E25: 336.6203858 | F25: 246.4209662 | G25: 25.34728476 | H25: 44.10396074 | I25: 2158.432188 | J25: 2962.100347 | K25: 2158.432188 | L25: 2962.100347 | M25: 242547.6782 | N25: 323350.3433 | O25: 198092.9883 | P25: 274125.6554 | Q25: 250187.1999 | R25: 331854.3941 | S25: 206486.6685 | T25: 282134.9716 | U25: 0 | V25: 0 | W25: 0 | X25: 0 | Y25: 0.2173166667 | Z25: 0.2173166667 | AA25: 0.2173166667 | AB25: 0.2173166667 | AC25: 16.0412 | AD25: 18.312 | AE25: 14.0634 | AF25: 16.2844 | AG25: 14.7804 | AH25: 17.2862 | AI25: 13.0299 | AJ25: 15.3709 | AK25: 0 | AL25: 0 | AM25: 0 | AN25: 0
B26: 9 | C26: 0 | D26: 42 | E26: 336.6203858 | F26: 246.4209662 | G26: 25.34728476 | H26: 44.10396074 | I26: 2158.432188 | J26: 2962.100347 | K26: 2158.432188 | L26: 2962.100347 | M26: 242547.6782 | N26: 323350.3433 | O26: 198092.9883 | P26: 274125.6554 | Q26: 250187.1999 | R26: 331854.3941 | S26: 206486.6685 | T26: 282134.9716 | U26: 0 | V26: 0 | W26: 0 | X26: 0 | Y26: 0.2173166667 | Z26: 0.2173166667 | AA26: 0.2173166667 | AB26: 0.2173166667 | AC26: 16.0412 | AD26: 18.312 | AE26: 14.0634 | AF26: 16.2844 | AG26: 14.7804 | AH26: 17.2862 | AI26: 13.0299 | AJ26: 15.3709 | AK26: 0 | AL26: 0 | AM26: 0 | AN26: 0
B27: 10 | C27: 0 | D27: 42.25 | E27: 336.6203858 | F27: 246.4209662 | G27: 25.34728476 | H27: 44.10396074 | I27: 2158.432188 | J27: 2962.100347 | K27: 2158.432188 | L27: 2962.100347 | M27: 242547.6782 | N27: 323350.3433 | O27: 198092.9883 | P27: 274125.6554 | Q27: 250187.1999 | R27: 331854.3941 | S27: 206486.6685 | T27: 282134.9716 | U27: 0 | V27: 0 | W27: 0 | X27: 0 | Y27: 0.2173166667 | Z27: 0.2173166667 | AA27: 0.2173166667 | AB27: 0.2173166667 | AC27: 16.0412 | AD27: 18.312 | AE27: 14.0634 | AF27: 16.2844 | AG27: 14.7804 | AH27: 17.2862 | AI27: 13.0299 | AJ27: 15.3709 | AK27: 0 | AL27: 0 | AM27: 0 | AN27: 0
B28: 11 | C28: 0 | D28: 42.5 | E28: 336.6203858 | F28: 246.4209662 | G28: 25.34728476 | H28: 44.10396074 | I28: 2158.432188 | J28: 2962.100347 | K28: 2158.432188 | L28: 2962.100347 | M28: 242547.6782 | N28: 323350.3433 | O28: 198092.9883 | P28: 274125.6554 | Q28: 250187.1999 | R28: 331854.3941 | S28: 206486.6685 | T28: 282134.9716 | U28: 0 | V28: 0 | W28: 0 | X28: 0 | Y28: 0.2173166667 | Z28: 0.2173166667 | AA28: 0.2173166667 | AB28: 0.2173166667 | AC28: 16.0412 | AD28: 18.312 | AE28: 14.0634 | AF28: 16.2844 | AG28: 14.7804 | AH28: 17.2862 | AI28: 13.0299 | AJ28: 15.3709 | AK28: 0 | AL28: 0 | AM28: 0 | AN28: 0
B29: 12 | C29: 0 | D29: 42.75 | E29: 336.6203858 | F29: 246.4209662 | G29: 25.34728476 | H29: 44.10396074 | I29: 2158.432188 | J29: 2962.100347 | K29: 2158.432188 | L29: 2962.100347 | M29: 242547.6782 | N29: 323350.3433 | O29: 198092.9883 | P29: 274125.6554 | Q29: 250187.1999 | R29: 331854.3941 | S29: 206486.6685 | T29: 282134.9716 | U29: 0 | V29: 0 | W29: 0 | X29: 0 | Y29: 0.2173166667 | Z29: 0.2173166667 | AA29: 0.2173166667 | AB29: 0.2173166667 | AC29: 16.0412 | AD29: 18.312 | AE29: 14.0634 | AF29: 16.2844 | AG29: 14.7804 | AH29: 17.2862 | AI29: 13.0299 | AJ29: 15.3709 | AK29: 0 | AL29: 0 | AM29: 0 | AN29: 0
B30: 13 | C30: 0 | D30: 43 | E30: 336.6203858 | F30: 246.4209662 | G30: 25.34728476 | H30: 44.10396074 | I30: 2158.432188 | J30: 2962.100347 | K30: 2158.432188 | L30: 2962.100347 | M30: 242547.6782 | N30: 323350.3433 | O30: 198092.9883 | P30: 274125.6554 | Q30: 250187.1999 | R30: 331854.3941 | S30: 206486.6685 | T30: 282134.9716 | U30: 0 | V30: 0 | W30: 0 | X30: 0 | Y30: 0.2173166667 | Z30: 0.2173166667 | AA30: 0.2173166667 | AB30: 0.2173166667 | AC30: 16.0412 | AD30: 18.312 | AE30: 14.0634 | AF30: 16.2844 | AG30: 14.7804 | AH30: 17.2862 | AI30: 13.0299 | AJ30: 15.3709 | AK30: 0 | AL30: 0 | AM30: 0 | AN30: 0
B31: 14 | C31: 0 | D31: 43.25 | E31: 336.6203858 | F31: 246.4209662 | G31: 25.34728476 | H31: 44.10396074 | I31: 2158.432188 | J31: 2962.100347 | K31: 2158.432188 | L31: 2962.100347 | M31: 242547.6782 | N31: 323350.3433 | O31: 198092.9883 | P31: 274125.6554 | Q31: 250187.1999 | R31: 331854.3941 | S31: 206486.6685 | T31: 282134.9716 | U31: 0 | V31: 0 | W31: 0 | X31: 0 | Y31: 0.2173166667 | Z31: 0.2173166667 | AA31: 0.2173166667 | AB31: 0.2173166667 | AC31: 16.0412 | AD31: 18.312 | AE31: 14.0634 | AF31: 16.2844 | AG31: 14.7804 | AH31: 17.2862 | AI31: 13.0299 | AJ31: 15.3709 | AK31: 0 | AL31: 0 | AM31: 0 | AN31: 0
B32: 15 | C32: 0 | D32: 43.5 | E32: 336.6203858 | F32: 246.4209662 | G32: 25.34728476 | H32: 44.10396074 | I32: 2158.432188 | J32: 2962.100347 | K32: 2158.432188 | L32: 2962.100347 | M32: 242547.6782 | N32: 323350.3433 | O32: 198092.9883 | P32: =VLOOKUP($D32,tabCost_TermTrt,(P$16-1)*FibNum+$C32+2, TRUE) -> 274125.6554 | Q32: 250187.1999 | R32: 331854.3941 | S32: 206486.6685 | T32: =VLOOKUP($D32,tabCost_TermNoTrt,(T$16-1)*(FibNum+1)+$C32+3+IF($B32<=AgeNum, -1, 0), TRUE) -> 282134.9716 | U32: 0 | V32: 0 | W32: 0 | X32: 0 | Y32: 0.2173166667 | Z32: 0.2173166667 | AA32: 0.2173166667 | AB32: 0.2173166667 | AC32: 16.0412 | AD32: 18.312 | AE32: 14.0634 | AF32: 16.2844 | AG32: 14.7804 | AH32: 17.2862 | AI32: 13.0299 | AJ32: 15.3709 | AK32: 0 | AL32: 0 | AM32: 0 | AN32: 0
B33: 16 | C33: 0 | D33: 43.75 | E33: 336.6203858 | F33: 246.4209662 | G33: 25.34728476 | H33: 44.10396074 | I33: 2158.432188 | J33: 2962.100347 | K33: 2158.432188 | L33: 2962.100347 | M33: 242547.6782 | N33: 323350.3433 | O33: 198092.9883 | P33: 274125.6554 | Q33: 250187.1999 | R33: 331854.3941 | S33: 206486.6685 | T33: 282134.9716 | U33: 0 | V33: 0 | W33: 0 | X33: 0 | Y33: 0.2173166667 | Z33: 0.2173166667 | AA33: 0.2173166667 | AB33: 0.2173166667 | AC33: 16.0412 | AD33: 18.312 | AE33: 14.0634 | AF33: 16.2844 | AG33: 14.7804 | AH33: 17.2862 | AI33: 13.0299 | AJ33: 15.3709 | AK33: 0 | AL33: 0 | AM33: 0 | AN33: 0
B34: 17 | C34: 0 | D34: 44 | E34: 336.6203858 | F34: 246.4209662 | G34: 25.34728476 | H34: 44.10396074 | I34: 2158.432188 | J34: 2962.100347 | K34: 2158.432188 | L34: 2962.100347 | M34: 242547.6782 | N34: 323350.3433 | O34: 198092.9883 | P34: 274125.6554 | Q34: 250187.1999 | R34: 331854.3941 | S34: 206486.6685 | T34: 282134.9716 | U34: 0 | V34: 0 | W34: 0 | X34: 0 | Y34: 0.2173166667 | Z34: 0.2173166667 | AA34: 0.2173166667 | AB34: 0.2173166667 | AC34: 16.0412 | AD34: 18.312 | AE34: 14.0634 | AF34: 16.2844 | AG34: 14.7804 | AH34: 17.2862 | AI34: 13.0299 | AJ34: 15.3709 | AK34: 0 | AL34: 0 | AM34: 0 | AN34: 0
B35: 18 | C35: 0 | D35: 44.25 | E35: 336.6203858 | F35: 246.4209662 | G35: 25.34728476 | H35: 44.10396074 | I35: 2158.432188 | J35: 2962.100347 | K35: 2158.432188 | L35: 2962.100347 | M35: 242547.6782 | N35: 323350.3433 | O35: 198092.9883 | P35: 274125.6554 | Q35: 250187.1999 | R35: 331854.3941 | S35: 206486.6685 | T35: 282134.9716 | U35: 0 | V35: 0 | W35: 0 | X35: 0 | Y35: 0.2173166667 | Z35: 0.2173166667 | AA35: 0.2173166667 | AB35: 0.2173166667 | AC35: 16.0412 | AD35: 18.312 | AE35: 14.0634 | AF35: 16.2844 | AG35: 14.7804 | AH35: 17.2862 | AI35: 13.0299 | AJ35: 15.3709 | AK35: 0 | AL35: 0 | AM35: 0 | AN35: 0
B36: 19 | C36: 0 | D36: 44.5 | E36: 336.6203858 | F36: 246.4209662 | G36: 25.34728476 | H36: 44.10396074 | I36: 2158.432188 | J36: 2962.100347 | K36: 2158.432188 | L36: 2962.100347 | M36: 242547.6782 | N36: 323350.3433 | O36: 198092.9883 | P36: 274125.6554 | Q36: 250187.1999 | R36: 331854.3941 | S36: 206486.6685 | T36: 282134.9716 | U36: 0 | V36: 0 | W36: 0 | X36: 0 | Y36: 0.2173166667 | Z36: 0.2173166667 | AA36: 0.2173166667 | AB36: 0.2173166667 | AC36: 16.0412 | AD36: 18.312 | AE36: 14.0634 | AF36: 16.2844 | AG36: 14.7804 | AH36: 17.2862 | AI36: 13.0299 | AJ36: 15.3709 | AK36: 0 | AL36: 0 | AM36: 0 | AN36: 0
B37: 20 | C37: 0 | D37: 44.75 | E37: 336.6203858 | F37: 246.4209662 | G37: 25.34728476 | H37: 44.10396074 | I37: 2158.432188 | J37: 2962.100347 | K37: 2158.432188 | L37: 2962.100347 | M37: 242547.6782 | N37: 323350.3433 | O37: 198092.9883 | P37: 274125.6554 | Q37: 250187.1999 | R37: 331854.3941 | S37: 206486.6685 | T37: 282134.9716 | U37: 0 | V37: 0 | W37: 0 | X37: 0 | Y37: 0.2173166667 | Z37: 0.2173166667 | AA37: 0.2173166667 | AB37: 0.2173166667 | AC37: 16.0412 | AD37: 18.312 | AE37: 14.0634 | AF37: 16.2844 | AG37: 14.7804 | AH37: 17.2862 | AI37: 13.0299 | AJ37: 15.3709 | AK37: 0 | AL37: 0 | AM37: 0 | AN37: 0
B38: 21 | C38: 0 | D38: 45 | E38: =(VLOOKUP($D38,tab_InitPopHCV, E$16+1, TRUE)/5)*CycleLength*VLOOKUP($D38,tab_InitFibrDist, (E$16-1)*FibNum+$C38+2, TRUE)*IF($C38=0, IF($B38<=AgeNum, VLOOKUP($D38,tab_InitF0propNonProg, E$16+1, TRUE), 1- VLOOKUP($D38,tab_InitF0propNonProg, E$16+1, TRUE)), 1) -> 765.7963443 | F38: 562.0724902 | G38: 91.10513573 | H38: 85.41819143 | I38: =VLOOKUP($D38,tabCost_AnnualHC,(I$16-1)*FibNum+$C38+2, TRUE)*CycleLength -> 2604.71855 | J38: 3154.513808 | K38: 2604.71855 | L38: 3154.513808 | M38: =VLOOKUP($D38,tabCost_TermTrt,(M$16-1)*FibNum+$C38+2, TRUE) -> 247473.5258 | N38: 323666.2853 | O38: 198862.2352 | P38: 270340.5583 | Q38: =VLOOKUP($D38,tabCost_TermNoTrt,(Q$16-1)*(FibNum+1)+$C38+3+IF($B38<=AgeNum, -1, 0), TRUE) -> 253244.5408 | R38: 331311.6369 | S38: 204969.8765 | T38: 276974.6678 | U38: =VLOOKUP($C38,tabCost_Term80,U$16+1, TRUE)*IF($D38=79.75, 1, 0) -> 0 | V38: 0 | W38: 0 | X38: 0 | Y38: =VLOOKUP($D38,tabQALY_Annual,(Y$16-1)*FibNum+$C38+2, TRUE)*CycleLength -> 0.2133083333 | Z38: 0.2133083333 | AA38: 0.2133083333 | AB38: 0.2133083333 | AC38: =VLOOKUP($D38,tabQALY_TermTrt,(AC$16-1)*FibNum+$C38+2, TRUE) -> 14.3222 | AD38: 16.7301 | AE38: 12.259 | AF38: 14.6063 | AG38: =VLOOKUP($D38,tabQALY_TermNoTrt,(AG$16-1)*(FibNum+1)+$C38+3+IF($B38<=AgeNum, -1, 0), TRUE) -> 13.0648 | AH38: 15.6826 | AI38: 11.2485 | AJ38: 13.6886 | AK38: =VLOOKUP($C38,tabQALY_Term80,AK$16+1, TRUE)*IF($D38=79.75, 1, 0) -> 0 | AL38: 0 | AM38: 0 | AN38: 0
B39: 22 | C39: 0 | D39: 45.25 | E39: 765.7963443 | F39: 562.0724902 | G39: 91.10513573 | H39: 85.41819143 | I39: 2604.71855 | J39: 3154.513808 | K39: 2604.71855 | L39: 3154.513808 | M39: 247473.5258 | N39: 323666.2853 | O39: 198862.2352 | P39: 270340.5583 | Q39: 253244.5408 | R39: 331311.6369 | S39: 204969.8765 | T39: 276974.6678 | U39: 0 | V39: 0 | W39: 0 | X39: 0 | Y39: 0.2133083333 | Z39: 0.2133083333 | AA39: 0.2133083333 | AB39: 0.2133083333 | AC39: 14.3222 | AD39: 16.7301 | AE39: 12.259 | AF39: 14.6063 | AG39: 13.0648 | AH39: 15.6826 | AI39: 11.2485 | AJ39: 13.6886 | AK39: 0 | AL39: 0 | AM39: 0 | AN39: 0
B40: 23 | C40: 0 | D40: 45.5 | E40: 765.7963443 | F40: 562.0724902 | G40: 91.10513573 | H40: 85.41819143 | I40: 2604.71855 | J40: 3154.513808 | K40: 2604.71855 | L40: 3154.513808 | M40: 247473.5258 | N40: 323666.2853 | O40: 198862.2352 | P40: 270340.5583 | Q40: 253244.5408 | R40: 331311.6369 | S40: 204969.8765 | T40: 276974.6678 | U40: 0 | V40: 0 | W40: 0 | X40: 0 | Y40: 0.2133083333 | Z40: 0.2133083333 | AA40: 0.2133083333 | AB40: 0.2133083333 | AC40: 14.3222 | AD40: 16.7301 | AE40: 12.259 | AF40: 14.6063 | AG40: 13.0648 | AH40: 15.6826 | AI40: 11.2485 | AJ40: 13.6886 | AK40: 0 | AL40: 0 | AM40: 0 | AN40: 0
B41: 24 | C41: 0 | D41: 45.75 | E41: 765.7963443 | F41: 562.0724902 | G41: 91.10513573 | H41: 85.41819143 | I41: 2604.71855 | J41: 3154.513808 | K41: 2604.71855 | L41: 3154.513808 | M41: 247473.5258 | N41: 323666.2853 | O41: 198862.2352 | P41: 270340.5583 | Q41: 253244.5408 | R41: 331311.6369 | S41: 204969.8765 | T41: 276974.6678 | U41: 0 | V41: 0 | W41: 0 | X41: 0 | Y41: 0.2133083333 | Z41: 0.2133083333 | AA41: 0.2133083333 | AB41: 0.2133083333 | AC41: 14.3222 | AD41: 16.7301 | AE41: 12.259 | AF41: 14.6063 | AG41: 13.0648 | AH41: 15.6826 | AI41: 11.2485 | AJ41: 13.6886 | AK41: 0 | AL41: 0 | AM41: 0 | AN41: 0
B42: 25 | C42: 0 | D42: 46 | E42: 765.7963443 | F42: 562.0724902 | G42: 91.10513573 | H42: 85.41819143 | I42: 2604.71855 | J42: 3154.513808 | K42: 2604.71855 | L42: 3154.513808 | M42: 247473.5258 | N42: 323666.2853 | O42: 198862.2352 | P42: 270340.5583 | Q42: 253244.5408 | R42: 331311.6369 | S42: 204969.8765 | T42: 276974.6678 | U42: 0 | V42: 0 | W42: 0 | X42: 0 | Y42: 0.2133083333 | Z42: 0.2133083333 | AA42: 0.2133083333 | AB42: 0.2133083333 | AC42: 14.3222 | AD42: 16.7301 | AE42: 12.259 | AF42: 14.6063 | AG42: 13.0648 | AH42: 15.6826 | AI42: 11.2485 | AJ42: 13.6886 | AK42: 0 | AL42: 0 | AM42: 0 | AN42: 0
B43: 26 | C43: 0 | D43: 46.25 | E43: 765.7963443 | F43: 562.0724902 | G43: 91.10513573 | H43: 85.41819143 | I43: 2604.71855 | J43: 3154.513808 | K43: 2604.71855 | L43: 3154.513808 | M43: 247473.5258 | N43: 323666.2853 | O43: 198862.2352 | P43: 270340.5583 | Q43: 253244.5408 | R43: 331311.6369 | S43: 204969.8765 | T43: 276974.6678 | U43: 0 | V43: 0 | W43: 0 | X43: 0 | Y43: 0.2133083333 | Z43: 0.2133083333 | AA43: 0.2133083333 | AB43: 0.2133083333 | AC43: 14.3222 | AD43: 16.7301 | AE43: 12.259 | AF43: 14.6063 | AG43: 13.0648 | AH43: 15.6826 | AI43: 11.2485 | AJ43: 13.6886 | AK43: 0 | AL43: 0 | AM43: 0 | AN43: 0
B44: 27 | C44: 0 | D44: 46.5 | E44: 765.7963443 | F44: 562.0724902 | G44: 91.10513573 | H44: 85.41819143 | I44: 2604.71855 | J44: 3154.513808 | K44: 2604.71855 | L44: 3154.513808 | M44: 247473.5258 | N44: 323666.2853 | O44: 198862.2352 | P44: 270340.5583 | Q44: 253244.5408 | R44: 331311.6369 | S44: 204969.8765 | T44: 276974.6678 | U44: 0 | V44: 0 | W44: 0 | X44: 0 | Y44: 0.2133083333 | Z44: 0.2133083333 | AA44: 0.2133083333 | AB44: 0.2133083333 | AC44: 14.3222 | AD44: 16.7301 | AE44: 12.259 | AF44: 14.6063 | AG44: 13.0648 | AH44: 15.6826 | AI44: 11.2485 | AJ44: 13.6886 | AK44: 0 | AL44: 0 | AM44: 0 | AN44: 0
B45: 28 | C45: 0 | D45: 46.75 | E45: 765.7963443 | F45: 562.0724902 | G45: 91.10513573 | H45: 85.41819143 | I45: 2604.71855 | J45: 3154.513808 | K45: 2604.71855 | L45: 3154.513808 | M45: 247473.5258 | N45: 323666.2853 | O45: 198862.2352 | P45: 270340.5583 | Q45: 253244.5408 | R45: 331311.6369 | S45: 204969.8765 | T45: 276974.6678 | U45: 0 | V45: 0 | W45: 0 | X45: 0 | Y45: 0.2133083333 | Z45: 0.2133083333 | AA45: 0.2133083333 | AB45: 0.2133083333 | AC45: 14.3222 | AD45: 16.7301 | AE45: 12.259 | AF45: 14.6063 | AG45: 13.0648 | AH45: 15.6826 | AI45: 11.2485 | AJ45: 13.6886 | AK45: 0 | AL45: 0 | AM45: 0 | AN45: 0
B46: 29 | C46: 0 | D46: 47 | E46: 765.7963443 | F46: 562.0724902 | G46: 91.10513573 | H46: 85.41819143 | I46: 2604.71855 | J46: 3154.513808 | K46: 2604.71855 | L46: 3154.513808 | M46: 247473.5258 | N46: 323666.2853 | O46: 198862.2352 | P46: 270340.5583 | Q46: 253244.5408 | R46: 331311.6369 | S46: 204969.8765 | T46: 276974.6678 | U46: 0 | V46: 0 | W46: 0 | X46: 0 | Y46: 0.2133083333 | Z46: 0.2133083333 | AA46: 0.2133083333 | AB46: 0.2133083333 | AC46: 14.3222 | AD46: 16.7301 | AE46: 12.259 | AF46: 14.6063 | AG46: 13.0648 | AH46: 15.6826 | AI46: 11.2485 | AJ46: 13.6886 | AK46: 0 | AL46: 0 | AM46: 0 | AN46: 0
B47: 30 | C47: 0 | D47: 47.25 | E47: 765.7963443 | F47: 562.0724902 | G47: 91.10513573 | H47: 85.41819143 | I47: 2604.71855 | J47: 3154.513808 | K47: 2604.71855 | L47: 3154.513808 | M47: 247473.5258 | N47: 323666.2853 | O47: 198862.2352 | P47: 270340.5583 | Q47: 253244.5408 | R47: 331311.6369 | S47: 204969.8765 | T47: 276974.6678 | U47: 0 | V47: 0 | W47: 0 | X47: 0 | Y47: 0.2133083333 | Z47: 0.2133083333 | AA47: 0.2133083333 | AB47: 0.2133083333 | AC47: 14.3222 | AD47: 16.7301 | AE47: 12.259 | AF47: 14.6063 | AG47: 13.0648 | AH47: 15.6826 | AI47: 11.2485 | AJ47: 13.6886 | AK47: 0 | AL47: 0 | AM47: 0 | AN47: 0
B48: 31 | C48: 0 | D48: 47.5 | E48: 765.7963443 | F48: 562.0724902 | G48: 91.10513573 | H48: 85.41819143 | I48: 2604.71855 | J48: 3154.513808 | K48: 2604.71855 | L48: 3154.513808 | M48: 247473.5258 | N48: 323666.2853 | O48: 198862.2352 | P48: 270340.5583 | Q48: 253244.5408 | R48: 331311.6369 | S48: 204969.8765 | T48: 276974.6678 | U48: 0 | V48: 0 | W48: 0 | X48: 0 | Y48: 0.2133083333 | Z48: 0.2133083333 | AA48: 0.2133083333 | AB48: 0.2133083333 | AC48: 14.3222 | AD48: 16.7301 | AE48: 12.259 | AF48: 14.6063 | AG48: 13.0648 | AH48: 15.6826 | AI48: 11.2485 | AJ48: 13.6886 | AK48: 0 | AL48: 0 | AM48: 0 | AN48: 0
B49: 32 | C49: 0 | D49: 47.75 | E49: 765.7963443 | F49: 562.0724902 | G49: 91.10513573 | H49: 85.41819143 | I49: 2604.71855 | J49: 3154.513808 | K49: 2604.71855 | L49: 3154.513808 | M49: 247473.5258 | N49: 323666.2853 | O49: 198862.2352 | P49: 270340.5583 | Q49: 253244.5408 | R49: 331311.6369 | S49: 204969.8765 | T49: 276974.6678 | U49: 0 | V49: 0 | W49: 0 | X49: 0 | Y49: 0.2133083333 | Z49: 0.2133083333 | AA49: 0.2133083333 | AB49: 0.2133083333 | AC49: 14.3222 | AD49: 16.7301 | AE49: 12.259 | AF49: 14.6063 | AG49: 13.0648 | AH49: 15.6826 | AI49: 11.2485 | AJ49: 13.6886 | AK49: 0 | AL49: 0 | AM49: 0 | AN49: 0
B50: 33 | C50: 0 | D50: 48 | E50: 765.7963443 | F50: 562.0724902 | G50: 91.10513573 | H50: 85.41819143 | I50: 2604.71855 | J50: 3154.513808 | K50: 2604.71855 | L50: 3154.513808 | M50: 247473.5258 | N50: 323666.2853 | O50: 198862.2352 | P50: 270340.5583 | Q50: 253244.5408 | R50: 331311.6369 | S50: 204969.8765 | T50: 276974.6678 | U50: 0 | V50: 0 | W50: 0 | X50: 0 | Y50: 0.2133083333 | Z50: 0.2133083333 | AA50: 0.2133083333 | AB50: 0.2133083333 | AC50: 14.3222 | AD50: 16.7301 | AE50: 12.259 | AF50: 14.6063 | AG50: 13.0648 | AH50: 15.6826 | AI50: 11.2485 | AJ50: 13.6886 | AK50: 0 | AL50: 0 | AM50: 0 | AN50: 0
B51: 34 | C51: 0 | D51: 48.25 | E51: 765.7963443 | F51: 562.0724902 | G51: 91.10513573 | H51: 85.41819143 | I51: 2604.71855 | J51: 3154.513808 | K51: 2604.71855 | L51: 3154.513808 | M51: 247473.5258 | N51: 323666.2853 | O51: 198862.2352 | P51: 270340.5583 | Q51: 253244.5408 | R51: 331311.6369 | S51: 204969.8765 | T51: 276974.6678 | U51: 0 | V51: 0 | W51: 0 | X51: 0 | Y51: 0.2133083333 | Z51: 0.2133083333 | AA51: 0.2133083333 | AB51: 0.2133083333 | AC51: 14.3222 | AD51: 16.7301 | AE51: 12.259 | AF51: 14.6063 | AG51: 13.0648 | AH51: 15.6826 | AI51: 11.2485 | AJ51: 13.6886 | AK51: 0 | AL51: 0 | AM51: 0 | AN51: 0
B52: 35 | C52: 0 | D52: 48.5 | E52: 765.7963443 | F52: 562.0724902 | G52: 91.10513573 | H52: 85.41819143 | I52: 2604.71855 | J52: 3154.513808 | K52: 2604.71855 | L52: 3154.513808 | M52: 247473.5258 | N52: 323666.2853 | O52: 198862.2352 | P52: 270340.5583 | Q52: 253244.5408 | R52: 331311.6369 | S52: 204969.8765 | T52: 276974.6678 | U52: 0 | V52: 0 | W52: 0 | X52: 0 | Y52: 0.2133083333 | Z52: 0.2133083333 | AA52: 0.2133083333 | AB52: 0.2133083333 | AC52: 14.3222 | AD52: 16.7301 | AE52: 12.259 | AF52: 14.6063 | AG52: 13.0648 | AH52: 15.6826 | AI52: 11.2485 | AJ52: 13.6886 | AK52: 0 | AL52: 0 | AM52: 0 | AN52: 0
B53: 36 | C53: 0 | D53: 48.75 | E53: 765.7963443 | F53: 562.0724902 | G53: 91.10513573 | H53: 85.41819143 | I53: 2604.71855 | J53: 3154.513808 | K53: 2604.71855 | L53: 3154.513808 | M53: 247473.5258 | N53: 323666.2853 | O53: 198862.2352 | P53: 270340.5583 | Q53: 253244.5408 | R53: 331311.6369 | S53: 204969.8765 | T53: 276974.6678 | U53: 0 | V53: 0 | W53: 0 | X53: 0 | Y53: 0.2133083333 | Z53: 0.2133083333 | AA53: 0.2133083333 | AB53: 0.2133083333 | AC53: 14.3222 | AD53: 16.7301 | AE53: 12.259 | AF53: 14.6063 | AG53: 13.0648 | AH53: 15.6826 | AI53: 11.2485 | AJ53: 13.6886 | AK53: 0 | AL53: 0 | AM53: 0 | AN53: 0
B54: 37 | C54: 0 | D54: 49 | E54: 765.7963443 | F54: 562.0724902 | G54: 91.10513573 | H54: 85.41819143 | I54: 2604.71855 | J54: 3154.513808 | K54: 2604.71855 | L54: 3154.513808 | M54: 247473.5258 | N54: 323666.2853 | O54: 198862.2352 | P54: 270340.5583 | Q54: 253244.5408 | R54: 331311.6369 | S54: 204969.8765 | T54: 276974.6678 | U54: 0 | V54: 0 | W54: 0 | X54: 0 | Y54: 0.2133083333 | Z54: 0.2133083333 | AA54: 0.2133083333 | AB54: 0.2133083333 | AC54: 14.3222 | AD54: 16.7301 | AE54: 12.259 | AF54: 14.6063 | AG54: 13.0648 | AH54: 15.6826 | AI54: 11.2485 | AJ54: 13.6886 | AK54: 0 | AL54: 0 | AM54: 0 | AN54: 0
B55: 38 | C55: 0 | D55: 49.25 | E55: 765.7963443 | F55: 562.0724902 | G55: 91.10513573 | H55: 85.41819143 | I55: 2604.71855 | J55: 3154.513808 | K55: 2604.71855 | L55: 3154.513808 | M55: 247473.5258 | N55: 323666.2853 | O55: 198862.2352 | P55: 270340.5583 | Q55: 253244.5408 | R55: 331311.6369 | S55: 204969.8765 | T55: 276974.6678 | U55: 0 | V55: 0 | W55: 0 | X55: 0 | Y55: 0.2133083333 | Z55: 0.2133083333 | AA55: 0.2133083333 | AB55: 0.2133083333 | AC55: 14.3222 | AD55: 16.7301 | AE55: 12.259 | AF55: 14.6063 | AG55: 13.0648 | AH55: 15.6826 | AI55: 11.2485 | AJ55: 13.6886 | AK55: 0 | AL55: 0 | AM55: 0 | AN55: 0
B56: 39 | C56: 0 | D56: 49.5 | E56: 765.7963443 | F56: 562.0724902 | G56: 91.10513573 | H56: 85.41819143 | I56: 2604.71855 | J56: 3154.513808 | K56: 2604.71855 | L56: 3154.513808 | M56: 247473.5258 | N56: 323666.2853 | O56: 198862.2352 | P56: 270340.5583 | Q56: 253244.5408 | R56: 331311.6369 | S56: 204969.8765 | T56: 276974.6678 | U56: 0 | V56: 0 | W56: 0 | X56: 0 | Y56: 0.2133083333 | Z56: 0.2133083333 | AA56: 0.2133083333 | AB56: 0.2133083333 | AC56: 14.3222 | AD56: 16.7301 | AE56: 12.259 | AF56: 14.6063 | AG56: 13.0648 | AH56: 15.6826 | AI56: 11.2485 | AJ56: 13.6886 | AK56: 0 | AL56: 0 | AM56: 0 | AN56: 0
B57: 40 | C57: 0 | D57: 49.75 | E57: 765.7963443 | F57: 562.0724902 | G57: 91.10513573 | H57: 85.41819143 | I57: 2604.71855 | J57: 3154.513808 | K57: 2604.71855 | L57: 3154.513808 | M57: 247473.5258 | N57: 323666.2853 | O57: 198862.2352 | P57: 270340.5583 | Q57: 253244.5408 | R57: 331311.6369 | S57: 204969.8765 | T57: 276974.6678 | U57: 0 | V57: 0 | W57: 0 | X57: 0 | Y57: 0.2133083333 | Z57: 0.2133083333 | AA57: 0.2133083333 | AB57: 0.2133083333 | AC57: 14.3222 | AD57: 16.7301 | AE57: 12.259 | AF57: 14.6063 | AG57: 13.0648 | AH57: 15.6826 | AI57: 11.2485 | AJ57: 13.6886 | AK57: 0 | AL57: 0 | AM57: 0 | AN57: 0
B58: 41 | C58: 0 | D58: 50 | E58: =(VLOOKUP($D58,tab_InitPopHCV, E$16+1, TRUE)/5)*CycleLength*VLOOKUP($D58,tab_InitFibrDist, (E$16-1)*FibNum+$C58+2, TRUE)*IF($C58=0, IF($B58<=AgeNum, VLOOKUP($D58,tab_InitF0propNonProg, E$16+1, TRUE), 1- VLOOKUP($D58,tab_InitF0propNonProg, E$16+1, TRUE)), 1) -> 1231.469591 | F58: 872.0329408 | G58: 207.3849258 | H58: 175.4849442 | I58: =VLOOKUP($D58,tabCost_AnnualHC,(I$16-1)*FibNum+$C58+2, TRUE)*CycleLength -> 3152.959686 | J58: 3520.636161 | K58: 3152.959686 | L58: 3520.636161 | M58: =VLOOKUP($D58,tabCost_TermTrt,(M$16-1)*FibNum+$C58+2, TRUE) -> 246975.9221 | N58: 320797.5857 | O58: 194220.9113 | P58: 264778.289 | Q58: =VLOOKUP($D58,tabCost_TermNoTrt,(Q$16-1)*(FibNum+1)+$C58+3+IF($B58<=AgeNum, -1, 0), TRUE) -> 251390.7156 | R58: 327967.7373 | S58: 198362.9018 | T58: 270431.9946 | U58: =VLOOKUP($C58,tabCost_Term80,U$16+1, TRUE)*IF($D58=79.75, 1, 0) -> 0 | V58: 0 | W58: 0 | X58: 0 | Y58: =VLOOKUP($D58,tabQALY_Annual,(Y$16-1)*FibNum+$C58+2, TRUE)*CycleLength -> 0.2091916667 | Z58: 0.2091916667 | AA58: 0.2091916667 | AB58: 0.2091916667 | AC58: =VLOOKUP($D58,tabQALY_TermTrt,(AC$16-1)*FibNum+$C58+2, TRUE) -> 12.5991 | AD58: 15.0917 | AE58: 10.4574 | AF58: 12.9461 | AG58: =VLOOKUP($D58,tabQALY_TermNoTrt,(AG$16-1)*(FibNum+1)+$C58+3+IF($B58<=AgeNum, -1, 0), TRUE) -> 11.3275 | AH58: 14.0168 | AI58: 9.4548 | AJ58: 12.0224 | AK58: =VLOOKUP($C58,tabQALY_Term80,AK$16+1, TRUE)*IF($D58=79.75, 1, 0) -> 0 | AL58: 0 | AM58: 0 | AN58: 0
B59: 42 | C59: 0 | D59: 50.25 | E59: 1231.469591 | F59: 872.0329408 | G59: 207.3849258 | H59: 175.4849442 | I59: 3152.959686 | J59: 3520.636161 | K59: 3152.959686 | L59: 3520.636161 | M59: 246975.9221 | N59: 320797.5857 | O59: 194220.9113 | P59: 264778.289 | Q59: 251390.7156 | R59: 327967.7373 | S59: 198362.9018 | T59: 270431.9946 | U59: 0 | V59: 0 | W59: 0 | X59: 0 | Y59: 0.2091916667 | Z59: 0.2091916667 | AA59: 0.2091916667 | AB59: 0.2091916667 | AC59: 12.5991 | AD59: 15.0917 | AE59: 10.4574 | AF59: 12.9461 | AG59: 11.3275 | AH59: 14.0168 | AI59: 9.4548 | AJ59: 12.0224 | AK59: 0 | AL59: 0 | AM59: 0 | AN59: 0
B60: 43 | C60: 0 | D60: 50.5 | E60: 1231.469591 | F60: 872.0329408 | G60: 207.3849258 | H60: 175.4849442 | I60: 3152.959686 | J60: 3520.636161 | K60: 3152.959686 | L60: 3520.636161 | M60: 246975.9221 | N60: 320797.5857 | O60: 194220.9113 | P60: 264778.289 | Q60: 251390.7156 | R60: 327967.7373 | S60: 198362.9018 | T60: 270431.9946 | U60: 0 | V60: 0 | W60: 0 | X60: 0 | Y60: 0.2091916667 | Z60: 0.2091916667 | AA60: 0.2091916667 | AB60: 0.2091916667 | AC60: 12.5991 | AD60: 15.0917 | AE60: 10.4574 | AF60: 12.9461 | AG60: 11.3275 | AH60: 14.0168 | AI60: 9.4548 | AJ60: 12.0224 | AK60: 0 | AL60: 0 | AM60: 0 | AN60: 0
B61: 44 | C61: 0 | D61: 50.75 | E61: 1231.469591 | F61: 872.0329408 | G61: 207.3849258 | H61: 175.4849442 | I61: 3152.959686 | J61: 3520.636161 | K61: 3152.959686 | L61: 3520.636161 | M61: 246975.9221 | N61: 320797.5857 | O61: 194220.9113 | P61: 264778.289 | Q61: 251390.7156 | R61: 327967.7373 | S61: 198362.9018 | T61: 270431.9946 | U61: 0 | V61: 0 | W61: 0 | X61: 0 | Y61: 0.2091916667 | Z61: 0.2091916667 | AA61: 0.2091916667 | AB61: 0.2091916667 | AC61: 12.5991 | AD61: 15.0917 | AE61: 10.4574 | AF61: 12.9461 | AG61: 11.3275 | AH61: 14.0168 | AI61: 9.4548 | AJ61: 12.0224 | AK61: 0 | AL61: 0 | AM61: 0 | AN61: 0
B62: 45 | C62: 0 | D62: 51 | E62: 1231.469591 | F62: 872.0329408 | G62: 207.3849258 | H62: 175.4849442 | I62: 3152.959686 | J62: 3520.636161 | K62: 3152.959686 | L62: 3520.636161 | M62: 246975.9221 | N62: 320797.5857 | O62: 194220.9113 | P62: 264778.289 | Q62: 251390.7156 | R62: 327967.7373 | S62: 198362.9018 | T62: 270431.9946 | U62: 0 | V62: 0 | W62: 0 | X62: 0 | Y62: 0.2091916667 | Z62: 0.2091916667 | AA62: 0.2091916667 | AB62: 0.2091916667 | AC62: 12.5991 | AD62: 15.0917 | AE62: 10.4574 | AF62: 12.9461 | AG62: 11.3275 | AH62: 14.0168 | AI62: 9.4548 | AJ62: 12.0224 | AK62: 0 | AL62: 0 | AM62: 0 | AN62: 0
B63: 46 | C63: 0 | D63: 51.25 | E63: 1231.469591 | F63: 872.0329408 | G63: 207.3849258 | H63: 175.4849442 | I63: 3152.959686 | J63: 3520.636161 | K63: 3152.959686 | L63: 3520.636161 | M63: 246975.9221 | N63: 320797.5857 | O63: 194220.9113 | P63: 264778.289 | Q63: 251390.7156 | R63: 327967.7373 | S63: 198362.9018 | T63: 270431.9946 | U63: 0 | V63: 0 | W63: 0 | X63: 0 | Y63: 0.2091916667 | Z63: 0.2091916667 | AA63: 0.2091916667 | AB63: 0.2091916667 | AC63: 12.5991 | AD63: 15.0917 | AE63: 10.4574 | AF63: 12.9461 | AG63: 11.3275 | AH63: 14.0168 | AI63: 9.4548 | AJ63: 12.0224 | AK63: 0 | AL63: 0 | AM63: 0 | AN63: 0
B64: 47 | C64: 0 | D64: 51.5 | E64: 1231.469591 | F64: 872.0329408 | G64: 207.3849258 | H64: 175.4849442 | I64: 3152.959686 | J64: 3520.636161 | K64: 3152.959686 | L64: 3520.636161 | M64: 246975.9221 | N64: 320797.5857 | O64: 194220.9113 | P64: 264778.289 | Q64: 251390.7156 | R64: 327967.7373 | S64: 198362.9018 | T64: 270431.9946 | U64: 0 | V64: 0 | W64: 0 | X64: 0 | Y64: 0.2091916667 | Z64: 0.2091916667 | AA64: 0.2091916667 | AB64: 0.2091916667 | AC64: 12.5991 | AD64: 15.0917 | AE64: 10.4574 | AF64: 12.9461 | AG64: 11.3275 | AH64: 14.0168 | AI64: 9.4548 | AJ64: 12.0224 | AK64: 0 | AL64: 0 | AM64: 0 | AN64: 0
B65: 48 | C65: 0 | D65: 51.75 | E65: 1231.469591 | F65: 872.0329408 | G65: 207.3849258 | H65: 175.4849442 | I65: 3152.959686 | J65: 3520.636161 | K65: 3152.959686 | L65: 3520.636161 | M65: 246975.9221 | N65: 320797.5857 | O65: 194220.9113 | P65: 264778.289 | Q65: 251390.7156 | R65: 327967.7373 | S65: 198362.9018 | T65: 270431.9946 | U65: 0 | V65: 0 | W65: 0 | X65: 0 | Y65: 0.2091916667 | Z65: 0.2091916667 | AA65: 0.2091916667 | AB65: 0.2091916667 | AC65: 12.5991 | AD65: 15.0917 | AE65: 10.4574 | AF65: 12.9461 | AG65: 11.3275 | AH65: 14.0168 | AI65: 9.4548 | AJ65: 12.0224 | AK65: 0 | AL65: 0 | AM65: 0 | AN65: 0
B66: 49 | C66: 0 | D66: 52 | E66: 1231.469591 | F66: 872.0329408 | G66: 207.3849258 | H66: 175.4849442 | I66: 3152.959686 | J66: 3520.636161 | K66: 3152.959686 | L66: 3520.636161 | M66: 246975.9221 | N66: 320797.5857 | O66: 194220.9113 | P66: 264778.289 | Q66: 251390.7156 | R66: 327967.7373 | S66: 198362.9018 | T66: 270431.9946 | U66: 0 | V66: 0 | W66: 0 | X66: 0 | Y66: 0.2091916667 | Z66: 0.2091916667 | AA66: 0.2091916667 | AB66: 0.2091916667 | AC66: 12.5991 | AD66: 15.0917 | AE66: 10.4574 | AF66: 12.9461 | AG66: 11.3275 | AH66: 14.0168 | AI66: 9.4548 | AJ66: 12.0224 | AK66: 0 | AL66: 0 | AM66: 0 | AN66: 0
B67: 50 | C67: 0 | D67: 52.25 | E67: 1231.469591 | F67: 872.0329408 | G67: 207.3849258 | H67: 175.4849442 | I67: 3152.959686 | J67: 3520.636161 | K67: 3152.959686 | L67: 3520.636161 | M67: 246975.9221 | N67: 320797.5857 | O67: 194220.9113 | P67: 264778.289 | Q67: 251390.7156 | R67: 327967.7373 | S67: 198362.9018 | T67: 270431.9946 | U67: 0 | V67: 0 | W67: 0 | X67: 0 | Y67: 0.2091916667 | Z67: 0.2091916667 | AA67: 0.2091916667 | AB67: 0.2091916667 | AC67: 12.5991 | AD67: 15.0917 | AE67: 10.4574 | AF67: 12.9461 | AG67: 11.3275 | AH67: 14.0168 | AI67: 9.4548 | AJ67: 12.0224 | AK67: 0 | AL67: 0 | AM67: 0 | AN67: 0
B68: 51 | C68: 0 | D68: 52.5 | E68: 1231.469591 | F68: 872.0329408 | G68: 207.3849258 | H68: 175.4849442 | I68: 3152.959686 | J68: 3520.636161 | K68: 3152.959686 | L68: 3520.636161 | M68: 246975.9221 | N68: 320797.5857 | O68: 194220.9113 | P68: 264778.289 | Q68: 251390.7156 | R68: 327967.7373 | S68: 198362.9018 | T68: 270431.9946 | U68: 0 | V68: 0 | W68: 0 | X68: 0 | Y68: 0.2091916667 | Z68: 0.2091916667 | AA68: 0.2091916667 | AB68: 0.2091916667 | AC68: 12.5991 | AD68: 15.0917 | AE68: 10.4574 | AF68: 12.9461 | AG68: 11.3275 | AH68: 14.0168 | AI68: 9.4548 | AJ68: 12.0224 | AK68: 0 | AL68: 0 | AM68: 0 | AN68: 0
B69: 52 | C69: 0 | D69: 52.75 | E69: 1231.469591 | F69: 872.0329408 | G69: 207.3849258 | H69: 175.4849442 | I69: 3152.959686 | J69: 3520.636161 | K69: 3152.959686 | L69: 3520.636161 | M69: 246975.9221 | N69: 320797.5857 | O69: 194220.9113 | P69: 264778.289 | Q69: 251390.7156 | R69: 327967.7373 | S69: 198362.9018 | T69: 270431.9946 | U69: 0 | V69: 0 | W69: 0 | X69: 0 | Y69: 0.2091916667 | Z69: 0.2091916667 | AA69: 0.2091916667 | AB69: 0.2091916667 | AC69: 12.5991 | AD69: 15.0917 | AE69: 10.4574 | AF69: 12.9461 | AG69: 11.3275 | AH69: 14.0168 | AI69: 9.4548 | AJ69: 12.0224 | AK69: 0 | AL69: 0 | AM69: 0 | AN69: 0
B70: 53 | C70: 0 | D70: 53 | E70: 1231.469591 | F70: 872.0329408 | G70: 207.3849258 | H70: 175.4849442 | I70: 3152.959686 | J70: 3520.636161 | K70: 3152.959686 | L70: 3520.636161 | M70: 246975.9221 | N70: 320797.5857 | O70: 194220.9113 | P70: 264778.289 | Q70: 251390.7156 | R70: 327967.7373 | S70: 198362.9018 | T70: 270431.9946 | U70: 0 | V70: 0 | W70: 0 | X70: 0 | Y70: 0.2091916667 | Z70: 0.2091916667 | AA70: 0.2091916667 | AB70: 0.2091916667 | AC70: 12.5991 | AD70: 15.0917 | AE70: 10.4574 | AF70: 12.9461 | AG70: 11.3275 | AH70: 14.0168 | AI70: 9.4548 | AJ70: 12.0224 | AK70: 0 | AL70: 0 | AM70: 0 | AN70: 0
B71: 54 | C71: 0 | D71: 53.25 | E71: 1231.469591 | F71: 872.0329408 | G71: 207.3849258 | H71: 175.4849442 | I71: 3152.959686 | J71: 3520.636161 | K71: 3152.959686 | L71: 3520.636161 | M71: 246975.9221 | N71: 320797.5857 | O71: 194220.9113 | P71: 264778.289 | Q71: 251390.7156 | R71: 327967.7373 | S71: 198362.9018 | T71: 270431.9946 | U71: 0 | V71: 0 | W71: 0 | X71: 0 | Y71: 0.2091916667 | Z71: 0.2091916667 | AA71: 0.2091916667 | AB71: 0.2091916667 | AC71: 12.5991 | AD71: 15.0917 | AE71: 10.4574 | AF71: 12.9461 | AG71: 11.3275 | AH71: 14.0168 | AI71: 9.4548 | AJ71: 12.0224 | AK71: 0 | AL71: 0 | AM71: 0 | AN71: 0
B72: 55 | C72: 0 | D72: 53.5 | E72: 1231.469591 | F72: 872.0329408 | G72: 207.3849258 | H72: 175.4849442 | I72: 3152.959686 | J72: 3520.636161 | K72: 3152.959686 | L72: 3520.636161 | M72: 246975.9221 | N72: 320797.5857 | O72: 194220.9113 | P72: 264778.289 | Q72: 251390.7156 | R72: 327967.7373 | S72: 198362.9018 | T72: 270431.9946 | U72: 0 | V72: 0 | W72: 0 | X72: 0 | Y72: 0.2091916667 | Z72: 0.2091916667 | AA72: 0.2091916667 | AB72: 0.2091916667 | AC72: 12.5991 | AD72: 15.0917 | AE72: 10.4574 | AF72: 12.9461 | AG72: 11.3275 | AH72: 14.0168 | AI72: 9.4548 | AJ72: 12.0224 | AK72: 0 | AL72: 0 | AM72: 0 | AN72: 0
B73: 56 | C73: 0 | D73: 53.75 | E73: 1231.469591 | F73: 872.0329408 | G73: 207.3849258 | H73: 175.4849442 | I73: 3152.959686 | J73: 3520.636161 | K73: 3152.959686 | L73: 3520.636161 | M73: 246975.9221 | N73: 320797.5857 | O73: 194220.9113 | P73: 264778.289 | Q73: 251390.7156 | R73: 327967.7373 | S73: 198362.9018 | T73: 270431.9946 | U73: 0 | V73: 0 | W73: 0 | X73: 0 | Y73: 0.2091916667 | Z73: 0.2091916667 | AA73: 0.2091916667 | AB73: 0.2091916667 | AC73: 12.5991 | AD73: 15.0917 | AE73: 10.4574 | AF73: 12.9461 | AG73: 11.3275 | AH73: 14.0168 | AI73: 9.4548 | AJ73: 12.0224 | AK73: 0 | AL73: 0 | AM73: 0 | AN73: 0
B74: 57 | C74: 0 | D74: 54 | E74: 1231.469591 | F74: 872.0329408 | G74: 207.3849258 | H74: 175.4849442 | I74: 3152.959686 | J74: 3520.636161 | K74: 3152.959686 | L74: 3520.636161 | M74: 246975.9221 | N74: 320797.5857 | O74: 194220.9113 | P74: 264778.289 | Q74: 251390.7156 | R74: 327967.7373 | S74: 198362.9018 | T74: 270431.9946 | U74: 0 | V74: 0 | W74: 0 | X74: 0 | Y74: 0.2091916667 | Z74: 0.2091916667 | AA74: 0.2091916667 | AB74: 0.2091916667 | AC74: 12.5991 | AD74: 15.0917 | AE74: 10.4574 | AF74: 12.9461 | AG74: 11.3275 | AH74: 14.0168 | AI74: 9.4548 | AJ74: 12.0224 | AK74: 0 | AL74: 0 | AM74: 0 | AN74: 0
B75: 58 | C75: 0 | D75: 54.25 | E75: 1231.469591 | F75: 872.0329408 | G75: 207.3849258 | H75: 175.4849442 | I75: 3152.959686 | J75: 3520.636161 | K75: 3152.959686 | L75: 3520.636161 | M75: 246975.9221 | N75: 320797.5857 | O75: 194220.9113 | P75: 264778.289 | Q75: 251390.7156 | R75: 327967.7373 | S75: 198362.9018 | T75: 270431.9946 | U75: 0 | V75: 0 | W75: 0 | X75: 0 | Y75: 0.2091916667 | Z75: 0.2091916667 | AA75: 0.2091916667 | AB75: 0.2091916667 | AC75: 12.5991 | AD75: 15.0917 | AE75: 10.4574 | AF75: 12.9461 | AG75: 11.3275 | AH75: 14.0168 | AI75: 9.4548 | AJ75: 12.0224 | AK75: 0 | AL75: 0 | AM75: 0 | AN75: 0
B76: 59 | C76: 0 | D76: 54.5 | E76: 1231.469591 | F76: 872.0329408 | G76: 207.3849258 | H76: 175.4849442 | I76: 3152.959686 | J76: 3520.636161 | K76: 3152.959686 | L76: 3520.636161 | M76: 246975.9221 | N76: 320797.5857 | O76: 194220.9113 | P76: 264778.289 | Q76: 251390.7156 | R76: 327967.7373 | S76: 198362.9018 | T76: 270431.9946 | U76: 0 | V76: 0 | W76: 0 | X76: 0 | Y76: 0.2091916667 | Z76: 0.2091916667 | AA76: 0.2091916667 | AB76: 0.2091916667 | AC76: 12.5991 | AD76: 15.0917 | AE76: 10.4574 | AF76: 12.9461 | AG76: 11.3275 | AH76: 14.0168 | AI76: 9.4548 | AJ76: 12.0224 | AK76: 0 | AL76: 0 | AM76: 0 | AN76: 0
B77: 60 | C77: 0 | D77: 54.75 | E77: 1231.469591 | F77: 872.0329408 | G77: 207.3849258 | H77: 175.4849442 | I77: 3152.959686 | J77: 3520.636161 | K77: 3152.959686 | L77: 3520.636161 | M77: 246975.9221 | N77: 320797.5857 | O77: 194220.9113 | P77: 264778.289 | Q77: 251390.7156 | R77: 327967.7373 | S77: 198362.9018 | T77: 270431.9946 | U77: 0 | V77: 0 | W77: 0 | X77: 0 | Y77: 0.2091916667 | Z77: 0.2091916667 | AA77: 0.2091916667 | AB77: 0.2091916667 | AC77: 12.5991 | AD77: 15.0917 | AE77: 10.4574 | AF77: 12.9461 | AG77: 11.3275 | AH77: 14.0168 | AI77: 9.4548 | AJ77: 12.0224 | AK77: 0 | AL77: 0 | AM77: 0 | AN77: 0
B78: 61 | C78: 0 | D78: 55 | E78: =(VLOOKUP($D78,tab_InitPopHCV, E$16+1, TRUE)/5)*CycleLength*VLOOKUP($D78,tab_InitFibrDist, (E$16-1)*FibNum+$C78+2, TRUE)*IF($C78=0, IF($B78<=AgeNum, VLOOKUP($D78,tab_InitF0propNonProg, E$16+1, TRUE), 1- VLOOKUP($D78,tab_InitF0propNonProg, E$16+1, TRUE)), 1) -> 1852.973605 | F78: 777.1434401 | G78: 338.2988106 | H78: 294.3692824 | I78: =VLOOKUP($D78,tabCost_AnnualHC,(I$16-1)*FibNum+$C78+2, TRUE)*CycleLength -> 3738.896534 | J78: 4013.832741 | K78: 3738.896534 | L78: 4013.832741 | M78: =VLOOKUP($D78,tabCost_TermTrt,(M$16-1)*FibNum+$C78+2, TRUE) -> 240460.0072 | N78: 311522.5584 | O78: 186544.5383 | P78: 255449.389 | Q78: =VLOOKUP($D78,tabCost_TermNoTrt,(Q$16-1)*(FibNum+1)+$C78+3+IF($B78<=AgeNum, -1, 0), TRUE) -> 243636.7637 | R78: 317698.6116 | S78: 188805.8638 | T78: 259789.8797 | U78: =VLOOKUP($C78,tabCost_Term80,U$16+1, TRUE)*IF($D78=79.75, 1, 0) -> 0 | V78: 0 | W78: 0 | X78: 0 | Y78: =VLOOKUP($D78,tabQALY_Annual,(Y$16-1)*FibNum+$C78+2, TRUE)*CycleLength -> 0.2061583333 | Z78: 0.2061583333 | AA78: 0.2061583333 | AB78: 0.2061583333 | AC78: =VLOOKUP($D78,tabQALY_TermTrt,(AC$16-1)*FibNum+$C78+2, TRUE) -> 10.9204 | AD78: 13.3942 | AE78: 8.8487 | AF78: 11.339 | AG78: =VLOOKUP($D78,tabQALY_TermNoTrt,(AG$16-1)*(FibNum+1)+$C78+3+IF($B78<=AgeNum, -1, 0), TRUE) -> 9.7833 | AH78: 12.3885 | AI78: 7.9586 | AJ78: 10.4834 | AK78: =VLOOKUP($C78,tabQALY_Term80,AK$16+1, TRUE)*IF($D78=79.75, 1, 0) -> 0 | AL78: 0 | AM78: 0 | AN78: 0
B79: 62 | C79: 0 | D79: 55.25 | E79: 1852.973605 | F79: 777.1434401 | G79: 338.2988106 | H79: 294.3692824 | I79: 3738.896534 | J79: 4013.832741 | K79: 3738.896534 | L79: 4013.832741 | M79: 240460.0072 | N79: 311522.5584 | O79: 186544.5383 | P79: 255449.389 | Q79: 243636.7637 | R79: 317698.6116 | S79: 188805.8638 | T79: 259789.8797 | U79: 0 | V79: 0 | W79: 0 | X79: 0 | Y79: 0.2061583333 | Z79: 0.2061583333 | AA79: 0.2061583333 | AB79: 0.2061583333 | AC79: 10.9204 | AD79: 13.3942 | AE79: 8.8487 | AF79: 11.339 | AG79: 9.7833 | AH79: 12.3885 | AI79: 7.9586 | AJ79: 10.4834 | AK79: 0 | AL79: 0 | AM79: 0 | AN79: 0
B80: 63 | C80: 0 | D80: 55.5 | E80: 1852.973605 | F80: 777.1434401 | G80: 338.2988106 | H80: 294.3692824 | I80: 3738.896534 | J80: 4013.832741 | K80: 3738.896534 | L80: 4013.832741 | M80: 240460.0072 | N80: 311522.5584 | O80: 186544.5383 | P80: 255449.389 | Q80: 243636.7637 | R80: 317698.6116 | S80: 188805.8638 | T80: 259789.8797 | U80: 0 | V80: 0 | W80: 0 | X80: 0 | Y80: 0.2061583333 | Z80: 0.2061583333 | AA80: 0.2061583333 | AB80: 0.2061583333 | AC80: 10.9204 | AD80: 13.3942 | AE80: 8.8487 | AF80: 11.339 | AG80: 9.7833 | AH80: 12.3885 | AI80: 7.9586 | AJ80: 10.4834 | AK80: 0 | AL80: 0 | AM80: 0 | AN80: 0
B81: 64 | C81: 0 | D81: 55.75 | E81: 1852.973605 | F81: 777.1434401 | G81: 338.2988106 | H81: 294.3692824 | I81: 3738.896534 | J81: 4013.832741 | K81: 3738.896534 | L81: 4013.832741 | M81: 240460.0072 | N81: 311522.5584 | O81: 186544.5383 | P81: 255449.389 | Q81: 243636.7637 | R81: 317698.6116 | S81: 188805.8638 | T81: 259789.8797 | U81: 0 | V81: 0 | W81: 0 | X81: 0 | Y81: 0.2061583333 | Z81: 0.2061583333 | AA81: 0.2061583333 | AB81: 0.2061583333 | AC81: 10.9204 | AD81: 13.3942 | AE81: 8.8487 | AF81: 11.339 | AG81: 9.7833 | AH81: 12.3885 | AI81: 7.9586 | AJ81: 10.4834 | AK81: 0 | AL81: 0 | AM81: 0 | AN81: 0
B82: 65 | C82: 0 | D82: 56 | E82: 1852.973605 | F82: 777.1434401 | G82: 338.2988106 | H82: 294.3692824 | I82: 3738.896534 | J82: 4013.832741 | K82: 3738.896534 | L82: 4013.832741 | M82: 240460.0072 | N82: 311522.5584 | O82: 186544.5383 | P82: 255449.389 | Q82: 243636.7637 | R82: 317698.6116 | S82: 188805.8638 | T82: 259789.8797 | U82: 0 | V82: 0 | W82: 0 | X82: 0 | Y82: 0.2061583333 | Z82: 0.2061583333 | AA82: 0.2061583333 | AB82: 0.2061583333 | AC82: 10.9204 | AD82: 13.3942 | AE82: 8.8487 | AF82: 11.339 | AG82: 9.7833 | AH82: 12.3885 | AI82: 7.9586 | AJ82: 10.4834 | AK82: 0 | AL82: 0 | AM82: 0 | AN82: 0
B83: 66 | C83: 0 | D83: 56.25 | E83: 1852.973605 | F83: 777.1434401 | G83: 338.2988106 | H83: 294.3692824 | I83: 3738.896534 | J83: 4013.832741 | K83: 3738.896534 | L83: 4013.832741 | M83: 240460.0072 | N83: 311522.5584 | O83: 186544.5383 | P83: 255449.389 | Q83: 243636.7637 | R83: 317698.6116 | S83: 188805.8638 | T83: 259789.8797 | U83: 0 | V83: 0 | W83: 0 | X83: 0 | Y83: 0.2061583333 | Z83: 0.2061583333 | AA83: 0.2061583333 | AB83: 0.2061583333 | AC83: 10.9204 | AD83: 13.3942 | AE83: 8.8487 | AF83: 11.339 | AG83: 9.7833 | AH83: 12.3885 | AI83: 7.9586 | AJ83: 10.4834 | AK83: 0 | AL83: 0 | AM83: 0 | AN83: 0
B84: 67 | C84: 0 | D84: 56.5 | E84: 1852.973605 | F84: 777.1434401 | G84: 338.2988106 | H84: 294.3692824 | I84: 3738.896534 | J84: 4013.832741 | K84: 3738.896534 | L84: 4013.832741 | M84: 240460.0072 | N84: 311522.5584 | O84: 186544.5383 | P84: 255449.389 | Q84: 243636.7637 | R84: 317698.6116 | S84: 188805.8638 | T84: 259789.8797 | U84: 0 | V84: 0 | W84: 0 | X84: 0 | Y84: 0.2061583333 | Z84: 0.2061583333 | AA84: 0.2061583333 | AB84: 0.2061583333 | AC84: 10.9204 | AD84: 13.3942 | AE84: 8.8487 | AF84: 11.339 | AG84: 9.7833 | AH84: 12.3885 | AI84: 7.9586 | AJ84: 10.4834 | AK84: 0 | AL84: 0 | AM84: 0 | AN84: 0
B85: 68 | C85: 0 | D85: 56.75 | E85: 1852.973605 | F85: 777.1434401 | G85: 338.2988106 | H85: 294.3692824 | I85: 3738.896534 | J85: 4013.832741 | K85: 3738.896534 | L85: 4013.832741 | M85: 240460.0072 | N85: 311522.5584 | O85: 186544.5383 | P85: 255449.389 | Q85: 243636.7637 | R85: 317698.6116 | S85: 188805.8638 | T85: 259789.8797 | U85: 0 | V85: 0 | W85: 0 | X85: 0 | Y85: 0.2061583333 | Z85: 0.2061583333 | AA85: 0.2061583333 | AB85: 0.2061583333 | AC85: 10.9204 | AD85: 13.3942 | AE85: 8.8487 | AF85: 11.339 | AG85: 9.7833 | AH85: 12.3885 | AI85: 7.9586 | AJ85: 10.4834 | AK85: 0 | AL85: 0 | AM85: 0 | AN85: 0
B86: 69 | C86: 0 | D86: 57 | E86: 1852.973605 | F86: 777.1434401 | G86: 338.2988106 | H86: 294.3692824 | I86: 3738.896534 | J86: 4013.832741 | K86: 3738.896534 | L86: 4013.832741 | M86: 240460.0072 | N86: 311522.5584 | O86: 186544.5383 | P86: 255449.389 | Q86: 243636.7637 | R86: 317698.6116 | S86: 188805.8638 | T86: 259789.8797 | U86: 0 | V86: 0 | W86: 0 | X86: 0 | Y86: 0.2061583333 | Z86: 0.2061583333 | AA86: 0.2061583333 | AB86: 0.2061583333 | AC86: 10.9204 | AD86: 13.3942 | AE86: 8.8487 | AF86: 11.339 | AG86: 9.7833 | AH86: 12.3885 | AI86: 7.9586 | AJ86: 10.4834 | AK86: 0 | AL86: 0 | AM86: 0 | AN86: 0
B87: 70 | C87: 0 | D87: 57.25 | E87: 1852.973605 | F87: 777.1434401 | G87: 338.2988106 | H87: 294.3692824 | I87: 3738.896534 | J87: 4013.832741 | K87: 3738.896534 | L87: 4013.832741 | M87: 240460.0072 | N87: 311522.5584 | O87: 186544.5383 | P87: 255449.389 | Q87: 243636.7637 | R87: 317698.6116 | S87: 188805.8638 | T87: 259789.8797 | U87: 0 | V87: 0 | W87: 0 | X87: 0 | Y87: 0.2061583333 | Z87: 0.2061583333 | AA87: 0.2061583333 | AB87: 0.2061583333 | AC87: 10.9204 | AD87: 13.3942 | AE87: 8.8487 | AF87: 11.339 | AG87: 9.7833 | AH87: 12.3885 | AI87: 7.9586 | AJ87: 10.4834 | AK87: 0 | AL87: 0 | AM87: 0 | AN87: 0
B88: 71 | C88: 0 | D88: 57.5 | E88: 1852.973605 | F88: 777.1434401 | G88: 338.2988106 | H88: 294.3692824 | I88: 3738.896534 | J88: 4013.832741 | K88: 3738.896534 | L88: 4013.832741 | M88: 240460.0072 | N88: 311522.5584 | O88: 186544.5383 | P88: 255449.389 | Q88: 243636.7637 | R88: 317698.6116 | S88: 188805.8638 | T88: 259789.8797 | U88: 0 | V88: 0 | W88: 0 | X88: 0 | Y88: 0.2061583333 | Z88: 0.2061583333 | AA88: 0.2061583333 | AB88: 0.2061583333 | AC88: 10.9204 | AD88: 13.3942 | AE88: 8.8487 | AF88: 11.339 | AG88: 9.7833 | AH88: 12.3885 | AI88: 7.9586 | AJ88: 10.4834 | AK88: 0 | AL88: 0 | AM88: 0 | AN88: 0
B89: 72 | C89: 0 | D89: 57.75 | E89: 1852.973605 | F89: 777.1434401 | G89: 338.2988106 | H89: 294.3692824 | I89: 3738.896534 | J89: 4013.832741 | K89: 3738.896534 | L89: 4013.832741 | M89: 240460.0072 | N89: 311522.5584 | O89: 186544.5383 | P89: 255449.389 | Q89: 243636.7637 | R89: 317698.6116 | S89: 188805.8638 | T89: 259789.8797 | U89: 0 | V89: 0 | W89: 0 | X89: 0 | Y89: 0.2061583333 | Z89: 0.2061583333 | AA89: 0.2061583333 | AB89: 0.2061583333 | AC89: 10.9204 | AD89: 13.3942 | AE89: 8.8487 | AF89: 11.339 | AG89: 9.7833 | AH89: 12.3885 | AI89: 7.9586 | AJ89: 10.4834 | AK89: 0 | AL89: 0 | AM89: 0 | AN89: 0
B90: 73 | C90: 0 | D90: 58 | E90: 1852.973605 | F90: 777.1434401 | G90: 338.2988106 | H90: 294.3692824 | I90: 3738.896534 | J90: 4013.832741 | K90: 3738.896534 | L90: 4013.832741 | M90: 240460.0072 | N90: 311522.5584 | O90: 186544.5383 | P90: 255449.389 | Q90: 243636.7637 | R90: 317698.6116 | S90: 188805.8638 | T90: 259789.8797 | U90: 0 | V90: 0 | W90: 0 | X90: 0 | Y90: 0.2061583333 | Z90: 0.2061583333 | AA90: 0.2061583333 | AB90: 0.2061583333 | AC90: 10.9204 | AD90: 13.3942 | AE90: 8.8487 | AF90: 11.339 | AG90: 9.7833 | AH90: 12.3885 | AI90: 7.9586 | AJ90: 10.4834 | AK90: 0 | AL90: 0 | AM90: 0 | AN90: 0
B91: 74 | C91: 0 | D91: 58.25 | E91: 1852.973605 | F91: 777.1434401 | G91: 338.2988106 | H91: 294.3692824 | I91: 3738.896534 | J91: 4013.832741 | K91: 3738.896534 | L91: 4013.832741 | M91: 240460.0072 | N91: 311522.5584 | O91: 186544.5383 | P91: 255449.389 | Q91: 243636.7637 | R91: 317698.6116 | S91: 188805.8638 | T91: 259789.8797 | U91: 0 | V91: 0 | W91: 0 | X91: 0 | Y91: 0.2061583333 | Z91: 0.2061583333 | AA91: 0.2061583333 | AB91: 0.2061583333 | AC91: 10.9204 | AD91: 13.3942 | AE91: 8.8487 | AF91: 11.339 | AG91: 9.7833 | AH91: 12.3885 | AI91: 7.9586 | AJ91: 10.4834 | AK91: 0 | AL91: 0 | AM91: 0 | AN91: 0
B92: 75 | C92: 0 | D92: 58.5 | E92: 1852.973605 | F92: 777.1434401 | G92: 338.2988106 | H92: 294.3692824 | I92: 3738.896534 | J92: 4013.832741 | K92: 3738.896534 | L92: 4013.832741 | M92: 240460.0072 | N92: 311522.5584 | O92: 186544.5383 | P92: 255449.389 | Q92: 243636.7637 | R92: 317698.6116 | S92: 188805.8638 | T92: 259789.8797 | U92: 0 | V92: 0 | W92: 0 | X92: 0 | Y92: 0.2061583333 | Z92: 0.2061583333 | AA92: 0.2061583333 | AB92: 0.2061583333 | AC92: 10.9204 | AD92: 13.3942 | AE92: 8.8487 | AF92: 11.339 | AG92: 9.7833 | AH92: 12.3885 | AI92: 7.9586 | AJ92: 10.4834 | AK92: 0 | AL92: 0 | AM92: 0 | AN92: 0
B93: 76 | C93: 0 | D93: 58.75 | E93: 1852.973605 | F93: 777.1434401 | G93: 338.2988106 | H93: 294.3692824 | I93: 3738.896534 | J93: 4013.832741 | K93: 3738.896534 | L93: 4013.832741 | M93: 240460.0072 | N93: 311522.5584 | O93: 186544.5383 | P93: 255449.389 | Q93: 243636.7637 | R93: 317698.6116 | S93: 188805.8638 | T93: 259789.8797 | U93: 0 | V93: 0 | W93: 0 | X93: 0 | Y93: 0.2061583333 | Z93: 0.2061583333 | AA93: 0.2061583333 | AB93: 0.2061583333 | AC93: 10.9204 | AD93: 13.3942 | AE93: 8.8487 | AF93: 11.339 | AG93: 9.7833 | AH93: 12.3885 | AI93: 7.9586 | AJ93: 10.4834 | AK93: 0 | AL93: 0 | AM93: 0 | AN93: 0
B94: 77 | C94: 0 | D94: 59 | E94: 1852.973605 | F94: 777.1434401 | G94: 338.2988106 | H94: 294.3692824 | I94: 3738.896534 | J94: 4013.832741 | K94: 3738.896534 | L94: 4013.832741 | M94: 240460.0072 | N94: 311522.5584 | O94: 186544.5383 | P94: 255449.389 | Q94: 243636.7637 | R94: 317698.6116 | S94: 188805.8638 | T94: 259789.8797 | U94: 0 | V94: 0 | W94: 0 | X94: 0 | Y94: 0.2061583333 | Z94: 0.2061583333 | AA94: 0.2061583333 | AB94: 0.2061583333 | AC94: 10.9204 | AD94: 13.3942 | AE94: 8.8487 | AF94: 11.339 | AG94: 9.7833 | AH94: 12.3885 | AI94: 7.9586 | AJ94: 10.4834 | AK94: 0 | AL94: 0 | AM94: 0 | AN94: 0
B95: 78 | C95: 0 | D95: 59.25 | E95: 1852.973605 | F95: 777.1434401 | G95: 338.2988106 | H95: 294.3692824 | I95: 3738.896534 | J95: 4013.832741 | K95: 3738.896534 | L95: 4013.832741 | M95: 240460.0072 | N95: 311522.5584 | O95: 186544.5383 | P95: 255449.389 | Q95: 243636.7637 | R95: 317698.6116 | S95: 188805.8638 | T95: 259789.8797 | U95: 0 | V95: 0 | W95: 0 | X95: 0 | Y95: 0.2061583333 | Z95: 0.2061583333 | AA95: 0.2061583333 | AB95: 0.2061583333 | AC95: 10.9204 | AD95: 13.3942 | AE95: 8.8487 | AF95: 11.339 | AG95: 9.7833 | AH95: 12.3885 | AI95: 7.9586 | AJ95: 10.4834 | AK95: 0 | AL95: 0 | AM95: 0 | AN95: 0
B96: 79 | C96: 0 | D96: 59.5 | E96: 1852.973605 | F96: 777.1434401 | G96: 338.2988106 | H96: 294.3692824 | I96: 3738.896534 | J96: 4013.832741 | K96: 3738.896534 | L96: 4013.832741 | M96: 240460.0072 | N96: 311522.5584 | O96: 186544.5383 | P96: 255449.389 | Q96: 243636.7637 | R96: 317698.6116 | S96: 188805.8638 | T96: 259789.8797 | U96: 0 | V96: 0 | W96: 0 | X96: 0 | Y96: 0.2061583333 | Z96: 0.2061583333 | AA96: 0.2061583333 | AB96: 0.2061583333 | AC96: 10.9204 | AD96: 13.3942 | AE96: 8.8487 | AF96: 11.339 | AG96: 9.7833 | AH96: 12.3885 | AI96: 7.9586 | AJ96: 10.4834 | AK96: 0 | AL96: 0 | AM96: 0 | AN96: 0
B97: 80 | C97: 0 | D97: 59.75 | E97: 1852.973605 | F97: 777.1434401 | G97: 338.2988106 | H97: 294.3692824 | I97: 3738.896534 | J97: 4013.832741 | K97: 3738.896534 | L97: 4013.832741 | M97: 240460.0072 | N97: 311522.5584 | O97: 186544.5383 | P97: 255449.389 | Q97: 243636.7637 | R97: 317698.6116 | S97: 188805.8638 | T97: 259789.8797 | U97: 0 | V97: 0 | W97: 0 | X97: 0 | Y97: 0.2061583333 | Z97: 0.2061583333 | AA97: 0.2061583333 | AB97: 0.2061583333 | AC97: 10.9204 | AD97: 13.3942 | AE97: 8.8487 | AF97: 11.339 | AG97: 9.7833 | AH97: 12.3885 | AI97: 7.9586 | AJ97: 10.4834 | AK97: 0 | AL97: 0 | AM97: 0 | AN97: 0
B98: 81 | C98: 0 | D98: 60 | E98: =(VLOOKUP($D98,tab_InitPopHCV, E$16+1, TRUE)/5)*CycleLength*VLOOKUP($D98,tab_InitFibrDist, (E$16-1)*FibNum+$C98+2, TRUE)*IF($C98=0, IF($B98<=AgeNum, VLOOKUP($D98,tab_InitF0propNonProg, E$16+1, TRUE), 1- VLOOKUP($D98,tab_InitF0propNonProg, E$16+1, TRUE)), 1) -> 1800.318188 | F98: 574.3456693 | G98: 412.0704297 | H98: 240.2838321 | I98: =VLOOKUP($D98,tabCost_AnnualHC,(I$16-1)*FibNum+$C98+2, TRUE)*CycleLength -> 4345.147182 | J98: 4553.16799 | K98: 4345.147182 | L98: 4553.16799 | M98: =VLOOKUP($D98,tabCost_TermTrt,(M$16-1)*FibNum+$C98+2, TRUE) -> 226677.4174 | N98: 293123.3173 | O98: 176931.8979 | P98: 239632.7975 | Q98: =VLOOKUP($D98,tabCost_TermNoTrt,(Q$16-1)*(FibNum+1)+$C98+3+IF($B98<=AgeNum, -1, 0), TRUE) -> 228988.312 | R98: 298531.6802 | S98: 178099.305 | T98: 243051.4882 | U98: =VLOOKUP($C98,tabCost_Term80,U$16+1, TRUE)*IF($D98=79.75, 1, 0) -> 0 | V98: 0 | W98: 0 | X98: 0 | Y98: =VLOOKUP($D98,tabQALY_Annual,(Y$16-1)*FibNum+$C98+2, TRUE)*CycleLength -> 0.203125 | Z98: 0.203125 | AA98: 0.203125 | AB98: 0.203125 | AC98: =VLOOKUP($D98,tabQALY_TermTrt,(AC$16-1)*FibNum+$C98+2, TRUE) -> 9.2406 | AD98: 11.6006 | AE98: 7.4541 | AF98: 9.7264 | AG98: =VLOOKUP($D98,tabQALY_TermNoTrt,(AG$16-1)*(FibNum+1)+$C98+3+IF($B98<=AgeNum, -1, 0), TRUE) -> 8.2016 | AH98: 10.6539 | AI98: 6.6378 | AJ98: 8.9301 | AK98: =VLOOKUP($C98,tabQALY_Term80,AK$16+1, TRUE)*IF($D98=79.75, 1, 0) -> 0 | AL98: 0 | AM98: 0 | AN98: 0
B99: 82 | C99: 0 | D99: 60.25 | E99: 1800.318188 | F99: 574.3456693 | G99: 412.0704297 | H99: 240.2838321 | I99: 4345.147182 | J99: 4553.16799 | K99: 4345.147182 | L99: 4553.16799 | M99: 226677.4174 | N99: 293123.3173 | O99: 176931.8979 | P99: 239632.7975 | Q99: 228988.312 | R99: 298531.6802 | S99: 178099.305 | T99: 243051.4882 | U99: 0 | V99: 0 | W99: 0 | X99: 0 | Y99: 0.203125 | Z99: 0.203125 | AA99: 0.203125 | AB99: 0.203125 | AC99: 9.2406 | AD99: 11.6006 | AE99: 7.4541 | AF99: 9.7264 | AG99: 8.2016 | AH99: 10.6539 | AI99: 6.6378 | AJ99: 8.9301 | AK99: 0 | AL99: 0 | AM99: 0 | AN99: 0
B100: 83 | C100: 0 | D100: 60.5 | E100: 1800.318188 | F100: 574.3456693 | G100: 412.0704297 | H100: 240.2838321 | I100: 4345.147182 | J100: 4553.16799 | K100: 4345.147182 | L100: 4553.16799 | M100: 226677.4174 | N100: 293123.3173 | O100: 176931.8979 | P100: 239632.7975 | Q100: 228988.312 | R100: 298531.6802 | S100: 178099.305 | T100: 243051.4882 | U100: 0 | V100: 0 | W100: 0 | X100: 0 | Y100: 0.203125 | Z100: 0.203125 | AA100: 0.203125 | AB100: 0.203125 | AC100: 9.2406 | AD100: 11.6006 | AE100: 7.4541 | AF100: 9.7264 | AG100: 8.2016 | AH100: 10.6539 | AI100: 6.6378 | AJ100: 8.9301 | AK100: 0 | AL100: 0 | AM100: 0 | AN100: 0
B101: 84 | C101: 0 | D101: 60.75 | E101: 1800.318188 | F101: 574.3456693 | G101: 412.0704297 | H101: 240.2838321 | I101: 4345.147182 | J101: 4553.16799 | K101: 4345.147182 | L101: 4553.16799 | M101: 226677.4174 | N101: 293123.3173 | O101: 176931.8979 | P101: 239632.7975 | Q101: 228988.312 | R101: 298531.6802 | S101: 178099.305 | T101: 243051.4882 | U101: 0 | V101: 0 | W101: 0 | X101: 0 | Y101: 0.203125 | Z101: 0.203125 | AA101: 0.203125 | AB101: 0.203125 | AC101: 9.2406 | AD101: 11.6006 | AE101: 7.4541 | AF101: 9.7264 | AG101: 8.2016 | AH101: 10.6539 | AI101: 6.6378 | AJ101: 8.9301 | AK101: 0 | AL101: 0 | AM101: 0 | AN101: 0
B102: 85 | C102: 0 | D102: 61 | E102: 1800.318188 | F102: 574.3456693 | G102: 412.0704297 | H102: 240.2838321 | I102: 4345.147182 | J102: 4553.16799 | K102: 4345.147182 | L102: 4553.16799 | M102: 226677.4174 | N102: 293123.3173 | O102: 176931.8979 | P102: 239632.7975 | Q102: 228988.312 | R102: 298531.6802 | S102: 178099.305 | T102: 243051.4882 | U102: 0 | V102: 0 | W102: 0 | X102: 0 | Y102: 0.203125 | Z102: 0.203125 | AA102: 0.203125 | AB102: 0.203125 | AC102: 9.2406 | AD102: 11.6006 | AE102: 7.4541 | AF102: 9.7264 | AG102: 8.2016 | AH102: 10.6539 | AI102: 6.6378 | AJ102: 8.9301 | AK102: 0 | AL102: 0 | AM102: 0 | AN102: 0
B103: 86 | C103: 0 | D103: 61.25 | E103: 1800.318188 | F103: 574.3456693 | G103: 412.0704297 | H103: 240.2838321 | I103: 4345.147182 | J103: 4553.16799 | K103: 4345.147182 | L103: 4553.16799 | M103: 226677.4174 | N103: 293123.3173 | O103: 176931.8979 | P103: 239632.7975 | Q103: 228988.312 | R103: 298531.6802 | S103: 178099.305 | T103: 243051.4882 | U103: 0 | V103: 0 | W103: 0 | X103: 0 | Y103: 0.203125 | Z103: 0.203125 | AA103: 0.203125 | AB103: 0.203125 | AC103: 9.2406 | AD103: 11.6006 | AE103: 7.4541 | AF103: 9.7264 | AG103: 8.2016 | AH103: 10.6539 | AI103: 6.6378 | AJ103: 8.9301 | AK103: 0 | AL103: 0 | AM103: 0 | AN103: 0
B104: 87 | C104: 0 | D104: 61.5 | E104: 1800.318188 | F104: 574.3456693 | G104: 412.0704297 | H104: 240.2838321 | I104: 4345.147182 | J104: 4553.16799 | K104: 4345.147182 | L104: 4553.16799 | M104: 226677.4174 | N104: 293123.3173 | O104: 176931.8979 | P104: 239632.7975 | Q104: 228988.312 | R104: 298531.6802 | S104: 178099.305 | T104: 243051.4882 | U104: 0 | V104: 0 | W104: 0 | X104: 0 | Y104: 0.203125 | Z104: 0.203125 | AA104: 0.203125 | AB104: 0.203125 | AC104: 9.2406 | AD104: 11.6006 | AE104: 7.4541 | AF104: 9.7264 | AG104: 8.2016 | AH104: 10.6539 | AI104: 6.6378 | AJ104: 8.9301 | AK104: 0 | AL104: 0 | AM104: 0 | AN104: 0
B105: 88 | C105: 0 | D105: 61.75 | E105: 1800.318188 | F105: 574.3456693 | G105: 412.0704297 | H105: 240.2838321 | I105: 4345.147182 | J105: 4553.16799 | K105: 4345.147182 | L105: 4553.16799 | M105: 226677.4174 | N105: 293123.3173 | O105: 176931.8979 | P105: 239632.7975 | Q105: 228988.312 | R105: 298531.6802 | S105: 178099.305 | T105: 243051.4882 | U105: 0 | V105: 0 | W105: 0 | X105: 0 | Y105: 0.203125 | Z105: 0.203125 | AA105: 0.203125 | AB105: 0.203125 | AC105: 9.2406 | AD105: 11.6006 | AE105: 7.4541 | AF105: 9.7264 | AG105: 8.2016 | AH105: 10.6539 | AI105: 6.6378 | AJ105: 8.9301 | AK105: 0 | AL105: 0 | AM105: 0 | AN105: 0
B106: 89 | C106: 0 | D106: 62 | E106: 1800.318188 | F106: 574.3456693 | G106: 412.0704297 | H106: 240.2838321 | I106: 4345.147182 | J106: 4553.16799 | K106: 4345.147182 | L106: 4553.16799 | M106: 226677.4174 | N106: 293123.3173 | O106: 176931.8979 | P106: 239632.7975 | Q106: 228988.312 | R106: 298531.6802 | S106: 178099.305 | T106: 243051.4882 | U106: 0 | V106: 0 | W106: 0 | X106: 0 | Y106: 0.203125 | Z106: 0.203125 | AA106: 0.203125 | AB106: 0.203125 | AC106: 9.2406 | AD106: 11.6006 | AE106: 7.4541 | AF106: 9.7264 | AG106: 8.2016 | AH106: 10.6539 | AI106: 6.6378 | AJ106: 8.9301 | AK106: 0 | AL106: 0 | AM106: 0 | AN106: 0
B107: 90 | C107: 0 | D107: 62.25 | E107: 1800.318188 | F107: 574.3456693 | G107: 412.0704297 | H107: 240.2838321 | I107: 4345.147182 | J107: 4553.16799 | K107: 4345.147182 | L107: 4553.16799 | M107: 226677.4174 | N107: 293123.3173 | O107: 176931.8979 | P107: 239632.7975 | Q107: 228988.312 | R107: 298531.6802 | S107: 178099.305 | T107: 243051.4882 | U107: 0 | V107: 0 | W107: 0 | X107: 0 | Y107: 0.203125 | Z107: 0.203125 | AA107: 0.203125 | AB107: 0.203125 | AC107: 9.2406 | AD107: 11.6006 | AE107: 7.4541 | AF107: 9.7264 | AG107: 8.2016 | AH107: 10.6539 | AI107: 6.6378 | AJ107: 8.9301 | AK107: 0 | AL107: 0 | AM107: 0 | AN107: 0
B108: 91 | C108: 0 | D108: 62.5 | E108: 1800.318188 | F108: 574.3456693 | G108: 412.0704297 | H108: 240.2838321 | I108: 4345.147182 | J108: 4553.16799 | K108: 4345.147182 | L108: 4553.16799 | M108: 226677.4174 | N108: 293123.3173 | O108: 176931.8979 | P108: 239632.7975 | Q108: 228988.312 | R108: 298531.6802 | S108: 178099.305 | T108: 243051.4882 | U108: 0 | V108: 0 | W108: 0 | X108: 0 | Y108: 0.203125 | Z108: 0.203125 | AA108: 0.203125 | AB108: 0.203125 | AC108: 9.2406 | AD108: 11.6006 | AE108: 7.4541 | AF108: 9.7264 | AG108: 8.2016 | AH108: 10.6539 | AI108: 6.6378 | AJ108: 8.9301 | AK108: 0 | AL108: 0 | AM108: 0 | AN108: 0
B109: 92 | C109: 0 | D109: 62.75 | E109: 1800.318188 | F109: 574.3456693 | G109: 412.0704297 | H109: 240.2838321 | I109: 4345.147182 | J109: 4553.16799 | K109: 4345.147182 | L109: 4553.16799 | M109: 226677.4174 | N109: 293123.3173 | O109: 176931.8979 | P109: 239632.7975 | Q109: 228988.312 | R109: 298531.6802 | S109: 178099.305 | T109: 243051.4882 | U109: 0 | V109: 0 | W109: 0 | X109: 0 | Y109: 0.203125 | Z109: 0.203125 | AA109: 0.203125 | AB109: 0.203125 | AC109: 9.2406 | AD109: 11.6006 | AE109: 7.4541 | AF109: 9.7264 | AG109: 8.2016 | AH109: 10.6539 | AI109: 6.6378 | AJ109: 8.9301 | AK109: 0 | AL109: 0 | AM109: 0 | AN109: 0
B110: 93 | C110: 0 | D110: 63 | E110: 1800.318188 | F110: 574.3456693 | G110: 412.0704297 | H110: 240.2838321 | I110: 4345.147182 | J110: 4553.16799 | K110: 4345.147182 | L110: 4553.16799 | M110: 226677.4174 | N110: 293123.3173 | O110: 176931.8979 | P110: 239632.7975 | Q110: 228988.312 | R110: 298531.6802 | S110: 178099.305 | T110: 243051.4882 | U110: 0 | V110: 0 | W110: 0 | X110: 0 | Y110: 0.203125 | Z110: 0.203125 | AA110: 0.203125 | AB110: 0.203125 | AC110: 9.2406 | AD110: 11.6006 | AE110: 7.4541 | AF110: 9.7264 | AG110: 8.2016 | AH110: 10.6539 | AI110: 6.6378 | AJ110: 8.9301 | AK110: 0 | AL110: 0 | AM110: 0 | AN110: 0
B111: 94 | C111: 0 | D111: 63.25 | E111: 1800.318188 | F111: 574.3456693 | G111: 412.0704297 | H111: 240.2838321 | I111: 4345.147182 | J111: 4553.16799 | K111: 4345.147182 | L111: 4553.16799 | M111: 226677.4174 | N111: 293123.3173 | O111: 176931.8979 | P111: 239632.7975 | Q111: 228988.312 | R111: 298531.6802 | S111: 178099.305 | T111: 243051.4882 | U111: 0 | V111: 0 | W111: 0 | X111: 0 | Y111: 0.203125 | Z111: 0.203125 | AA111: 0.203125 | AB111: 0.203125 | AC111: 9.2406 | AD111: 11.6006 | AE111: 7.4541 | AF111: 9.7264 | AG111: 8.2016 | AH111: 10.6539 | AI111: 6.6378 | AJ111: 8.9301 | AK111: 0 | AL111: 0 | AM111: 0 | AN111: 0
B112: 95 | C112: 0 | D112: 63.5 | E112: 1800.318188 | F112: 574.3456693 | G112: 412.0704297 | H112: 240.2838321 | I112: 4345.147182 | J112: 4553.16799 | K112: 4345.147182 | L112: 4553.16799 | M112: 226677.4174 | N112: 293123.3173 | O112: 176931.8979 | P112: 239632.7975 | Q112: 228988.312 | R112: 298531.6802 | S112: 178099.305 | T112: 243051.4882 | U112: 0 | V112: 0 | W112: 0 | X112: 0 | Y112: 0.203125 | Z112: 0.203125 | AA112: 0.203125 | AB112: 0.203125 | AC112: 9.2406 | AD112: 11.6006 | AE112: 7.4541 | AF112: 9.7264 | AG112: 8.2016 | AH112: 10.6539 | AI112: 6.6378 | AJ112: 8.9301 | AK112: 0 | AL112: 0 | AM112: 0 | AN112: 0
B113: 96 | C113: 0 | D113: 63.75 | E113: 1800.318188 | F113: 574.3456693 | G113: 412.0704297 | H113: 240.2838321 | I113: 4345.147182 | J113: 4553.16799 | K113: 4345.147182 | L113: 4553.16799 | M113: 226677.4174 | N113: 293123.3173 | O113: 176931.8979 | P113: 239632.7975 | Q113: 228988.312 | R113: 298531.6802 | S113: 178099.305 | T113: 243051.4882 | U113: 0 | V113: 0 | W113: 0 | X113: 0 | Y113: 0.203125 | Z113: 0.203125 | AA113: 0.203125 | AB113: 0.203125 | AC113: 9.2406 | AD113: 11.6006 | AE113: 7.4541 | AF113: 9.7264 | AG113: 8.2016 | AH113: 10.6539 | AI113: 6.6378 | AJ113: 8.9301 | AK113: 0 | AL113: 0 | AM113: 0 | AN113: 0
B114: 97 | C114: 0 | D114: 64 | E114: 1800.318188 | F114: 574.3456693 | G114: 412.0704297 | H114: 240.2838321 | I114: 4345.147182 | J114: 4553.16799 | K114: 4345.147182 | L114: 4553.16799 | M114: 226677.4174 | N114: 293123.3173 | O114: 176931.8979 | P114: 239632.7975 | Q114: 228988.312 | R114: 298531.6802 | S114: 178099.305 | T114: 243051.4882 | U114: 0 | V114: 0 | W114: 0 | X114: 0 | Y114: 0.203125 | Z114: 0.203125 | AA114: 0.203125 | AB114: 0.203125 | AC114: 9.2406 | AD114: 11.6006 | AE114: 7.4541 | AF114: 9.7264 | AG114: 8.2016 | AH114: 10.6539 | AI114: 6.6378 | AJ114: 8.9301 | AK114: 0 | AL114: 0 | AM114: 0 | AN114: 0
B115: 98 | C115: 0 | D115: 64.25 | E115: 1800.318188 | F115: 574.3456693 | G115: 412.0704297 | H115: 240.2838321 | I115: 4345.147182 | J115: 4553.16799 | K115: 4345.147182 | L115: 4553.16799 | M115: 226677.4174 | N115: 293123.3173 | O115: 176931.8979 | P115: 239632.7975 | Q115: 228988.312 | R115: 298531.6802 | S115: 178099.305 | T115: 243051.4882 | U115: 0 | V115: 0 | W115: 0 | X115: 0 | Y115: 0.203125 | Z115: 0.203125 | AA115: 0.203125 | AB115: 0.203125 | AC115: 9.2406 | AD115: 11.6006 | AE115: 7.4541 | AF115: 9.7264 | AG115: 8.2016 | AH115: 10.6539 | AI115: 6.6378 | AJ115: 8.9301 | AK115: 0 | AL115: 0 | AM115: 0 | AN115: 0
B116: 99 | C116: 0 | D116: 64.5 | E116: 1800.318188 | F116: 574.3456693 | G116: 412.0704297 | H116: 240.2838321 | I116: 4345.147182 | J116: 4553.16799 | K116: 4345.147182 | L116: 4553.16799 | M116: 226677.4174 | N116: 293123.3173 | O116: 176931.8979 | P116: 239632.7975 | Q116: 228988.312 | R116: 298531.6802 | S116: 178099.305 | T116: 243051.4882 | U116: 0 | V116: 0 | W116: 0 | X116: 0 | Y116: 0.203125 | Z116: 0.203125 | AA116: 0.203125 | AB116: 0.203125 | AC116: 9.2406 | AD116: 11.6006 | AE116: 7.4541 | AF116: 9.7264 | AG116: 8.2016 | AH116: 10.6539 | AI116: 6.6378 | AJ116: 8.9301 | AK116: 0 | AL116: 0 | AM116: 0 | AN116: 0
B117: 100 | C117: 0 | D117: 64.75 | E117: 1800.318188 | F117: 574.3456693 | G117: 412.0704297 | H117: 240.2838321 | I117: 4345.147182 | J117: 4553.16799 | K117: 4345.147182 | L117: 4553.16799 | M117: 226677.4174 | N117: 293123.3173 | O117: 176931.8979 | P117: 239632.7975 | Q117: 228988.312 | R117: 298531.6802 | S117: 178099.305 | T117: 243051.4882 | U117: 0 | V117: 0 | W117: 0 | X117: 0 | Y117: 0.203125 | Z117: 0.203125 | AA117: 0.203125 | AB117: 0.203125 | AC117: 9.2406 | AD117: 11.6006 | AE117: 7.4541 | AF117: 9.7264 | AG117: 8.2016 | AH117: 10.6539 | AI117: 6.6378 | AJ117: 8.9301 | AK117: 0 | AL117: 0 | AM117: 0 | AN117: 0
B118: 101 | C118: 0 | D118: 65 | E118: =(VLOOKUP($D118,tab_InitPopHCV, E$16+1, TRUE)/5)*CycleLength*VLOOKUP($D118,tab_InitFibrDist, (E$16-1)*FibNum+$C118+2, TRUE)*IF($C118=0, IF($B118<=AgeNum, VLOOKUP($D118,tab_InitF0propNonProg, E$16+1, TRUE), 1- VLOOKUP($D118,tab_InitF0propNonProg, E$16+1, TRUE)), 1) -> 822.8783402 | F118: 222.8520622 | G118: 314.7518731 | H118: 110.4715567 | I118: =VLOOKUP($D118,tabCost_AnnualHC,(I$16-1)*FibNum+$C118+2, TRUE)*CycleLength -> 5002.198864 | J118: 5087.433056 | K118: 5002.198864 | L118: 5087.433056 | M118: =VLOOKUP($D118,tabCost_TermTrt,(M$16-1)*FibNum+$C118+2, TRUE) -> 205124.9732 | N118: 265743.1059 | O118: 162889.1313 | P118: 217060.9718 | Q118: =VLOOKUP($D118,tabCost_TermNoTrt,(Q$16-1)*(FibNum+1)+$C118+3+IF($B118<=AgeNum, -1, 0), TRUE) -> 206637.1664 | R118: 269968.0575 | S118: 163136.7122 | T118: 219328.5952 | U118: =VLOOKUP($C118,tabCost_Term80,U$16+1, TRUE)*IF($D118=79.75, 1, 0) -> 0 | V118: 0 | W118: 0 | X118: 0 | Y118: =VLOOKUP($D118,tabQALY_Annual,(Y$16-1)*FibNum+$C118+2, TRUE)*CycleLength -> 0.20085 | Z118: 0.20085 | AA118: 0.20085 | AB118: 0.20085 | AC118: =VLOOKUP($D118,tabQALY_TermTrt,(AC$16-1)*FibNum+$C118+2, TRUE) -> 7.5684 | AD118: 9.7676 | AE118: 6.1521 | AF118: 8.1333 | AG118: =VLOOKUP($D118,tabQALY_TermNoTrt,(AG$16-1)*(FibNum+1)+$C118+3+IF($B118<=AgeNum, -1, 0), TRUE) -> 6.7543 | AH118: 8.9714 | AI118: 5.4985 | AJ118: 7.4647 | AK118: =VLOOKUP($C118,tabQALY_Term80,AK$16+1, TRUE)*IF($D118=79.75, 1, 0) -> 0 | AL118: 0 | AM118: 0 | AN118: 0
B119: 102 | C119: 0 | D119: 65.25 | E119: 822.8783402 | F119: 222.8520622 | G119: 314.7518731 | H119: 110.4715567 | I119: 5002.198864 | J119: 5087.433056 | K119: 5002.198864 | L119: 5087.433056 | M119: 205124.9732 | N119: 265743.1059 | O119: 162889.1313 | P119: 217060.9718 | Q119: 206637.1664 | R119: 269968.0575 | S119: 163136.7122 | T119: 219328.5952 | U119: 0 | V119: 0 | W119: 0 | X119: 0 | Y119: 0.20085 | Z119: 0.20085 | AA119: 0.20085 | AB119: 0.20085 | AC119: 7.5684 | AD119: 9.7676 | AE119: 6.1521 | AF119: 8.1333 | AG119: 6.7543 | AH119: 8.9714 | AI119: 5.4985 | AJ119: 7.4647 | AK119: 0 | AL119: 0 | AM119: 0 | AN119: 0
B120: 103 | C120: 0 | D120: 65.5 | E120: 822.8783402 | F120: 222.8520622 | G120: 314.7518731 | H120: 110.4715567 | I120: 5002.198864 | J120: 5087.433056 | K120: 5002.198864 | L120: 5087.433056 | M120: 205124.9732 | N120: 265743.1059 | O120: 162889.1313 | P120: 217060.9718 | Q120: 206637.1664 | R120: 269968.0575 | S120: 163136.7122 | T120: 219328.5952 | U120: 0 | V120: 0 | W120: 0 | X120: 0 | Y120: 0.20085 | Z120: 0.20085 | AA120: 0.20085 | AB120: 0.20085 | AC120: 7.5684 | AD120: 9.7676 | AE120: 6.1521 | AF120: 8.1333 | AG120: 6.7543 | AH120: 8.9714 | AI120: 5.4985 | AJ120: 7.4647 | AK120: 0 | AL120: 0 | AM120: 0 | AN120: 0
B121: 104 | C121: 0 | D121: 65.75 | E121: 822.8783402 | F121: 222.8520622 | G121: 314.7518731 | H121: 110.4715567 | I121: 5002.198864 | J121: 5087.433056 | K121: 5002.198864 | L121: 5087.433056 | M121: 205124.9732 | N121: 265743.1059 | O121: 162889.1313 | P121: 217060.9718 | Q121: 206637.1664 | R121: 269968.0575 | S121: 163136.7122 | T121: 219328.5952 | U121: 0 | V121: 0 | W121: 0 | X121: 0 | Y121: 0.20085 | Z121: 0.20085 | AA121: 0.20085 | AB121: 0.20085 | AC121: 7.5684 | AD121: 9.7676 | AE121: 6.1521 | AF121: 8.1333 | AG121: 6.7543 | AH121: 8.9714 | AI121: 5.4985 | AJ121: 7.4647 | AK121: 0 | AL121: 0 | AM121: 0 | AN121: 0
B122: 105 | C122: 0 | D122: 66 | E122: 822.8783402 | F122: 222.8520622 | G122: 314.7518731 | H122: 110.4715567 | I122: 5002.198864 | J122: 5087.433056 | K122: 5002.198864 | L122: 5087.433056 | M122: 205124.9732 | N122: 265743.1059 | O122: 162889.1313 | P122: 217060.9718 | Q122: 206637.1664 | R122: 269968.0575 | S122: 163136.7122 | T122: 219328.5952 | U122: 0 | V122: 0 | W122: 0 | X122: 0 | Y122: 0.20085 | Z122: 0.20085 | AA122: 0.20085 | AB122: 0.20085 | AC122: 7.5684 | AD122: 9.7676 | AE122: 6.1521 | AF122: 8.1333 | AG122: 6.7543 | AH122: 8.9714 | AI122: 5.4985 | AJ122: 7.4647 | AK122: 0 | AL122: 0 | AM122: 0 | AN122: 0
B123: 106 | C123: 0 | D123: 66.25 | E123: 822.8783402 | F123: 222.8520622 | G123: 314.7518731 | H123: 110.4715567 | I123: 5002.198864 | J123: 5087.433056 | K123: 5002.198864 | L123: 5087.433056 | M123: 205124.9732 | N123: 265743.1059 | O123: 162889.1313 | P123: 217060.9718 | Q123: 206637.1664 | R123: 269968.0575 | S123: 163136.7122 | T123: 219328.5952 | U123: 0 | V123: 0 | W123: 0 | X123: 0 | Y123: 0.20085 | Z123: 0.20085 | AA123: 0.20085 | AB123: 0.20085 | AC123: 7.5684 | AD123: 9.7676 | AE123: 6.1521 | AF123: 8.1333 | AG123: 6.7543 | AH123: 8.9714 | AI123: 5.4985 | AJ123: 7.4647 | AK123: 0 | AL123: 0 | AM123: 0 | AN123: 0
B124: 107 | C124: 0 | D124: 66.5 | E124: 822.8783402 | F124: 222.8520622 | G124: 314.7518731 | H124: 110.4715567 | I124: 5002.198864 | J124: 5087.433056 | K124: 5002.198864 | L124: 5087.433056 | M124: 205124.9732 | N124: 265743.1059 | O124: 162889.1313 | P124: 217060.9718 | Q124: 206637.1664 | R124: 269968.0575 | S124: 163136.7122 | T124: 219328.5952 | U124: 0 | V124: 0 | W124: 0 | X124: 0 | Y124: 0.20085 | Z124: 0.20085 | AA124: 0.20085 | AB124: 0.20085 | AC124: 7.5684 | AD124: 9.7676 | AE124: 6.1521 | AF124: 8.1333 | AG124: 6.7543 | AH124: 8.9714 | AI124: 5.4985 | AJ124: 7.4647 | AK124: 0 | AL124: 0 | AM124: 0 | AN124: 0
B125: 108 | C125: 0 | D125: 66.75 | E125: 822.8783402 | F125: 222.8520622 | G125: 314.7518731 | H125: 110.4715567 | I125: 5002.198864 | J125: 5087.433056 | K125: 5002.198864 | L125: 5087.433056 | M125: 205124.9732 | N125: 265743.1059 | O125: 162889.1313 | P125: 217060.9718 | Q125: 206637.1664 | R125: 269968.0575 | S125: 163136.7122 | T125: 219328.5952 | U125: 0 | V125: 0 | W125: 0 | X125: 0 | Y125: 0.20085 | Z125: 0.20085 | AA125: 0.20085 | AB125: 0.20085 | AC125: 7.5684 | AD125: 9.7676 | AE125: 6.1521 | AF125: 8.1333 | AG125: 6.7543 | AH125: 8.9714 | AI125: 5.4985 | AJ125: 7.4647 | AK125: 0 | AL125: 0 | AM125: 0 | AN125: 0
B126: 109 | C126: 0 | D126: 67 | E126: 822.8783402 | F126: 222.8520622 | G126: 314.7518731 | H126: 110.4715567 | I126: 5246.581704 | J126: 5270.455655 | K126: 5246.581704 | L126: 5270.455655 | M126: 194674.9691 | N126: 252627.7759 | O126: 156569.1731 | P126: 206514.373 | Q126: 195834.3488 | R126: 256380.9054 | S126: 156574.2704 | T126: 208398.9144 | U126: 0 | V126: 0 | W126: 0 | X126: 0 | Y126: 0.1999833333 | Z126: 0.1999833333 | AA126: 0.1999833333 | AB126: 0.1999833333 | AC126: 6.9101 | AD126: 9.0263 | AE126: 5.6692 | AF126: 7.5041 | AG126: 6.1695 | AH126: 8.2833 | AI126: 5.0685 | AJ126: 6.8809 | AK126: 0 | AL126: 0 | AM126: 0 | AN126: 0
B127: 110 | C127: 0 | D127: 67.25 | E127: 822.8783402 | F127: 222.8520622 | G127: 314.7518731 | H127: 110.4715567 | I127: 5246.581704 | J127: 5270.455655 | K127: 5246.581704 | L127: 5270.455655 | M127: 194674.9691 | N127: 252627.7759 | O127: 156569.1731 | P127: 206514.373 | Q127: 195834.3488 | R127: 256380.9054 | S127: 156574.2704 | T127: 208398.9144 | U127: 0 | V127: 0 | W127: 0 | X127: 0 | Y127: 0.1999833333 | Z127: 0.1999833333 | AA127: 0.1999833333 | AB127: 0.1999833333 | AC127: 6.9101 | AD127: 9.0263 | AE127: 5.6692 | AF127: 7.5041 | AG127: 6.1695 | AH127: 8.2833 | AI127: 5.0685 | AJ127: 6.8809 | AK127: 0 | AL127: 0 | AM127: 0 | AN127: 0
B128: 111 | C128: 0 | D128: 67.5 | E128: 822.8783402 | F128: 222.8520622 | G128: 314.7518731 | H128: 110.4715567 | I128: 5246.581704 | J128: 5270.455655 | K128: 5246.581704 | L128: 5270.455655 | M128: 194674.9691 | N128: 252627.7759 | O128: 156569.1731 | P128: 206514.373 | Q128: 195834.3488 | R128: 256380.9054 | S128: 156574.2704 | T128: 208398.9144 | U128: 0 | V128: 0 | W128: 0 | X128: 0 | Y128: 0.1999833333 | Z128: 0.1999833333 | AA128: 0.1999833333 | AB128: 0.1999833333 | AC128: 6.9101 | AD128: 9.0263 | AE128: 5.6692 | AF128: 7.5041 | AG128: 6.1695 | AH128: 8.2833 | AI128: 5.0685 | AJ128: 6.8809 | AK128: 0 | AL128: 0 | AM128: 0 | AN128: 0
B129: 112 | C129: 0 | D129: 67.75 | E129: 822.8783402 | F129: 222.8520622 | G129: 314.7518731 | H129: 110.4715567 | I129: 5246.581704 | J129: 5270.455655 | K129: 5246.581704 | L129: 5270.455655 | M129: 194674.9691 | N129: 252627.7759 | O129: 156569.1731 | P129: 206514.373 | Q129: 195834.3488 | R129: 256380.9054 | S129: 156574.2704 | T129: 208398.9144 | U129: 0 | V129: 0 | W129: 0 | X129: 0 | Y129: 0.1999833333 | Z129: 0.1999833333 | AA129: 0.1999833333 | AB129: 0.1999833333 | AC129: 6.9101 | AD129: 9.0263 | AE129: 5.6692 | AF129: 7.5041 | AG129: 6.1695 | AH129: 8.2833 | AI129: 5.0685 | AJ129: 6.8809 | AK129: 0 | AL129: 0 | AM129: 0 | AN129: 0
B130: 113 | C130: 0 | D130: 68 | E130: 822.8783402 | F130: 222.8520622 | G130: 314.7518731 | H130: 110.4715567 | I130: 5246.581704 | J130: 5270.455655 | K130: 5246.581704 | L130: 5270.455655 | M130: 194674.9691 | N130: 252627.7759 | O130: 156569.1731 | P130: 206514.373 | Q130: 195834.3488 | R130: 256380.9054 | S130: 156574.2704 | T130: 208398.9144 | U130: 0 | V130: 0 | W130: 0 | X130: 0 | Y130: 0.1999833333 | Z130: 0.1999833333 | AA130: 0.1999833333 | AB130: 0.1999833333 | AC130: 6.9101 | AD130: 9.0263 | AE130: 5.6692 | AF130: 7.5041 | AG130: 6.1695 | AH130: 8.2833 | AI130: 5.0685 | AJ130: 6.8809 | AK130: 0 | AL130: 0 | AM130: 0 | AN130: 0
B131: 114 | C131: 0 | D131: 68.25 | E131: 822.8783402 | F131: 222.8520622 | G131: 314.7518731 | H131: 110.4715567 | I131: 5246.581704 | J131: 5270.455655 | K131: 5246.581704 | L131: 5270.455655 | M131: 194674.9691 | N131: 252627.7759 | O131: 156569.1731 | P131: 206514.373 | Q131: 195834.3488 | R131: 256380.9054 | S131: 156574.2704 | T131: 208398.9144 | U131: 0 | V131: 0 | W131: 0 | X131: 0 | Y131: 0.1999833333 | Z131: 0.1999833333 | AA131: 0.1999833333 | AB131: 0.1999833333 | AC131: 6.9101 | AD131: 9.0263 | AE131: 5.6692 | AF131: 7.5041 | AG131: 6.1695 | AH131: 8.2833 | AI131: 5.0685 | AJ131: 6.8809 | AK131: 0 | AL131: 0 | AM131: 0 | AN131: 0
B132: 115 | C132: 0 | D132: 68.5 | E132: 822.8783402 | F132: 222.8520622 | G132: 314.7518731 | H132: 110.4715567 | I132: 5246.581704 | J132: 5270.455655 | K132: 5246.581704 | L132: 5270.455655 | M132: 194674.9691 | N132: 252627.7759 | O132: 156569.1731 | P132: 206514.373 | Q132: 195834.3488 | R132: 256380.9054 | S132: 156574.2704 | T132: 208398.9144 | U132: 0 | V132: 0 | W132: 0 | X132: 0 | Y132: 0.1999833333 | Z132: 0.1999833333 | AA132: 0.1999833333 | AB132: 0.1999833333 | AC132: 6.9101 | AD132: 9.0263 | AE132: 5.6692 | AF132: 7.5041 | AG132: 6.1695 | AH132: 8.2833 | AI132: 5.0685 | AJ132: 6.8809 | AK132: 0 | AL132: 0 | AM132: 0 | AN132: 0
B133: 116 | C133: 0 | D133: 68.75 | E133: 822.8783402 | F133: 222.8520622 | G133: 314.7518731 | H133: 110.4715567 | I133: 5246.581704 | J133: 5270.455655 | K133: 5246.581704 | L133: 5270.455655 | M133: 194674.9691 | N133: 252627.7759 | O133: 156569.1731 | P133: 206514.373 | Q133: 195834.3488 | R133: 256380.9054 | S133: 156574.2704 | T133: 208398.9144 | U133: 0 | V133: 0 | W133: 0 | X133: 0 | Y133: 0.1999833333 | Z133: 0.1999833333 | AA133: 0.1999833333 | AB133: 0.1999833333 | AC133: 6.9101 | AD133: 9.0263 | AE133: 5.6692 | AF133: 7.5041 | AG133: 6.1695 | AH133: 8.2833 | AI133: 5.0685 | AJ133: 6.8809 | AK133: 0 | AL133: 0 | AM133: 0 | AN133: 0
B134: 117 | C134: 0 | D134: 69 | E134: 822.8783402 | F134: 222.8520622 | G134: 314.7518731 | H134: 110.4715567 | I134: 5246.581704 | J134: 5270.455655 | K134: 5246.581704 | L134: 5270.455655 | M134: 194674.9691 | N134: 252627.7759 | O134: 156569.1731 | P134: 206514.373 | Q134: 195834.3488 | R134: 256380.9054 | S134: 156574.2704 | T134: 208398.9144 | U134: 0 | V134: 0 | W134: 0 | X134: 0 | Y134: 0.1999833333 | Z134: 0.1999833333 | AA134: 0.1999833333 | AB134: 0.1999833333 | AC134: 6.9101 | AD134: 9.0263 | AE134: 5.6692 | AF134: 7.5041 | AG134: 6.1695 | AH134: 8.2833 | AI134: 5.0685 | AJ134: 6.8809 | AK134: 0 | AL134: 0 | AM134: 0 | AN134: 0
B135: 118 | C135: 0 | D135: 69.25 | E135: 822.8783402 | F135: 222.8520622 | G135: 314.7518731 | H135: 110.4715567 | I135: 5246.581704 | J135: 5270.455655 | K135: 5246.581704 | L135: 5270.455655 | M135: 194674.9691 | N135: 252627.7759 | O135: 156569.1731 | P135: 206514.373 | Q135: 195834.3488 | R135: 256380.9054 | S135: 156574.2704 | T135: 208398.9144 | U135: 0 | V135: 0 | W135: 0 | X135: 0 | Y135: 0.1999833333 | Z135: 0.1999833333 | AA135: 0.1999833333 | AB135: 0.1999833333 | AC135: 6.9101 | AD135: 9.0263 | AE135: 5.6692 | AF135: 7.5041 | AG135: 6.1695 | AH135: 8.2833 | AI135: 5.0685 | AJ135: 6.8809 | AK135: 0 | AL135: 0 | AM135: 0 | AN135: 0
B136: 119 | C136: 0 | D136: 69.5 | E136: 822.8783402 | F136: 222.8520622 | G136: 314.7518731 | H136: 110.4715567 | I136: 5246.581704 | J136: 5270.455655 | K136: 5246.581704 | L136: 5270.455655 | M136: 194674.9691 | N136: 252627.7759 | O136: 156569.1731 | P136: 206514.373 | Q136: 195834.3488 | R136: 256380.9054 | S136: 156574.2704 | T136: 208398.9144 | U136: 0 | V136: 0 | W136: 0 | X136: 0 | Y136: 0.1999833333 | Z136: 0.1999833333 | AA136: 0.1999833333 | AB136: 0.1999833333 | AC136: 6.9101 | AD136: 9.0263 | AE136: 5.6692 | AF136: 7.5041 | AG136: 6.1695 | AH136: 8.2833 | AI136: 5.0685 | AJ136: 6.8809 | AK136: 0 | AL136: 0 | AM136: 0 | AN136: 0
B137: 120 | C137: 0 | D137: 69.75 | E137: 822.8783402 | F137: 222.8520622 | G137: 314.7518731 | H137: 110.4715567 | I137: 5246.581704 | J137: 5270.455655 | K137: 5246.581704 | L137: 5270.455655 | M137: 194674.9691 | N137: 252627.7759 | O137: 156569.1731 | P137: 206514.373 | Q137: 195834.3488 | R137: 256380.9054 | S137: 156574.2704 | T137: 208398.9144 | U137: 0 | V137: 0 | W137: 0 | X137: 0 | Y137: 0.1999833333 | Z137: 0.1999833333 | AA137: 0.1999833333 | AB137: 0.1999833333 | AC137: 6.9101 | AD137: 9.0263 | AE137: 5.6692 | AF137: 7.5041 | AG137: 6.1695 | AH137: 8.2833 | AI137: 5.0685 | AJ137: 6.8809 | AK137: 0 | AL137: 0 | AM137: 0 | AN137: 0
B138: 121 | C138: 0 | D138: 70 | E138: =(VLOOKUP($D138,tab_InitPopHCV, E$16+1, TRUE)/5)*CycleLength*VLOOKUP($D138,tab_InitFibrDist, (E$16-1)*FibNum+$C138+2, TRUE)*IF($C138=0, IF($B138<=AgeNum, VLOOKUP($D138,tab_InitF0propNonProg, E$16+1, TRUE), 1- VLOOKUP($D138,tab_InitF0propNonProg, E$16+1, TRUE)), 1) -> 274.4484572 | F138: 72.45931576 | G138: 160.0347706 | H138: 58.21635167 | I138: =VLOOKUP($D138,tabCost_AnnualHC,(I$16-1)*FibNum+$C138+2, TRUE)*CycleLength -> 5601.097746 | J138: 5556.700575 | K138: 5601.097746 | L138: 5556.700575 | M138: =VLOOKUP($D138,tabCost_TermTrt,(M$16-1)*FibNum+$C138+2, TRUE) -> 177622.8943 | N138: 231006.4926 | O138: 146442.1413 | P138: 189360.5148 | Q138: =VLOOKUP($D138,tabCost_TermNoTrt,(Q$16-1)*(FibNum+1)+$C138+3+IF($B138<=AgeNum, -1, 0), TRUE) -> 178379.7184 | R138: 234123.0275 | S138: 146281.0011 | T138: 190797.3573 | U138: =VLOOKUP($C138,tabCost_Term80,U$16+1, TRUE)*IF($D138=79.75, 1, 0) -> 0 | V138: 0 | W138: 0 | X138: 0 | Y138: =VLOOKUP($D138,tabQALY_Annual,(Y$16-1)*FibNum+$C138+2, TRUE)*CycleLength -> 0.1986833333 | Z138: 0.1986833333 | AA138: 0.1986833333 | AB138: 0.1986833333 | AC138: =VLOOKUP($D138,tabQALY_TermTrt,(AC$16-1)*FibNum+$C138+2, TRUE) -> 5.9435 | AD138: 7.9134 | AE138: 4.9735 | AF138: 6.5714 | AG138: =VLOOKUP($D138,tabQALY_TermNoTrt,(AG$16-1)*(FibNum+1)+$C138+3+IF($B138<=AgeNum, -1, 0), TRUE) -> 5.2995 | AH138: 7.2439 | AI138: 4.4415 | AJ138: 6.0115 | AK138: =VLOOKUP($C138,tabQALY_Term80,AK$16+1, TRUE)*IF($D138=79.75, 1, 0) -> 0 | AL138: 0 | AM138: 0 | AN138: 0
B139: 122 | C139: 0 | D139: 70.25 | E139: 274.4484572 | F139: 72.45931576 | G139: 160.0347706 | H139: 58.21635167 | I139: 5601.097746 | J139: 5556.700575 | K139: 5601.097746 | L139: 5556.700575 | M139: 177622.8943 | N139: 231006.4926 | O139: 146442.1413 | P139: 189360.5148 | Q139: 178379.7184 | R139: 234123.0275 | S139: 146281.0011 | T139: 190797.3573 | U139: 0 | V139: 0 | W139: 0 | X139: 0 | Y139: 0.1986833333 | Z139: 0.1986833333 | AA139: 0.1986833333 | AB139: 0.1986833333 | AC139: 5.9435 | AD139: 7.9134 | AE139: 4.9735 | AF139: 6.5714 | AG139: 5.2995 | AH139: 7.2439 | AI139: 4.4415 | AJ139: 6.0115 | AK139: 0 | AL139: 0 | AM139: 0 | AN139: 0
B140: 123 | C140: 0 | D140: 70.5 | E140: 274.4484572 | F140: 72.45931576 | G140: 160.0347706 | H140: 58.21635167 | I140: 5601.097746 | J140: 5556.700575 | K140: 5601.097746 | L140: 5556.700575 | M140: 177622.8943 | N140: 231006.4926 | O140: 146442.1413 | P140: 189360.5148 | Q140: 178379.7184 | R140: 234123.0275 | S140: 146281.0011 | T140: 190797.3573 | U140: 0 | V140: 0 | W140: 0 | X140: 0 | Y140: 0.1986833333 | Z140: 0.1986833333 | AA140: 0.1986833333 | AB140: 0.1986833333 | AC140: 5.9435 | AD140: 7.9134 | AE140: 4.9735 | AF140: 6.5714 | AG140: 5.2995 | AH140: 7.2439 | AI140: 4.4415 | AJ140: 6.0115 | AK140: 0 | AL140: 0 | AM140: 0 | AN140: 0
B141: 124 | C141: 0 | D141: 70.75 | E141: 274.4484572 | F141: 72.45931576 | G141: 160.0347706 | H141: 58.21635167 | I141: 5601.097746 | J141: 5556.700575 | K141: 5601.097746 | L141: 5556.700575 | M141: 177622.8943 | N141: 231006.4926 | O141: 146442.1413 | P141: 189360.5148 | Q141: 178379.7184 | R141: 234123.0275 | S141: 146281.0011 | T141: 190797.3573 | U141: 0 | V141: 0 | W141: 0 | X141: 0 | Y141: 0.1986833333 | Z141: 0.1986833333 | AA141: 0.1986833333 | AB141: 0.1986833333 | AC141: 5.9435 | AD141: 7.9134 | AE141: 4.9735 | AF141: 6.5714 | AG141: 5.2995 | AH141: 7.2439 | AI141: 4.4415 | AJ141: 6.0115 | AK141: 0 | AL141: 0 | AM141: 0 | AN141: 0
B142: 125 | C142: 0 | D142: 71 | E142: 274.4484572 | F142: 72.45931576 | G142: 160.0347706 | H142: 58.21635167 | I142: 5601.097746 | J142: 5556.700575 | K142: 5601.097746 | L142: 5556.700575 | M142: 177622.8943 | N142: 231006.4926 | O142: 146442.1413 | P142: 189360.5148 | Q142: 178379.7184 | R142: 234123.0275 | S142: 146281.0011 | T142: 190797.3573 | U142: 0 | V142: 0 | W142: 0 | X142: 0 | Y142: 0.1986833333 | Z142: 0.1986833333 | AA142: 0.1986833333 | AB142: 0.1986833333 | AC142: 5.9435 | AD142: 7.9134 | AE142: 4.9735 | AF142: 6.5714 | AG142: 5.2995 | AH142: 7.2439 | AI142: 4.4415 | AJ142: 6.0115 | AK142: 0 | AL142: 0 | AM142: 0 | AN142: 0
B143: 126 | C143: 0 | D143: 71.25 | E143: 274.4484572 | F143: 72.45931576 | G143: 160.0347706 | H143: 58.21635167 | I143: 5601.097746 | J143: 5556.700575 | K143: 5601.097746 | L143: 5556.700575 | M143: 177622.8943 | N143: 231006.4926 | O143: 146442.1413 | P143: 189360.5148 | Q143: 178379.7184 | R143: 234123.0275 | S143: 146281.0011 | T143: 190797.3573 | U143: 0 | V143: 0 | W143: 0 | X143: 0 | Y143: 0.1986833333 | Z143: 0.1986833333 | AA143: 0.1986833333 | AB143: 0.1986833333 | AC143: 5.9435 | AD143: 7.9134 | AE143: 4.9735 | AF143: 6.5714 | AG143: 5.2995 | AH143: 7.2439 | AI143: 4.4415 | AJ143: 6.0115 | AK143: 0 | AL143: 0 | AM143: 0 | AN143: 0
B144: 127 | C144: 0 | D144: 71.5 | E144: 274.4484572 | F144: 72.45931576 | G144: 160.0347706 | H144: 58.21635167 | I144: 5601.097746 | J144: 5556.700575 | K144: 5601.097746 | L144: 5556.700575 | M144: 177622.8943 | N144: 231006.4926 | O144: 146442.1413 | P144: 189360.5148 | Q144: 178379.7184 | R144: 234123.0275 | S144: 146281.0011 | T144: 190797.3573 | U144: 0 | V144: 0 | W144: 0 | X144: 0 | Y144: 0.1986833333 | Z144: 0.1986833333 | AA144: 0.1986833333 | AB144: 0.1986833333 | AC144: 5.9435 | AD144: 7.9134 | AE144: 4.9735 | AF144: 6.5714 | AG144: 5.2995 | AH144: 7.2439 | AI144: 4.4415 | AJ144: 6.0115 | AK144: 0 | AL144: 0 | AM144: 0 | AN144: 0
B145: 128 | C145: 0 | D145: 71.75 | E145: 274.4484572 | F145: 72.45931576 | G145: 160.0347706 | H145: 58.21635167 | I145: 5601.097746 | J145: 5556.700575 | K145: 5601.097746 | L145: 5556.700575 | M145: 177622.8943 | N145: 231006.4926 | O145: 146442.1413 | P145: 189360.5148 | Q145: 178379.7184 | R145: 234123.0275 | S145: 146281.0011 | T145: 190797.3573 | U145: 0 | V145: 0 | W145: 0 | X145: 0 | Y145: 0.1986833333 | Z145: 0.1986833333 | AA145: 0.1986833333 | AB145: 0.1986833333 | AC145: 5.9435 | AD145: 7.9134 | AE145: 4.9735 | AF145: 6.5714 | AG145: 5.2995 | AH145: 7.2439 | AI145: 4.4415 | AJ145: 6.0115 | AK145: 0 | AL145: 0 | AM145: 0 | AN145: 0
B146: 129 | C146: 0 | D146: 72 | E146: 274.4484572 | F146: 72.45931576 | G146: 160.0347706 | H146: 58.21635167 | I146: 5601.097746 | J146: 5556.700575 | K146: 5601.097746 | L146: 5556.700575 | M146: 177622.8943 | N146: 231006.4926 | O146: 146442.1413 | P146: 189360.5148 | Q146: 178379.7184 | R146: 234123.0275 | S146: 146281.0011 | T146: 190797.3573 | U146: 0 | V146: 0 | W146: 0 | X146: 0 | Y146: 0.1986833333 | Z146: 0.1986833333 | AA146: 0.1986833333 | AB146: 0.1986833333 | AC146: 5.9435 | AD146: 7.9134 | AE146: 4.9735 | AF146: 6.5714 | AG146: 5.2995 | AH146: 7.2439 | AI146: 4.4415 | AJ146: 6.0115 | AK146: 0 | AL146: 0 | AM146: 0 | AN146: 0
B147: 130 | C147: 0 | D147: 72.25 | E147: 274.4484572 | F147: 72.45931576 | G147: 160.0347706 | H147: 58.21635167 | I147: 5601.097746 | J147: 5556.700575 | K147: 5601.097746 | L147: 5556.700575 | M147: 177622.8943 | N147: 231006.4926 | O147: 146442.1413 | P147: 189360.5148 | Q147: 178379.7184 | R147: 234123.0275 | S147: 146281.0011 | T147: 190797.3573 | U147: 0 | V147: 0 | W147: 0 | X147: 0 | Y147: 0.1986833333 | Z147: 0.1986833333 | AA147: 0.1986833333 | AB147: 0.1986833333 | AC147: 5.9435 | AD147: 7.9134 | AE147: 4.9735 | AF147: 6.5714 | AG147: 5.2995 | AH147: 7.2439 | AI147: 4.4415 | AJ147: 6.0115 | AK147: 0 | AL147: 0 | AM147: 0 | AN147: 0
B148: 131 | C148: 0 | D148: 72.5 | E148: 274.4484572 | F148: 72.45931576 | G148: 160.0347706 | H148: 58.21635167 | I148: 5601.097746 | J148: 5556.700575 | K148: 5601.097746 | L148: 5556.700575 | M148: 177622.8943 | N148: 231006.4926 | O148: 146442.1413 | P148: 189360.5148 | Q148: 178379.7184 | R148: 234123.0275 | S148: 146281.0011 | T148: 190797.3573 | U148: 0 | V148: 0 | W148: 0 | X148: 0 | Y148: 0.1986833333 | Z148: 0.1986833333 | AA148: 0.1986833333 | AB148: 0.1986833333 | AC148: 5.9435 | AD148: 7.9134 | AE148: 4.9735 | AF148: 6.5714 | AG148: 5.2995 | AH148: 7.2439 | AI148: 4.4415 | AJ148: 6.0115 | AK148: 0 | AL148: 0 | AM148: 0 | AN148: 0
B149: 132 | C149: 0 | D149: 72.75 | E149: 274.4484572 | F149: 72.45931576 | G149: 160.0347706 | H149: 58.21635167 | I149: 5601.097746 | J149: 5556.700575 | K149: 5601.097746 | L149: 5556.700575 | M149: 177622.8943 | N149: 231006.4926 | O149: 146442.1413 | P149: 189360.5148 | Q149: 178379.7184 | R149: 234123.0275 | S149: 146281.0011 | T149: 190797.3573 | U149: 0 | V149: 0 | W149: 0 | X149: 0 | Y149: 0.1986833333 | Z149: 0.1986833333 | AA149: 0.1986833333 | AB149: 0.1986833333 | AC149: 5.9435 | AD149: 7.9134 | AE149: 4.9735 | AF149: 6.5714 | AG149: 5.2995 | AH149: 7.2439 | AI149: 4.4415 | AJ149: 6.0115 | AK149: 0 | AL149: 0 | AM149: 0 | AN149: 0
B150: 133 | C150: 0 | D150: 73 | E150: 274.4484572 | F150: 72.45931576 | G150: 160.0347706 | H150: 58.21635167 | I150: 5949.937387 | J150: 5795.947099 | K150: 5949.937387 | L150: 5795.947099 | M150: 158779.2508 | N150: 207345.1234 | O150: 133676.1656 | P150: 170585.5476 | Q150: 159056.3677 | R150: 209658.114 | S150: 133230.0641 | T150: 171476.1635 | U150: 0 | V150: 0 | W150: 0 | X150: 0 | Y150: 0.1931583333 | Z150: 0.1931583333 | AA150: 0.1931583333 | AB150: 0.1931583333 | AC150: 5.0121 | AD150: 6.8256 | AE150: 4.2622 | AF150: 5.665 | AG150: 4.4939 | AH150: 6.2511 | AI150: 3.8254 | AJ150: 5.1842 | AK150: 0 | AL150: 0 | AM150: 0 | AN150: 0
B151: 134 | C151: 0 | D151: 73.25 | E151: 274.4484572 | F151: 72.45931576 | G151: 160.0347706 | H151: 58.21635167 | I151: 5949.937387 | J151: 5795.947099 | K151: 5949.937387 | L151: 5795.947099 | M151: 158779.2508 | N151: 207345.1234 | O151: 133676.1656 | P151: 170585.5476 | Q151: 159056.3677 | R151: 209658.114 | S151: 133230.0641 | T151: 171476.1635 | U151: 0 | V151: 0 | W151: 0 | X151: 0 | Y151: 0.1931583333 | Z151: 0.1931583333 | AA151: 0.1931583333 | AB151: 0.1931583333 | AC151: 5.0121 | AD151: 6.8256 | AE151: 4.2622 | AF151: 5.665 | AG151: 4.4939 | AH151: 6.2511 | AI151: 3.8254 | AJ151: 5.1842 | AK151: 0 | AL151: 0 | AM151: 0 | AN151: 0
B152: 135 | C152: 0 | D152: 73.5 | E152: 274.4484572 | F152: 72.45931576 | G152: 160.0347706 | H152: 58.21635167 | I152: 5949.937387 | J152: 5795.947099 | K152: 5949.937387 | L152: 5795.947099 | M152: 158779.2508 | N152: 207345.1234 | O152: 133676.1656 | P152: 170585.5476 | Q152: 159056.3677 | R152: 209658.114 | S152: 133230.0641 | T152: 171476.1635 | U152: 0 | V152: 0 | W152: 0 | X152: 0 | Y152: 0.1931583333 | Z152: 0.1931583333 | AA152: 0.1931583333 | AB152: 0.1931583333 | AC152: 5.0121 | AD152: 6.8256 | AE152: 4.2622 | AF152: 5.665 | AG152: 4.4939 | AH152: 6.2511 | AI152: 3.8254 | AJ152: 5.1842 | AK152: 0 | AL152: 0 | AM152: 0 | AN152: 0
B153: 136 | C153: 0 | D153: 73.75 | E153: 274.4484572 | F153: 72.45931576 | G153: 160.0347706 | H153: 58.21635167 | I153: 5949.937387 | J153: 5795.947099 | K153: 5949.937387 | L153: 5795.947099 | M153: 158779.2508 | N153: 207345.1234 | O153: 133676.1656 | P153: 170585.5476 | Q153: 159056.3677 | R153: 209658.114 | S153: 133230.0641 | T153: 171476.1635 | U153: 0 | V153: 0 | W153: 0 | X153: 0 | Y153: 0.1931583333 | Z153: 0.1931583333 | AA153: 0.1931583333 | AB153: 0.1931583333 | AC153: 5.0121 | AD153: 6.8256 | AE153: 4.2622 | AF153: 5.665 | AG153: 4.4939 | AH153: 6.2511 | AI153: 3.8254 | AJ153: 5.1842 | AK153: 0 | AL153: 0 | AM153: 0 | AN153: 0
